Workbook

Sheet MENU
B5: Ragione Sociale | C5: XYZ SpA
B7: Numero anni di storico | C7: 2
B9: Primo anno di storico | C9: 2003
B11: Numero anni di piano | C11: 3

Sheet DatiAppoggio (hidden)
A1: CODICI
A2: 01
A3: 02
A4: 03
A5: 04
A6: 05
A7: 06
A8: 07
A9: 08
A10: 09
A11: 10
A12: 11
A13: 12
A14: 13
A15: 14
A16: 15
A17: 16
A18: 17
A19: 18
A20: 19
A21: 20
A22: 21
A23: 22
A24: 23
A25: 24
A26: 25
A27: 26
A28: 27
A29: 28
A30: 29
A31: 30
A32: 31
A33: 32
A34: 33
A35: 34
A36: 35
A37: 36
A38: 37
A39: 38
A40: 39
A41: 40
A42: 41
A43: 42
A44: 43
A45: 44
A46: 45
A47: 46
A48: 47
A49: 48
A50: 49
A51: 50
A52: 51
A53: 52
A54: 53
A55: 54
A56: 55
A57: 56
A58: 57
A59: 58
A60: 59
A61: 60
A62: 61
A63: 62
A64: 63
A65: 64
A66: 65
A67: 66
A68: 67
A69: 68
A70: 69
A71: 70
A72: 71
A73: 72
A74: 73
A75: 74
A76: 75
A77: 76
A78: 77
A79: 78
A80: 79
A81: 80
A82: 81
A83: 82
A84: 83
A85: 84
A86: 85
A87: 86
A88: 87
A89: 88
A90: 89
A91: 90
A92: 91
A93: 92
A94: 93
A95: 94
A96: 95
A97: 96
A98: 97
A99: 98
A100: 99

Sheet Voci_Indici
A2: 'Codice' | B2: Tipo | D2: 'Codice' | E2: Tipo
A3: 010101_Vendite prodotti | B3: R | D3: 010101_Concessioni, licenze, marchi | E3: A
A4: 010111_Vendite servizi | B4: R | D4: 010111_Software | E4: A
A5: 010199_TOTALE VENDITE | D5: 010199_IMMOBILIZZAZIONI IMMATERIALI
A6: 020201_Magazzino iniziale | B6: C | D6: 010201_Terreni e fabbricati | E6: A
A7: 020211_Acquisti materie prime | B7: C | D7: 010211_Attrezzature e impianti | E7: A
A8: 020221_Magazzino finale | B8: R | D8: 010221_Altri beni | E8: A
A9: 020299_TOTALE CONSUMI | D9: 010299_IMMOBILIZZAZIONI MATERIALI
A10: 020301_Energia elettrica | B10: C | D10: 010301_Partecipazioni | E10: A
A11: 020311_Manutenzioni | B11: C | D11: 010311_Crediti | E11: A
A12: 020321_Altri costi industriali | B12: C | D12: 010321_Altri | E12: A
A13: 020331_Ammortamenti industriali | B13: C | D13: 010399_IMMOBILIZZAZIONI FINANZIARIE
A14: 020399_COSTI INDUSTRIALI | D14: 019901_IMMOBILIZZAZIONI
A15: 029901_COSTO DEL VENDUTO | D15: 020401_Magazzino | E15: A
A16: 029999_MARGINE INDUSTRIALE | D16: 020402_Crediti verso clienti | E16: A
A17: 030101_Provvigioni | B17: C | D17: 020403_Altri crediti | E17: A
A18: 030111_Promozioni/pubblicità | B18: C | D18: 020404_Ratei/risconti attivi | E18: A
A19: 030121_Altri costi commerciali | B19: C | D19: 020499_ATTIVO CIRCOLANTE
A20: 030199_COSTI COMMERCIALI | D20: 020505_Debiti verso fornitori | E20: P
A21: 030201_Ammortamenti | B21: C | D21: 020506_Debiti verso altri | E21: P
A22: 030211_Personale ammmistrazione/struttura | B22: C | D22: 020507_Debiti tributari | E22: P
A23: 030221_Altri costi amministrativi | B23: C | D23: 020508_Ratei/risconti passivi | E23: P
A24: 030299_COSTI AMMINISTRATIVI | D24: 020509_Fondi imposte | E24: I
A25: 039901_COSTI DI STRUTTURA | D25: 020599_PASSIVO CIRCOLANTE
A26: 039999_REDDITO OPERATIVO | D26: 029901_CAPITALE CIRCOLANTE OPERATIVO
A27: 040101_Proventi di natura extra operativa | B27: R | D27: 030101_Cassa | E27: A
A28: 040102_Oneri di natura extra operativa | B28: C | D28: 030111_Banca | E28: A
A29: 040199_ALTRI PROVENTI / ONERI | D29: 030121_Titoli | E29: A
A30: 040201_Proventi finanziari | B30: R | D30: 030199_LIQUIDITA'
A31: 040211_Oneri finanziari | B31: C | D31: 049999_CAPITALE INVESTITO
A32: 040221_Risultato finanziario a breve | B32: X | D32: 110101_Capitale sociale | E32: P
A33: 040299_PROVENTI / ONERI FINANZIARI | D33: 110102_Riserve | E33: P
A34: 049999_UTILE ANTE IMPOSTE | D34: 110103_Risultato del periodo | E34: U
A35: 050101_Imposte | B35: T | D35: 110199_PATRIMONIO NETTO
A36: 050199_IMPOSTE DELL'ESERCIZIO | D36: 110201_Debiti a breve verso banche | E36: X
A37: 069999_UTILE NETTO | B37: U | D37: 110211_Debiti a breve verso altri finanziatori | E37: P
D38: 110299_DEBITI FINANZIARI A BREVE
D39: 110301_Debiti a medio termine verso banche | E39: P
D40: 110311_Debiti a medio termine verso altri finanziatori | E40: P
D41: 110399_DEBITI FINANZIARI A MEDIO
D42: 110401_TFR | E42: P
D43: 110499_TOTALE TFR
D44: 119999_FONTI DI FINANZIAMENTO

Sheet CE_VOCI
A2: 'Codice' | B2: Tipo | D2: 'Codice' | E2: Tipo | G2: 'Codice' | H2: Tipo
A3: 020201_Magazzino iniziale | B3: C | D3: 010101_Vendite prodotti | E3: R | G3: 020201_Magazzino iniziale | H3: C
A4: 020211_Acquisti materie prime | B4: C | D4: 010111_Vendite servizi | E4: R | G4: 020211_Acquisti materie prime | H4: C
A5: 020301_Energia elettrica | B5: C | D5: 020221_Magazzino finale | E5: R | G5: 020301_Energia elettrica | H5: C
A6: 020311_Manutenzioni | B6: C | D6: 040101_Proventi di natura extra operativa | E6: R | G6: 020311_Manutenzioni | H6: C
A7: 020321_Altri costi industriali | B7: C | D7: 040201_Proventi finanziari | E7: R | G7: 020321_Altri costi industriali | H7: C
A8: 020331_Ammortamenti industriali | B8: C | G8: 020331_Ammortamenti industriali | H8: C
A9: 030101_Provvigioni | B9: C | G9: 030101_Provvigioni | H9: C
A10: 030111_Promozioni/pubblicità | B10: C | G10: 030111_Promozioni/pubblicità | H10: C
A11: 030121_Altri costi commerciali | B11: C | G11: 030121_Altri costi commerciali | H11: C
A12: 030201_Ammortamenti | B12: C | G12: 030201_Ammortamenti | H12: C
A13: 030211_Personale ammmistrazione/struttura | B13: C | G13: 030211_Personale ammmistrazione/struttura | H13: C
A14: 030221_Altri costi amministrativi | B14: C | G14: 030221_Altri costi amministrativi | H14: C
A15: 040102_Oneri di natura extra operativa | B15: C | G15: 040102_Oneri di natura extra operativa | H15: C
A16: 040211_Oneri finanziari | B16: C | G16: 040211_Oneri finanziari | H16: C
G17: 010101_Vendite prodotti | H17: R
G18: 010111_Vendite servizi | H18: R
G19: 020221_Magazzino finale | H19: R
G20: 040101_Proventi di natura extra operativa | H20: R
G21: 040201_Proventi finanziari | H21: R

Sheet SP_VOCI
A2: 'Codice' | B2: Tipo | D2: 'Codice' | E2: Tipo | G2: 'Codice' | H2: Tipo
A3: 010101_Concessioni, licenze, marchi | B3: A | D3: 020505_Debiti verso fornitori | E3: P | G3: 010101_Concessioni, licenze, marchi | H3: A
A4: 010111_Software | B4: A | D4: 020506_Debiti verso altri | E4: P | G4: 010111_Software | H4: A
A5: 010201_Terreni e fabbricati | B5: A | D5: 020507_Debiti tributari | E5: P | G5: 010201_Terreni e fabbricati | H5: A
A6: 010211_Attrezzature e impianti | B6: A | D6: 020508_Ratei/risconti passivi | E6: P | G6: 010211_Attrezzature e impianti | H6: A
A7: 010221_Altri beni | B7: A | D7: 110101_Capitale sociale | E7: P | G7: 010221_Altri beni | H7: A
A8: 010301_Partecipazioni | B8: A | D8: 110102_Riserve | E8: P | G8: 010301_Partecipazioni | H8: A
A9: 010311_Crediti | B9: A | D9: 110211_Debiti a breve verso altri finanziatori | E9: P | G9: 010311_Crediti | H9: A
A10: 010321_Altri | B10: A | D10: 110301_Debiti a medio termine verso banche | E10: P | G10: 010321_Altri | H10: A
A11: 020401_Magazzino | B11: A | D11: 110311_Debiti a medio termine verso altri finanziatori | E11: P | G11: 020401_Magazzino | H11: A
A12: 020402_Crediti verso clienti | B12: A | D12: 110401_TFR | E12: P | G12: 020402_Crediti verso clienti | H12: A
A13: 020403_Altri crediti | B13: A | G13: 020403_Altri crediti | H13: A
A14: 020404_Ratei/risconti attivi | B14: A | G14: 020404_Ratei/risconti attivi | H14: A
A15: 030101_Cassa | B15: A | G15: 030101_Cassa | H15: A
A16: 030111_Banca | B16: A | G16: 030111_Banca | H16: A
A17: 030121_Titoli | B17: A | G17: 030121_Titoli | H17: A
G18: 020505_Debiti verso fornitori | H18: P
G19: 020506_Debiti verso altri | H19: P
G20: 020507_Debiti tributari | H20: P
G21: 020508_Ratei/risconti passivi | H21: P
G22: 110101_Capitale sociale | H22: P
G23: 110102_Riserve | H23: P
G24: 110211_Debiti a breve verso altri finanziatori | H24: P
G25: 110301_Debiti a medio termine verso banche | H25: P
G26: 110311_Debiti a medio termine verso altri finanziatori | H26: P
G27: 110401_TFR | H27: P

Sheet SCHEMA_CE
A1: =MENU!$C$5&" - DEFINIZIONE SCHEMA DI CONTO ECONOMICO" -> XYZ SpA - DEFINIZIONE SCHEMA DI CONTO ECONOMICO
A4: Livello1 | B4: Livello2 | C4: Livello3 | D4: Descrizione riga | E4: Column1 | F4: Tipo
A5: 01 | B5: 01 | C5: 01 | D5: Vendite prodotti | E5: =IF(A5="","",A5&B5&C5&"_"&D5) -> 010101_Vendite prodotti | F5: R
A6: 01 | B6: 01 | C6: 11 | D6: Vendite servizi | E6: =IF(A6="","",A6&B6&C6&"_"&D6) -> 010111_Vendite servizi | F6: R
A7: 01 | B7: 01 | C7: 99 | D7: TOTALE VENDITE | E7: =IF(A7="","",A7&B7&C7&"_"&D7) -> 010199_TOTALE VENDITE
A8: 02 | B8: 02 | C8: 01 | D8: Magazzino iniziale | E8: =IF(A8="","",A8&B8&C8&"_"&D8) -> 020201_Magazzino iniziale | F8: C
A9: 02 | B9: 02 | C9: 11 | D9: Acquisti materie prime | E9: =IF(A9="","",A9&B9&C9&"_"&D9) -> 020211_Acquisti materie prime | F9: C
A10: 02 | B10: 02 | C10: 21 | D10: Magazzino finale | E10: =IF(A10="","",A10&B10&C10&"_"&D10) -> 020221_Magazzino finale | F10: R
A11: 02 | B11: 02 | C11: 99 | D11: TOTALE CONSUMI | E11: =IF(A11="","",A11&B11&C11&"_"&D11) -> 020299_TOTALE CONSUMI
A12: 02 | B12: 03 | C12: 01 | D12: Energia elettrica | E12: =IF(A12="","",A12&B12&C12&"_"&D12) -> 020301_Energia elettrica | F12: C
A13: 02 | B13: 03 | C13: 11 | D13: Manutenzioni | E13: =IF(A13="","",A13&B13&C13&"_"&D13) -> 020311_Manutenzioni | F13: C
A14: 02 | B14: 03 | C14: 21 | D14: Altri costi industriali | E14: =IF(A14="","",A14&B14&C14&"_"&D14) -> 020321_Altri costi industriali | F14: C
A15: 02 | B15: 03 | C15: 31 | D15: Ammortamenti industriali | E15: =IF(A15="","",A15&B15&C15&"_"&D15) -> 020331_Ammortamenti industriali | F15: C
A16: 02 | B16: 03 | C16: 99 | D16: COSTI INDUSTRIALI | E16: =IF(A16="","",A16&B16&C16&"_"&D16) -> 020399_COSTI INDUSTRIALI
A17: 02 | B17: 99 | C17: 01 | D17: COSTO DEL VENDUTO | E17: =IF(A17="","",A17&B17&C17&"_"&D17) -> 029901_COSTO DEL VENDUTO
A18: 02 | B18: 99 | C18: 99 | D18: MARGINE INDUSTRIALE | E18: =IF(A18="","",A18&B18&C18&"_"&D18) -> 029999_MARGINE INDUSTRIALE
A19: 03 | B19: 01 | C19: 01 | D19: Provvigioni | E19: =IF(A19="","",A19&B19&C19&"_"&D19) -> 030101_Provvigioni | F19: C
A20: 03 | B20: 01 | C20: 11 | D20: Promozioni/pubblicità | E20: =IF(A20="","",A20&B20&C20&"_"&D20) -> 030111_Promozioni/pubblicità | F20: C
A21: 03 | B21: 01 | C21: 21 | D21: Altri costi commerciali | E21: =IF(A21="","",A21&B21&C21&"_"&D21) -> 030121_Altri costi commerciali | F21: C
A22: 03 | B22: 01 | C22: 99 | D22: COSTI COMMERCIALI | E22: =IF(A22="","",A22&B22&C22&"_"&D22) -> 030199_COSTI COMMERCIALI
A23: 03 | B23: 02 | C23: 01 | D23: Ammortamenti | E23: =IF(A23="","",A23&B23&C23&"_"&D23) -> 030201_Ammortamenti | F23: C
A24: 03 | B24: 02 | C24: 11 | D24: Personale ammmistrazione/struttura | E24: =IF(A24="","",A24&B24&C24&"_"&D24) -> 030211_Personale ammmistrazione/struttura | F24: C
A25: 03 | B25: 02 | C25: 21 | D25: Altri costi amministrativi | E25: =IF(A25="","",A25&B25&C25&"_"&D25) -> 030221_Altri costi amministrativi | F25: C
A26: 03 | B26: 02 | C26: 99 | D26: COSTI AMMINISTRATIVI | E26: =IF(A26="","",A26&B26&C26&"_"&D26) -> 030299_COSTI AMMINISTRATIVI
A27: 03 | B27: 99 | C27: 01 | D27: COSTI DI STRUTTURA | E27: =IF(A27="","",A27&B27&C27&"_"&D27) -> 039901_COSTI DI STRUTTURA
A28: 03 | B28: 99 | C28: 99 | D28: REDDITO OPERATIVO | E28: =IF(A28="","",A28&B28&C28&"_"&D28) -> 039999_REDDITO OPERATIVO
A29: 04 | B29: 01 | C29: 01 | D29: Proventi di natura extra operativa | E29: =IF(A29="","",A29&B29&C29&"_"&D29) -> 040101_Proventi di natura extra operativa | F29: R
A30: 04 | B30: 01 | C30: 02 | D30: Oneri di natura extra operativa | E30: =IF(A30="","",A30&B30&C30&"_"&D30) -> 040102_Oneri di natura extra operativa | F30: C
A31: 04 | B31: 01 | C31: 99 | D31: ALTRI PROVENTI / ONERI | E31: =IF(A31="","",A31&B31&C31&"_"&D31) -> 040199_ALTRI PROVENTI / ONERI
A32: 04 | B32: 02 | C32: 01 | D32: Proventi finanziari | E32: =IF(A32="","",A32&B32&C32&"_"&D32) -> 040201_Proventi finanziari | F32: R
A33: 04 | B33: 02 | C33: 11 | D33: Oneri finanziari | E33: =IF(A33="","",A33&B33&C33&"_"&D33) -> 040211_Oneri finanziari | F33: C
A34: 04 | B34: 02 | C34: 21 | D34: Risultato finanziario a breve | E34: =IF(A34="","",A34&B34&C34&"_"&D34) -> 040221_Risultato finanziario a breve | F34: X
A35: 04 | B35: 02 | C35: 99 | D35: PROVENTI / ONERI FINANZIARI | E35: =IF(A35="","",A35&B35&C35&"_"&D35) -> 040299_PROVENTI / ONERI FINANZIARI
A36: 04 | B36: 99 | C36: 99 | D36: UTILE ANTE IMPOSTE | E36: =IF(A36="","",A36&B36&C36&"_"&D36) -> 049999_UTILE ANTE IMPOSTE
A37: 05 | B37: 01 | C37: 01 | D37: Imposte | E37: =IF(A37="","",A37&B37&C37&"_"&D37) -> 050101_Imposte | F37: T
A38: 05 | B38: 01 | C38: 99 | D38: IMPOSTE DELL'ESERCIZIO | E38: =IF(A38="","",A38&B38&C38&"_"&D38) -> 050199_IMPOSTE DELL'ESERCIZIO
A39: 06 | B39: 99 | C39: 99 | D39: UTILE NETTO | E39: =IF(A39="","",A39&B39&C39&"_"&D39) -> 069999_UTILE NETTO | F39: U
E40: =IF(A40="","",A40&B40&C40&"_"&D40) -> 
E41: =IF(A41="","",A41&B41&C41&"_"&D41) -> 
E42: =IF(A42="","",A42&B42&C42&"_"&D42) -> 
E43: =IF(A43="","",A43&B43&C43&"_"&D43) -> 
E44: =IF(A44="","",A44&B44&C44&"_"&D44) -> 
E45: =IF(A45="","",A45&B45&C45&"_"&D45) -> 
E46: =IF(A46="","",A46&B46&C46&"_"&D46) -> 
E47: =IF(A47="","",A47&B47&C47&"_"&D47) -> 
E48: =IF(A48="","",A48&B48&C48&"_"&D48) -> 
E49: =IF(A49="","",A49&B49&C49&"_"&D49) -> 
E50: =IF(A50="","",A50&B50&C50&"_"&D50) -> 
E51: =IF(A51="","",A51&B51&C51&"_"&D51) -> 
E52: =IF(A52="","",A52&B52&C52&"_"&D52) -> 
E53: =IF(A53="","",A53&B53&C53&"_"&D53) -> 
E54: =IF(A54="","",A54&B54&C54&"_"&D54) -> 

Sheet SCHEMA_SP
A1: =MENU!$C$5&" - DEFINIZIONE SCHEMA DI STATO PATRIMONIALE" -> XYZ SpA - DEFINIZIONE SCHEMA DI STATO PATRIMONIALE
A4: Livello1 | B4: Livello2 | C4: Livello3 | D4: Descrizione riga | E4: Column1 | F4: Tipo
A5: 01 | B5: 01 | C5: 01 | D5: Concessioni, licenze, marchi | E5: =IF(A5="","",A5&B5&C5&"_"&D5) -> 010101_Concessioni, licenze, marchi | F5: A
A6: 01 | B6: 01 | C6: 11 | D6: Software | E6: 010111_Software | F6: A
A7: 01 | B7: 01 | C7: 99 | D7: IMMOBILIZZAZIONI IMMATERIALI | E7: 010199_IMMOBILIZZAZIONI IMMATERIALI
A8: 01 | B8: 02 | C8: 01 | D8: Terreni e fabbricati | E8: 010201_Terreni e fabbricati | F8: A
A9: 01 | B9: 02 | C9: 11 | D9: Attrezzature e impianti | E9: 010211_Attrezzature e impianti | F9: A
A10: 01 | B10: 02 | C10: 21 | D10: Altri beni | E10: 010221_Altri beni | F10: A
A11: 01 | B11: 02 | C11: 99 | D11: IMMOBILIZZAZIONI MATERIALI | E11: 010299_IMMOBILIZZAZIONI MATERIALI
A12: 01 | B12: 03 | C12: 01 | D12: Partecipazioni | E12: 010301_Partecipazioni | F12: A
A13: 01 | B13: 03 | C13: 11 | D13: Crediti | E13: 010311_Crediti | F13: A
A14: 01 | B14: 03 | C14: 21 | D14: Altri | E14: 010321_Altri | F14: A
A15: 01 | B15: 03 | C15: 99 | D15: IMMOBILIZZAZIONI FINANZIARIE | E15: 010399_IMMOBILIZZAZIONI FINANZIARIE
A16: 01 | B16: 99 | C16: 01 | D16: IMMOBILIZZAZIONI | E16: 019901_IMMOBILIZZAZIONI
A17: 02 | B17: 04 | C17: 01 | D17: Magazzino | E17: 020401_Magazzino | F17: A
A18: 02 | B18: 04 | C18: 02 | D18: Crediti verso clienti | E18: 020402_Crediti verso clienti | F18: A
A19: 02 | B19: 04 | C19: 03 | D19: Altri crediti | E19: 020403_Altri crediti | F19: A
A20: 02 | B20: 04 | C20: 04 | D20: Ratei/risconti attivi | E20: 020404_Ratei/risconti attivi | F20: A
A21: 02 | B21: 04 | C21: 99 | D21: ATTIVO CIRCOLANTE | E21: 020499_ATTIVO CIRCOLANTE
A22: 02 | B22: 05 | C22: 05 | D22: Debiti verso fornitori | E22: 020505_Debiti verso fornitori | F22: P
A23: 02 | B23: 05 | C23: 06 | D23: Debiti verso altri | E23: 020506_Debiti verso altri | F23: P
A24: 02 | B24: 05 | C24: 07 | D24: Debiti tributari | E24: 020507_Debiti tributari | F24: P
A25: 02 | B25: 05 | C25: 08 | D25: Ratei/risconti passivi | E25: 020508_Ratei/risconti passivi | F25: P
A26: 02 | B26: 05 | C26: 09 | D26: Fondi imposte | E26: 020509_Fondi imposte | F26: I
A27: 02 | B27: 05 | C27: 99 | D27: PASSIVO CIRCOLANTE | E27: 020599_PASSIVO CIRCOLANTE
A28: 02 | B28: 99 | C28: 01 | D28: CAPITALE CIRCOLANTE OPERATIVO | E28: 029901_CAPITALE CIRCOLANTE OPERATIVO
A29: 03 | B29: 01 | C29: 01 | D29: Cassa | E29: 030101_Cassa | F29: A
A30: 03 | B30: 01 | C30: 11 | D30: Banca | E30: 030111_Banca | F30: A
A31: 03 | B31: 01 | C31: 21 | D31: Titoli | E31: 030121_Titoli | F31: A
A32: 03 | B32: 01 | C32: 99 | D32: LIQUIDITA' | E32: 030199_LIQUIDITA'
A33: 04 | B33: 99 | C33: 99 | D33: CAPITALE INVESTITO | E33: 049999_CAPITALE INVESTITO
A34: 11 | B34: 01 | C34: 01 | D34: Capitale sociale | E34: 110101_Capitale sociale | F34: P
A35: 11 | B35: 01 | C35: 02 | D35: Riserve | E35: 110102_Riserve | F35: P
A36: 11 | B36: 01 | C36: 03 | D36: Risultato del periodo | E36: 110103_Risultato del periodo | F36: U
A37: 11 | B37: 01 | C37: 99 | D37: PATRIMONIO NETTO | E37: =IF(A37="","",A37&B37&C37&"_"&D37) -> 110199_PATRIMONIO NETTO
A38: 11 | B38: 02 | C38: 01 | D38: Debiti a breve verso banche | E38: 110201_Debiti a breve verso banche | F38: X
A39: 11 | B39: 02 | C39: 11 | D39: Debiti a breve verso altri finanziatori | E39: 110211_Debiti a breve verso altri finanziatori | F39: P
A40: 11 | B40: 02 | C40: 99 | D40: DEBITI FINANZIARI A BREVE | E40: 110299_DEBITI FINANZIARI A BREVE
A41: 11 | B41: 03 | C41: 01 | D41: Debiti a medio termine verso banche | E41: 110301_Debiti a medio termine verso banche | F41: P
A42: 11 | B42: 03 | C42: 11 | D42: Debiti a medio termine verso altri finanziatori | E42: 110311_Debiti a medio termine verso altri finanziatori | F42: P
A43: 11 | B43: 03 | C43: 99 | D43: DEBITI FINANZIARI A MEDIO | E43: 110399_DEBITI FINANZIARI A MEDIO
A44: 11 | B44: 04 | C44: 01 | D44: TFR | E44: 110401_TFR | F44: P
A45: 11 | B45: 04 | C45: 99 | D45: TOTALE TFR | E45: 110499_TOTALE TFR
A46: 11 | B46: 99 | C46: 99 | D46: FONTI DI FINANZIAMENTO | E46: 119999_FONTI DI FINANZIAMENTO

Sheet CE_STORICO
B1: =MENU!$C$5&" - CONTI ECONOMICI STORICI" -> XYZ SpA - CONTI ECONOMICI STORICI
C4: =MENU!$C$9 -> 2003 | D4: =IF(C4="","",IF(C4+1-$C$4>MENU!$C$7-1,"",CE_STORICO!C4+1)) -> 2004 | E4: =IF(D4="","",IF(D4+1-$C$4>MENU!$C$7-1,"",CE_STORICO!D4+1)) ->  | F4: =IF(E4="","",IF(E4+1-$C$4>MENU!$C$7-1,"",CE_STORICO!E4+1)) ->  | G4: =IF(F4="","",IF(F4+1-$C$4>MENU!$C$7-1,"",CE_STORICO!F4+1)) -> 
A5: =IF(SCHEMA_CE!D5="","",SCHEMA_CE!E5) -> 010101_Vendite prodotti | B5: =IF(SCHEMA_CE!D5="","",SCHEMA_CE!D5) -> Vendite prodotti
A6: =IF(SCHEMA_CE!D6="","",SCHEMA_CE!E6) -> 010111_Vendite servizi | B6: =IF(SCHEMA_CE!D6="","",SCHEMA_CE!D6) -> Vendite servizi
A7: =IF(SCHEMA_CE!D7="","",SCHEMA_CE!E7) -> 010199_TOTALE VENDITE | B7: =IF(SCHEMA_CE!D7="","",SCHEMA_CE!D7) -> TOTALE VENDITE | C7: =SUM(C5:C6) -> 0 | D7: =SUM(D5:D6) -> 0
A9: =IF(SCHEMA_CE!D8="","",SCHEMA_CE!E8) -> 020201_Magazzino iniziale | B9: =IF(SCHEMA_CE!D8="","",SCHEMA_CE!D8) -> Magazzino iniziale
A10: =IF(SCHEMA_CE!D9="","",SCHEMA_CE!E9) -> 020211_Acquisti materie prime | B10: =IF(SCHEMA_CE!D9="","",SCHEMA_CE!D9) -> Acquisti materie prime
A11: =IF(SCHEMA_CE!D10="","",SCHEMA_CE!E10) -> 020221_Magazzino finale | B11: =IF(SCHEMA_CE!D10="","",SCHEMA_CE!D10) -> Magazzino finale
A12: =IF(SCHEMA_CE!D11="","",SCHEMA_CE!E11) -> 020299_TOTALE CONSUMI | B12: =IF(SCHEMA_CE!D11="","",SCHEMA_CE!D11) -> TOTALE CONSUMI | C12: =SUM(C9:C11) -> 0 | D12: =SUM(D9:D11) -> 0
A14: =IF(SCHEMA_CE!D12="","",SCHEMA_CE!E12) -> 020301_Energia elettrica | B14: =IF(SCHEMA_CE!D12="","",SCHEMA_CE!D12) -> Energia elettrica
A15: =IF(SCHEMA_CE!D13="","",SCHEMA_CE!E13) -> 020311_Manutenzioni | B15: =IF(SCHEMA_CE!D13="","",SCHEMA_CE!D13) -> Manutenzioni
A16: =IF(SCHEMA_CE!D14="","",SCHEMA_CE!E14) -> 020321_Altri costi industriali | B16: =IF(SCHEMA_CE!D14="","",SCHEMA_CE!D14) -> Altri costi industriali
A17: =IF(SCHEMA_CE!D15="","",SCHEMA_CE!E15) -> 020331_Ammortamenti industriali | B17: =IF(SCHEMA_CE!D15="","",SCHEMA_CE!D15) -> Ammortamenti industriali
A18: =IF(SCHEMA_CE!D16="","",SCHEMA_CE!E16) -> 020399_COSTI INDUSTRIALI | B18: =IF(SCHEMA_CE!D16="","",SCHEMA_CE!D16) -> COSTI INDUSTRIALI | C18: =SUM(C14:C17) -> 0 | D18: =SUM(D14:D17) -> 0
A20: =IF(SCHEMA_CE!D17="","",SCHEMA_CE!E17) -> 029901_COSTO DEL VENDUTO | B20: =IF(SCHEMA_CE!D17="","",SCHEMA_CE!D17) -> COSTO DEL VENDUTO | C20: =+C12+C18 -> 0 | D20: =+D12+D18 -> 0
A22: =IF(SCHEMA_CE!D18="","",SCHEMA_CE!E18) -> 029999_MARGINE INDUSTRIALE | B22: =IF(SCHEMA_CE!D18="","",SCHEMA_CE!D18) -> MARGINE INDUSTRIALE | C22: =+C7+C12+C18 -> 0 | D22: =+D7+D12+D18 -> 0
A24: =IF(SCHEMA_CE!D19="","",SCHEMA_CE!E19) -> 030101_Provvigioni | B24: =IF(SCHEMA_CE!D19="","",SCHEMA_CE!D19) -> Provvigioni
A25: =IF(SCHEMA_CE!D20="","",SCHEMA_CE!E20) -> 030111_Promozioni/pubblicità | B25: =IF(SCHEMA_CE!D20="","",SCHEMA_CE!D20) -> Promozioni/pubblicità
A26: =IF(SCHEMA_CE!D21="","",SCHEMA_CE!E21) -> 030121_Altri costi commerciali | B26: =IF(SCHEMA_CE!D21="","",SCHEMA_CE!D21) -> Altri costi commerciali
A27: =IF(SCHEMA_CE!D22="","",SCHEMA_CE!E22) -> 030199_COSTI COMMERCIALI | B27: =IF(SCHEMA_CE!D22="","",SCHEMA_CE!D22) -> COSTI COMMERCIALI | C27: =SUM(C24:C26) -> 0 | D27: =SUM(D24:D26) -> 0
A29: =IF(SCHEMA_CE!D23="","",SCHEMA_CE!E23) -> 030201_Ammortamenti | B29: =IF(SCHEMA_CE!D23="","",SCHEMA_CE!D23) -> Ammortamenti
A30: =IF(SCHEMA_CE!D24="","",SCHEMA_CE!E24) -> 030211_Personale ammmistrazione/struttura | B30: =IF(SCHEMA_CE!D24="","",SCHEMA_CE!D24) -> Personale ammmistrazione/struttura
A31: =IF(SCHEMA_CE!D25="","",SCHEMA_CE!E25) -> 030221_Altri costi amministrativi | B31: =IF(SCHEMA_CE!D25="","",SCHEMA_CE!D25) -> Altri costi amministrativi
A32: =IF(SCHEMA_CE!D26="","",SCHEMA_CE!E26) -> 030299_COSTI AMMINISTRATIVI | B32: =IF(SCHEMA_CE!D26="","",SCHEMA_CE!D26) -> COSTI AMMINISTRATIVI | C32: =SUM(C29:C31) -> 0 | D32: =SUM(D29:D31) -> 0
A34: =IF(SCHEMA_CE!D27="","",SCHEMA_CE!E27) -> 039901_COSTI DI STRUTTURA | B34: =IF(SCHEMA_CE!D27="","",SCHEMA_CE!D27) -> COSTI DI STRUTTURA | C34: =+C27+C32 -> 0 | D34: =+D27+D32 -> 0
A36: =IF(SCHEMA_CE!D28="","",SCHEMA_CE!E28) -> 039999_REDDITO OPERATIVO | B36: =IF(SCHEMA_CE!D28="","",SCHEMA_CE!D28) -> REDDITO OPERATIVO | C36: =+C7+C12+C18+C27+C32 -> 0 | D36: =+D7+D12+D18+D27+D32 -> 0
A38: =IF(SCHEMA_CE!D29="","",SCHEMA_CE!E29) -> 040101_Proventi di natura extra operativa | B38: =IF(SCHEMA_CE!D29="","",SCHEMA_CE!D29) -> Proventi di natura extra operativa
A39: =IF(SCHEMA_CE!D30="","",SCHEMA_CE!E30) -> 040102_Oneri di natura extra operativa | B39: =IF(SCHEMA_CE!D30="","",SCHEMA_CE!D30) -> Oneri di natura extra operativa
A40: =IF(SCHEMA_CE!D31="","",SCHEMA_CE!E31) -> 040199_ALTRI PROVENTI / ONERI | B40: =IF(SCHEMA_CE!D31="","",SCHEMA_CE!D31) -> ALTRI PROVENTI / ONERI | C40: =SUM(C38:C39) -> 0 | D40: =SUM(D38:D39) -> 0
A42: =IF(SCHEMA_CE!D32="","",SCHEMA_CE!E32) -> 040201_Proventi finanziari | B42: =IF(SCHEMA_CE!D32="","",SCHEMA_CE!D32) -> Proventi finanziari
A43: =IF(SCHEMA_CE!D33="","",SCHEMA_CE!E33) -> 040211_Oneri finanziari | B43: =IF(SCHEMA_CE!D33="","",SCHEMA_CE!D33) -> Oneri finanziari
A44: =IF(SCHEMA_CE!D34="","",SCHEMA_CE!E34) -> 040221_Risultato finanziario a breve | B44: =IF(SCHEMA_CE!D34="","",SCHEMA_CE!D34) -> Risultato finanziario a breve
A45: =IF(SCHEMA_CE!D35="","",SCHEMA_CE!E35) -> 040299_PROVENTI / ONERI FINANZIARI | B45: =IF(SCHEMA_CE!D35="","",SCHEMA_CE!D35) -> PROVENTI / ONERI FINANZIARI | C45: =SUM(C42:C44) -> 0 | D45: =SUM(D42:D44) -> 0
A47: =IF(SCHEMA_CE!D36="","",SCHEMA_CE!E36) -> 049999_UTILE ANTE IMPOSTE | B47: =IF(SCHEMA_CE!D36="","",SCHEMA_CE!D36) -> UTILE ANTE IMPOSTE | C47: =+C7+C12+C18+C27+C32+C40+C45 -> 0 | D47: =+D7+D12+D18+D27+D32+D40+D45 -> 0
A49: =IF(SCHEMA_CE!D37="","",SCHEMA_CE!E37) -> 050101_Imposte | B49: =IF(SCHEMA_CE!D37="","",SCHEMA_CE!D37) -> Imposte
A50: =IF(SCHEMA_CE!D38="","",SCHEMA_CE!E38) -> 050199_IMPOSTE DELL'ESERCIZIO | B50: =IF(SCHEMA_CE!D38="","",SCHEMA_CE!D38) -> IMPOSTE DELL'ESERCIZIO | C50: =SUM(C49:C49) -> 0 | D50: =SUM(D49:D49) -> 0
A52: =IF(SCHEMA_CE!D39="","",SCHEMA_CE!E39) -> 069999_UTILE NETTO | B52: =IF(SCHEMA_CE!D39="","",SCHEMA_CE!D39) -> UTILE NETTO | C52: =+C7+C12+C18+C27+C32+C40+C45+C50 -> 0 | D52: =+D7+D12+D18+D27+D32+D40+D45+D50 -> 0
A54: =IF(SCHEMA_CE!D40="","",SCHEMA_CE!E40) ->  | B54: =IF(SCHEMA_CE!D40="","",SCHEMA_CE!D40) -> 
A55: =IF(SCHEMA_CE!D41="","",SCHEMA_CE!E41) ->  | B55: =IF(SCHEMA_CE!D41="","",SCHEMA_CE!D41) -> 
A56: =IF(SCHEMA_CE!D42="","",SCHEMA_CE!E42) ->  | B56: =IF(SCHEMA_CE!D42="","",SCHEMA_CE!D42) -> 
A57: =IF(SCHEMA_CE!D43="","",SCHEMA_CE!E43) ->  | B57: =IF(SCHEMA_CE!D43="","",SCHEMA_CE!D43) -> 
A58: =IF(SCHEMA_CE!D44="","",SCHEMA_CE!E44) ->  | B58: =IF(SCHEMA_CE!D44="","",SCHEMA_CE!D44) -> 
A59: =IF(SCHEMA_CE!D45="","",SCHEMA_CE!E45) ->  | B59: =IF(SCHEMA_CE!D45="","",SCHEMA_CE!D45) -> 
A60: =IF(SCHEMA_CE!D46="","",SCHEMA_CE!E46) ->  | B60: =IF(SCHEMA_CE!D46="","",SCHEMA_CE!D46) -> 
A61: =IF(SCHEMA_CE!D47="","",SCHEMA_CE!E47) ->  | B61: =IF(SCHEMA_CE!D47="","",SCHEMA_CE!D47) -> 
A62: =IF(SCHEMA_CE!D48="","",SCHEMA_CE!E48) ->  | B62: =IF(SCHEMA_CE!D48="","",SCHEMA_CE!D48) -> 
A63: =IF(SCHEMA_CE!D49="","",SCHEMA_CE!E49) ->  | B63: =IF(SCHEMA_CE!D49="","",SCHEMA_CE!D49) -> 
A64: =IF(SCHEMA_CE!D50="","",SCHEMA_CE!E50) ->  | B64: =IF(SCHEMA_CE!D50="","",SCHEMA_CE!D50) -> 
A65: =IF(SCHEMA_CE!D51="","",SCHEMA_CE!E51) ->  | B65: =IF(SCHEMA_CE!D51="","",SCHEMA_CE!D51) -> 
A66: =IF(SCHEMA_CE!D52="","",SCHEMA_CE!E52) ->  | B66: =IF(SCHEMA_CE!D52="","",SCHEMA_CE!D52) -> 
A67: =IF(SCHEMA_CE!D53="","",SCHEMA_CE!E53) ->  | B67: =IF(SCHEMA_CE!D53="","",SCHEMA_CE!D53) -> 
A68: =IF(SCHEMA_CE!D54="","",SCHEMA_CE!E54) ->  | B68: =IF(SCHEMA_CE!D54="","",SCHEMA_CE!D54) -> 
A775: =IF(SCHEMA_CE!D47="","",SCHEMA_CE!E47) -> 
A776: =IF(SCHEMA_CE!D48="","",SCHEMA_CE!E48) -> 
A777: =IF(SCHEMA_CE!D49="","",SCHEMA_CE!E49) -> 
A778: =IF(SCHEMA_CE!D50="","",SCHEMA_CE!E50) -> 
A779: =IF(SCHEMA_CE!D51="","",SCHEMA_CE!E51) -> 
A780: =IF(SCHEMA_CE!D52="","",SCHEMA_CE!E52) -> 
A781: =IF(SCHEMA_CE!D53="","",SCHEMA_CE!E53) -> 
A782: =IF(SCHEMA_CE!D54="","",SCHEMA_CE!E54) -> 
A783: =IF(SCHEMA_CE!D41="","",SCHEMA_CE!E41) -> 
A784: =IF(SCHEMA_CE!D42="","",SCHEMA_CE!E42) -> 
A785: =IF(SCHEMA_CE!D43="","",SCHEMA_CE!E43) -> 
A786: =IF(SCHEMA_CE!D44="","",SCHEMA_CE!E44) -> 
A787: =IF(SCHEMA_CE!D45="","",SCHEMA_CE!E45) -> 
A788: =IF(SCHEMA_CE!D46="","",SCHEMA_CE!E46) -> 
A789: =IF(SCHEMA_CE!D47="","",SCHEMA_CE!E47) -> 
A790: =IF(SCHEMA_CE!D48="","",SCHEMA_CE!E48) -> 
A791: =IF(SCHEMA_CE!D49="","",SCHEMA_CE!E49) -> 
A792: =IF(SCHEMA_CE!D50="","",SCHEMA_CE!E50) -> 
A793: =IF(SCHEMA_CE!D51="","",SCHEMA_CE!E51) -> 
A794: =IF(SCHEMA_CE!D52="","",SCHEMA_CE!E52) -> 
A795: =IF(SCHEMA_CE!D53="","",SCHEMA_CE!E53) -> 
A796: =IF(SCHEMA_CE!D54="","",SCHEMA_CE!E54) -> 
A797: =IF(SCHEMA_CE!D41="","",SCHEMA_CE!E41) -> 
A798: =IF(SCHEMA_CE!D42="","",SCHEMA_CE!E42) -> 
A799: =IF(SCHEMA_CE!D43="","",SCHEMA_CE!E43) -> 
A800: =IF(SCHEMA_CE!D44="","",SCHEMA_CE!E44) -> 
A801: =IF(SCHEMA_CE!D45="","",SCHEMA_CE!E45) -> 
A802: =IF(SCHEMA_CE!D46="","",SCHEMA_CE!E46) -> 
A803: =IF(SCHEMA_CE!D47="","",SCHEMA_CE!E47) -> 
A804: =IF(SCHEMA_CE!D48="","",SCHEMA_CE!E48) -> 
A805: =IF(SCHEMA_CE!D49="","",SCHEMA_CE!E49) -> 
A806: =IF(SCHEMA_CE!D50="","",SCHEMA_CE!E50) -> 
A807: =IF(SCHEMA_CE!D51="","",SCHEMA_CE!E51) -> 
A808: =IF(SCHEMA_CE!D52="","",SCHEMA_CE!E52) -> 
A809: =IF(SCHEMA_CE!D53="","",SCHEMA_CE!E53) -> 
A810: =IF(SCHEMA_CE!D54="","",SCHEMA_CE!E54) -> 
A811: =IF(SCHEMA_CE!D41="","",SCHEMA_CE!E41) -> 
A812: =IF(SCHEMA_CE!D42="","",SCHEMA_CE!E42) -> 
A813: =IF(SCHEMA_CE!D43="","",SCHEMA_CE!E43) -> 
A814: =IF(SCHEMA_CE!D44="","",SCHEMA_CE!E44) -> 
A815: =IF(SCHEMA_CE!D45="","",SCHEMA_CE!E45) -> 
A816: =IF(SCHEMA_CE!D46="","",SCHEMA_CE!E46) -> 
A817: =IF(SCHEMA_CE!D47="","",SCHEMA_CE!E47) -> 
A818: =IF(SCHEMA_CE!D48="","",SCHEMA_CE!E48) -> 
A819: =IF(SCHEMA_CE!D49="","",SCHEMA_CE!E49) -> 
A820: =IF(SCHEMA_CE!D50="","",SCHEMA_CE!E50) -> 
A821: =IF(SCHEMA_CE!D51="","",SCHEMA_CE!E51) -> 
A822: =IF(SCHEMA_CE!D52="","",SCHEMA_CE!E52) -> 
A823: =IF(SCHEMA_CE!D53="","",SCHEMA_CE!E53) -> 
A824: =IF(SCHEMA_CE!D54="","",SCHEMA_CE!E54) -> 
A825: =IF(SCHEMA_CE!D41="","",SCHEMA_CE!E41) -> 
A826: =IF(SCHEMA_CE!D42="","",SCHEMA_CE!E42) -> 
A827: =IF(SCHEMA_CE!D43="","",SCHEMA_CE!E43) -> 
A828: =IF(SCHEMA_CE!D44="","",SCHEMA_CE!E44) -> 
A829: =IF(SCHEMA_CE!D45="","",SCHEMA_CE!E45) -> 
A830: =IF(SCHEMA_CE!D46="","",SCHEMA_CE!E46) -> 
A831: =IF(SCHEMA_CE!D47="","",SCHEMA_CE!E47) -> 
A832: =IF(SCHEMA_CE!D48="","",SCHEMA_CE!E48) -> 
A833: =IF(SCHEMA_CE!D49="","",SCHEMA_CE!E49) -> 
A834: =IF(SCHEMA_CE!D50="","",SCHEMA_CE!E50) -> 
A835: =IF(SCHEMA_CE!D51="","",SCHEMA_CE!E51) -> 
A836: =IF(SCHEMA_CE!D52="","",SCHEMA_CE!E52) -> 
A837: =IF(SCHEMA_CE!D53="","",SCHEMA_CE!E53) -> 
A838: =IF(SCHEMA_CE!D54="","",SCHEMA_CE!E54) -> 
A839: =IF(SCHEMA_CE!D54="","",SCHEMA_CE!E54) -> 

Sheet SP_STORICO
B1: =MENU!$C$5&" - STATI PATRIMONIALI STORICI" -> XYZ SpA - STATI PATRIMONIALI STORICI
B3: Quadratura | C3: =IF(C4="","",SUM(AA5:AA542)) -> 0 | D3: =IF(D4="","",SUM(AB5:AB542)) -> 0 | E3: =IF(E4="","",SUM(AC5:AC542)) ->  | F3: =IF(F4="","",SUM(AD5:AD542)) ->  | G3: =IF(G4="","",SUM(AE5:AE542)) -> 
C4: =MENU!$C$9 -> 2003 | D4: =IF(C4="","",IF(C4+1-$C$4>MENU!$C$7-1,"",CE_STORICO!C4+1)) -> 2004 | E4: =IF(D4="","",IF(D4+1-$C$4>MENU!$C$7-1,"",CE_STORICO!D4+1)) ->  | F4: =IF(E4="","",IF(E4+1-$C$4>MENU!$C$7-1,"",CE_STORICO!E4+1)) ->  | G4: =IF(F4="","",IF(F4+1-$C$4>MENU!$C$7-1,"",CE_STORICO!F4+1)) -> 
A5: =IF(SCHEMA_SP!D5="","",SCHEMA_SP!E5) -> 010101_Concessioni, licenze, marchi | B5: =IF(SCHEMA_SP!D5="","",SCHEMA_SP!D5) -> Concessioni, licenze, marchi | AA5: =IF(OR(MID($A5,3,2)="99",MID($A5,5,2)="99"),0,C5) -> 0 | AB5: =IF(OR(MID($A5,3,2)="99",MID($A5,5,2)="99"),0,D5) -> 0 | AC5: =IF(OR(MID($A5,3,2)="99",MID($A5,5,2)="99"),0,E5) -> 0 | AD5: =IF(OR(MID($A5,3,2)="99",MID($A5,5,2)="99"),0,F5) -> 0 | AE5: =IF(OR(MID($A5,3,2)="99",MID($A5,5,2)="99"),0,G5) -> 0
A6: =IF(SCHEMA_SP!D6="","",SCHEMA_SP!E6) -> 010111_Software | B6: =IF(SCHEMA_SP!D6="","",SCHEMA_SP!D6) -> Software | AA6: =IF(OR(MID($A6,3,2)="99",MID($A6,5,2)="99"),0,C6) -> 0 | AB6: 0 | AC6: 0 | AD6: 0 | AE6: =IF(OR(MID($A6,3,2)="99",MID($A6,5,2)="99"),0,G6) -> 0
A7: =IF(SCHEMA_SP!D7="","",SCHEMA_SP!E7) -> 010199_IMMOBILIZZAZIONI IMMATERIALI | B7: =IF(SCHEMA_SP!D7="","",SCHEMA_SP!D7) -> IMMOBILIZZAZIONI IMMATERIALI | C7: =SUM(C5:C6) -> 0 | D7: =SUM(D5:D6) -> 0 | AA7: 0 | AB7: 0 | AC7: 0 | AD7: 0 | AE7: 0
A9: =IF(SCHEMA_SP!D8="","",SCHEMA_SP!E8) -> 010201_Terreni e fabbricati | B9: =IF(SCHEMA_SP!D8="","",SCHEMA_SP!D8) -> Terreni e fabbricati
A10: =IF(SCHEMA_SP!D9="","",SCHEMA_SP!E9) -> 010211_Attrezzature e impianti | B10: =IF(SCHEMA_SP!D9="","",SCHEMA_SP!D9) -> Attrezzature e impianti
A11: =IF(SCHEMA_SP!D10="","",SCHEMA_SP!E10) -> 010221_Altri beni | B11: =IF(SCHEMA_SP!D10="","",SCHEMA_SP!D10) -> Altri beni
A12: =IF(SCHEMA_SP!D11="","",SCHEMA_SP!E11) -> 010299_IMMOBILIZZAZIONI MATERIALI | B12: =IF(SCHEMA_SP!D11="","",SCHEMA_SP!D11) -> IMMOBILIZZAZIONI MATERIALI | C12: =SUM(C9:C11) -> 0 | D12: =SUM(D9:D11) -> 0
A14: =IF(SCHEMA_SP!D12="","",SCHEMA_SP!E12) -> 010301_Partecipazioni | B14: =IF(SCHEMA_SP!D12="","",SCHEMA_SP!D12) -> Partecipazioni
A15: =IF(SCHEMA_SP!D13="","",SCHEMA_SP!E13) -> 010311_Crediti | B15: =IF(SCHEMA_SP!D13="","",SCHEMA_SP!D13) -> Crediti
A16: =IF(SCHEMA_SP!D14="","",SCHEMA_SP!E14) -> 010321_Altri | B16: =IF(SCHEMA_SP!D14="","",SCHEMA_SP!D14) -> Altri
A17: =IF(SCHEMA_SP!D15="","",SCHEMA_SP!E15) -> 010399_IMMOBILIZZAZIONI FINANZIARIE | B17: =IF(SCHEMA_SP!D15="","",SCHEMA_SP!D15) -> IMMOBILIZZAZIONI FINANZIARIE | C17: =SUM(C14:C16) -> 0 | D17: =SUM(D14:D16) -> 0
A19: =IF(SCHEMA_SP!D16="","",SCHEMA_SP!E16) -> 019901_IMMOBILIZZAZIONI | B19: =IF(SCHEMA_SP!D16="","",SCHEMA_SP!D16) -> IMMOBILIZZAZIONI | C19: =+C7+C12+C17 -> 0 | D19: =+D7+D12+D17 -> 0
A21: =IF(SCHEMA_SP!D17="","",SCHEMA_SP!E17) -> 020401_Magazzino | B21: =IF(SCHEMA_SP!D17="","",SCHEMA_SP!D17) -> Magazzino
A22: =IF(SCHEMA_SP!D18="","",SCHEMA_SP!E18) -> 020402_Crediti verso clienti | B22: =IF(SCHEMA_SP!D18="","",SCHEMA_SP!D18) -> Crediti verso clienti
A23: =IF(SCHEMA_SP!D19="","",SCHEMA_SP!E19) -> 020403_Altri crediti | B23: =IF(SCHEMA_SP!D19="","",SCHEMA_SP!D19) -> Altri crediti
A24: =IF(SCHEMA_SP!D20="","",SCHEMA_SP!E20) -> 020404_Ratei/risconti attivi | B24: =IF(SCHEMA_SP!D20="","",SCHEMA_SP!D20) -> Ratei/risconti attivi
A25: =IF(SCHEMA_SP!D21="","",SCHEMA_SP!E21) -> 020499_ATTIVO CIRCOLANTE | B25: =IF(SCHEMA_SP!D21="","",SCHEMA_SP!D21) -> ATTIVO CIRCOLANTE | C25: =SUM(C21:C24) -> 0 | D25: =SUM(D21:D24) -> 0
A27: =IF(SCHEMA_SP!D22="","",SCHEMA_SP!E22) -> 020505_Debiti verso fornitori | B27: =IF(SCHEMA_SP!D22="","",SCHEMA_SP!D22) -> Debiti verso fornitori
A28: =IF(SCHEMA_SP!D23="","",SCHEMA_SP!E23) -> 020506_Debiti verso altri | B28: =IF(SCHEMA_SP!D23="","",SCHEMA_SP!D23) -> Debiti verso altri
A29: =IF(SCHEMA_SP!D24="","",SCHEMA_SP!E24) -> 020507_Debiti tributari | B29: =IF(SCHEMA_SP!D24="","",SCHEMA_SP!D24) -> Debiti tributari
A30: =IF(SCHEMA_SP!D25="","",SCHEMA_SP!E25) -> 020508_Ratei/risconti passivi | B30: =IF(SCHEMA_SP!D25="","",SCHEMA_SP!D25) -> Ratei/risconti passivi
A31: =IF(SCHEMA_SP!D26="","",SCHEMA_SP!E26) -> 020509_Fondi imposte | B31: =IF(SCHEMA_SP!D26="","",SCHEMA_SP!D26) -> Fondi imposte
A32: =IF(SCHEMA_SP!D27="","",SCHEMA_SP!E27) -> 020599_PASSIVO CIRCOLANTE | B32: =IF(SCHEMA_SP!D27="","",SCHEMA_SP!D27) -> PASSIVO CIRCOLANTE | C32: =SUM(C27:C31) -> 0 | D32: =SUM(D27:D31) -> 0
A34: =IF(SCHEMA_SP!D28="","",SCHEMA_SP!E28) -> 029901_CAPITALE CIRCOLANTE OPERATIVO | B34: =IF(SCHEMA_SP!D28="","",SCHEMA_SP!D28) -> CAPITALE CIRCOLANTE OPERATIVO | C34: =+C25+C32 -> 0 | D34: =+D25+D32 -> 0
A36: =IF(SCHEMA_SP!D29="","",SCHEMA_SP!E29) -> 030101_Cassa | B36: =IF(SCHEMA_SP!D29="","",SCHEMA_SP!D29) -> Cassa
A37: =IF(SCHEMA_SP!D30="","",SCHEMA_SP!E30) -> 030111_Banca | B37: =IF(SCHEMA_SP!D30="","",SCHEMA_SP!D30) -> Banca
A38: =IF(SCHEMA_SP!D31="","",SCHEMA_SP!E31) -> 030121_Titoli | B38: =IF(SCHEMA_SP!D31="","",SCHEMA_SP!D31) -> Titoli
A39: =IF(SCHEMA_SP!D32="","",SCHEMA_SP!E32) -> 030199_LIQUIDITA' | B39: =IF(SCHEMA_SP!D32="","",SCHEMA_SP!D32) -> LIQUIDITA' | C39: =SUM(C36:C38) -> 0 | D39: =SUM(D36:D38) -> 0
A41: =IF(SCHEMA_SP!D33="","",SCHEMA_SP!E33) -> 049999_CAPITALE INVESTITO | B41: =IF(SCHEMA_SP!D33="","",SCHEMA_SP!D33) -> CAPITALE INVESTITO | C41: =+C7+C12+C17+C25+C32+C39 -> 0 | D41: =+D7+D12+D17+D25+D32+D39 -> 0
A43: =IF(SCHEMA_SP!D34="","",SCHEMA_SP!E34) -> 110101_Capitale sociale | B43: =IF(SCHEMA_SP!D34="","",SCHEMA_SP!D34) -> Capitale sociale
A44: =IF(SCHEMA_SP!D35="","",SCHEMA_SP!E35) -> 110102_Riserve | B44: =IF(SCHEMA_SP!D35="","",SCHEMA_SP!D35) -> Riserve
A45: =IF(SCHEMA_SP!D36="","",SCHEMA_SP!E36) -> 110103_Risultato del periodo | B45: =IF(SCHEMA_SP!D36="","",SCHEMA_SP!D36) -> Risultato del periodo
A46: =IF(SCHEMA_SP!D37="","",SCHEMA_SP!E37) -> 110199_PATRIMONIO NETTO | B46: =IF(SCHEMA_SP!D37="","",SCHEMA_SP!D37) -> PATRIMONIO NETTO | C46: =SUM(C43:C45) -> 0 | D46: =SUM(D43:D45) -> 0
A48: =IF(SCHEMA_SP!D38="","",SCHEMA_SP!E38) -> 110201_Debiti a breve verso banche | B48: =IF(SCHEMA_SP!D38="","",SCHEMA_SP!D38) -> Debiti a breve verso banche
A49: =IF(SCHEMA_SP!D39="","",SCHEMA_SP!E39) -> 110211_Debiti a breve verso altri finanziatori | B49: =IF(SCHEMA_SP!D39="","",SCHEMA_SP!D39) -> Debiti a breve verso altri finanziatori
A50: =IF(SCHEMA_SP!D40="","",SCHEMA_SP!E40) -> 110299_DEBITI FINANZIARI A BREVE | B50: =IF(SCHEMA_SP!D40="","",SCHEMA_SP!D40) -> DEBITI FINANZIARI A BREVE | C50: =SUM(C48:C49) -> 0 | D50: =SUM(D48:D49) -> 0
A52: =IF(SCHEMA_SP!D41="","",SCHEMA_SP!E41) -> 110301_Debiti a medio termine verso banche | B52: =IF(SCHEMA_SP!D41="","",SCHEMA_SP!D41) -> Debiti a medio termine verso banche
A53: =IF(SCHEMA_SP!D42="","",SCHEMA_SP!E42) -> 110311_Debiti a medio termine verso altri finanziatori | B53: =IF(SCHEMA_SP!D42="","",SCHEMA_SP!D42) -> Debiti a medio termine verso altri finanziatori
A54: =IF(SCHEMA_SP!D43="","",SCHEMA_SP!E43) -> 110399_DEBITI FINANZIARI A MEDIO | B54: =IF(SCHEMA_SP!D43="","",SCHEMA_SP!D43) -> DEBITI FINANZIARI A MEDIO | C54: =SUM(C52:C53) -> 0 | D54: =SUM(D52:D53) -> 0
A56: =IF(SCHEMA_SP!D44="","",SCHEMA_SP!E44) -> 110401_TFR | B56: =IF(SCHEMA_SP!D44="","",SCHEMA_SP!D44) -> TFR
A57: =IF(SCHEMA_SP!D45="","",SCHEMA_SP!E45) -> 110499_TOTALE TFR | B57: =IF(SCHEMA_SP!D45="","",SCHEMA_SP!D45) -> TOTALE TFR | C57: =SUM(C56:C56) -> 0 | D57: =SUM(D56:D56) -> 0
A59: =IF(SCHEMA_SP!D46="","",SCHEMA_SP!E46) -> 119999_FONTI DI FINANZIAMENTO | B59: =IF(SCHEMA_SP!D46="","",SCHEMA_SP!D46) -> FONTI DI FINANZIAMENTO | C59: =+C46+C50+C54+C57 -> 0 | D59: =+D46+D50+D54+D57 -> 0
A61: =IF(SCHEMA_SP!D47="","",SCHEMA_SP!E47) ->  | B61: =IF(SCHEMA_SP!D47="","",SCHEMA_SP!D47) -> 
A62: =IF(SCHEMA_SP!D48="","",SCHEMA_SP!E48) ->  | B62: =IF(SCHEMA_SP!D48="","",SCHEMA_SP!D48) -> 
A63: =IF(SCHEMA_SP!D49="","",SCHEMA_SP!E49) ->  | B63: =IF(SCHEMA_SP!D49="","",SCHEMA_SP!D49) -> 
A64: =IF(SCHEMA_SP!D50="","",SCHEMA_SP!E50) ->  | B64: =IF(SCHEMA_SP!D50="","",SCHEMA_SP!D50) -> 
A65: =IF(SCHEMA_SP!D51="","",SCHEMA_SP!E51) ->  | B65: =IF(SCHEMA_SP!D51="","",SCHEMA_SP!D51) -> 
A66: =IF(SCHEMA_SP!D52="","",SCHEMA_SP!E52) ->  | B66: =IF(SCHEMA_SP!D52="","",SCHEMA_SP!D52) -> 
A67: =IF(SCHEMA_SP!D53="","",SCHEMA_SP!E53) ->  | B67: =IF(SCHEMA_SP!D53="","",SCHEMA_SP!D53) -> 
A68: =IF(SCHEMA_SP!D54="","",SCHEMA_SP!E54) ->  | B68: =IF(SCHEMA_SP!D54="","",SCHEMA_SP!D54) -> 
AA194: 0 | AB194: 0 | AC194: 0 | AD194: 0 | AE194: 0
AA208: 0 | AB208: 0 | AC208: 0 | AD208: 0 | AE208: 0
AA222: 0 | AB222: 0 | AC222: 0 | AD222: 0 | AE222: 0
AA236: 0 | AB236: 0 | AC236: 0 | AD236: 0 | AE236: 0
AA250: 0 | AB250: 0 | AC250: 0 | AD250: 0 | AE250: 0
AA255: 0 | AB255: 0 | AC255: 0 | AD255: 0 | AE255: 0
AA264: 0 | AB264: 0 | AC264: 0 | AD264: 0 | AE264: 0
AA269: 0 | AB269: 0 | AC269: 0 | AD269: 0 | AE269: 0
AA278: 0 | AB278: 0 | AC278: 0 | AD278: 0 | AE278: 0
AA283: 0 | AB283: 0 | AC283: 0 | AD283: 0 | AE283: 0
AA287: 0 | AB287: 0 | AC287: 0 | AD287: 0 | AE287: 0
AA292: 0 | AB292: 0 | AC292: 0 | AD292: 0 | AE292: 0
AA295: 0 | AB295: 0 | AC295: 0 | AD295: 0 | AE295: 0
AA297: 0 | AB297: 0 | AC297: 0 | AD297: 0 | AE297: 0
AA301: 0 | AB301: 0 | AC301: 0 | AD301: 0 | AE301: 0
AA306: 0 | AB306: 0 | AC306: 0 | AD306: 0 | AE306: 0
AA309: 0 | AB309: 0 | AC309: 0 | AD309: 0 | AE309: 0
AA311: 0 | AB311: 0 | AC311: 0 | AD311: 0 | AE311: 0
AA314: 0 | AB314: 0 | AC314: 0 | AD314: 0 | AE314: 0
AA315: 0 | AB315: 0 | AC315: 0 | AD315: 0 | AE315: 0
AA320: 0 | AB320: 0 | AC320: 0 | AD320: 0 | AE320: 0
AA323: 0 | AB323: 0 | AC323: 0 | AD323: 0 | AE323: 0
AA325: 0 | AB325: 0 | AC325: 0 | AD325: 0 | AE325: 0
AA328: 0 | AB328: 0 | AC328: 0 | AD328: 0 | AE328: 0
AA329: 0 | AB329: 0 | AC329: 0 | AD329: 0 | AE329: 0
AA332: 0 | AB332: 0 | AC332: 0 | AD332: 0 | AE332: 0
AA334: 0 | AB334: 0 | AC334: 0 | AD334: 0 | AE334: 0
AA336: 0 | AB336: 0 | AC336: 0 | AD336: 0 | AE336: 0
AA337: 0 | AB337: 0 | AC337: 0 | AD337: 0 | AE337: 0
AA339: 0 | AB339: 0 | AC339: 0 | AD339: 0 | AE339: 0
AA342: 0 | AB342: 0 | AC342: 0 | AD342: 0 | AE342: 0
AA343: 0 | AB343: 0 | AC343: 0 | AD343: 0 | AE343: 0
AA344: 0 | AB344: 0 | AC344: 0 | AD344: 0 | AE344: 0
AA346: 0 | AB346: 0 | AC346: 0 | AD346: 0 | AE346: 0
AA347: 0 | AB347: 0 | AC347: 0 | AD347: 0 | AE347: 0
AA348: 0 | AB348: 0 | AC348: 0 | AD348: 0 | AE348: 0
AA350: 0 | AB350: 0 | AC350: 0 | AD350: 0 | AE350: 0
AA351: 0 | AB351: 0 | AC351: 0 | AD351: 0 | AE351: 0
AA353: 0 | AB353: 0 | AC353: 0 | AD353: 0 | AE353: 0
AA355: 0 | AB355: 0 | AC355: 0 | AD355: 0 | AE355: 0
AA356: 0 | AB356: 0 | AC356: 0 | AD356: 0 | AE356: 0
AA357: 0 | AB357: 0 | AC357: 0 | AD357: 0 | AE357: 0
AA358: 0 | AB358: 0 | AC358: 0 | AD358: 0 | AE358: 0
AA359: 0 | AB359: 0 | AC359: 0 | AD359: 0 | AE359: 0
AA360: 0 | AB360: 0 | AC360: 0 | AD360: 0 | AE360: 0
AA361: 0 | AB361: 0 | AC361: 0 | AD361: 0 | AE361: 0
AA362: 0 | AB362: 0 | AC362: 0 | AD362: 0 | AE362: 0
AA363: 0 | AB363: 0 | AC363: 0 | AD363: 0 | AE363: 0
AA364: 0 | AB364: 0 | AC364: 0 | AD364: 0 | AE364: 0
AA365: 0 | AB365: 0 | AC365: 0 | AD365: 0 | AE365: 0
AA366: 0 | AB366: 0 | AC366: 0 | AD366: 0 | AE366: 0
AA367: 0 | AB367: 0 | AC367: 0 | AD367: 0 | AE367: 0
AA368: 0 | AB368: 0 | AC368: 0 | AD368: 0 | AE368: 0
AA369: 0 | AB369: 0 | AC369: 0 | AD369: 0 | AE369: 0
AA370: 0 | AB370: 0 | AC370: 0 | AD370: 0 | AE370: 0
AA371: 0 | AB371: 0 | AC371: 0 | AD371: 0 | AE371: 0
AA372: 0 | AB372: 0 | AC372: 0 | AD372: 0 | AE372: 0
AA373: 0 | AB373: 0 | AC373: 0 | AD373: 0 | AE373: 0
AA374: 0 | AB374: 0 | AC374: 0 | AD374: 0 | AE374: 0
AA375: 0 | AB375: 0 | AC375: 0 | AD375: 0 | AE375: 0
AA376: 0 | AB376: 0 | AC376: 0 | AD376: 0 | AE376: 0
AA377: 0 | AB377: 0 | AC377: 0 | AD377: =IF(OR(MID($A377,3,2)="99",MID($A377,5,2)="99"),0,F377) -> 0 | AE377: 0
AA378: =IF(OR(MID($A378,3,2)="99",MID($A378,5,2)="99"),0,C378) -> 0 | AB378: 0 | AC378: 0 | AD378: 0 | AE378: =IF(OR(MID($A378,3,2)="99",MID($A378,5,2)="99"),0,G378) -> 0
AA379: 0 | AB379: 0 | AC379: 0 | AD379: 0 | AE379: 0
AA380: 0 | AB380: 0 | AC380: 0 | AD380: 0 | AE380: 0
AA381: 0 | AB381: 0 | AC381: 0 | AD381: 0 | AE381: 0
AA382: 0 | AB382: 0 | AC382: 0 | AD382: 0 | AE382: 0
AA383: 0 | AB383: 0 | AC383: 0 | AD383: 0 | AE383: 0
AA384: 0 | AB384: 0 | AC384: 0 | AD384: 0 | AE384: 0
AA385: 0 | AB385: 0 | AC385: 0 | AD385: 0 | AE385: 0
AA386: 0 | AB386: 0 | AC386: 0 | AD386: 0 | AE386: 0
AA387: 0 | AB387: 0 | AC387: 0 | AD387: 0 | AE387: 0
AA388: 0 | AB388: 0 | AC388: 0 | AD388: 0 | AE388: 0
AA389: 0 | AB389: 0 | AC389: 0 | AD389: 0 | AE389: 0
AA390: 0 | AB390: 0 | AC390: 0 | AD390: 0 | AE390: 0
AA391: 0 | AB391: 0 | AC391: 0 | AD391: 0 | AE391: 0
AA392: 0 | AB392: 0 | AC392: 0 | AD392: 0 | AE392: 0
AA393: 0 | AB393: 0 | AC393: 0 | AD393: 0 | AE393: 0
AA394: 0 | AB394: 0 | AC394: 0 | AD394: 0 | AE394: 0
AA395: 0 | AB395: 0 | AC395: 0 | AD395: 0 | AE395: 0
AA396: 0 | AB396: 0 | AC396: 0 | AD396: 0 | AE396: 0
AA397: 0 | AB397: 0 | AC397: 0 | AD397: 0 | AE397: 0
AA398: 0 | AB398: 0 | AC398: 0 | AD398: 0 | AE398: 0
AA399: 0 | AB399: 0 | AC399: 0 | AD399: 0 | AE399: 0
AA400: 0 | AB400: 0 | AC400: 0 | AD400: 0 | AE400: 0
AA401: 0 | AB401: 0 | AC401: 0 | AD401: 0 | AE401: 0
AA402: 0 | AB402: 0 | AC402: 0 | AD402: 0 | AE402: 0
AA403: 0 | AB403: 0 | AC403: 0 | AD403: 0 | AE403: 0
AA404: 0 | AB404: 0 | AC404: 0 | AD404: 0 | AE404: 0
AA405: 0 | AB405: 0 | AC405: 0 | AD405: 0 | AE405: 0
AA406: 0 | AB406: 0 | AC406: 0 | AD406: 0 | AE406: 0
AA407: 0 | AB407: 0 | AC407: 0 | AD407: 0 | AE407: 0
AA408: 0 | AB408: 0 | AC408: 0 | AD408: 0 | AE408: 0
AA409: 0 | AB409: 0 | AC409: 0 | AD409: 0 | AE409: 0
AA410: 0 | AB410: 0 | AC410: 0 | AD410: 0 | AE410: 0
AA411: 0 | AB411: 0 | AC411: 0 | AD411: 0 | AE411: 0
AA412: 0 | AB412: 0 | AC412: 0 | AD412: 0 | AE412: 0
AA413: 0 | AB413: 0 | AC413: 0 | AD413: 0 | AE413: 0
AA414: 0 | AB414: 0 | AC414: 0 | AD414: 0 | AE414: 0
AA415: 0 | AB415: 0 | AC415: 0 | AD415: 0 | AE415: 0
AA416: 0 | AB416: 0 | AC416: 0 | AD416: 0 | AE416: 0
AA417: 0 | AB417: 0 | AC417: 0 | AD417: 0 | AE417: 0
AA418: 0 | AB418: 0 | AC418: 0 | AD418: 0 | AE418: 0
AA419: 0 | AB419: 0 | AC419: 0 | AD419: 0 | AE419: 0
AA420: 0 | AB420: 0 | AC420: 0 | AD420: 0 | AE420: 0
AA421: 0 | AB421: 0 | AC421: 0 | AD421: 0 | AE421: 0
AA422: 0 | AB422: 0 | AC422: 0 | AD422: 0 | AE422: 0
AA423: 0 | AB423: 0 | AC423: 0 | AD423: 0 | AE423: 0
AA424: 0 | AB424: 0 | AC424: 0 | AD424: 0 | AE424: 0
AA425: 0 | AB425: 0 | AC425: 0 | AD425: 0 | AE425: 0
AA426: 0 | AB426: 0 | AC426: 0 | AD426: 0 | AE426: 0
AA427: 0 | AB427: 0 | AC427: 0 | AD427: 0 | AE427: 0
AA428: 0 | AB428: 0 | AC428: 0 | AD428: 0 | AE428: 0
AA429: 0 | AB429: 0 | AC429: 0 | AD429: 0 | AE429: 0
AA430: 0 | AB430: 0 | AC430: 0 | AD430: 0 | AE430: 0
AA431: 0 | AB431: 0 | AC431: 0 | AD431: 0 | AE431: 0
AA432: 0 | AB432: 0 | AC432: 0 | AD432: 0 | AE432: 0
AA433: 0 | AB433: 0 | AC433: 0 | AD433: 0 | AE433: 0
AA434: 0 | AB434: 0 | AC434: 0 | AD434: 0 | AE434: 0
AA435: 0 | AB435: 0 | AC435: 0 | AD435: 0 | AE435: 0
AA436: 0 | AB436: 0 | AC436: 0 | AD436: 0 | AE436: 0
AA437: 0 | AB437: 0 | AC437: 0 | AD437: 0 | AE437: 0
AA438: 0 | AB438: 0 | AC438: 0 | AD438: 0 | AE438: 0
AA439: 0 | AB439: 0 | AC439: 0 | AD439: 0 | AE439: 0
AA440: 0 | AB440: 0 | AC440: 0 | AD440: 0 | AE440: 0
AA441: 0 | AB441: 0 | AC441: 0 | AD441: =IF(OR(MID($A441,3,2)="99",MID($A441,5,2)="99"),0,F441) -> 0 | AE441: 0
AA442: =IF(OR(MID($A442,3,2)="99",MID($A442,5,2)="99"),0,C442) -> 0 | AB442: 0 | AC442: 0 | AD442: 0 | AE442: =IF(OR(MID($A442,3,2)="99",MID($A442,5,2)="99"),0,G442) -> 0
AA443: 0 | AB443: 0 | AC443: 0 | AD443: 0 | AE443: 0
AA444: 0 | AB444: 0 | AC444: 0 | AD444: 0 | AE444: 0
AA445: 0 | AB445: 0 | AC445: 0 | AD445: 0 | AE445: 0
AA446: 0 | AB446: 0 | AC446: 0 | AD446: 0 | AE446: 0
AA447: 0 | AB447: 0 | AC447: 0 | AD447: 0 | AE447: 0
AA448: 0 | AB448: 0 | AC448: 0 | AD448: 0 | AE448: 0
AA449: 0 | AB449: 0 | AC449: 0 | AD449: 0 | AE449: 0
AA450: 0 | AB450: 0 | AC450: 0 | AD450: 0 | AE450: 0
AA451: 0 | AB451: 0 | AC451: 0 | AD451: 0 | AE451: 0
AA452: 0 | AB452: 0 | AC452: 0 | AD452: 0 | AE452: 0
AA453: 0 | AB453: 0 | AC453: 0 | AD453: 0 | AE453: 0
AA454: 0 | AB454: 0 | AC454: 0 | AD454: 0 | AE454: 0
AA455: 0 | AB455: 0 | AC455: 0 | AD455: 0 | AE455: 0
AA456: 0 | AB456: 0 | AC456: 0 | AD456: 0 | AE456: 0
AA457: 0 | AB457: 0 | AC457: 0 | AD457: 0 | AE457: 0
AA458: 0 | AB458: 0 | AC458: 0 | AD458: 0 | AE458: 0
AA459: 0 | AB459: 0 | AC459: 0 | AD459: 0 | AE459: 0
AA460: 0 | AB460: 0 | AC460: 0 | AD460: 0 | AE460: 0
AA461: 0 | AB461: 0 | AC461: 0 | AD461: 0 | AE461: 0
AA462: 0 | AB462: 0 | AC462: 0 | AD462: 0 | AE462: 0
... 80 more rows

Sheet Ricavi_Costi
A1: =MENU!$C$5&" - RICAVI / COSTI" -> XYZ SpA - RICAVI / COSTI
M3: VALORI ECO | S3: FLUSSI
C4: Aliq. IVA | D4: +/- | E4: % Monetaria | F4: Rif. Calcolo | G4: =MENU!C9+MENU!C7 -> 2005 | H4: =IF(G4="","",IF(G4+1-$G$4>MENU!$C$11-1,"",Ricavi_Costi!G4+1)) -> 2006 | I4: =IF(H4="","",IF(H4+1-$G$4>MENU!$C$11-1,"",Ricavi_Costi!H4+1)) -> 2007 | J4: =IF(I4="","",IF(I4+1-$G$4>MENU!$C$11-1,"",Ricavi_Costi!I4+1)) ->  | K4: =IF(J4="","",IF(J4+1-$G$4>MENU!$C$11-1,"",Ricavi_Costi!J4+1)) ->  | M4: =G4 -> 2005 | N4: =H4 -> 2006 | O4: =I4 -> 2007 | P4: =J4 ->  | Q4: =K4 ->  | S4: =M4 -> 2005 | T4: =N4 -> 2006 | U4: =O4 -> 2007 | V4: =P4 ->  | W4: =Q4 -> 
A5: RICAVI
B6: 010101_Vendite prodotti | C6: 0.2 | D6: + | E6: 1 | G6: 14000 | H6: 15500 | I6: 16200 | M6: =IF($B6="","",G6*IF($F6="",1,IF(ISERROR(MATCH($F6,$B$6:$B$105,0)),0,INDIRECT(ADDRESS(5+MATCH($F6,$B$6:$B$105,0),COLUMN(M$4)))))*IF($F6="",IF(VLOOKUP($B6,SCHEMA_CE!$E$5:$F$54,2,FALSE)="C",-1,1),IF(OR(VLOOKUP($B6,SCHEMA_CE!$E$5:$F$54,2,FALSE)="C",VLOOKUP($F6,SCHEMA_CE!$E$5:$F$54,2,FALSE)="C"),-1,1))) -> 14000 | N6: =IF($B6="","",H6*IF($F6="",1,IF(ISERROR(MATCH($F6,$B$6:$B$105,0)),0,INDIRECT(ADDRESS(5+MATCH($F6,$B$6:$B$105,0),COLUMN(N$4)))))*IF($F6="",IF(VLOOKUP($B6,SCHEMA_CE!$E$5:$F$54,2,FALSE)="C",-1,1),IF(OR(VLOOKUP($B6,SCHEMA_CE!$E$5:$F$54,2,FALSE)="C",VLOOKUP($F6,SCHEMA_CE!$E$5:$F$54,2,FALSE)="C"),-1,1))) -> 15500 | O6: =IF($B6="","",I6*IF($F6="",1,IF(ISERROR(MATCH($F6,$B$6:$B$105,0)),0,INDIRECT(ADDRESS(5+MATCH($F6,$B$6:$B$105,0),COLUMN(O$4)))))*IF($F6="",IF(VLOOKUP($B6,SCHEMA_CE!$E$5:$F$54,2,FALSE)="C",-1,1),IF(OR(VLOOKUP($B6,SCHEMA_CE!$E$5:$F$54,2,FALSE)="C",VLOOKUP($F6,SCHEMA_CE!$E$5:$F$54,2,FALSE)="C"),-1,1))) -> 16200 | P6: =IF($B6="","",J6*IF($F6="",1,IF(ISERROR(MATCH($F6,$B$6:$B$105,0)),0,INDIRECT(ADDRESS(5+MATCH($F6,$B$6:$B$105,0),COLUMN(P$4)))))*IF($F6="",IF(VLOOKUP($B6,SCHEMA_CE!$E$5:$F$54,2,FALSE)="C",-1,1),IF(OR(VLOOKUP($B6,SCHEMA_CE!$E$5:$F$54,2,FALSE)="C",VLOOKUP($F6,SCHEMA_CE!$E$5:$F$54,2,FALSE)="C"),-1,1))) -> 0 | Q6: =IF($B6="","",K6*IF($F6="",1,IF(ISERROR(MATCH($F6,$B$6:$B$105,0)),0,INDIRECT(ADDRESS(5+MATCH($F6,$B$6:$B$105,0),COLUMN(Q$4)))))*IF($F6="",IF(VLOOKUP($B6,SCHEMA_CE!$E$5:$F$54,2,FALSE)="C",-1,1),IF(OR(VLOOKUP($B6,SCHEMA_CE!$E$5:$F$54,2,FALSE)="C",VLOOKUP($F6,SCHEMA_CE!$E$5:$F$54,2,FALSE)="C"),-1,1))) -> 0 | S6: =IF($B6="","",M6*$E6) -> 14000 | T6: =IF($B6="","",N6*$E6) -> 15500 | U6: =IF($B6="","",O6*$E6) -> 16200 | V6: =IF($B6="","",P6*$E6) -> 0 | W6: =IF($B6="","",Q6*$E6) -> 0
B7: 010111_Vendite servizi | C7: 0.2 | D7: + | E7: 1 | F7: 010101_Vendite prodotti | G7: 0.15 | H7: 0.15 | I7: 0.15 | M7: =IF($B7="","",G7*IF($F7="",1,IF(ISERROR(MATCH($F7,$B$6:$B$105,0)),0,INDIRECT(ADDRESS(5+MATCH($F7,$B$6:$B$105,0),COLUMN(M$4)))))*IF($F7="",IF(VLOOKUP($B7,SCHEMA_CE!$E$5:$F$54,2,FALSE)="C",-1,1),IF(OR(VLOOKUP($B7,SCHEMA_CE!$E$5:$F$54,2,FALSE)="C",VLOOKUP($F7,SCHEMA_CE!$E$5:$F$54,2,FALSE)="C"),-1,1))) -> 2100 | N7: =IF($B7="","",H7*IF($F7="",1,IF(ISERROR(MATCH($F7,$B$6:$B$105,0)),0,INDIRECT(ADDRESS(5+MATCH($F7,$B$6:$B$105,0),COLUMN(N$4)))))*IF($F7="",IF(VLOOKUP($B7,SCHEMA_CE!$E$5:$F$54,2,FALSE)="C",-1,1),IF(OR(VLOOKUP($B7,SCHEMA_CE!$E$5:$F$54,2,FALSE)="C",VLOOKUP($F7,SCHEMA_CE!$E$5:$F$54,2,FALSE)="C"),-1,1))) -> 2325 | O7: =IF($B7="","",I7*IF($F7="",1,IF(ISERROR(MATCH($F7,$B$6:$B$105,0)),0,INDIRECT(ADDRESS(5+MATCH($F7,$B$6:$B$105,0),COLUMN(O$4)))))*IF($F7="",IF(VLOOKUP($B7,SCHEMA_CE!$E$5:$F$54,2,FALSE)="C",-1,1),IF(OR(VLOOKUP($B7,SCHEMA_CE!$E$5:$F$54,2,FALSE)="C",VLOOKUP($F7,SCHEMA_CE!$E$5:$F$54,2,FALSE)="C"),-1,1))) -> 2430 | P7: =IF($B7="","",J7*IF($F7="",1,IF(ISERROR(MATCH($F7,$B$6:$B$105,0)),0,INDIRECT(ADDRESS(5+MATCH($F7,$B$6:$B$105,0),COLUMN(P$4)))))*IF($F7="",IF(VLOOKUP($B7,SCHEMA_CE!$E$5:$F$54,2,FALSE)="C",-1,1),IF(OR(VLOOKUP($B7,SCHEMA_CE!$E$5:$F$54,2,FALSE)="C",VLOOKUP($F7,SCHEMA_CE!$E$5:$F$54,2,FALSE)="C"),-1,1))) -> 0 | Q7: =IF($B7="","",K7*IF($F7="",1,IF(ISERROR(MATCH($F7,$B$6:$B$105,0)),0,INDIRECT(ADDRESS(5+MATCH($F7,$B$6:$B$105,0),COLUMN(Q$4)))))*IF($F7="",IF(VLOOKUP($B7,SCHEMA_CE!$E$5:$F$54,2,FALSE)="C",-1,1),IF(OR(VLOOKUP($B7,SCHEMA_CE!$E$5:$F$54,2,FALSE)="C",VLOOKUP($F7,SCHEMA_CE!$E$5:$F$54,2,FALSE)="C"),-1,1))) -> 0 | S7: =IF($B7="","",M7*$E7) -> 2100 | T7: =IF($B7="","",N7*$E7) -> 2325 | U7: =IF($B7="","",O7*$E7) -> 2430 | V7: =IF($B7="","",P7*$E7) -> 0 | W7: =IF($B7="","",Q7*$E7) -> 0
B8: 040101_Proventi di natura extra operativa | C8: 0 | D8: + | E8: 1 | F8: 010101_Vendite prodotti | G8: 0.05 | H8: 0.05 | I8: 0.05 | M8: =IF($B8="","",G8*IF($F8="",1,IF(ISERROR(MATCH($F8,$B$6:$B$105,0)),0,INDIRECT(ADDRESS(5+MATCH($F8,$B$6:$B$105,0),COLUMN(M$4)))))*IF($F8="",IF(VLOOKUP($B8,SCHEMA_CE!$E$5:$F$54,2,FALSE)="C",-1,1),IF(OR(VLOOKUP($B8,SCHEMA_CE!$E$5:$F$54,2,FALSE)="C",VLOOKUP($F8,SCHEMA_CE!$E$5:$F$54,2,FALSE)="C"),-1,1))) -> 700 | N8: =IF($B8="","",H8*IF($F8="",1,IF(ISERROR(MATCH($F8,$B$6:$B$105,0)),0,INDIRECT(ADDRESS(5+MATCH($F8,$B$6:$B$105,0),COLUMN(N$4)))))*IF($F8="",IF(VLOOKUP($B8,SCHEMA_CE!$E$5:$F$54,2,FALSE)="C",-1,1),IF(OR(VLOOKUP($B8,SCHEMA_CE!$E$5:$F$54,2,FALSE)="C",VLOOKUP($F8,SCHEMA_CE!$E$5:$F$54,2,FALSE)="C"),-1,1))) -> 775 | O8: =IF($B8="","",I8*IF($F8="",1,IF(ISERROR(MATCH($F8,$B$6:$B$105,0)),0,INDIRECT(ADDRESS(5+MATCH($F8,$B$6:$B$105,0),COLUMN(O$4)))))*IF($F8="",IF(VLOOKUP($B8,SCHEMA_CE!$E$5:$F$54,2,FALSE)="C",-1,1),IF(OR(VLOOKUP($B8,SCHEMA_CE!$E$5:$F$54,2,FALSE)="C",VLOOKUP($F8,SCHEMA_CE!$E$5:$F$54,2,FALSE)="C"),-1,1))) -> 810 | P8: =IF($B8="","",J8*IF($F8="",1,IF(ISERROR(MATCH($F8,$B$6:$B$105,0)),0,INDIRECT(ADDRESS(5+MATCH($F8,$B$6:$B$105,0),COLUMN(P$4)))))*IF($F8="",IF(VLOOKUP($B8,SCHEMA_CE!$E$5:$F$54,2,FALSE)="C",-1,1),IF(OR(VLOOKUP($B8,SCHEMA_CE!$E$5:$F$54,2,FALSE)="C",VLOOKUP($F8,SCHEMA_CE!$E$5:$F$54,2,FALSE)="C"),-1,1))) -> 0 | Q8: =IF($B8="","",K8*IF($F8="",1,IF(ISERROR(MATCH($F8,$B$6:$B$105,0)),0,INDIRECT(ADDRESS(5+MATCH($F8,$B$6:$B$105,0),COLUMN(Q$4)))))*IF($F8="",IF(VLOOKUP($B8,SCHEMA_CE!$E$5:$F$54,2,FALSE)="C",-1,1),IF(OR(VLOOKUP($B8,SCHEMA_CE!$E$5:$F$54,2,FALSE)="C",VLOOKUP($F8,SCHEMA_CE!$E$5:$F$54,2,FALSE)="C"),-1,1))) -> 0 | S8: 700 | T8: 775 | U8: 810 | V8: 0 | W8: 0
B9: 040201_Proventi finanziari | C9: 0 | D9: + | E9: 1 | G9: 12 | H9: 15 | I9: 20 | M9: =IF($B9="","",G9*IF($F9="",1,IF(ISERROR(MATCH($F9,$B$6:$B$105,0)),0,INDIRECT(ADDRESS(5+MATCH($F9,$B$6:$B$105,0),COLUMN(M$4)))))*IF($F9="",IF(VLOOKUP($B9,SCHEMA_CE!$E$5:$F$54,2,FALSE)="C",-1,1),IF(OR(VLOOKUP($B9,SCHEMA_CE!$E$5:$F$54,2,FALSE)="C",VLOOKUP($F9,SCHEMA_CE!$E$5:$F$54,2,FALSE)="C"),-1,1))) -> 12 | N9: =IF($B9="","",H9*IF($F9="",1,IF(ISERROR(MATCH($F9,$B$6:$B$105,0)),0,INDIRECT(ADDRESS(5+MATCH($F9,$B$6:$B$105,0),COLUMN(N$4)))))*IF($F9="",IF(VLOOKUP($B9,SCHEMA_CE!$E$5:$F$54,2,FALSE)="C",-1,1),IF(OR(VLOOKUP($B9,SCHEMA_CE!$E$5:$F$54,2,FALSE)="C",VLOOKUP($F9,SCHEMA_CE!$E$5:$F$54,2,FALSE)="C"),-1,1))) -> 15 | O9: =IF($B9="","",I9*IF($F9="",1,IF(ISERROR(MATCH($F9,$B$6:$B$105,0)),0,INDIRECT(ADDRESS(5+MATCH($F9,$B$6:$B$105,0),COLUMN(O$4)))))*IF($F9="",IF(VLOOKUP($B9,SCHEMA_CE!$E$5:$F$54,2,FALSE)="C",-1,1),IF(OR(VLOOKUP($B9,SCHEMA_CE!$E$5:$F$54,2,FALSE)="C",VLOOKUP($F9,SCHEMA_CE!$E$5:$F$54,2,FALSE)="C"),-1,1))) -> 20 | P9: =IF($B9="","",J9*IF($F9="",1,IF(ISERROR(MATCH($F9,$B$6:$B$105,0)),0,INDIRECT(ADDRESS(5+MATCH($F9,$B$6:$B$105,0),COLUMN(P$4)))))*IF($F9="",IF(VLOOKUP($B9,SCHEMA_CE!$E$5:$F$54,2,FALSE)="C",-1,1),IF(OR(VLOOKUP($B9,SCHEMA_CE!$E$5:$F$54,2,FALSE)="C",VLOOKUP($F9,SCHEMA_CE!$E$5:$F$54,2,FALSE)="C"),-1,1))) -> 0 | Q9: =IF($B9="","",K9*IF($F9="",1,IF(ISERROR(MATCH($F9,$B$6:$B$105,0)),0,INDIRECT(ADDRESS(5+MATCH($F9,$B$6:$B$105,0),COLUMN(Q$4)))))*IF($F9="",IF(VLOOKUP($B9,SCHEMA_CE!$E$5:$F$54,2,FALSE)="C",-1,1),IF(OR(VLOOKUP($B9,SCHEMA_CE!$E$5:$F$54,2,FALSE)="C",VLOOKUP($F9,SCHEMA_CE!$E$5:$F$54,2,FALSE)="C"),-1,1))) -> 0 | S9: 12 | T9: 15 | U9: 20 | V9: 0 | W9: 0
B10: 020221_Magazzino finale | F10: 020201_Magazzino iniziale | G10: 1.1 | H10: 1.1 | I10: 1.1 | M10: =IF($B10="","",G10*IF($F10="",1,IF(ISERROR(MATCH($F10,$B$6:$B$105,0)),0,INDIRECT(ADDRESS(5+MATCH($F10,$B$6:$B$105,0),COLUMN(M$4)))))*IF($F10="",IF(VLOOKUP($B10,SCHEMA_CE!$E$5:$F$54,2,FALSE)="C",-1,1),IF(OR(VLOOKUP($B10,SCHEMA_CE!$E$5:$F$54,2,FALSE)="C",VLOOKUP($F10,SCHEMA_CE!$E$5:$F$54,2,FALSE)="C"),-1,1))) -> 770 | N10: =IF($B10="","",H10*IF($F10="",1,IF(ISERROR(MATCH($F10,$B$6:$B$105,0)),0,INDIRECT(ADDRESS(5+MATCH($F10,$B$6:$B$105,0),COLUMN(N$4)))))*IF($F10="",IF(VLOOKUP($B10,SCHEMA_CE!$E$5:$F$54,2,FALSE)="C",-1,1),IF(OR(VLOOKUP($B10,SCHEMA_CE!$E$5:$F$54,2,FALSE)="C",VLOOKUP($F10,SCHEMA_CE!$E$5:$F$54,2,FALSE)="C"),-1,1))) -> 880 | O10: =IF($B10="","",I10*IF($F10="",1,IF(ISERROR(MATCH($F10,$B$6:$B$105,0)),0,INDIRECT(ADDRESS(5+MATCH($F10,$B$6:$B$105,0),COLUMN(O$4)))))*IF($F10="",IF(VLOOKUP($B10,SCHEMA_CE!$E$5:$F$54,2,FALSE)="C",-1,1),IF(OR(VLOOKUP($B10,SCHEMA_CE!$E$5:$F$54,2,FALSE)="C",VLOOKUP($F10,SCHEMA_CE!$E$5:$F$54,2,FALSE)="C"),-1,1))) -> 990 | P10: =IF($B10="","",J10*IF($F10="",1,IF(ISERROR(MATCH($F10,$B$6:$B$105,0)),0,INDIRECT(ADDRESS(5+MATCH($F10,$B$6:$B$105,0),COLUMN(P$4)))))*IF($F10="",IF(VLOOKUP($B10,SCHEMA_CE!$E$5:$F$54,2,FALSE)="C",-1,1),IF(OR(VLOOKUP($B10,SCHEMA_CE!$E$5:$F$54,2,FALSE)="C",VLOOKUP($F10,SCHEMA_CE!$E$5:$F$54,2,FALSE)="C"),-1,1))) -> 0 | Q10: =IF($B10="","",K10*IF($F10="",1,IF(ISERROR(MATCH($F10,$B$6:$B$105,0)),0,INDIRECT(ADDRESS(5+MATCH($F10,$B$6:$B$105,0),COLUMN(Q$4)))))*IF($F10="",IF(VLOOKUP($B10,SCHEMA_CE!$E$5:$F$54,2,FALSE)="C",-1,1),IF(OR(VLOOKUP($B10,SCHEMA_CE!$E$5:$F$54,2,FALSE)="C",VLOOKUP($F10,SCHEMA_CE!$E$5:$F$54,2,FALSE)="C"),-1,1))) -> 0 | S10: 0 | T10: 0 | U10: 0 | V10: 0 | W10: 0
M11: =IF($B11="","",G11*IF($F11="",1,IF(ISERROR(MATCH($F11,$B$6:$B$105,0)),0,INDIRECT(ADDRESS(5+MATCH($F11,$B$6:$B$105,0),COLUMN(M$4)))))*IF($F11="",IF(VLOOKUP($B11,SCHEMA_CE!$E$5:$F$54,2,FALSE)="C",-1,1),IF(OR(VLOOKUP($B11,SCHEMA_CE!$E$5:$F$54,2,FALSE)="C",VLOOKUP($F11,SCHEMA_CE!$E$5:$F$54,2,FALSE)="C"),-1,1))) ->  | N11: =IF($B11="","",H11*IF($F11="",1,IF(ISERROR(MATCH($F11,$B$6:$B$105,0)),0,INDIRECT(ADDRESS(5+MATCH($F11,$B$6:$B$105,0),COLUMN(N$4)))))*IF($F11="",IF(VLOOKUP($B11,SCHEMA_CE!$E$5:$F$54,2,FALSE)="C",-1,1),IF(OR(VLOOKUP($B11,SCHEMA_CE!$E$5:$F$54,2,FALSE)="C",VLOOKUP($F11,SCHEMA_CE!$E$5:$F$54,2,FALSE)="C"),-1,1))) ->  | O11: =IF($B11="","",I11*IF($F11="",1,IF(ISERROR(MATCH($F11,$B$6:$B$105,0)),0,INDIRECT(ADDRESS(5+MATCH($F11,$B$6:$B$105,0),COLUMN(O$4)))))*IF($F11="",IF(VLOOKUP($B11,SCHEMA_CE!$E$5:$F$54,2,FALSE)="C",-1,1),IF(OR(VLOOKUP($B11,SCHEMA_CE!$E$5:$F$54,2,FALSE)="C",VLOOKUP($F11,SCHEMA_CE!$E$5:$F$54,2,FALSE)="C"),-1,1))) ->  | P11: =IF($B11="","",J11*IF($F11="",1,IF(ISERROR(MATCH($F11,$B$6:$B$105,0)),0,INDIRECT(ADDRESS(5+MATCH($F11,$B$6:$B$105,0),COLUMN(P$4)))))*IF($F11="",IF(VLOOKUP($B11,SCHEMA_CE!$E$5:$F$54,2,FALSE)="C",-1,1),IF(OR(VLOOKUP($B11,SCHEMA_CE!$E$5:$F$54,2,FALSE)="C",VLOOKUP($F11,SCHEMA_CE!$E$5:$F$54,2,FALSE)="C"),-1,1))) ->  | Q11: =IF($B11="","",K11*IF($F11="",1,IF(ISERROR(MATCH($F11,$B$6:$B$105,0)),0,INDIRECT(ADDRESS(5+MATCH($F11,$B$6:$B$105,0),COLUMN(Q$4)))))*IF($F11="",IF(VLOOKUP($B11,SCHEMA_CE!$E$5:$F$54,2,FALSE)="C",-1,1),IF(OR(VLOOKUP($B11,SCHEMA_CE!$E$5:$F$54,2,FALSE)="C",VLOOKUP($F11,SCHEMA_CE!$E$5:$F$54,2,FALSE)="C"),-1,1))) -> 
M12: =IF($B12="","",G12*IF($F12="",1,IF(ISERROR(MATCH($F12,$B$6:$B$105,0)),0,INDIRECT(ADDRESS(5+MATCH($F12,$B$6:$B$105,0),COLUMN(M$4)))))*IF($F12="",IF(VLOOKUP($B12,SCHEMA_CE!$E$5:$F$54,2,FALSE)="C",-1,1),IF(OR(VLOOKUP($B12,SCHEMA_CE!$E$5:$F$54,2,FALSE)="C",VLOOKUP($F12,SCHEMA_CE!$E$5:$F$54,2,FALSE)="C"),-1,1))) ->  | N12: =IF($B12="","",H12*IF($F12="",1,IF(ISERROR(MATCH($F12,$B$6:$B$105,0)),0,INDIRECT(ADDRESS(5+MATCH($F12,$B$6:$B$105,0),COLUMN(N$4)))))*IF($F12="",IF(VLOOKUP($B12,SCHEMA_CE!$E$5:$F$54,2,FALSE)="C",-1,1),IF(OR(VLOOKUP($B12,SCHEMA_CE!$E$5:$F$54,2,FALSE)="C",VLOOKUP($F12,SCHEMA_CE!$E$5:$F$54,2,FALSE)="C"),-1,1))) ->  | O12: =IF($B12="","",I12*IF($F12="",1,IF(ISERROR(MATCH($F12,$B$6:$B$105,0)),0,INDIRECT(ADDRESS(5+MATCH($F12,$B$6:$B$105,0),COLUMN(O$4)))))*IF($F12="",IF(VLOOKUP($B12,SCHEMA_CE!$E$5:$F$54,2,FALSE)="C",-1,1),IF(OR(VLOOKUP($B12,SCHEMA_CE!$E$5:$F$54,2,FALSE)="C",VLOOKUP($F12,SCHEMA_CE!$E$5:$F$54,2,FALSE)="C"),-1,1))) ->  | P12: =IF($B12="","",J12*IF($F12="",1,IF(ISERROR(MATCH($F12,$B$6:$B$105,0)),0,INDIRECT(ADDRESS(5+MATCH($F12,$B$6:$B$105,0),COLUMN(P$4)))))*IF($F12="",IF(VLOOKUP($B12,SCHEMA_CE!$E$5:$F$54,2,FALSE)="C",-1,1),IF(OR(VLOOKUP($B12,SCHEMA_CE!$E$5:$F$54,2,FALSE)="C",VLOOKUP($F12,SCHEMA_CE!$E$5:$F$54,2,FALSE)="C"),-1,1))) ->  | Q12: =IF($B12="","",K12*IF($F12="",1,IF(ISERROR(MATCH($F12,$B$6:$B$105,0)),0,INDIRECT(ADDRESS(5+MATCH($F12,$B$6:$B$105,0),COLUMN(Q$4)))))*IF($F12="",IF(VLOOKUP($B12,SCHEMA_CE!$E$5:$F$54,2,FALSE)="C",-1,1),IF(OR(VLOOKUP($B12,SCHEMA_CE!$E$5:$F$54,2,FALSE)="C",VLOOKUP($F12,SCHEMA_CE!$E$5:$F$54,2,FALSE)="C"),-1,1))) -> 
M13: =IF($B13="","",G13*IF($F13="",1,IF(ISERROR(MATCH($F13,$B$6:$B$105,0)),0,INDIRECT(ADDRESS(5+MATCH($F13,$B$6:$B$105,0),COLUMN(M$4)))))*IF($F13="",IF(VLOOKUP($B13,SCHEMA_CE!$E$5:$F$54,2,FALSE)="C",-1,1),IF(OR(VLOOKUP($B13,SCHEMA_CE!$E$5:$F$54,2,FALSE)="C",VLOOKUP($F13,SCHEMA_CE!$E$5:$F$54,2,FALSE)="C"),-1,1))) ->  | N13: =IF($B13="","",H13*IF($F13="",1,IF(ISERROR(MATCH($F13,$B$6:$B$105,0)),0,INDIRECT(ADDRESS(5+MATCH($F13,$B$6:$B$105,0),COLUMN(N$4)))))*IF($F13="",IF(VLOOKUP($B13,SCHEMA_CE!$E$5:$F$54,2,FALSE)="C",-1,1),IF(OR(VLOOKUP($B13,SCHEMA_CE!$E$5:$F$54,2,FALSE)="C",VLOOKUP($F13,SCHEMA_CE!$E$5:$F$54,2,FALSE)="C"),-1,1))) ->  | O13: =IF($B13="","",I13*IF($F13="",1,IF(ISERROR(MATCH($F13,$B$6:$B$105,0)),0,INDIRECT(ADDRESS(5+MATCH($F13,$B$6:$B$105,0),COLUMN(O$4)))))*IF($F13="",IF(VLOOKUP($B13,SCHEMA_CE!$E$5:$F$54,2,FALSE)="C",-1,1),IF(OR(VLOOKUP($B13,SCHEMA_CE!$E$5:$F$54,2,FALSE)="C",VLOOKUP($F13,SCHEMA_CE!$E$5:$F$54,2,FALSE)="C"),-1,1))) ->  | P13: =IF($B13="","",J13*IF($F13="",1,IF(ISERROR(MATCH($F13,$B$6:$B$105,0)),0,INDIRECT(ADDRESS(5+MATCH($F13,$B$6:$B$105,0),COLUMN(P$4)))))*IF($F13="",IF(VLOOKUP($B13,SCHEMA_CE!$E$5:$F$54,2,FALSE)="C",-1,1),IF(OR(VLOOKUP($B13,SCHEMA_CE!$E$5:$F$54,2,FALSE)="C",VLOOKUP($F13,SCHEMA_CE!$E$5:$F$54,2,FALSE)="C"),-1,1))) ->  | Q13: =IF($B13="","",K13*IF($F13="",1,IF(ISERROR(MATCH($F13,$B$6:$B$105,0)),0,INDIRECT(ADDRESS(5+MATCH($F13,$B$6:$B$105,0),COLUMN(Q$4)))))*IF($F13="",IF(VLOOKUP($B13,SCHEMA_CE!$E$5:$F$54,2,FALSE)="C",-1,1),IF(OR(VLOOKUP($B13,SCHEMA_CE!$E$5:$F$54,2,FALSE)="C",VLOOKUP($F13,SCHEMA_CE!$E$5:$F$54,2,FALSE)="C"),-1,1))) -> 
M14: =IF($B14="","",G14*IF($F14="",1,IF(ISERROR(MATCH($F14,$B$6:$B$105,0)),0,INDIRECT(ADDRESS(5+MATCH($F14,$B$6:$B$105,0),COLUMN(M$4)))))*IF($F14="",IF(VLOOKUP($B14,SCHEMA_CE!$E$5:$F$54,2,FALSE)="C",-1,1),IF(OR(VLOOKUP($B14,SCHEMA_CE!$E$5:$F$54,2,FALSE)="C",VLOOKUP($F14,SCHEMA_CE!$E$5:$F$54,2,FALSE)="C"),-1,1))) ->  | N14: =IF($B14="","",H14*IF($F14="",1,IF(ISERROR(MATCH($F14,$B$6:$B$105,0)),0,INDIRECT(ADDRESS(5+MATCH($F14,$B$6:$B$105,0),COLUMN(N$4)))))*IF($F14="",IF(VLOOKUP($B14,SCHEMA_CE!$E$5:$F$54,2,FALSE)="C",-1,1),IF(OR(VLOOKUP($B14,SCHEMA_CE!$E$5:$F$54,2,FALSE)="C",VLOOKUP($F14,SCHEMA_CE!$E$5:$F$54,2,FALSE)="C"),-1,1))) ->  | O14: =IF($B14="","",I14*IF($F14="",1,IF(ISERROR(MATCH($F14,$B$6:$B$105,0)),0,INDIRECT(ADDRESS(5+MATCH($F14,$B$6:$B$105,0),COLUMN(O$4)))))*IF($F14="",IF(VLOOKUP($B14,SCHEMA_CE!$E$5:$F$54,2,FALSE)="C",-1,1),IF(OR(VLOOKUP($B14,SCHEMA_CE!$E$5:$F$54,2,FALSE)="C",VLOOKUP($F14,SCHEMA_CE!$E$5:$F$54,2,FALSE)="C"),-1,1))) ->  | P14: =IF($B14="","",J14*IF($F14="",1,IF(ISERROR(MATCH($F14,$B$6:$B$105,0)),0,INDIRECT(ADDRESS(5+MATCH($F14,$B$6:$B$105,0),COLUMN(P$4)))))*IF($F14="",IF(VLOOKUP($B14,SCHEMA_CE!$E$5:$F$54,2,FALSE)="C",-1,1),IF(OR(VLOOKUP($B14,SCHEMA_CE!$E$5:$F$54,2,FALSE)="C",VLOOKUP($F14,SCHEMA_CE!$E$5:$F$54,2,FALSE)="C"),-1,1))) ->  | Q14: =IF($B14="","",K14*IF($F14="",1,IF(ISERROR(MATCH($F14,$B$6:$B$105,0)),0,INDIRECT(ADDRESS(5+MATCH($F14,$B$6:$B$105,0),COLUMN(Q$4)))))*IF($F14="",IF(VLOOKUP($B14,SCHEMA_CE!$E$5:$F$54,2,FALSE)="C",-1,1),IF(OR(VLOOKUP($B14,SCHEMA_CE!$E$5:$F$54,2,FALSE)="C",VLOOKUP($F14,SCHEMA_CE!$E$5:$F$54,2,FALSE)="C"),-1,1))) -> 
M15: =IF($B15="","",G15*IF($F15="",1,IF(ISERROR(MATCH($F15,$B$6:$B$105,0)),0,INDIRECT(ADDRESS(5+MATCH($F15,$B$6:$B$105,0),COLUMN(M$4)))))*IF($F15="",IF(VLOOKUP($B15,SCHEMA_CE!$E$5:$F$54,2,FALSE)="C",-1,1),IF(OR(VLOOKUP($B15,SCHEMA_CE!$E$5:$F$54,2,FALSE)="C",VLOOKUP($F15,SCHEMA_CE!$E$5:$F$54,2,FALSE)="C"),-1,1))) ->  | N15: =IF($B15="","",H15*IF($F15="",1,IF(ISERROR(MATCH($F15,$B$6:$B$105,0)),0,INDIRECT(ADDRESS(5+MATCH($F15,$B$6:$B$105,0),COLUMN(N$4)))))*IF($F15="",IF(VLOOKUP($B15,SCHEMA_CE!$E$5:$F$54,2,FALSE)="C",-1,1),IF(OR(VLOOKUP($B15,SCHEMA_CE!$E$5:$F$54,2,FALSE)="C",VLOOKUP($F15,SCHEMA_CE!$E$5:$F$54,2,FALSE)="C"),-1,1))) ->  | O15: =IF($B15="","",I15*IF($F15="",1,IF(ISERROR(MATCH($F15,$B$6:$B$105,0)),0,INDIRECT(ADDRESS(5+MATCH($F15,$B$6:$B$105,0),COLUMN(O$4)))))*IF($F15="",IF(VLOOKUP($B15,SCHEMA_CE!$E$5:$F$54,2,FALSE)="C",-1,1),IF(OR(VLOOKUP($B15,SCHEMA_CE!$E$5:$F$54,2,FALSE)="C",VLOOKUP($F15,SCHEMA_CE!$E$5:$F$54,2,FALSE)="C"),-1,1))) ->  | P15: =IF($B15="","",J15*IF($F15="",1,IF(ISERROR(MATCH($F15,$B$6:$B$105,0)),0,INDIRECT(ADDRESS(5+MATCH($F15,$B$6:$B$105,0),COLUMN(P$4)))))*IF($F15="",IF(VLOOKUP($B15,SCHEMA_CE!$E$5:$F$54,2,FALSE)="C",-1,1),IF(OR(VLOOKUP($B15,SCHEMA_CE!$E$5:$F$54,2,FALSE)="C",VLOOKUP($F15,SCHEMA_CE!$E$5:$F$54,2,FALSE)="C"),-1,1))) ->  | Q15: =IF($B15="","",K15*IF($F15="",1,IF(ISERROR(MATCH($F15,$B$6:$B$105,0)),0,INDIRECT(ADDRESS(5+MATCH($F15,$B$6:$B$105,0),COLUMN(Q$4)))))*IF($F15="",IF(VLOOKUP($B15,SCHEMA_CE!$E$5:$F$54,2,FALSE)="C",-1,1),IF(OR(VLOOKUP($B15,SCHEMA_CE!$E$5:$F$54,2,FALSE)="C",VLOOKUP($F15,SCHEMA_CE!$E$5:$F$54,2,FALSE)="C"),-1,1))) -> 
M16: =IF($B16="","",G16*IF($F16="",1,IF(ISERROR(MATCH($F16,$B$6:$B$105,0)),0,INDIRECT(ADDRESS(5+MATCH($F16,$B$6:$B$105,0),COLUMN(M$4)))))*IF($F16="",IF(VLOOKUP($B16,SCHEMA_CE!$E$5:$F$54,2,FALSE)="C",-1,1),IF(OR(VLOOKUP($B16,SCHEMA_CE!$E$5:$F$54,2,FALSE)="C",VLOOKUP($F16,SCHEMA_CE!$E$5:$F$54,2,FALSE)="C"),-1,1))) ->  | N16: =IF($B16="","",H16*IF($F16="",1,IF(ISERROR(MATCH($F16,$B$6:$B$105,0)),0,INDIRECT(ADDRESS(5+MATCH($F16,$B$6:$B$105,0),COLUMN(N$4)))))*IF($F16="",IF(VLOOKUP($B16,SCHEMA_CE!$E$5:$F$54,2,FALSE)="C",-1,1),IF(OR(VLOOKUP($B16,SCHEMA_CE!$E$5:$F$54,2,FALSE)="C",VLOOKUP($F16,SCHEMA_CE!$E$5:$F$54,2,FALSE)="C"),-1,1))) ->  | O16: =IF($B16="","",I16*IF($F16="",1,IF(ISERROR(MATCH($F16,$B$6:$B$105,0)),0,INDIRECT(ADDRESS(5+MATCH($F16,$B$6:$B$105,0),COLUMN(O$4)))))*IF($F16="",IF(VLOOKUP($B16,SCHEMA_CE!$E$5:$F$54,2,FALSE)="C",-1,1),IF(OR(VLOOKUP($B16,SCHEMA_CE!$E$5:$F$54,2,FALSE)="C",VLOOKUP($F16,SCHEMA_CE!$E$5:$F$54,2,FALSE)="C"),-1,1))) ->  | P16: =IF($B16="","",J16*IF($F16="",1,IF(ISERROR(MATCH($F16,$B$6:$B$105,0)),0,INDIRECT(ADDRESS(5+MATCH($F16,$B$6:$B$105,0),COLUMN(P$4)))))*IF($F16="",IF(VLOOKUP($B16,SCHEMA_CE!$E$5:$F$54,2,FALSE)="C",-1,1),IF(OR(VLOOKUP($B16,SCHEMA_CE!$E$5:$F$54,2,FALSE)="C",VLOOKUP($F16,SCHEMA_CE!$E$5:$F$54,2,FALSE)="C"),-1,1))) ->  | Q16: =IF($B16="","",K16*IF($F16="",1,IF(ISERROR(MATCH($F16,$B$6:$B$105,0)),0,INDIRECT(ADDRESS(5+MATCH($F16,$B$6:$B$105,0),COLUMN(Q$4)))))*IF($F16="",IF(VLOOKUP($B16,SCHEMA_CE!$E$5:$F$54,2,FALSE)="C",-1,1),IF(OR(VLOOKUP($B16,SCHEMA_CE!$E$5:$F$54,2,FALSE)="C",VLOOKUP($F16,SCHEMA_CE!$E$5:$F$54,2,FALSE)="C"),-1,1))) -> 
M17: =IF($B17="","",G17*IF($F17="",1,IF(ISERROR(MATCH($F17,$B$6:$B$105,0)),0,INDIRECT(ADDRESS(5+MATCH($F17,$B$6:$B$105,0),COLUMN(M$4)))))*IF($F17="",IF(VLOOKUP($B17,SCHEMA_CE!$E$5:$F$54,2,FALSE)="C",-1,1),IF(OR(VLOOKUP($B17,SCHEMA_CE!$E$5:$F$54,2,FALSE)="C",VLOOKUP($F17,SCHEMA_CE!$E$5:$F$54,2,FALSE)="C"),-1,1))) ->  | N17: =IF($B17="","",H17*IF($F17="",1,IF(ISERROR(MATCH($F17,$B$6:$B$105,0)),0,INDIRECT(ADDRESS(5+MATCH($F17,$B$6:$B$105,0),COLUMN(N$4)))))*IF($F17="",IF(VLOOKUP($B17,SCHEMA_CE!$E$5:$F$54,2,FALSE)="C",-1,1),IF(OR(VLOOKUP($B17,SCHEMA_CE!$E$5:$F$54,2,FALSE)="C",VLOOKUP($F17,SCHEMA_CE!$E$5:$F$54,2,FALSE)="C"),-1,1))) ->  | O17: =IF($B17="","",I17*IF($F17="",1,IF(ISERROR(MATCH($F17,$B$6:$B$105,0)),0,INDIRECT(ADDRESS(5+MATCH($F17,$B$6:$B$105,0),COLUMN(O$4)))))*IF($F17="",IF(VLOOKUP($B17,SCHEMA_CE!$E$5:$F$54,2,FALSE)="C",-1,1),IF(OR(VLOOKUP($B17,SCHEMA_CE!$E$5:$F$54,2,FALSE)="C",VLOOKUP($F17,SCHEMA_CE!$E$5:$F$54,2,FALSE)="C"),-1,1))) ->  | P17: =IF($B17="","",J17*IF($F17="",1,IF(ISERROR(MATCH($F17,$B$6:$B$105,0)),0,INDIRECT(ADDRESS(5+MATCH($F17,$B$6:$B$105,0),COLUMN(P$4)))))*IF($F17="",IF(VLOOKUP($B17,SCHEMA_CE!$E$5:$F$54,2,FALSE)="C",-1,1),IF(OR(VLOOKUP($B17,SCHEMA_CE!$E$5:$F$54,2,FALSE)="C",VLOOKUP($F17,SCHEMA_CE!$E$5:$F$54,2,FALSE)="C"),-1,1))) ->  | Q17: =IF($B17="","",K17*IF($F17="",1,IF(ISERROR(MATCH($F17,$B$6:$B$105,0)),0,INDIRECT(ADDRESS(5+MATCH($F17,$B$6:$B$105,0),COLUMN(Q$4)))))*IF($F17="",IF(VLOOKUP($B17,SCHEMA_CE!$E$5:$F$54,2,FALSE)="C",-1,1),IF(OR(VLOOKUP($B17,SCHEMA_CE!$E$5:$F$54,2,FALSE)="C",VLOOKUP($F17,SCHEMA_CE!$E$5:$F$54,2,FALSE)="C"),-1,1))) -> 
M18: =IF($B18="","",G18*IF($F18="",1,IF(ISERROR(MATCH($F18,$B$6:$B$105,0)),0,INDIRECT(ADDRESS(5+MATCH($F18,$B$6:$B$105,0),COLUMN(M$4)))))*IF($F18="",IF(VLOOKUP($B18,SCHEMA_CE!$E$5:$F$54,2,FALSE)="C",-1,1),IF(OR(VLOOKUP($B18,SCHEMA_CE!$E$5:$F$54,2,FALSE)="C",VLOOKUP($F18,SCHEMA_CE!$E$5:$F$54,2,FALSE)="C"),-1,1))) ->  | N18: =IF($B18="","",H18*IF($F18="",1,IF(ISERROR(MATCH($F18,$B$6:$B$105,0)),0,INDIRECT(ADDRESS(5+MATCH($F18,$B$6:$B$105,0),COLUMN(N$4)))))*IF($F18="",IF(VLOOKUP($B18,SCHEMA_CE!$E$5:$F$54,2,FALSE)="C",-1,1),IF(OR(VLOOKUP($B18,SCHEMA_CE!$E$5:$F$54,2,FALSE)="C",VLOOKUP($F18,SCHEMA_CE!$E$5:$F$54,2,FALSE)="C"),-1,1))) ->  | O18: =IF($B18="","",I18*IF($F18="",1,IF(ISERROR(MATCH($F18,$B$6:$B$105,0)),0,INDIRECT(ADDRESS(5+MATCH($F18,$B$6:$B$105,0),COLUMN(O$4)))))*IF($F18="",IF(VLOOKUP($B18,SCHEMA_CE!$E$5:$F$54,2,FALSE)="C",-1,1),IF(OR(VLOOKUP($B18,SCHEMA_CE!$E$5:$F$54,2,FALSE)="C",VLOOKUP($F18,SCHEMA_CE!$E$5:$F$54,2,FALSE)="C"),-1,1))) ->  | P18: =IF($B18="","",J18*IF($F18="",1,IF(ISERROR(MATCH($F18,$B$6:$B$105,0)),0,INDIRECT(ADDRESS(5+MATCH($F18,$B$6:$B$105,0),COLUMN(P$4)))))*IF($F18="",IF(VLOOKUP($B18,SCHEMA_CE!$E$5:$F$54,2,FALSE)="C",-1,1),IF(OR(VLOOKUP($B18,SCHEMA_CE!$E$5:$F$54,2,FALSE)="C",VLOOKUP($F18,SCHEMA_CE!$E$5:$F$54,2,FALSE)="C"),-1,1))) ->  | Q18: =IF($B18="","",K18*IF($F18="",1,IF(ISERROR(MATCH($F18,$B$6:$B$105,0)),0,INDIRECT(ADDRESS(5+MATCH($F18,$B$6:$B$105,0),COLUMN(Q$4)))))*IF($F18="",IF(VLOOKUP($B18,SCHEMA_CE!$E$5:$F$54,2,FALSE)="C",-1,1),IF(OR(VLOOKUP($B18,SCHEMA_CE!$E$5:$F$54,2,FALSE)="C",VLOOKUP($F18,SCHEMA_CE!$E$5:$F$54,2,FALSE)="C"),-1,1))) -> 
M19: =IF($B19="","",G19*IF($F19="",1,IF(ISERROR(MATCH($F19,$B$6:$B$105,0)),0,INDIRECT(ADDRESS(5+MATCH($F19,$B$6:$B$105,0),COLUMN(M$4)))))*IF($F19="",IF(VLOOKUP($B19,SCHEMA_CE!$E$5:$F$54,2,FALSE)="C",-1,1),IF(OR(VLOOKUP($B19,SCHEMA_CE!$E$5:$F$54,2,FALSE)="C",VLOOKUP($F19,SCHEMA_CE!$E$5:$F$54,2,FALSE)="C"),-1,1))) ->  | N19: =IF($B19="","",H19*IF($F19="",1,IF(ISERROR(MATCH($F19,$B$6:$B$105,0)),0,INDIRECT(ADDRESS(5+MATCH($F19,$B$6:$B$105,0),COLUMN(N$4)))))*IF($F19="",IF(VLOOKUP($B19,SCHEMA_CE!$E$5:$F$54,2,FALSE)="C",-1,1),IF(OR(VLOOKUP($B19,SCHEMA_CE!$E$5:$F$54,2,FALSE)="C",VLOOKUP($F19,SCHEMA_CE!$E$5:$F$54,2,FALSE)="C"),-1,1))) ->  | O19: =IF($B19="","",I19*IF($F19="",1,IF(ISERROR(MATCH($F19,$B$6:$B$105,0)),0,INDIRECT(ADDRESS(5+MATCH($F19,$B$6:$B$105,0),COLUMN(O$4)))))*IF($F19="",IF(VLOOKUP($B19,SCHEMA_CE!$E$5:$F$54,2,FALSE)="C",-1,1),IF(OR(VLOOKUP($B19,SCHEMA_CE!$E$5:$F$54,2,FALSE)="C",VLOOKUP($F19,SCHEMA_CE!$E$5:$F$54,2,FALSE)="C"),-1,1))) ->  | P19: =IF($B19="","",J19*IF($F19="",1,IF(ISERROR(MATCH($F19,$B$6:$B$105,0)),0,INDIRECT(ADDRESS(5+MATCH($F19,$B$6:$B$105,0),COLUMN(P$4)))))*IF($F19="",IF(VLOOKUP($B19,SCHEMA_CE!$E$5:$F$54,2,FALSE)="C",-1,1),IF(OR(VLOOKUP($B19,SCHEMA_CE!$E$5:$F$54,2,FALSE)="C",VLOOKUP($F19,SCHEMA_CE!$E$5:$F$54,2,FALSE)="C"),-1,1))) ->  | Q19: =IF($B19="","",K19*IF($F19="",1,IF(ISERROR(MATCH($F19,$B$6:$B$105,0)),0,INDIRECT(ADDRESS(5+MATCH($F19,$B$6:$B$105,0),COLUMN(Q$4)))))*IF($F19="",IF(VLOOKUP($B19,SCHEMA_CE!$E$5:$F$54,2,FALSE)="C",-1,1),IF(OR(VLOOKUP($B19,SCHEMA_CE!$E$5:$F$54,2,FALSE)="C",VLOOKUP($F19,SCHEMA_CE!$E$5:$F$54,2,FALSE)="C"),-1,1))) -> 
M20: =IF($B20="","",G20*IF($F20="",1,IF(ISERROR(MATCH($F20,$B$6:$B$105,0)),0,INDIRECT(ADDRESS(5+MATCH($F20,$B$6:$B$105,0),COLUMN(M$4)))))*IF($F20="",IF(VLOOKUP($B20,SCHEMA_CE!$E$5:$F$54,2,FALSE)="C",-1,1),IF(OR(VLOOKUP($B20,SCHEMA_CE!$E$5:$F$54,2,FALSE)="C",VLOOKUP($F20,SCHEMA_CE!$E$5:$F$54,2,FALSE)="C"),-1,1))) ->  | N20: =IF($B20="","",H20*IF($F20="",1,IF(ISERROR(MATCH($F20,$B$6:$B$105,0)),0,INDIRECT(ADDRESS(5+MATCH($F20,$B$6:$B$105,0),COLUMN(N$4)))))*IF($F20="",IF(VLOOKUP($B20,SCHEMA_CE!$E$5:$F$54,2,FALSE)="C",-1,1),IF(OR(VLOOKUP($B20,SCHEMA_CE!$E$5:$F$54,2,FALSE)="C",VLOOKUP($F20,SCHEMA_CE!$E$5:$F$54,2,FALSE)="C"),-1,1))) ->  | O20: =IF($B20="","",I20*IF($F20="",1,IF(ISERROR(MATCH($F20,$B$6:$B$105,0)),0,INDIRECT(ADDRESS(5+MATCH($F20,$B$6:$B$105,0),COLUMN(O$4)))))*IF($F20="",IF(VLOOKUP($B20,SCHEMA_CE!$E$5:$F$54,2,FALSE)="C",-1,1),IF(OR(VLOOKUP($B20,SCHEMA_CE!$E$5:$F$54,2,FALSE)="C",VLOOKUP($F20,SCHEMA_CE!$E$5:$F$54,2,FALSE)="C"),-1,1))) ->  | P20: =IF($B20="","",J20*IF($F20="",1,IF(ISERROR(MATCH($F20,$B$6:$B$105,0)),0,INDIRECT(ADDRESS(5+MATCH($F20,$B$6:$B$105,0),COLUMN(P$4)))))*IF($F20="",IF(VLOOKUP($B20,SCHEMA_CE!$E$5:$F$54,2,FALSE)="C",-1,1),IF(OR(VLOOKUP($B20,SCHEMA_CE!$E$5:$F$54,2,FALSE)="C",VLOOKUP($F20,SCHEMA_CE!$E$5:$F$54,2,FALSE)="C"),-1,1))) ->  | Q20: =IF($B20="","",K20*IF($F20="",1,IF(ISERROR(MATCH($F20,$B$6:$B$105,0)),0,INDIRECT(ADDRESS(5+MATCH($F20,$B$6:$B$105,0),COLUMN(Q$4)))))*IF($F20="",IF(VLOOKUP($B20,SCHEMA_CE!$E$5:$F$54,2,FALSE)="C",-1,1),IF(OR(VLOOKUP($B20,SCHEMA_CE!$E$5:$F$54,2,FALSE)="C",VLOOKUP($F20,SCHEMA_CE!$E$5:$F$54,2,FALSE)="C"),-1,1))) -> 
M21: =IF($B21="","",G21*IF($F21="",1,IF(ISERROR(MATCH($F21,$B$6:$B$105,0)),0,INDIRECT(ADDRESS(5+MATCH($F21,$B$6:$B$105,0),COLUMN(M$4)))))*IF($F21="",IF(VLOOKUP($B21,SCHEMA_CE!$E$5:$F$54,2,FALSE)="C",-1,1),IF(OR(VLOOKUP($B21,SCHEMA_CE!$E$5:$F$54,2,FALSE)="C",VLOOKUP($F21,SCHEMA_CE!$E$5:$F$54,2,FALSE)="C"),-1,1))) ->  | N21: =IF($B21="","",H21*IF($F21="",1,IF(ISERROR(MATCH($F21,$B$6:$B$105,0)),0,INDIRECT(ADDRESS(5+MATCH($F21,$B$6:$B$105,0),COLUMN(N$4)))))*IF($F21="",IF(VLOOKUP($B21,SCHEMA_CE!$E$5:$F$54,2,FALSE)="C",-1,1),IF(OR(VLOOKUP($B21,SCHEMA_CE!$E$5:$F$54,2,FALSE)="C",VLOOKUP($F21,SCHEMA_CE!$E$5:$F$54,2,FALSE)="C"),-1,1))) ->  | O21: =IF($B21="","",I21*IF($F21="",1,IF(ISERROR(MATCH($F21,$B$6:$B$105,0)),0,INDIRECT(ADDRESS(5+MATCH($F21,$B$6:$B$105,0),COLUMN(O$4)))))*IF($F21="",IF(VLOOKUP($B21,SCHEMA_CE!$E$5:$F$54,2,FALSE)="C",-1,1),IF(OR(VLOOKUP($B21,SCHEMA_CE!$E$5:$F$54,2,FALSE)="C",VLOOKUP($F21,SCHEMA_CE!$E$5:$F$54,2,FALSE)="C"),-1,1))) ->  | P21: =IF($B21="","",J21*IF($F21="",1,IF(ISERROR(MATCH($F21,$B$6:$B$105,0)),0,INDIRECT(ADDRESS(5+MATCH($F21,$B$6:$B$105,0),COLUMN(P$4)))))*IF($F21="",IF(VLOOKUP($B21,SCHEMA_CE!$E$5:$F$54,2,FALSE)="C",-1,1),IF(OR(VLOOKUP($B21,SCHEMA_CE!$E$5:$F$54,2,FALSE)="C",VLOOKUP($F21,SCHEMA_CE!$E$5:$F$54,2,FALSE)="C"),-1,1))) ->  | Q21: =IF($B21="","",K21*IF($F21="",1,IF(ISERROR(MATCH($F21,$B$6:$B$105,0)),0,INDIRECT(ADDRESS(5+MATCH($F21,$B$6:$B$105,0),COLUMN(Q$4)))))*IF($F21="",IF(VLOOKUP($B21,SCHEMA_CE!$E$5:$F$54,2,FALSE)="C",-1,1),IF(OR(VLOOKUP($B21,SCHEMA_CE!$E$5:$F$54,2,FALSE)="C",VLOOKUP($F21,SCHEMA_CE!$E$5:$F$54,2,FALSE)="C"),-1,1))) -> 
M22: =IF($B22="","",G22*IF($F22="",1,IF(ISERROR(MATCH($F22,$B$6:$B$105,0)),0,INDIRECT(ADDRESS(5+MATCH($F22,$B$6:$B$105,0),COLUMN(M$4)))))*IF($F22="",IF(VLOOKUP($B22,SCHEMA_CE!$E$5:$F$54,2,FALSE)="C",-1,1),IF(OR(VLOOKUP($B22,SCHEMA_CE!$E$5:$F$54,2,FALSE)="C",VLOOKUP($F22,SCHEMA_CE!$E$5:$F$54,2,FALSE)="C"),-1,1))) ->  | N22: =IF($B22="","",H22*IF($F22="",1,IF(ISERROR(MATCH($F22,$B$6:$B$105,0)),0,INDIRECT(ADDRESS(5+MATCH($F22,$B$6:$B$105,0),COLUMN(N$4)))))*IF($F22="",IF(VLOOKUP($B22,SCHEMA_CE!$E$5:$F$54,2,FALSE)="C",-1,1),IF(OR(VLOOKUP($B22,SCHEMA_CE!$E$5:$F$54,2,FALSE)="C",VLOOKUP($F22,SCHEMA_CE!$E$5:$F$54,2,FALSE)="C"),-1,1))) ->  | O22: =IF($B22="","",I22*IF($F22="",1,IF(ISERROR(MATCH($F22,$B$6:$B$105,0)),0,INDIRECT(ADDRESS(5+MATCH($F22,$B$6:$B$105,0),COLUMN(O$4)))))*IF($F22="",IF(VLOOKUP($B22,SCHEMA_CE!$E$5:$F$54,2,FALSE)="C",-1,1),IF(OR(VLOOKUP($B22,SCHEMA_CE!$E$5:$F$54,2,FALSE)="C",VLOOKUP($F22,SCHEMA_CE!$E$5:$F$54,2,FALSE)="C"),-1,1))) ->  | P22: =IF($B22="","",J22*IF($F22="",1,IF(ISERROR(MATCH($F22,$B$6:$B$105,0)),0,INDIRECT(ADDRESS(5+MATCH($F22,$B$6:$B$105,0),COLUMN(P$4)))))*IF($F22="",IF(VLOOKUP($B22,SCHEMA_CE!$E$5:$F$54,2,FALSE)="C",-1,1),IF(OR(VLOOKUP($B22,SCHEMA_CE!$E$5:$F$54,2,FALSE)="C",VLOOKUP($F22,SCHEMA_CE!$E$5:$F$54,2,FALSE)="C"),-1,1))) ->  | Q22: =IF($B22="","",K22*IF($F22="",1,IF(ISERROR(MATCH($F22,$B$6:$B$105,0)),0,INDIRECT(ADDRESS(5+MATCH($F22,$B$6:$B$105,0),COLUMN(Q$4)))))*IF($F22="",IF(VLOOKUP($B22,SCHEMA_CE!$E$5:$F$54,2,FALSE)="C",-1,1),IF(OR(VLOOKUP($B22,SCHEMA_CE!$E$5:$F$54,2,FALSE)="C",VLOOKUP($F22,SCHEMA_CE!$E$5:$F$54,2,FALSE)="C"),-1,1))) -> 
M23: =IF($B23="","",G23*IF($F23="",1,IF(ISERROR(MATCH($F23,$B$6:$B$105,0)),0,INDIRECT(ADDRESS(5+MATCH($F23,$B$6:$B$105,0),COLUMN(M$4)))))*IF($F23="",IF(VLOOKUP($B23,SCHEMA_CE!$E$5:$F$54,2,FALSE)="C",-1,1),IF(OR(VLOOKUP($B23,SCHEMA_CE!$E$5:$F$54,2,FALSE)="C",VLOOKUP($F23,SCHEMA_CE!$E$5:$F$54,2,FALSE)="C"),-1,1))) ->  | N23: =IF($B23="","",H23*IF($F23="",1,IF(ISERROR(MATCH($F23,$B$6:$B$105,0)),0,INDIRECT(ADDRESS(5+MATCH($F23,$B$6:$B$105,0),COLUMN(N$4)))))*IF($F23="",IF(VLOOKUP($B23,SCHEMA_CE!$E$5:$F$54,2,FALSE)="C",-1,1),IF(OR(VLOOKUP($B23,SCHEMA_CE!$E$5:$F$54,2,FALSE)="C",VLOOKUP($F23,SCHEMA_CE!$E$5:$F$54,2,FALSE)="C"),-1,1))) ->  | O23: =IF($B23="","",I23*IF($F23="",1,IF(ISERROR(MATCH($F23,$B$6:$B$105,0)),0,INDIRECT(ADDRESS(5+MATCH($F23,$B$6:$B$105,0),COLUMN(O$4)))))*IF($F23="",IF(VLOOKUP($B23,SCHEMA_CE!$E$5:$F$54,2,FALSE)="C",-1,1),IF(OR(VLOOKUP($B23,SCHEMA_CE!$E$5:$F$54,2,FALSE)="C",VLOOKUP($F23,SCHEMA_CE!$E$5:$F$54,2,FALSE)="C"),-1,1))) ->  | P23: =IF($B23="","",J23*IF($F23="",1,IF(ISERROR(MATCH($F23,$B$6:$B$105,0)),0,INDIRECT(ADDRESS(5+MATCH($F23,$B$6:$B$105,0),COLUMN(P$4)))))*IF($F23="",IF(VLOOKUP($B23,SCHEMA_CE!$E$5:$F$54,2,FALSE)="C",-1,1),IF(OR(VLOOKUP($B23,SCHEMA_CE!$E$5:$F$54,2,FALSE)="C",VLOOKUP($F23,SCHEMA_CE!$E$5:$F$54,2,FALSE)="C"),-1,1))) ->  | Q23: =IF($B23="","",K23*IF($F23="",1,IF(ISERROR(MATCH($F23,$B$6:$B$105,0)),0,INDIRECT(ADDRESS(5+MATCH($F23,$B$6:$B$105,0),COLUMN(Q$4)))))*IF($F23="",IF(VLOOKUP($B23,SCHEMA_CE!$E$5:$F$54,2,FALSE)="C",-1,1),IF(OR(VLOOKUP($B23,SCHEMA_CE!$E$5:$F$54,2,FALSE)="C",VLOOKUP($F23,SCHEMA_CE!$E$5:$F$54,2,FALSE)="C"),-1,1))) -> 
M24: =IF($B24="","",G24*IF($F24="",1,IF(ISERROR(MATCH($F24,$B$6:$B$105,0)),0,INDIRECT(ADDRESS(5+MATCH($F24,$B$6:$B$105,0),COLUMN(M$4)))))*IF($F24="",IF(VLOOKUP($B24,SCHEMA_CE!$E$5:$F$54,2,FALSE)="C",-1,1),IF(OR(VLOOKUP($B24,SCHEMA_CE!$E$5:$F$54,2,FALSE)="C",VLOOKUP($F24,SCHEMA_CE!$E$5:$F$54,2,FALSE)="C"),-1,1))) ->  | N24: =IF($B24="","",H24*IF($F24="",1,IF(ISERROR(MATCH($F24,$B$6:$B$105,0)),0,INDIRECT(ADDRESS(5+MATCH($F24,$B$6:$B$105,0),COLUMN(N$4)))))*IF($F24="",IF(VLOOKUP($B24,SCHEMA_CE!$E$5:$F$54,2,FALSE)="C",-1,1),IF(OR(VLOOKUP($B24,SCHEMA_CE!$E$5:$F$54,2,FALSE)="C",VLOOKUP($F24,SCHEMA_CE!$E$5:$F$54,2,FALSE)="C"),-1,1))) ->  | O24: =IF($B24="","",I24*IF($F24="",1,IF(ISERROR(MATCH($F24,$B$6:$B$105,0)),0,INDIRECT(ADDRESS(5+MATCH($F24,$B$6:$B$105,0),COLUMN(O$4)))))*IF($F24="",IF(VLOOKUP($B24,SCHEMA_CE!$E$5:$F$54,2,FALSE)="C",-1,1),IF(OR(VLOOKUP($B24,SCHEMA_CE!$E$5:$F$54,2,FALSE)="C",VLOOKUP($F24,SCHEMA_CE!$E$5:$F$54,2,FALSE)="C"),-1,1))) ->  | P24: =IF($B24="","",J24*IF($F24="",1,IF(ISERROR(MATCH($F24,$B$6:$B$105,0)),0,INDIRECT(ADDRESS(5+MATCH($F24,$B$6:$B$105,0),COLUMN(P$4)))))*IF($F24="",IF(VLOOKUP($B24,SCHEMA_CE!$E$5:$F$54,2,FALSE)="C",-1,1),IF(OR(VLOOKUP($B24,SCHEMA_CE!$E$5:$F$54,2,FALSE)="C",VLOOKUP($F24,SCHEMA_CE!$E$5:$F$54,2,FALSE)="C"),-1,1))) ->  | Q24: =IF($B24="","",K24*IF($F24="",1,IF(ISERROR(MATCH($F24,$B$6:$B$105,0)),0,INDIRECT(ADDRESS(5+MATCH($F24,$B$6:$B$105,0),COLUMN(Q$4)))))*IF($F24="",IF(VLOOKUP($B24,SCHEMA_CE!$E$5:$F$54,2,FALSE)="C",-1,1),IF(OR(VLOOKUP($B24,SCHEMA_CE!$E$5:$F$54,2,FALSE)="C",VLOOKUP($F24,SCHEMA_CE!$E$5:$F$54,2,FALSE)="C"),-1,1))) -> 
M25: =IF($B25="","",G25*IF($F25="",1,IF(ISERROR(MATCH($F25,$B$6:$B$105,0)),0,INDIRECT(ADDRESS(5+MATCH($F25,$B$6:$B$105,0),COLUMN(M$4)))))*IF($F25="",IF(VLOOKUP($B25,SCHEMA_CE!$E$5:$F$54,2,FALSE)="C",-1,1),IF(OR(VLOOKUP($B25,SCHEMA_CE!$E$5:$F$54,2,FALSE)="C",VLOOKUP($F25,SCHEMA_CE!$E$5:$F$54,2,FALSE)="C"),-1,1))) ->  | N25: =IF($B25="","",H25*IF($F25="",1,IF(ISERROR(MATCH($F25,$B$6:$B$105,0)),0,INDIRECT(ADDRESS(5+MATCH($F25,$B$6:$B$105,0),COLUMN(N$4)))))*IF($F25="",IF(VLOOKUP($B25,SCHEMA_CE!$E$5:$F$54,2,FALSE)="C",-1,1),IF(OR(VLOOKUP($B25,SCHEMA_CE!$E$5:$F$54,2,FALSE)="C",VLOOKUP($F25,SCHEMA_CE!$E$5:$F$54,2,FALSE)="C"),-1,1))) ->  | O25: =IF($B25="","",I25*IF($F25="",1,IF(ISERROR(MATCH($F25,$B$6:$B$105,0)),0,INDIRECT(ADDRESS(5+MATCH($F25,$B$6:$B$105,0),COLUMN(O$4)))))*IF($F25="",IF(VLOOKUP($B25,SCHEMA_CE!$E$5:$F$54,2,FALSE)="C",-1,1),IF(OR(VLOOKUP($B25,SCHEMA_CE!$E$5:$F$54,2,FALSE)="C",VLOOKUP($F25,SCHEMA_CE!$E$5:$F$54,2,FALSE)="C"),-1,1))) ->  | P25: =IF($B25="","",J25*IF($F25="",1,IF(ISERROR(MATCH($F25,$B$6:$B$105,0)),0,INDIRECT(ADDRESS(5+MATCH($F25,$B$6:$B$105,0),COLUMN(P$4)))))*IF($F25="",IF(VLOOKUP($B25,SCHEMA_CE!$E$5:$F$54,2,FALSE)="C",-1,1),IF(OR(VLOOKUP($B25,SCHEMA_CE!$E$5:$F$54,2,FALSE)="C",VLOOKUP($F25,SCHEMA_CE!$E$5:$F$54,2,FALSE)="C"),-1,1))) ->  | Q25: =IF($B25="","",K25*IF($F25="",1,IF(ISERROR(MATCH($F25,$B$6:$B$105,0)),0,INDIRECT(ADDRESS(5+MATCH($F25,$B$6:$B$105,0),COLUMN(Q$4)))))*IF($F25="",IF(VLOOKUP($B25,SCHEMA_CE!$E$5:$F$54,2,FALSE)="C",-1,1),IF(OR(VLOOKUP($B25,SCHEMA_CE!$E$5:$F$54,2,FALSE)="C",VLOOKUP($F25,SCHEMA_CE!$E$5:$F$54,2,FALSE)="C"),-1,1))) -> 
M26: =IF($B26="","",G26*IF($F26="",1,IF(ISERROR(MATCH($F26,$B$6:$B$105,0)),0,INDIRECT(ADDRESS(5+MATCH($F26,$B$6:$B$105,0),COLUMN(M$4)))))*IF($F26="",IF(VLOOKUP($B26,SCHEMA_CE!$E$5:$F$54,2,FALSE)="C",-1,1),IF(OR(VLOOKUP($B26,SCHEMA_CE!$E$5:$F$54,2,FALSE)="C",VLOOKUP($F26,SCHEMA_CE!$E$5:$F$54,2,FALSE)="C"),-1,1))) ->  | N26: =IF($B26="","",H26*IF($F26="",1,IF(ISERROR(MATCH($F26,$B$6:$B$105,0)),0,INDIRECT(ADDRESS(5+MATCH($F26,$B$6:$B$105,0),COLUMN(N$4)))))*IF($F26="",IF(VLOOKUP($B26,SCHEMA_CE!$E$5:$F$54,2,FALSE)="C",-1,1),IF(OR(VLOOKUP($B26,SCHEMA_CE!$E$5:$F$54,2,FALSE)="C",VLOOKUP($F26,SCHEMA_CE!$E$5:$F$54,2,FALSE)="C"),-1,1))) ->  | O26: =IF($B26="","",I26*IF($F26="",1,IF(ISERROR(MATCH($F26,$B$6:$B$105,0)),0,INDIRECT(ADDRESS(5+MATCH($F26,$B$6:$B$105,0),COLUMN(O$4)))))*IF($F26="",IF(VLOOKUP($B26,SCHEMA_CE!$E$5:$F$54,2,FALSE)="C",-1,1),IF(OR(VLOOKUP($B26,SCHEMA_CE!$E$5:$F$54,2,FALSE)="C",VLOOKUP($F26,SCHEMA_CE!$E$5:$F$54,2,FALSE)="C"),-1,1))) ->  | P26: =IF($B26="","",J26*IF($F26="",1,IF(ISERROR(MATCH($F26,$B$6:$B$105,0)),0,INDIRECT(ADDRESS(5+MATCH($F26,$B$6:$B$105,0),COLUMN(P$4)))))*IF($F26="",IF(VLOOKUP($B26,SCHEMA_CE!$E$5:$F$54,2,FALSE)="C",-1,1),IF(OR(VLOOKUP($B26,SCHEMA_CE!$E$5:$F$54,2,FALSE)="C",VLOOKUP($F26,SCHEMA_CE!$E$5:$F$54,2,FALSE)="C"),-1,1))) ->  | Q26: =IF($B26="","",K26*IF($F26="",1,IF(ISERROR(MATCH($F26,$B$6:$B$105,0)),0,INDIRECT(ADDRESS(5+MATCH($F26,$B$6:$B$105,0),COLUMN(Q$4)))))*IF($F26="",IF(VLOOKUP($B26,SCHEMA_CE!$E$5:$F$54,2,FALSE)="C",-1,1),IF(OR(VLOOKUP($B26,SCHEMA_CE!$E$5:$F$54,2,FALSE)="C",VLOOKUP($F26,SCHEMA_CE!$E$5:$F$54,2,FALSE)="C"),-1,1))) -> 
M27: =IF($B27="","",G27*IF($F27="",1,IF(ISERROR(MATCH($F27,$B$6:$B$105,0)),0,INDIRECT(ADDRESS(5+MATCH($F27,$B$6:$B$105,0),COLUMN(M$4)))))*IF($F27="",IF(VLOOKUP($B27,SCHEMA_CE!$E$5:$F$54,2,FALSE)="C",-1,1),IF(OR(VLOOKUP($B27,SCHEMA_CE!$E$5:$F$54,2,FALSE)="C",VLOOKUP($F27,SCHEMA_CE!$E$5:$F$54,2,FALSE)="C"),-1,1))) ->  | N27: =IF($B27="","",H27*IF($F27="",1,IF(ISERROR(MATCH($F27,$B$6:$B$105,0)),0,INDIRECT(ADDRESS(5+MATCH($F27,$B$6:$B$105,0),COLUMN(N$4)))))*IF($F27="",IF(VLOOKUP($B27,SCHEMA_CE!$E$5:$F$54,2,FALSE)="C",-1,1),IF(OR(VLOOKUP($B27,SCHEMA_CE!$E$5:$F$54,2,FALSE)="C",VLOOKUP($F27,SCHEMA_CE!$E$5:$F$54,2,FALSE)="C"),-1,1))) ->  | O27: =IF($B27="","",I27*IF($F27="",1,IF(ISERROR(MATCH($F27,$B$6:$B$105,0)),0,INDIRECT(ADDRESS(5+MATCH($F27,$B$6:$B$105,0),COLUMN(O$4)))))*IF($F27="",IF(VLOOKUP($B27,SCHEMA_CE!$E$5:$F$54,2,FALSE)="C",-1,1),IF(OR(VLOOKUP($B27,SCHEMA_CE!$E$5:$F$54,2,FALSE)="C",VLOOKUP($F27,SCHEMA_CE!$E$5:$F$54,2,FALSE)="C"),-1,1))) ->  | P27: =IF($B27="","",J27*IF($F27="",1,IF(ISERROR(MATCH($F27,$B$6:$B$105,0)),0,INDIRECT(ADDRESS(5+MATCH($F27,$B$6:$B$105,0),COLUMN(P$4)))))*IF($F27="",IF(VLOOKUP($B27,SCHEMA_CE!$E$5:$F$54,2,FALSE)="C",-1,1),IF(OR(VLOOKUP($B27,SCHEMA_CE!$E$5:$F$54,2,FALSE)="C",VLOOKUP($F27,SCHEMA_CE!$E$5:$F$54,2,FALSE)="C"),-1,1))) ->  | Q27: =IF($B27="","",K27*IF($F27="",1,IF(ISERROR(MATCH($F27,$B$6:$B$105,0)),0,INDIRECT(ADDRESS(5+MATCH($F27,$B$6:$B$105,0),COLUMN(Q$4)))))*IF($F27="",IF(VLOOKUP($B27,SCHEMA_CE!$E$5:$F$54,2,FALSE)="C",-1,1),IF(OR(VLOOKUP($B27,SCHEMA_CE!$E$5:$F$54,2,FALSE)="C",VLOOKUP($F27,SCHEMA_CE!$E$5:$F$54,2,FALSE)="C"),-1,1))) -> 
M28: =IF($B28="","",G28*IF($F28="",1,IF(ISERROR(MATCH($F28,$B$6:$B$105,0)),0,INDIRECT(ADDRESS(5+MATCH($F28,$B$6:$B$105,0),COLUMN(M$4)))))*IF($F28="",IF(VLOOKUP($B28,SCHEMA_CE!$E$5:$F$54,2,FALSE)="C",-1,1),IF(OR(VLOOKUP($B28,SCHEMA_CE!$E$5:$F$54,2,FALSE)="C",VLOOKUP($F28,SCHEMA_CE!$E$5:$F$54,2,FALSE)="C"),-1,1))) ->  | N28: =IF($B28="","",H28*IF($F28="",1,IF(ISERROR(MATCH($F28,$B$6:$B$105,0)),0,INDIRECT(ADDRESS(5+MATCH($F28,$B$6:$B$105,0),COLUMN(N$4)))))*IF($F28="",IF(VLOOKUP($B28,SCHEMA_CE!$E$5:$F$54,2,FALSE)="C",-1,1),IF(OR(VLOOKUP($B28,SCHEMA_CE!$E$5:$F$54,2,FALSE)="C",VLOOKUP($F28,SCHEMA_CE!$E$5:$F$54,2,FALSE)="C"),-1,1))) ->  | O28: =IF($B28="","",I28*IF($F28="",1,IF(ISERROR(MATCH($F28,$B$6:$B$105,0)),0,INDIRECT(ADDRESS(5+MATCH($F28,$B$6:$B$105,0),COLUMN(O$4)))))*IF($F28="",IF(VLOOKUP($B28,SCHEMA_CE!$E$5:$F$54,2,FALSE)="C",-1,1),IF(OR(VLOOKUP($B28,SCHEMA_CE!$E$5:$F$54,2,FALSE)="C",VLOOKUP($F28,SCHEMA_CE!$E$5:$F$54,2,FALSE)="C"),-1,1))) ->  | P28: =IF($B28="","",J28*IF($F28="",1,IF(ISERROR(MATCH($F28,$B$6:$B$105,0)),0,INDIRECT(ADDRESS(5+MATCH($F28,$B$6:$B$105,0),COLUMN(P$4)))))*IF($F28="",IF(VLOOKUP($B28,SCHEMA_CE!$E$5:$F$54,2,FALSE)="C",-1,1),IF(OR(VLOOKUP($B28,SCHEMA_CE!$E$5:$F$54,2,FALSE)="C",VLOOKUP($F28,SCHEMA_CE!$E$5:$F$54,2,FALSE)="C"),-1,1))) ->  | Q28: =IF($B28="","",K28*IF($F28="",1,IF(ISERROR(MATCH($F28,$B$6:$B$105,0)),0,INDIRECT(ADDRESS(5+MATCH($F28,$B$6:$B$105,0),COLUMN(Q$4)))))*IF($F28="",IF(VLOOKUP($B28,SCHEMA_CE!$E$5:$F$54,2,FALSE)="C",-1,1),IF(OR(VLOOKUP($B28,SCHEMA_CE!$E$5:$F$54,2,FALSE)="C",VLOOKUP($F28,SCHEMA_CE!$E$5:$F$54,2,FALSE)="C"),-1,1))) -> 
M29: =IF($B29="","",G29*IF($F29="",1,IF(ISERROR(MATCH($F29,$B$6:$B$105,0)),0,INDIRECT(ADDRESS(5+MATCH($F29,$B$6:$B$105,0),COLUMN(M$4)))))*IF($F29="",IF(VLOOKUP($B29,SCHEMA_CE!$E$5:$F$54,2,FALSE)="C",-1,1),IF(OR(VLOOKUP($B29,SCHEMA_CE!$E$5:$F$54,2,FALSE)="C",VLOOKUP($F29,SCHEMA_CE!$E$5:$F$54,2,FALSE)="C"),-1,1))) ->  | N29: =IF($B29="","",H29*IF($F29="",1,IF(ISERROR(MATCH($F29,$B$6:$B$105,0)),0,INDIRECT(ADDRESS(5+MATCH($F29,$B$6:$B$105,0),COLUMN(N$4)))))*IF($F29="",IF(VLOOKUP($B29,SCHEMA_CE!$E$5:$F$54,2,FALSE)="C",-1,1),IF(OR(VLOOKUP($B29,SCHEMA_CE!$E$5:$F$54,2,FALSE)="C",VLOOKUP($F29,SCHEMA_CE!$E$5:$F$54,2,FALSE)="C"),-1,1))) ->  | O29: =IF($B29="","",I29*IF($F29="",1,IF(ISERROR(MATCH($F29,$B$6:$B$105,0)),0,INDIRECT(ADDRESS(5+MATCH($F29,$B$6:$B$105,0),COLUMN(O$4)))))*IF($F29="",IF(VLOOKUP($B29,SCHEMA_CE!$E$5:$F$54,2,FALSE)="C",-1,1),IF(OR(VLOOKUP($B29,SCHEMA_CE!$E$5:$F$54,2,FALSE)="C",VLOOKUP($F29,SCHEMA_CE!$E$5:$F$54,2,FALSE)="C"),-1,1))) ->  | P29: =IF($B29="","",J29*IF($F29="",1,IF(ISERROR(MATCH($F29,$B$6:$B$105,0)),0,INDIRECT(ADDRESS(5+MATCH($F29,$B$6:$B$105,0),COLUMN(P$4)))))*IF($F29="",IF(VLOOKUP($B29,SCHEMA_CE!$E$5:$F$54,2,FALSE)="C",-1,1),IF(OR(VLOOKUP($B29,SCHEMA_CE!$E$5:$F$54,2,FALSE)="C",VLOOKUP($F29,SCHEMA_CE!$E$5:$F$54,2,FALSE)="C"),-1,1))) ->  | Q29: =IF($B29="","",K29*IF($F29="",1,IF(ISERROR(MATCH($F29,$B$6:$B$105,0)),0,INDIRECT(ADDRESS(5+MATCH($F29,$B$6:$B$105,0),COLUMN(Q$4)))))*IF($F29="",IF(VLOOKUP($B29,SCHEMA_CE!$E$5:$F$54,2,FALSE)="C",-1,1),IF(OR(VLOOKUP($B29,SCHEMA_CE!$E$5:$F$54,2,FALSE)="C",VLOOKUP($F29,SCHEMA_CE!$E$5:$F$54,2,FALSE)="C"),-1,1))) -> 
M30: =IF($B30="","",G30*IF($F30="",1,IF(ISERROR(MATCH($F30,$B$6:$B$105,0)),0,INDIRECT(ADDRESS(5+MATCH($F30,$B$6:$B$105,0),COLUMN(M$4)))))*IF($F30="",IF(VLOOKUP($B30,SCHEMA_CE!$E$5:$F$54,2,FALSE)="C",-1,1),IF(OR(VLOOKUP($B30,SCHEMA_CE!$E$5:$F$54,2,FALSE)="C",VLOOKUP($F30,SCHEMA_CE!$E$5:$F$54,2,FALSE)="C"),-1,1))) ->  | N30: =IF($B30="","",H30*IF($F30="",1,IF(ISERROR(MATCH($F30,$B$6:$B$105,0)),0,INDIRECT(ADDRESS(5+MATCH($F30,$B$6:$B$105,0),COLUMN(N$4)))))*IF($F30="",IF(VLOOKUP($B30,SCHEMA_CE!$E$5:$F$54,2,FALSE)="C",-1,1),IF(OR(VLOOKUP($B30,SCHEMA_CE!$E$5:$F$54,2,FALSE)="C",VLOOKUP($F30,SCHEMA_CE!$E$5:$F$54,2,FALSE)="C"),-1,1))) ->  | O30: =IF($B30="","",I30*IF($F30="",1,IF(ISERROR(MATCH($F30,$B$6:$B$105,0)),0,INDIRECT(ADDRESS(5+MATCH($F30,$B$6:$B$105,0),COLUMN(O$4)))))*IF($F30="",IF(VLOOKUP($B30,SCHEMA_CE!$E$5:$F$54,2,FALSE)="C",-1,1),IF(OR(VLOOKUP($B30,SCHEMA_CE!$E$5:$F$54,2,FALSE)="C",VLOOKUP($F30,SCHEMA_CE!$E$5:$F$54,2,FALSE)="C"),-1,1))) ->  | P30: =IF($B30="","",J30*IF($F30="",1,IF(ISERROR(MATCH($F30,$B$6:$B$105,0)),0,INDIRECT(ADDRESS(5+MATCH($F30,$B$6:$B$105,0),COLUMN(P$4)))))*IF($F30="",IF(VLOOKUP($B30,SCHEMA_CE!$E$5:$F$54,2,FALSE)="C",-1,1),IF(OR(VLOOKUP($B30,SCHEMA_CE!$E$5:$F$54,2,FALSE)="C",VLOOKUP($F30,SCHEMA_CE!$E$5:$F$54,2,FALSE)="C"),-1,1))) ->  | Q30: =IF($B30="","",K30*IF($F30="",1,IF(ISERROR(MATCH($F30,$B$6:$B$105,0)),0,INDIRECT(ADDRESS(5+MATCH($F30,$B$6:$B$105,0),COLUMN(Q$4)))))*IF($F30="",IF(VLOOKUP($B30,SCHEMA_CE!$E$5:$F$54,2,FALSE)="C",-1,1),IF(OR(VLOOKUP($B30,SCHEMA_CE!$E$5:$F$54,2,FALSE)="C",VLOOKUP($F30,SCHEMA_CE!$E$5:$F$54,2,FALSE)="C"),-1,1))) -> 
M31: =IF($B31="","",G31*IF($F31="",1,IF(ISERROR(MATCH($F31,$B$6:$B$105,0)),0,INDIRECT(ADDRESS(5+MATCH($F31,$B$6:$B$105,0),COLUMN(M$4)))))*IF($F31="",IF(VLOOKUP($B31,SCHEMA_CE!$E$5:$F$54,2,FALSE)="C",-1,1),IF(OR(VLOOKUP($B31,SCHEMA_CE!$E$5:$F$54,2,FALSE)="C",VLOOKUP($F31,SCHEMA_CE!$E$5:$F$54,2,FALSE)="C"),-1,1))) ->  | N31: =IF($B31="","",H31*IF($F31="",1,IF(ISERROR(MATCH($F31,$B$6:$B$105,0)),0,INDIRECT(ADDRESS(5+MATCH($F31,$B$6:$B$105,0),COLUMN(N$4)))))*IF($F31="",IF(VLOOKUP($B31,SCHEMA_CE!$E$5:$F$54,2,FALSE)="C",-1,1),IF(OR(VLOOKUP($B31,SCHEMA_CE!$E$5:$F$54,2,FALSE)="C",VLOOKUP($F31,SCHEMA_CE!$E$5:$F$54,2,FALSE)="C"),-1,1))) ->  | O31: =IF($B31="","",I31*IF($F31="",1,IF(ISERROR(MATCH($F31,$B$6:$B$105,0)),0,INDIRECT(ADDRESS(5+MATCH($F31,$B$6:$B$105,0),COLUMN(O$4)))))*IF($F31="",IF(VLOOKUP($B31,SCHEMA_CE!$E$5:$F$54,2,FALSE)="C",-1,1),IF(OR(VLOOKUP($B31,SCHEMA_CE!$E$5:$F$54,2,FALSE)="C",VLOOKUP($F31,SCHEMA_CE!$E$5:$F$54,2,FALSE)="C"),-1,1))) ->  | P31: =IF($B31="","",J31*IF($F31="",1,IF(ISERROR(MATCH($F31,$B$6:$B$105,0)),0,INDIRECT(ADDRESS(5+MATCH($F31,$B$6:$B$105,0),COLUMN(P$4)))))*IF($F31="",IF(VLOOKUP($B31,SCHEMA_CE!$E$5:$F$54,2,FALSE)="C",-1,1),IF(OR(VLOOKUP($B31,SCHEMA_CE!$E$5:$F$54,2,FALSE)="C",VLOOKUP($F31,SCHEMA_CE!$E$5:$F$54,2,FALSE)="C"),-1,1))) ->  | Q31: =IF($B31="","",K31*IF($F31="",1,IF(ISERROR(MATCH($F31,$B$6:$B$105,0)),0,INDIRECT(ADDRESS(5+MATCH($F31,$B$6:$B$105,0),COLUMN(Q$4)))))*IF($F31="",IF(VLOOKUP($B31,SCHEMA_CE!$E$5:$F$54,2,FALSE)="C",-1,1),IF(OR(VLOOKUP($B31,SCHEMA_CE!$E$5:$F$54,2,FALSE)="C",VLOOKUP($F31,SCHEMA_CE!$E$5:$F$54,2,FALSE)="C"),-1,1))) -> 
M32: =IF($B32="","",G32*IF($F32="",1,IF(ISERROR(MATCH($F32,$B$6:$B$105,0)),0,INDIRECT(ADDRESS(5+MATCH($F32,$B$6:$B$105,0),COLUMN(M$4)))))*IF($F32="",IF(VLOOKUP($B32,SCHEMA_CE!$E$5:$F$54,2,FALSE)="C",-1,1),IF(OR(VLOOKUP($B32,SCHEMA_CE!$E$5:$F$54,2,FALSE)="C",VLOOKUP($F32,SCHEMA_CE!$E$5:$F$54,2,FALSE)="C"),-1,1))) ->  | N32: =IF($B32="","",H32*IF($F32="",1,IF(ISERROR(MATCH($F32,$B$6:$B$105,0)),0,INDIRECT(ADDRESS(5+MATCH($F32,$B$6:$B$105,0),COLUMN(N$4)))))*IF($F32="",IF(VLOOKUP($B32,SCHEMA_CE!$E$5:$F$54,2,FALSE)="C",-1,1),IF(OR(VLOOKUP($B32,SCHEMA_CE!$E$5:$F$54,2,FALSE)="C",VLOOKUP($F32,SCHEMA_CE!$E$5:$F$54,2,FALSE)="C"),-1,1))) ->  | O32: =IF($B32="","",I32*IF($F32="",1,IF(ISERROR(MATCH($F32,$B$6:$B$105,0)),0,INDIRECT(ADDRESS(5+MATCH($F32,$B$6:$B$105,0),COLUMN(O$4)))))*IF($F32="",IF(VLOOKUP($B32,SCHEMA_CE!$E$5:$F$54,2,FALSE)="C",-1,1),IF(OR(VLOOKUP($B32,SCHEMA_CE!$E$5:$F$54,2,FALSE)="C",VLOOKUP($F32,SCHEMA_CE!$E$5:$F$54,2,FALSE)="C"),-1,1))) ->  | P32: =IF($B32="","",J32*IF($F32="",1,IF(ISERROR(MATCH($F32,$B$6:$B$105,0)),0,INDIRECT(ADDRESS(5+MATCH($F32,$B$6:$B$105,0),COLUMN(P$4)))))*IF($F32="",IF(VLOOKUP($B32,SCHEMA_CE!$E$5:$F$54,2,FALSE)="C",-1,1),IF(OR(VLOOKUP($B32,SCHEMA_CE!$E$5:$F$54,2,FALSE)="C",VLOOKUP($F32,SCHEMA_CE!$E$5:$F$54,2,FALSE)="C"),-1,1))) ->  | Q32: =IF($B32="","",K32*IF($F32="",1,IF(ISERROR(MATCH($F32,$B$6:$B$105,0)),0,INDIRECT(ADDRESS(5+MATCH($F32,$B$6:$B$105,0),COLUMN(Q$4)))))*IF($F32="",IF(VLOOKUP($B32,SCHEMA_CE!$E$5:$F$54,2,FALSE)="C",-1,1),IF(OR(VLOOKUP($B32,SCHEMA_CE!$E$5:$F$54,2,FALSE)="C",VLOOKUP($F32,SCHEMA_CE!$E$5:$F$54,2,FALSE)="C"),-1,1))) -> 
M33: =IF($B33="","",G33*IF($F33="",1,IF(ISERROR(MATCH($F33,$B$6:$B$105,0)),0,INDIRECT(ADDRESS(5+MATCH($F33,$B$6:$B$105,0),COLUMN(M$4)))))*IF($F33="",IF(VLOOKUP($B33,SCHEMA_CE!$E$5:$F$54,2,FALSE)="C",-1,1),IF(OR(VLOOKUP($B33,SCHEMA_CE!$E$5:$F$54,2,FALSE)="C",VLOOKUP($F33,SCHEMA_CE!$E$5:$F$54,2,FALSE)="C"),-1,1))) ->  | N33: =IF($B33="","",H33*IF($F33="",1,IF(ISERROR(MATCH($F33,$B$6:$B$105,0)),0,INDIRECT(ADDRESS(5+MATCH($F33,$B$6:$B$105,0),COLUMN(N$4)))))*IF($F33="",IF(VLOOKUP($B33,SCHEMA_CE!$E$5:$F$54,2,FALSE)="C",-1,1),IF(OR(VLOOKUP($B33,SCHEMA_CE!$E$5:$F$54,2,FALSE)="C",VLOOKUP($F33,SCHEMA_CE!$E$5:$F$54,2,FALSE)="C"),-1,1))) ->  | O33: =IF($B33="","",I33*IF($F33="",1,IF(ISERROR(MATCH($F33,$B$6:$B$105,0)),0,INDIRECT(ADDRESS(5+MATCH($F33,$B$6:$B$105,0),COLUMN(O$4)))))*IF($F33="",IF(VLOOKUP($B33,SCHEMA_CE!$E$5:$F$54,2,FALSE)="C",-1,1),IF(OR(VLOOKUP($B33,SCHEMA_CE!$E$5:$F$54,2,FALSE)="C",VLOOKUP($F33,SCHEMA_CE!$E$5:$F$54,2,FALSE)="C"),-1,1))) ->  | P33: =IF($B33="","",J33*IF($F33="",1,IF(ISERROR(MATCH($F33,$B$6:$B$105,0)),0,INDIRECT(ADDRESS(5+MATCH($F33,$B$6:$B$105,0),COLUMN(P$4)))))*IF($F33="",IF(VLOOKUP($B33,SCHEMA_CE!$E$5:$F$54,2,FALSE)="C",-1,1),IF(OR(VLOOKUP($B33,SCHEMA_CE!$E$5:$F$54,2,FALSE)="C",VLOOKUP($F33,SCHEMA_CE!$E$5:$F$54,2,FALSE)="C"),-1,1))) ->  | Q33: =IF($B33="","",K33*IF($F33="",1,IF(ISERROR(MATCH($F33,$B$6:$B$105,0)),0,INDIRECT(ADDRESS(5+MATCH($F33,$B$6:$B$105,0),COLUMN(Q$4)))))*IF($F33="",IF(VLOOKUP($B33,SCHEMA_CE!$E$5:$F$54,2,FALSE)="C",-1,1),IF(OR(VLOOKUP($B33,SCHEMA_CE!$E$5:$F$54,2,FALSE)="C",VLOOKUP($F33,SCHEMA_CE!$E$5:$F$54,2,FALSE)="C"),-1,1))) -> 
M34: =IF($B34="","",G34*IF($F34="",1,IF(ISERROR(MATCH($F34,$B$6:$B$105,0)),0,INDIRECT(ADDRESS(5+MATCH($F34,$B$6:$B$105,0),COLUMN(M$4)))))*IF($F34="",IF(VLOOKUP($B34,SCHEMA_CE!$E$5:$F$54,2,FALSE)="C",-1,1),IF(OR(VLOOKUP($B34,SCHEMA_CE!$E$5:$F$54,2,FALSE)="C",VLOOKUP($F34,SCHEMA_CE!$E$5:$F$54,2,FALSE)="C"),-1,1))) ->  | N34: =IF($B34="","",H34*IF($F34="",1,IF(ISERROR(MATCH($F34,$B$6:$B$105,0)),0,INDIRECT(ADDRESS(5+MATCH($F34,$B$6:$B$105,0),COLUMN(N$4)))))*IF($F34="",IF(VLOOKUP($B34,SCHEMA_CE!$E$5:$F$54,2,FALSE)="C",-1,1),IF(OR(VLOOKUP($B34,SCHEMA_CE!$E$5:$F$54,2,FALSE)="C",VLOOKUP($F34,SCHEMA_CE!$E$5:$F$54,2,FALSE)="C"),-1,1))) ->  | O34: =IF($B34="","",I34*IF($F34="",1,IF(ISERROR(MATCH($F34,$B$6:$B$105,0)),0,INDIRECT(ADDRESS(5+MATCH($F34,$B$6:$B$105,0),COLUMN(O$4)))))*IF($F34="",IF(VLOOKUP($B34,SCHEMA_CE!$E$5:$F$54,2,FALSE)="C",-1,1),IF(OR(VLOOKUP($B34,SCHEMA_CE!$E$5:$F$54,2,FALSE)="C",VLOOKUP($F34,SCHEMA_CE!$E$5:$F$54,2,FALSE)="C"),-1,1))) ->  | P34: =IF($B34="","",J34*IF($F34="",1,IF(ISERROR(MATCH($F34,$B$6:$B$105,0)),0,INDIRECT(ADDRESS(5+MATCH($F34,$B$6:$B$105,0),COLUMN(P$4)))))*IF($F34="",IF(VLOOKUP($B34,SCHEMA_CE!$E$5:$F$54,2,FALSE)="C",-1,1),IF(OR(VLOOKUP($B34,SCHEMA_CE!$E$5:$F$54,2,FALSE)="C",VLOOKUP($F34,SCHEMA_CE!$E$5:$F$54,2,FALSE)="C"),-1,1))) ->  | Q34: =IF($B34="","",K34*IF($F34="",1,IF(ISERROR(MATCH($F34,$B$6:$B$105,0)),0,INDIRECT(ADDRESS(5+MATCH($F34,$B$6:$B$105,0),COLUMN(Q$4)))))*IF($F34="",IF(VLOOKUP($B34,SCHEMA_CE!$E$5:$F$54,2,FALSE)="C",-1,1),IF(OR(VLOOKUP($B34,SCHEMA_CE!$E$5:$F$54,2,FALSE)="C",VLOOKUP($F34,SCHEMA_CE!$E$5:$F$54,2,FALSE)="C"),-1,1))) -> 
M35: =IF($B35="","",G35*IF($F35="",1,IF(ISERROR(MATCH($F35,$B$6:$B$105,0)),0,INDIRECT(ADDRESS(5+MATCH($F35,$B$6:$B$105,0),COLUMN(M$4)))))*IF($F35="",IF(VLOOKUP($B35,SCHEMA_CE!$E$5:$F$54,2,FALSE)="C",-1,1),IF(OR(VLOOKUP($B35,SCHEMA_CE!$E$5:$F$54,2,FALSE)="C",VLOOKUP($F35,SCHEMA_CE!$E$5:$F$54,2,FALSE)="C"),-1,1))) ->  | N35: =IF($B35="","",H35*IF($F35="",1,IF(ISERROR(MATCH($F35,$B$6:$B$105,0)),0,INDIRECT(ADDRESS(5+MATCH($F35,$B$6:$B$105,0),COLUMN(N$4)))))*IF($F35="",IF(VLOOKUP($B35,SCHEMA_CE!$E$5:$F$54,2,FALSE)="C",-1,1),IF(OR(VLOOKUP($B35,SCHEMA_CE!$E$5:$F$54,2,FALSE)="C",VLOOKUP($F35,SCHEMA_CE!$E$5:$F$54,2,FALSE)="C"),-1,1))) ->  | O35: =IF($B35="","",I35*IF($F35="",1,IF(ISERROR(MATCH($F35,$B$6:$B$105,0)),0,INDIRECT(ADDRESS(5+MATCH($F35,$B$6:$B$105,0),COLUMN(O$4)))))*IF($F35="",IF(VLOOKUP($B35,SCHEMA_CE!$E$5:$F$54,2,FALSE)="C",-1,1),IF(OR(VLOOKUP($B35,SCHEMA_CE!$E$5:$F$54,2,FALSE)="C",VLOOKUP($F35,SCHEMA_CE!$E$5:$F$54,2,FALSE)="C"),-1,1))) ->  | P35: =IF($B35="","",J35*IF($F35="",1,IF(ISERROR(MATCH($F35,$B$6:$B$105,0)),0,INDIRECT(ADDRESS(5+MATCH($F35,$B$6:$B$105,0),COLUMN(P$4)))))*IF($F35="",IF(VLOOKUP($B35,SCHEMA_CE!$E$5:$F$54,2,FALSE)="C",-1,1),IF(OR(VLOOKUP($B35,SCHEMA_CE!$E$5:$F$54,2,FALSE)="C",VLOOKUP($F35,SCHEMA_CE!$E$5:$F$54,2,FALSE)="C"),-1,1))) ->  | Q35: =IF($B35="","",K35*IF($F35="",1,IF(ISERROR(MATCH($F35,$B$6:$B$105,0)),0,INDIRECT(ADDRESS(5+MATCH($F35,$B$6:$B$105,0),COLUMN(Q$4)))))*IF($F35="",IF(VLOOKUP($B35,SCHEMA_CE!$E$5:$F$54,2,FALSE)="C",-1,1),IF(OR(VLOOKUP($B35,SCHEMA_CE!$E$5:$F$54,2,FALSE)="C",VLOOKUP($F35,SCHEMA_CE!$E$5:$F$54,2,FALSE)="C"),-1,1))) -> 
M36: =IF($B36="","",G36*IF($F36="",1,IF(ISERROR(MATCH($F36,$B$6:$B$105,0)),0,INDIRECT(ADDRESS(5+MATCH($F36,$B$6:$B$105,0),COLUMN(M$4)))))*IF($F36="",IF(VLOOKUP($B36,SCHEMA_CE!$E$5:$F$54,2,FALSE)="C",-1,1),IF(OR(VLOOKUP($B36,SCHEMA_CE!$E$5:$F$54,2,FALSE)="C",VLOOKUP($F36,SCHEMA_CE!$E$5:$F$54,2,FALSE)="C"),-1,1))) ->  | N36: =IF($B36="","",H36*IF($F36="",1,IF(ISERROR(MATCH($F36,$B$6:$B$105,0)),0,INDIRECT(ADDRESS(5+MATCH($F36,$B$6:$B$105,0),COLUMN(N$4)))))*IF($F36="",IF(VLOOKUP($B36,SCHEMA_CE!$E$5:$F$54,2,FALSE)="C",-1,1),IF(OR(VLOOKUP($B36,SCHEMA_CE!$E$5:$F$54,2,FALSE)="C",VLOOKUP($F36,SCHEMA_CE!$E$5:$F$54,2,FALSE)="C"),-1,1))) ->  | O36: =IF($B36="","",I36*IF($F36="",1,IF(ISERROR(MATCH($F36,$B$6:$B$105,0)),0,INDIRECT(ADDRESS(5+MATCH($F36,$B$6:$B$105,0),COLUMN(O$4)))))*IF($F36="",IF(VLOOKUP($B36,SCHEMA_CE!$E$5:$F$54,2,FALSE)="C",-1,1),IF(OR(VLOOKUP($B36,SCHEMA_CE!$E$5:$F$54,2,FALSE)="C",VLOOKUP($F36,SCHEMA_CE!$E$5:$F$54,2,FALSE)="C"),-1,1))) ->  | P36: =IF($B36="","",J36*IF($F36="",1,IF(ISERROR(MATCH($F36,$B$6:$B$105,0)),0,INDIRECT(ADDRESS(5+MATCH($F36,$B$6:$B$105,0),COLUMN(P$4)))))*IF($F36="",IF(VLOOKUP($B36,SCHEMA_CE!$E$5:$F$54,2,FALSE)="C",-1,1),IF(OR(VLOOKUP($B36,SCHEMA_CE!$E$5:$F$54,2,FALSE)="C",VLOOKUP($F36,SCHEMA_CE!$E$5:$F$54,2,FALSE)="C"),-1,1))) ->  | Q36: =IF($B36="","",K36*IF($F36="",1,IF(ISERROR(MATCH($F36,$B$6:$B$105,0)),0,INDIRECT(ADDRESS(5+MATCH($F36,$B$6:$B$105,0),COLUMN(Q$4)))))*IF($F36="",IF(VLOOKUP($B36,SCHEMA_CE!$E$5:$F$54,2,FALSE)="C",-1,1),IF(OR(VLOOKUP($B36,SCHEMA_CE!$E$5:$F$54,2,FALSE)="C",VLOOKUP($F36,SCHEMA_CE!$E$5:$F$54,2,FALSE)="C"),-1,1))) -> 
M37: =IF($B37="","",G37*IF($F37="",1,IF(ISERROR(MATCH($F37,$B$6:$B$105,0)),0,INDIRECT(ADDRESS(5+MATCH($F37,$B$6:$B$105,0),COLUMN(M$4)))))*IF($F37="",IF(VLOOKUP($B37,SCHEMA_CE!$E$5:$F$54,2,FALSE)="C",-1,1),IF(OR(VLOOKUP($B37,SCHEMA_CE!$E$5:$F$54,2,FALSE)="C",VLOOKUP($F37,SCHEMA_CE!$E$5:$F$54,2,FALSE)="C"),-1,1))) ->  | N37: =IF($B37="","",H37*IF($F37="",1,IF(ISERROR(MATCH($F37,$B$6:$B$105,0)),0,INDIRECT(ADDRESS(5+MATCH($F37,$B$6:$B$105,0),COLUMN(N$4)))))*IF($F37="",IF(VLOOKUP($B37,SCHEMA_CE!$E$5:$F$54,2,FALSE)="C",-1,1),IF(OR(VLOOKUP($B37,SCHEMA_CE!$E$5:$F$54,2,FALSE)="C",VLOOKUP($F37,SCHEMA_CE!$E$5:$F$54,2,FALSE)="C"),-1,1))) ->  | O37: =IF($B37="","",I37*IF($F37="",1,IF(ISERROR(MATCH($F37,$B$6:$B$105,0)),0,INDIRECT(ADDRESS(5+MATCH($F37,$B$6:$B$105,0),COLUMN(O$4)))))*IF($F37="",IF(VLOOKUP($B37,SCHEMA_CE!$E$5:$F$54,2,FALSE)="C",-1,1),IF(OR(VLOOKUP($B37,SCHEMA_CE!$E$5:$F$54,2,FALSE)="C",VLOOKUP($F37,SCHEMA_CE!$E$5:$F$54,2,FALSE)="C"),-1,1))) ->  | P37: =IF($B37="","",J37*IF($F37="",1,IF(ISERROR(MATCH($F37,$B$6:$B$105,0)),0,INDIRECT(ADDRESS(5+MATCH($F37,$B$6:$B$105,0),COLUMN(P$4)))))*IF($F37="",IF(VLOOKUP($B37,SCHEMA_CE!$E$5:$F$54,2,FALSE)="C",-1,1),IF(OR(VLOOKUP($B37,SCHEMA_CE!$E$5:$F$54,2,FALSE)="C",VLOOKUP($F37,SCHEMA_CE!$E$5:$F$54,2,FALSE)="C"),-1,1))) ->  | Q37: =IF($B37="","",K37*IF($F37="",1,IF(ISERROR(MATCH($F37,$B$6:$B$105,0)),0,INDIRECT(ADDRESS(5+MATCH($F37,$B$6:$B$105,0),COLUMN(Q$4)))))*IF($F37="",IF(VLOOKUP($B37,SCHEMA_CE!$E$5:$F$54,2,FALSE)="C",-1,1),IF(OR(VLOOKUP($B37,SCHEMA_CE!$E$5:$F$54,2,FALSE)="C",VLOOKUP($F37,SCHEMA_CE!$E$5:$F$54,2,FALSE)="C"),-1,1))) -> 
M38: =IF($B38="","",G38*IF($F38="",1,IF(ISERROR(MATCH($F38,$B$6:$B$105,0)),0,INDIRECT(ADDRESS(5+MATCH($F38,$B$6:$B$105,0),COLUMN(M$4)))))*IF($F38="",IF(VLOOKUP($B38,SCHEMA_CE!$E$5:$F$54,2,FALSE)="C",-1,1),IF(OR(VLOOKUP($B38,SCHEMA_CE!$E$5:$F$54,2,FALSE)="C",VLOOKUP($F38,SCHEMA_CE!$E$5:$F$54,2,FALSE)="C"),-1,1))) ->  | N38: =IF($B38="","",H38*IF($F38="",1,IF(ISERROR(MATCH($F38,$B$6:$B$105,0)),0,INDIRECT(ADDRESS(5+MATCH($F38,$B$6:$B$105,0),COLUMN(N$4)))))*IF($F38="",IF(VLOOKUP($B38,SCHEMA_CE!$E$5:$F$54,2,FALSE)="C",-1,1),IF(OR(VLOOKUP($B38,SCHEMA_CE!$E$5:$F$54,2,FALSE)="C",VLOOKUP($F38,SCHEMA_CE!$E$5:$F$54,2,FALSE)="C"),-1,1))) ->  | O38: =IF($B38="","",I38*IF($F38="",1,IF(ISERROR(MATCH($F38,$B$6:$B$105,0)),0,INDIRECT(ADDRESS(5+MATCH($F38,$B$6:$B$105,0),COLUMN(O$4)))))*IF($F38="",IF(VLOOKUP($B38,SCHEMA_CE!$E$5:$F$54,2,FALSE)="C",-1,1),IF(OR(VLOOKUP($B38,SCHEMA_CE!$E$5:$F$54,2,FALSE)="C",VLOOKUP($F38,SCHEMA_CE!$E$5:$F$54,2,FALSE)="C"),-1,1))) ->  | P38: =IF($B38="","",J38*IF($F38="",1,IF(ISERROR(MATCH($F38,$B$6:$B$105,0)),0,INDIRECT(ADDRESS(5+MATCH($F38,$B$6:$B$105,0),COLUMN(P$4)))))*IF($F38="",IF(VLOOKUP($B38,SCHEMA_CE!$E$5:$F$54,2,FALSE)="C",-1,1),IF(OR(VLOOKUP($B38,SCHEMA_CE!$E$5:$F$54,2,FALSE)="C",VLOOKUP($F38,SCHEMA_CE!$E$5:$F$54,2,FALSE)="C"),-1,1))) ->  | Q38: =IF($B38="","",K38*IF($F38="",1,IF(ISERROR(MATCH($F38,$B$6:$B$105,0)),0,INDIRECT(ADDRESS(5+MATCH($F38,$B$6:$B$105,0),COLUMN(Q$4)))))*IF($F38="",IF(VLOOKUP($B38,SCHEMA_CE!$E$5:$F$54,2,FALSE)="C",-1,1),IF(OR(VLOOKUP($B38,SCHEMA_CE!$E$5:$F$54,2,FALSE)="C",VLOOKUP($F38,SCHEMA_CE!$E$5:$F$54,2,FALSE)="C"),-1,1))) -> 
M39: =IF($B39="","",G39*IF($F39="",1,IF(ISERROR(MATCH($F39,$B$6:$B$105,0)),0,INDIRECT(ADDRESS(5+MATCH($F39,$B$6:$B$105,0),COLUMN(M$4)))))*IF($F39="",IF(VLOOKUP($B39,SCHEMA_CE!$E$5:$F$54,2,FALSE)="C",-1,1),IF(OR(VLOOKUP($B39,SCHEMA_CE!$E$5:$F$54,2,FALSE)="C",VLOOKUP($F39,SCHEMA_CE!$E$5:$F$54,2,FALSE)="C"),-1,1))) ->  | N39: =IF($B39="","",H39*IF($F39="",1,IF(ISERROR(MATCH($F39,$B$6:$B$105,0)),0,INDIRECT(ADDRESS(5+MATCH($F39,$B$6:$B$105,0),COLUMN(N$4)))))*IF($F39="",IF(VLOOKUP($B39,SCHEMA_CE!$E$5:$F$54,2,FALSE)="C",-1,1),IF(OR(VLOOKUP($B39,SCHEMA_CE!$E$5:$F$54,2,FALSE)="C",VLOOKUP($F39,SCHEMA_CE!$E$5:$F$54,2,FALSE)="C"),-1,1))) ->  | O39: =IF($B39="","",I39*IF($F39="",1,IF(ISERROR(MATCH($F39,$B$6:$B$105,0)),0,INDIRECT(ADDRESS(5+MATCH($F39,$B$6:$B$105,0),COLUMN(O$4)))))*IF($F39="",IF(VLOOKUP($B39,SCHEMA_CE!$E$5:$F$54,2,FALSE)="C",-1,1),IF(OR(VLOOKUP($B39,SCHEMA_CE!$E$5:$F$54,2,FALSE)="C",VLOOKUP($F39,SCHEMA_CE!$E$5:$F$54,2,FALSE)="C"),-1,1))) ->  | P39: =IF($B39="","",J39*IF($F39="",1,IF(ISERROR(MATCH($F39,$B$6:$B$105,0)),0,INDIRECT(ADDRESS(5+MATCH($F39,$B$6:$B$105,0),COLUMN(P$4)))))*IF($F39="",IF(VLOOKUP($B39,SCHEMA_CE!$E$5:$F$54,2,FALSE)="C",-1,1),IF(OR(VLOOKUP($B39,SCHEMA_CE!$E$5:$F$54,2,FALSE)="C",VLOOKUP($F39,SCHEMA_CE!$E$5:$F$54,2,FALSE)="C"),-1,1))) ->  | Q39: =IF($B39="","",K39*IF($F39="",1,IF(ISERROR(MATCH($F39,$B$6:$B$105,0)),0,INDIRECT(ADDRESS(5+MATCH($F39,$B$6:$B$105,0),COLUMN(Q$4)))))*IF($F39="",IF(VLOOKUP($B39,SCHEMA_CE!$E$5:$F$54,2,FALSE)="C",-1,1),IF(OR(VLOOKUP($B39,SCHEMA_CE!$E$5:$F$54,2,FALSE)="C",VLOOKUP($F39,SCHEMA_CE!$E$5:$F$54,2,FALSE)="C"),-1,1))) -> 
M40: =IF($B40="","",G40*IF($F40="",1,IF(ISERROR(MATCH($F40,$B$6:$B$105,0)),0,INDIRECT(ADDRESS(5+MATCH($F40,$B$6:$B$105,0),COLUMN(M$4)))))*IF($F40="",IF(VLOOKUP($B40,SCHEMA_CE!$E$5:$F$54,2,FALSE)="C",-1,1),IF(OR(VLOOKUP($B40,SCHEMA_CE!$E$5:$F$54,2,FALSE)="C",VLOOKUP($F40,SCHEMA_CE!$E$5:$F$54,2,FALSE)="C"),-1,1))) ->  | N40: =IF($B40="","",H40*IF($F40="",1,IF(ISERROR(MATCH($F40,$B$6:$B$105,0)),0,INDIRECT(ADDRESS(5+MATCH($F40,$B$6:$B$105,0),COLUMN(N$4)))))*IF($F40="",IF(VLOOKUP($B40,SCHEMA_CE!$E$5:$F$54,2,FALSE)="C",-1,1),IF(OR(VLOOKUP($B40,SCHEMA_CE!$E$5:$F$54,2,FALSE)="C",VLOOKUP($F40,SCHEMA_CE!$E$5:$F$54,2,FALSE)="C"),-1,1))) ->  | O40: =IF($B40="","",I40*IF($F40="",1,IF(ISERROR(MATCH($F40,$B$6:$B$105,0)),0,INDIRECT(ADDRESS(5+MATCH($F40,$B$6:$B$105,0),COLUMN(O$4)))))*IF($F40="",IF(VLOOKUP($B40,SCHEMA_CE!$E$5:$F$54,2,FALSE)="C",-1,1),IF(OR(VLOOKUP($B40,SCHEMA_CE!$E$5:$F$54,2,FALSE)="C",VLOOKUP($F40,SCHEMA_CE!$E$5:$F$54,2,FALSE)="C"),-1,1))) ->  | P40: =IF($B40="","",J40*IF($F40="",1,IF(ISERROR(MATCH($F40,$B$6:$B$105,0)),0,INDIRECT(ADDRESS(5+MATCH($F40,$B$6:$B$105,0),COLUMN(P$4)))))*IF($F40="",IF(VLOOKUP($B40,SCHEMA_CE!$E$5:$F$54,2,FALSE)="C",-1,1),IF(OR(VLOOKUP($B40,SCHEMA_CE!$E$5:$F$54,2,FALSE)="C",VLOOKUP($F40,SCHEMA_CE!$E$5:$F$54,2,FALSE)="C"),-1,1))) ->  | Q40: =IF($B40="","",K40*IF($F40="",1,IF(ISERROR(MATCH($F40,$B$6:$B$105,0)),0,INDIRECT(ADDRESS(5+MATCH($F40,$B$6:$B$105,0),COLUMN(Q$4)))))*IF($F40="",IF(VLOOKUP($B40,SCHEMA_CE!$E$5:$F$54,2,FALSE)="C",-1,1),IF(OR(VLOOKUP($B40,SCHEMA_CE!$E$5:$F$54,2,FALSE)="C",VLOOKUP($F40,SCHEMA_CE!$E$5:$F$54,2,FALSE)="C"),-1,1))) -> 
M41: =IF($B41="","",G41*IF($F41="",1,IF(ISERROR(MATCH($F41,$B$6:$B$105,0)),0,INDIRECT(ADDRESS(5+MATCH($F41,$B$6:$B$105,0),COLUMN(M$4)))))*IF($F41="",IF(VLOOKUP($B41,SCHEMA_CE!$E$5:$F$54,2,FALSE)="C",-1,1),IF(OR(VLOOKUP($B41,SCHEMA_CE!$E$5:$F$54,2,FALSE)="C",VLOOKUP($F41,SCHEMA_CE!$E$5:$F$54,2,FALSE)="C"),-1,1))) ->  | N41: =IF($B41="","",H41*IF($F41="",1,IF(ISERROR(MATCH($F41,$B$6:$B$105,0)),0,INDIRECT(ADDRESS(5+MATCH($F41,$B$6:$B$105,0),COLUMN(N$4)))))*IF($F41="",IF(VLOOKUP($B41,SCHEMA_CE!$E$5:$F$54,2,FALSE)="C",-1,1),IF(OR(VLOOKUP($B41,SCHEMA_CE!$E$5:$F$54,2,FALSE)="C",VLOOKUP($F41,SCHEMA_CE!$E$5:$F$54,2,FALSE)="C"),-1,1))) ->  | O41: =IF($B41="","",I41*IF($F41="",1,IF(ISERROR(MATCH($F41,$B$6:$B$105,0)),0,INDIRECT(ADDRESS(5+MATCH($F41,$B$6:$B$105,0),COLUMN(O$4)))))*IF($F41="",IF(VLOOKUP($B41,SCHEMA_CE!$E$5:$F$54,2,FALSE)="C",-1,1),IF(OR(VLOOKUP($B41,SCHEMA_CE!$E$5:$F$54,2,FALSE)="C",VLOOKUP($F41,SCHEMA_CE!$E$5:$F$54,2,FALSE)="C"),-1,1))) ->  | P41: =IF($B41="","",J41*IF($F41="",1,IF(ISERROR(MATCH($F41,$B$6:$B$105,0)),0,INDIRECT(ADDRESS(5+MATCH($F41,$B$6:$B$105,0),COLUMN(P$4)))))*IF($F41="",IF(VLOOKUP($B41,SCHEMA_CE!$E$5:$F$54,2,FALSE)="C",-1,1),IF(OR(VLOOKUP($B41,SCHEMA_CE!$E$5:$F$54,2,FALSE)="C",VLOOKUP($F41,SCHEMA_CE!$E$5:$F$54,2,FALSE)="C"),-1,1))) ->  | Q41: =IF($B41="","",K41*IF($F41="",1,IF(ISERROR(MATCH($F41,$B$6:$B$105,0)),0,INDIRECT(ADDRESS(5+MATCH($F41,$B$6:$B$105,0),COLUMN(Q$4)))))*IF($F41="",IF(VLOOKUP($B41,SCHEMA_CE!$E$5:$F$54,2,FALSE)="C",-1,1),IF(OR(VLOOKUP($B41,SCHEMA_CE!$E$5:$F$54,2,FALSE)="C",VLOOKUP($F41,SCHEMA_CE!$E$5:$F$54,2,FALSE)="C"),-1,1))) -> 
M42: =IF($B42="","",G42*IF($F42="",1,IF(ISERROR(MATCH($F42,$B$6:$B$105,0)),0,INDIRECT(ADDRESS(5+MATCH($F42,$B$6:$B$105,0),COLUMN(M$4)))))*IF($F42="",IF(VLOOKUP($B42,SCHEMA_CE!$E$5:$F$54,2,FALSE)="C",-1,1),IF(OR(VLOOKUP($B42,SCHEMA_CE!$E$5:$F$54,2,FALSE)="C",VLOOKUP($F42,SCHEMA_CE!$E$5:$F$54,2,FALSE)="C"),-1,1))) ->  | N42: =IF($B42="","",H42*IF($F42="",1,IF(ISERROR(MATCH($F42,$B$6:$B$105,0)),0,INDIRECT(ADDRESS(5+MATCH($F42,$B$6:$B$105,0),COLUMN(N$4)))))*IF($F42="",IF(VLOOKUP($B42,SCHEMA_CE!$E$5:$F$54,2,FALSE)="C",-1,1),IF(OR(VLOOKUP($B42,SCHEMA_CE!$E$5:$F$54,2,FALSE)="C",VLOOKUP($F42,SCHEMA_CE!$E$5:$F$54,2,FALSE)="C"),-1,1))) ->  | O42: =IF($B42="","",I42*IF($F42="",1,IF(ISERROR(MATCH($F42,$B$6:$B$105,0)),0,INDIRECT(ADDRESS(5+MATCH($F42,$B$6:$B$105,0),COLUMN(O$4)))))*IF($F42="",IF(VLOOKUP($B42,SCHEMA_CE!$E$5:$F$54,2,FALSE)="C",-1,1),IF(OR(VLOOKUP($B42,SCHEMA_CE!$E$5:$F$54,2,FALSE)="C",VLOOKUP($F42,SCHEMA_CE!$E$5:$F$54,2,FALSE)="C"),-1,1))) ->  | P42: =IF($B42="","",J42*IF($F42="",1,IF(ISERROR(MATCH($F42,$B$6:$B$105,0)),0,INDIRECT(ADDRESS(5+MATCH($F42,$B$6:$B$105,0),COLUMN(P$4)))))*IF($F42="",IF(VLOOKUP($B42,SCHEMA_CE!$E$5:$F$54,2,FALSE)="C",-1,1),IF(OR(VLOOKUP($B42,SCHEMA_CE!$E$5:$F$54,2,FALSE)="C",VLOOKUP($F42,SCHEMA_CE!$E$5:$F$54,2,FALSE)="C"),-1,1))) ->  | Q42: =IF($B42="","",K42*IF($F42="",1,IF(ISERROR(MATCH($F42,$B$6:$B$105,0)),0,INDIRECT(ADDRESS(5+MATCH($F42,$B$6:$B$105,0),COLUMN(Q$4)))))*IF($F42="",IF(VLOOKUP($B42,SCHEMA_CE!$E$5:$F$54,2,FALSE)="C",-1,1),IF(OR(VLOOKUP($B42,SCHEMA_CE!$E$5:$F$54,2,FALSE)="C",VLOOKUP($F42,SCHEMA_CE!$E$5:$F$54,2,FALSE)="C"),-1,1))) -> 
M43: =IF($B43="","",G43*IF($F43="",1,IF(ISERROR(MATCH($F43,$B$6:$B$105,0)),0,INDIRECT(ADDRESS(5+MATCH($F43,$B$6:$B$105,0),COLUMN(M$4)))))*IF($F43="",IF(VLOOKUP($B43,SCHEMA_CE!$E$5:$F$54,2,FALSE)="C",-1,1),IF(OR(VLOOKUP($B43,SCHEMA_CE!$E$5:$F$54,2,FALSE)="C",VLOOKUP($F43,SCHEMA_CE!$E$5:$F$54,2,FALSE)="C"),-1,1))) ->  | N43: =IF($B43="","",H43*IF($F43="",1,IF(ISERROR(MATCH($F43,$B$6:$B$105,0)),0,INDIRECT(ADDRESS(5+MATCH($F43,$B$6:$B$105,0),COLUMN(N$4)))))*IF($F43="",IF(VLOOKUP($B43,SCHEMA_CE!$E$5:$F$54,2,FALSE)="C",-1,1),IF(OR(VLOOKUP($B43,SCHEMA_CE!$E$5:$F$54,2,FALSE)="C",VLOOKUP($F43,SCHEMA_CE!$E$5:$F$54,2,FALSE)="C"),-1,1))) ->  | O43: =IF($B43="","",I43*IF($F43="",1,IF(ISERROR(MATCH($F43,$B$6:$B$105,0)),0,INDIRECT(ADDRESS(5+MATCH($F43,$B$6:$B$105,0),COLUMN(O$4)))))*IF($F43="",IF(VLOOKUP($B43,SCHEMA_CE!$E$5:$F$54,2,FALSE)="C",-1,1),IF(OR(VLOOKUP($B43,SCHEMA_CE!$E$5:$F$54,2,FALSE)="C",VLOOKUP($F43,SCHEMA_CE!$E$5:$F$54,2,FALSE)="C"),-1,1))) ->  | P43: =IF($B43="","",J43*IF($F43="",1,IF(ISERROR(MATCH($F43,$B$6:$B$105,0)),0,INDIRECT(ADDRESS(5+MATCH($F43,$B$6:$B$105,0),COLUMN(P$4)))))*IF($F43="",IF(VLOOKUP($B43,SCHEMA_CE!$E$5:$F$54,2,FALSE)="C",-1,1),IF(OR(VLOOKUP($B43,SCHEMA_CE!$E$5:$F$54,2,FALSE)="C",VLOOKUP($F43,SCHEMA_CE!$E$5:$F$54,2,FALSE)="C"),-1,1))) ->  | Q43: =IF($B43="","",K43*IF($F43="",1,IF(ISERROR(MATCH($F43,$B$6:$B$105,0)),0,INDIRECT(ADDRESS(5+MATCH($F43,$B$6:$B$105,0),COLUMN(Q$4)))))*IF($F43="",IF(VLOOKUP($B43,SCHEMA_CE!$E$5:$F$54,2,FALSE)="C",-1,1),IF(OR(VLOOKUP($B43,SCHEMA_CE!$E$5:$F$54,2,FALSE)="C",VLOOKUP($F43,SCHEMA_CE!$E$5:$F$54,2,FALSE)="C"),-1,1))) -> 
M44: =IF($B44="","",G44*IF($F44="",1,IF(ISERROR(MATCH($F44,$B$6:$B$105,0)),0,INDIRECT(ADDRESS(5+MATCH($F44,$B$6:$B$105,0),COLUMN(M$4)))))*IF($F44="",IF(VLOOKUP($B44,SCHEMA_CE!$E$5:$F$54,2,FALSE)="C",-1,1),IF(OR(VLOOKUP($B44,SCHEMA_CE!$E$5:$F$54,2,FALSE)="C",VLOOKUP($F44,SCHEMA_CE!$E$5:$F$54,2,FALSE)="C"),-1,1))) ->  | N44: =IF($B44="","",H44*IF($F44="",1,IF(ISERROR(MATCH($F44,$B$6:$B$105,0)),0,INDIRECT(ADDRESS(5+MATCH($F44,$B$6:$B$105,0),COLUMN(N$4)))))*IF($F44="",IF(VLOOKUP($B44,SCHEMA_CE!$E$5:$F$54,2,FALSE)="C",-1,1),IF(OR(VLOOKUP($B44,SCHEMA_CE!$E$5:$F$54,2,FALSE)="C",VLOOKUP($F44,SCHEMA_CE!$E$5:$F$54,2,FALSE)="C"),-1,1))) ->  | O44: =IF($B44="","",I44*IF($F44="",1,IF(ISERROR(MATCH($F44,$B$6:$B$105,0)),0,INDIRECT(ADDRESS(5+MATCH($F44,$B$6:$B$105,0),COLUMN(O$4)))))*IF($F44="",IF(VLOOKUP($B44,SCHEMA_CE!$E$5:$F$54,2,FALSE)="C",-1,1),IF(OR(VLOOKUP($B44,SCHEMA_CE!$E$5:$F$54,2,FALSE)="C",VLOOKUP($F44,SCHEMA_CE!$E$5:$F$54,2,FALSE)="C"),-1,1))) ->  | P44: =IF($B44="","",J44*IF($F44="",1,IF(ISERROR(MATCH($F44,$B$6:$B$105,0)),0,INDIRECT(ADDRESS(5+MATCH($F44,$B$6:$B$105,0),COLUMN(P$4)))))*IF($F44="",IF(VLOOKUP($B44,SCHEMA_CE!$E$5:$F$54,2,FALSE)="C",-1,1),IF(OR(VLOOKUP($B44,SCHEMA_CE!$E$5:$F$54,2,FALSE)="C",VLOOKUP($F44,SCHEMA_CE!$E$5:$F$54,2,FALSE)="C"),-1,1))) ->  | Q44: =IF($B44="","",K44*IF($F44="",1,IF(ISERROR(MATCH($F44,$B$6:$B$105,0)),0,INDIRECT(ADDRESS(5+MATCH($F44,$B$6:$B$105,0),COLUMN(Q$4)))))*IF($F44="",IF(VLOOKUP($B44,SCHEMA_CE!$E$5:$F$54,2,FALSE)="C",-1,1),IF(OR(VLOOKUP($B44,SCHEMA_CE!$E$5:$F$54,2,FALSE)="C",VLOOKUP($F44,SCHEMA_CE!$E$5:$F$54,2,FALSE)="C"),-1,1))) -> 
M45: =IF($B45="","",G45*IF($F45="",1,IF(ISERROR(MATCH($F45,$B$6:$B$105,0)),0,INDIRECT(ADDRESS(5+MATCH($F45,$B$6:$B$105,0),COLUMN(M$4)))))*IF($F45="",IF(VLOOKUP($B45,SCHEMA_CE!$E$5:$F$54,2,FALSE)="C",-1,1),IF(OR(VLOOKUP($B45,SCHEMA_CE!$E$5:$F$54,2,FALSE)="C",VLOOKUP($F45,SCHEMA_CE!$E$5:$F$54,2,FALSE)="C"),-1,1))) ->  | N45: =IF($B45="","",H45*IF($F45="",1,IF(ISERROR(MATCH($F45,$B$6:$B$105,0)),0,INDIRECT(ADDRESS(5+MATCH($F45,$B$6:$B$105,0),COLUMN(N$4)))))*IF($F45="",IF(VLOOKUP($B45,SCHEMA_CE!$E$5:$F$54,2,FALSE)="C",-1,1),IF(OR(VLOOKUP($B45,SCHEMA_CE!$E$5:$F$54,2,FALSE)="C",VLOOKUP($F45,SCHEMA_CE!$E$5:$F$54,2,FALSE)="C"),-1,1))) ->  | O45: =IF($B45="","",I45*IF($F45="",1,IF(ISERROR(MATCH($F45,$B$6:$B$105,0)),0,INDIRECT(ADDRESS(5+MATCH($F45,$B$6:$B$105,0),COLUMN(O$4)))))*IF($F45="",IF(VLOOKUP($B45,SCHEMA_CE!$E$5:$F$54,2,FALSE)="C",-1,1),IF(OR(VLOOKUP($B45,SCHEMA_CE!$E$5:$F$54,2,FALSE)="C",VLOOKUP($F45,SCHEMA_CE!$E$5:$F$54,2,FALSE)="C"),-1,1))) ->  | P45: =IF($B45="","",J45*IF($F45="",1,IF(ISERROR(MATCH($F45,$B$6:$B$105,0)),0,INDIRECT(ADDRESS(5+MATCH($F45,$B$6:$B$105,0),COLUMN(P$4)))))*IF($F45="",IF(VLOOKUP($B45,SCHEMA_CE!$E$5:$F$54,2,FALSE)="C",-1,1),IF(OR(VLOOKUP($B45,SCHEMA_CE!$E$5:$F$54,2,FALSE)="C",VLOOKUP($F45,SCHEMA_CE!$E$5:$F$54,2,FALSE)="C"),-1,1))) ->  | Q45: =IF($B45="","",K45*IF($F45="",1,IF(ISERROR(MATCH($F45,$B$6:$B$105,0)),0,INDIRECT(ADDRESS(5+MATCH($F45,$B$6:$B$105,0),COLUMN(Q$4)))))*IF($F45="",IF(VLOOKUP($B45,SCHEMA_CE!$E$5:$F$54,2,FALSE)="C",-1,1),IF(OR(VLOOKUP($B45,SCHEMA_CE!$E$5:$F$54,2,FALSE)="C",VLOOKUP($F45,SCHEMA_CE!$E$5:$F$54,2,FALSE)="C"),-1,1))) -> 
M46: =IF($B46="","",G46*IF($F46="",1,IF(ISERROR(MATCH($F46,$B$6:$B$105,0)),0,INDIRECT(ADDRESS(5+MATCH($F46,$B$6:$B$105,0),COLUMN(M$4)))))*IF($F46="",IF(VLOOKUP($B46,SCHEMA_CE!$E$5:$F$54,2,FALSE)="C",-1,1),IF(OR(VLOOKUP($B46,SCHEMA_CE!$E$5:$F$54,2,FALSE)="C",VLOOKUP($F46,SCHEMA_CE!$E$5:$F$54,2,FALSE)="C"),-1,1))) ->  | N46: =IF($B46="","",H46*IF($F46="",1,IF(ISERROR(MATCH($F46,$B$6:$B$105,0)),0,INDIRECT(ADDRESS(5+MATCH($F46,$B$6:$B$105,0),COLUMN(N$4)))))*IF($F46="",IF(VLOOKUP($B46,SCHEMA_CE!$E$5:$F$54,2,FALSE)="C",-1,1),IF(OR(VLOOKUP($B46,SCHEMA_CE!$E$5:$F$54,2,FALSE)="C",VLOOKUP($F46,SCHEMA_CE!$E$5:$F$54,2,FALSE)="C"),-1,1))) ->  | O46: =IF($B46="","",I46*IF($F46="",1,IF(ISERROR(MATCH($F46,$B$6:$B$105,0)),0,INDIRECT(ADDRESS(5+MATCH($F46,$B$6:$B$105,0),COLUMN(O$4)))))*IF($F46="",IF(VLOOKUP($B46,SCHEMA_CE!$E$5:$F$54,2,FALSE)="C",-1,1),IF(OR(VLOOKUP($B46,SCHEMA_CE!$E$5:$F$54,2,FALSE)="C",VLOOKUP($F46,SCHEMA_CE!$E$5:$F$54,2,FALSE)="C"),-1,1))) ->  | P46: =IF($B46="","",J46*IF($F46="",1,IF(ISERROR(MATCH($F46,$B$6:$B$105,0)),0,INDIRECT(ADDRESS(5+MATCH($F46,$B$6:$B$105,0),COLUMN(P$4)))))*IF($F46="",IF(VLOOKUP($B46,SCHEMA_CE!$E$5:$F$54,2,FALSE)="C",-1,1),IF(OR(VLOOKUP($B46,SCHEMA_CE!$E$5:$F$54,2,FALSE)="C",VLOOKUP($F46,SCHEMA_CE!$E$5:$F$54,2,FALSE)="C"),-1,1))) ->  | Q46: =IF($B46="","",K46*IF($F46="",1,IF(ISERROR(MATCH($F46,$B$6:$B$105,0)),0,INDIRECT(ADDRESS(5+MATCH($F46,$B$6:$B$105,0),COLUMN(Q$4)))))*IF($F46="",IF(VLOOKUP($B46,SCHEMA_CE!$E$5:$F$54,2,FALSE)="C",-1,1),IF(OR(VLOOKUP($B46,SCHEMA_CE!$E$5:$F$54,2,FALSE)="C",VLOOKUP($F46,SCHEMA_CE!$E$5:$F$54,2,FALSE)="C"),-1,1))) -> 
M47: =IF($B47="","",G47*IF($F47="",1,IF(ISERROR(MATCH($F47,$B$6:$B$105,0)),0,INDIRECT(ADDRESS(5+MATCH($F47,$B$6:$B$105,0),COLUMN(M$4)))))*IF($F47="",IF(VLOOKUP($B47,SCHEMA_CE!$E$5:$F$54,2,FALSE)="C",-1,1),IF(OR(VLOOKUP($B47,SCHEMA_CE!$E$5:$F$54,2,FALSE)="C",VLOOKUP($F47,SCHEMA_CE!$E$5:$F$54,2,FALSE)="C"),-1,1))) ->  | N47: =IF($B47="","",H47*IF($F47="",1,IF(ISERROR(MATCH($F47,$B$6:$B$105,0)),0,INDIRECT(ADDRESS(5+MATCH($F47,$B$6:$B$105,0),COLUMN(N$4)))))*IF($F47="",IF(VLOOKUP($B47,SCHEMA_CE!$E$5:$F$54,2,FALSE)="C",-1,1),IF(OR(VLOOKUP($B47,SCHEMA_CE!$E$5:$F$54,2,FALSE)="C",VLOOKUP($F47,SCHEMA_CE!$E$5:$F$54,2,FALSE)="C"),-1,1))) ->  | O47: =IF($B47="","",I47*IF($F47="",1,IF(ISERROR(MATCH($F47,$B$6:$B$105,0)),0,INDIRECT(ADDRESS(5+MATCH($F47,$B$6:$B$105,0),COLUMN(O$4)))))*IF($F47="",IF(VLOOKUP($B47,SCHEMA_CE!$E$5:$F$54,2,FALSE)="C",-1,1),IF(OR(VLOOKUP($B47,SCHEMA_CE!$E$5:$F$54,2,FALSE)="C",VLOOKUP($F47,SCHEMA_CE!$E$5:$F$54,2,FALSE)="C"),-1,1))) ->  | P47: =IF($B47="","",J47*IF($F47="",1,IF(ISERROR(MATCH($F47,$B$6:$B$105,0)),0,INDIRECT(ADDRESS(5+MATCH($F47,$B$6:$B$105,0),COLUMN(P$4)))))*IF($F47="",IF(VLOOKUP($B47,SCHEMA_CE!$E$5:$F$54,2,FALSE)="C",-1,1),IF(OR(VLOOKUP($B47,SCHEMA_CE!$E$5:$F$54,2,FALSE)="C",VLOOKUP($F47,SCHEMA_CE!$E$5:$F$54,2,FALSE)="C"),-1,1))) ->  | Q47: =IF($B47="","",K47*IF($F47="",1,IF(ISERROR(MATCH($F47,$B$6:$B$105,0)),0,INDIRECT(ADDRESS(5+MATCH($F47,$B$6:$B$105,0),COLUMN(Q$4)))))*IF($F47="",IF(VLOOKUP($B47,SCHEMA_CE!$E$5:$F$54,2,FALSE)="C",-1,1),IF(OR(VLOOKUP($B47,SCHEMA_CE!$E$5:$F$54,2,FALSE)="C",VLOOKUP($F47,SCHEMA_CE!$E$5:$F$54,2,FALSE)="C"),-1,1))) -> 
M48: =IF($B48="","",G48*IF($F48="",1,IF(ISERROR(MATCH($F48,$B$6:$B$105,0)),0,INDIRECT(ADDRESS(5+MATCH($F48,$B$6:$B$105,0),COLUMN(M$4)))))*IF($F48="",IF(VLOOKUP($B48,SCHEMA_CE!$E$5:$F$54,2,FALSE)="C",-1,1),IF(OR(VLOOKUP($B48,SCHEMA_CE!$E$5:$F$54,2,FALSE)="C",VLOOKUP($F48,SCHEMA_CE!$E$5:$F$54,2,FALSE)="C"),-1,1))) ->  | N48: =IF($B48="","",H48*IF($F48="",1,IF(ISERROR(MATCH($F48,$B$6:$B$105,0)),0,INDIRECT(ADDRESS(5+MATCH($F48,$B$6:$B$105,0),COLUMN(N$4)))))*IF($F48="",IF(VLOOKUP($B48,SCHEMA_CE!$E$5:$F$54,2,FALSE)="C",-1,1),IF(OR(VLOOKUP($B48,SCHEMA_CE!$E$5:$F$54,2,FALSE)="C",VLOOKUP($F48,SCHEMA_CE!$E$5:$F$54,2,FALSE)="C"),-1,1))) ->  | O48: =IF($B48="","",I48*IF($F48="",1,IF(ISERROR(MATCH($F48,$B$6:$B$105,0)),0,INDIRECT(ADDRESS(5+MATCH($F48,$B$6:$B$105,0),COLUMN(O$4)))))*IF($F48="",IF(VLOOKUP($B48,SCHEMA_CE!$E$5:$F$54,2,FALSE)="C",-1,1),IF(OR(VLOOKUP($B48,SCHEMA_CE!$E$5:$F$54,2,FALSE)="C",VLOOKUP($F48,SCHEMA_CE!$E$5:$F$54,2,FALSE)="C"),-1,1))) ->  | P48: =IF($B48="","",J48*IF($F48="",1,IF(ISERROR(MATCH($F48,$B$6:$B$105,0)),0,INDIRECT(ADDRESS(5+MATCH($F48,$B$6:$B$105,0),COLUMN(P$4)))))*IF($F48="",IF(VLOOKUP($B48,SCHEMA_CE!$E$5:$F$54,2,FALSE)="C",-1,1),IF(OR(VLOOKUP($B48,SCHEMA_CE!$E$5:$F$54,2,FALSE)="C",VLOOKUP($F48,SCHEMA_CE!$E$5:$F$54,2,FALSE)="C"),-1,1))) ->  | Q48: =IF($B48="","",K48*IF($F48="",1,IF(ISERROR(MATCH($F48,$B$6:$B$105,0)),0,INDIRECT(ADDRESS(5+MATCH($F48,$B$6:$B$105,0),COLUMN(Q$4)))))*IF($F48="",IF(VLOOKUP($B48,SCHEMA_CE!$E$5:$F$54,2,FALSE)="C",-1,1),IF(OR(VLOOKUP($B48,SCHEMA_CE!$E$5:$F$54,2,FALSE)="C",VLOOKUP($F48,SCHEMA_CE!$E$5:$F$54,2,FALSE)="C"),-1,1))) -> 
M49: =IF($B49="","",G49*IF($F49="",1,IF(ISERROR(MATCH($F49,$B$6:$B$105,0)),0,INDIRECT(ADDRESS(5+MATCH($F49,$B$6:$B$105,0),COLUMN(M$4)))))*IF($F49="",IF(VLOOKUP($B49,SCHEMA_CE!$E$5:$F$54,2,FALSE)="C",-1,1),IF(OR(VLOOKUP($B49,SCHEMA_CE!$E$5:$F$54,2,FALSE)="C",VLOOKUP($F49,SCHEMA_CE!$E$5:$F$54,2,FALSE)="C"),-1,1))) ->  | N49: =IF($B49="","",H49*IF($F49="",1,IF(ISERROR(MATCH($F49,$B$6:$B$105,0)),0,INDIRECT(ADDRESS(5+MATCH($F49,$B$6:$B$105,0),COLUMN(N$4)))))*IF($F49="",IF(VLOOKUP($B49,SCHEMA_CE!$E$5:$F$54,2,FALSE)="C",-1,1),IF(OR(VLOOKUP($B49,SCHEMA_CE!$E$5:$F$54,2,FALSE)="C",VLOOKUP($F49,SCHEMA_CE!$E$5:$F$54,2,FALSE)="C"),-1,1))) ->  | O49: =IF($B49="","",I49*IF($F49="",1,IF(ISERROR(MATCH($F49,$B$6:$B$105,0)),0,INDIRECT(ADDRESS(5+MATCH($F49,$B$6:$B$105,0),COLUMN(O$4)))))*IF($F49="",IF(VLOOKUP($B49,SCHEMA_CE!$E$5:$F$54,2,FALSE)="C",-1,1),IF(OR(VLOOKUP($B49,SCHEMA_CE!$E$5:$F$54,2,FALSE)="C",VLOOKUP($F49,SCHEMA_CE!$E$5:$F$54,2,FALSE)="C"),-1,1))) ->  | P49: =IF($B49="","",J49*IF($F49="",1,IF(ISERROR(MATCH($F49,$B$6:$B$105,0)),0,INDIRECT(ADDRESS(5+MATCH($F49,$B$6:$B$105,0),COLUMN(P$4)))))*IF($F49="",IF(VLOOKUP($B49,SCHEMA_CE!$E$5:$F$54,2,FALSE)="C",-1,1),IF(OR(VLOOKUP($B49,SCHEMA_CE!$E$5:$F$54,2,FALSE)="C",VLOOKUP($F49,SCHEMA_CE!$E$5:$F$54,2,FALSE)="C"),-1,1))) ->  | Q49: =IF($B49="","",K49*IF($F49="",1,IF(ISERROR(MATCH($F49,$B$6:$B$105,0)),0,INDIRECT(ADDRESS(5+MATCH($F49,$B$6:$B$105,0),COLUMN(Q$4)))))*IF($F49="",IF(VLOOKUP($B49,SCHEMA_CE!$E$5:$F$54,2,FALSE)="C",-1,1),IF(OR(VLOOKUP($B49,SCHEMA_CE!$E$5:$F$54,2,FALSE)="C",VLOOKUP($F49,SCHEMA_CE!$E$5:$F$54,2,FALSE)="C"),-1,1))) -> 
M50: =IF($B50="","",G50*IF($F50="",1,IF(ISERROR(MATCH($F50,$B$6:$B$105,0)),0,INDIRECT(ADDRESS(5+MATCH($F50,$B$6:$B$105,0),COLUMN(M$4)))))*IF($F50="",IF(VLOOKUP($B50,SCHEMA_CE!$E$5:$F$54,2,FALSE)="C",-1,1),IF(OR(VLOOKUP($B50,SCHEMA_CE!$E$5:$F$54,2,FALSE)="C",VLOOKUP($F50,SCHEMA_CE!$E$5:$F$54,2,FALSE)="C"),-1,1))) ->  | N50: =IF($B50="","",H50*IF($F50="",1,IF(ISERROR(MATCH($F50,$B$6:$B$105,0)),0,INDIRECT(ADDRESS(5+MATCH($F50,$B$6:$B$105,0),COLUMN(N$4)))))*IF($F50="",IF(VLOOKUP($B50,SCHEMA_CE!$E$5:$F$54,2,FALSE)="C",-1,1),IF(OR(VLOOKUP($B50,SCHEMA_CE!$E$5:$F$54,2,FALSE)="C",VLOOKUP($F50,SCHEMA_CE!$E$5:$F$54,2,FALSE)="C"),-1,1))) ->  | O50: =IF($B50="","",I50*IF($F50="",1,IF(ISERROR(MATCH($F50,$B$6:$B$105,0)),0,INDIRECT(ADDRESS(5+MATCH($F50,$B$6:$B$105,0),COLUMN(O$4)))))*IF($F50="",IF(VLOOKUP($B50,SCHEMA_CE!$E$5:$F$54,2,FALSE)="C",-1,1),IF(OR(VLOOKUP($B50,SCHEMA_CE!$E$5:$F$54,2,FALSE)="C",VLOOKUP($F50,SCHEMA_CE!$E$5:$F$54,2,FALSE)="C"),-1,1))) ->  | P50: =IF($B50="","",J50*IF($F50="",1,IF(ISERROR(MATCH($F50,$B$6:$B$105,0)),0,INDIRECT(ADDRESS(5+MATCH($F50,$B$6:$B$105,0),COLUMN(P$4)))))*IF($F50="",IF(VLOOKUP($B50,SCHEMA_CE!$E$5:$F$54,2,FALSE)="C",-1,1),IF(OR(VLOOKUP($B50,SCHEMA_CE!$E$5:$F$54,2,FALSE)="C",VLOOKUP($F50,SCHEMA_CE!$E$5:$F$54,2,FALSE)="C"),-1,1))) ->  | Q50: =IF($B50="","",K50*IF($F50="",1,IF(ISERROR(MATCH($F50,$B$6:$B$105,0)),0,INDIRECT(ADDRESS(5+MATCH($F50,$B$6:$B$105,0),COLUMN(Q$4)))))*IF($F50="",IF(VLOOKUP($B50,SCHEMA_CE!$E$5:$F$54,2,FALSE)="C",-1,1),IF(OR(VLOOKUP($B50,SCHEMA_CE!$E$5:$F$54,2,FALSE)="C",VLOOKUP($F50,SCHEMA_CE!$E$5:$F$54,2,FALSE)="C"),-1,1))) -> 
M51: =IF($B51="","",G51*IF($F51="",1,IF(ISERROR(MATCH($F51,$B$6:$B$105,0)),0,INDIRECT(ADDRESS(5+MATCH($F51,$B$6:$B$105,0),COLUMN(M$4)))))*IF($F51="",IF(VLOOKUP($B51,SCHEMA_CE!$E$5:$F$54,2,FALSE)="C",-1,1),IF(OR(VLOOKUP($B51,SCHEMA_CE!$E$5:$F$54,2,FALSE)="C",VLOOKUP($F51,SCHEMA_CE!$E$5:$F$54,2,FALSE)="C"),-1,1))) ->  | N51: =IF($B51="","",H51*IF($F51="",1,IF(ISERROR(MATCH($F51,$B$6:$B$105,0)),0,INDIRECT(ADDRESS(5+MATCH($F51,$B$6:$B$105,0),COLUMN(N$4)))))*IF($F51="",IF(VLOOKUP($B51,SCHEMA_CE!$E$5:$F$54,2,FALSE)="C",-1,1),IF(OR(VLOOKUP($B51,SCHEMA_CE!$E$5:$F$54,2,FALSE)="C",VLOOKUP($F51,SCHEMA_CE!$E$5:$F$54,2,FALSE)="C"),-1,1))) ->  | O51: =IF($B51="","",I51*IF($F51="",1,IF(ISERROR(MATCH($F51,$B$6:$B$105,0)),0,INDIRECT(ADDRESS(5+MATCH($F51,$B$6:$B$105,0),COLUMN(O$4)))))*IF($F51="",IF(VLOOKUP($B51,SCHEMA_CE!$E$5:$F$54,2,FALSE)="C",-1,1),IF(OR(VLOOKUP($B51,SCHEMA_CE!$E$5:$F$54,2,FALSE)="C",VLOOKUP($F51,SCHEMA_CE!$E$5:$F$54,2,FALSE)="C"),-1,1))) ->  | P51: =IF($B51="","",J51*IF($F51="",1,IF(ISERROR(MATCH($F51,$B$6:$B$105,0)),0,INDIRECT(ADDRESS(5+MATCH($F51,$B$6:$B$105,0),COLUMN(P$4)))))*IF($F51="",IF(VLOOKUP($B51,SCHEMA_CE!$E$5:$F$54,2,FALSE)="C",-1,1),IF(OR(VLOOKUP($B51,SCHEMA_CE!$E$5:$F$54,2,FALSE)="C",VLOOKUP($F51,SCHEMA_CE!$E$5:$F$54,2,FALSE)="C"),-1,1))) ->  | Q51: =IF($B51="","",K51*IF($F51="",1,IF(ISERROR(MATCH($F51,$B$6:$B$105,0)),0,INDIRECT(ADDRESS(5+MATCH($F51,$B$6:$B$105,0),COLUMN(Q$4)))))*IF($F51="",IF(VLOOKUP($B51,SCHEMA_CE!$E$5:$F$54,2,FALSE)="C",-1,1),IF(OR(VLOOKUP($B51,SCHEMA_CE!$E$5:$F$54,2,FALSE)="C",VLOOKUP($F51,SCHEMA_CE!$E$5:$F$54,2,FALSE)="C"),-1,1))) -> 
M52: =IF($B52="","",G52*IF($F52="",1,IF(ISERROR(MATCH($F52,$B$6:$B$105,0)),0,INDIRECT(ADDRESS(5+MATCH($F52,$B$6:$B$105,0),COLUMN(M$4)))))*IF($F52="",IF(VLOOKUP($B52,SCHEMA_CE!$E$5:$F$54,2,FALSE)="C",-1,1),IF(OR(VLOOKUP($B52,SCHEMA_CE!$E$5:$F$54,2,FALSE)="C",VLOOKUP($F52,SCHEMA_CE!$E$5:$F$54,2,FALSE)="C"),-1,1))) ->  | N52: =IF($B52="","",H52*IF($F52="",1,IF(ISERROR(MATCH($F52,$B$6:$B$105,0)),0,INDIRECT(ADDRESS(5+MATCH($F52,$B$6:$B$105,0),COLUMN(N$4)))))*IF($F52="",IF(VLOOKUP($B52,SCHEMA_CE!$E$5:$F$54,2,FALSE)="C",-1,1),IF(OR(VLOOKUP($B52,SCHEMA_CE!$E$5:$F$54,2,FALSE)="C",VLOOKUP($F52,SCHEMA_CE!$E$5:$F$54,2,FALSE)="C"),-1,1))) ->  | O52: =IF($B52="","",I52*IF($F52="",1,IF(ISERROR(MATCH($F52,$B$6:$B$105,0)),0,INDIRECT(ADDRESS(5+MATCH($F52,$B$6:$B$105,0),COLUMN(O$4)))))*IF($F52="",IF(VLOOKUP($B52,SCHEMA_CE!$E$5:$F$54,2,FALSE)="C",-1,1),IF(OR(VLOOKUP($B52,SCHEMA_CE!$E$5:$F$54,2,FALSE)="C",VLOOKUP($F52,SCHEMA_CE!$E$5:$F$54,2,FALSE)="C"),-1,1))) ->  | P52: =IF($B52="","",J52*IF($F52="",1,IF(ISERROR(MATCH($F52,$B$6:$B$105,0)),0,INDIRECT(ADDRESS(5+MATCH($F52,$B$6:$B$105,0),COLUMN(P$4)))))*IF($F52="",IF(VLOOKUP($B52,SCHEMA_CE!$E$5:$F$54,2,FALSE)="C",-1,1),IF(OR(VLOOKUP($B52,SCHEMA_CE!$E$5:$F$54,2,FALSE)="C",VLOOKUP($F52,SCHEMA_CE!$E$5:$F$54,2,FALSE)="C"),-1,1))) ->  | Q52: =IF($B52="","",K52*IF($F52="",1,IF(ISERROR(MATCH($F52,$B$6:$B$105,0)),0,INDIRECT(ADDRESS(5+MATCH($F52,$B$6:$B$105,0),COLUMN(Q$4)))))*IF($F52="",IF(VLOOKUP($B52,SCHEMA_CE!$E$5:$F$54,2,FALSE)="C",-1,1),IF(OR(VLOOKUP($B52,SCHEMA_CE!$E$5:$F$54,2,FALSE)="C",VLOOKUP($F52,SCHEMA_CE!$E$5:$F$54,2,FALSE)="C"),-1,1))) -> 
M53: =IF($B53="","",G53*IF($F53="",1,IF(ISERROR(MATCH($F53,$B$6:$B$105,0)),0,INDIRECT(ADDRESS(5+MATCH($F53,$B$6:$B$105,0),COLUMN(M$4)))))*IF($F53="",IF(VLOOKUP($B53,SCHEMA_CE!$E$5:$F$54,2,FALSE)="C",-1,1),IF(OR(VLOOKUP($B53,SCHEMA_CE!$E$5:$F$54,2,FALSE)="C",VLOOKUP($F53,SCHEMA_CE!$E$5:$F$54,2,FALSE)="C"),-1,1))) ->  | N53: =IF($B53="","",H53*IF($F53="",1,IF(ISERROR(MATCH($F53,$B$6:$B$105,0)),0,INDIRECT(ADDRESS(5+MATCH($F53,$B$6:$B$105,0),COLUMN(N$4)))))*IF($F53="",IF(VLOOKUP($B53,SCHEMA_CE!$E$5:$F$54,2,FALSE)="C",-1,1),IF(OR(VLOOKUP($B53,SCHEMA_CE!$E$5:$F$54,2,FALSE)="C",VLOOKUP($F53,SCHEMA_CE!$E$5:$F$54,2,FALSE)="C"),-1,1))) ->  | O53: =IF($B53="","",I53*IF($F53="",1,IF(ISERROR(MATCH($F53,$B$6:$B$105,0)),0,INDIRECT(ADDRESS(5+MATCH($F53,$B$6:$B$105,0),COLUMN(O$4)))))*IF($F53="",IF(VLOOKUP($B53,SCHEMA_CE!$E$5:$F$54,2,FALSE)="C",-1,1),IF(OR(VLOOKUP($B53,SCHEMA_CE!$E$5:$F$54,2,FALSE)="C",VLOOKUP($F53,SCHEMA_CE!$E$5:$F$54,2,FALSE)="C"),-1,1))) ->  | P53: =IF($B53="","",J53*IF($F53="",1,IF(ISERROR(MATCH($F53,$B$6:$B$105,0)),0,INDIRECT(ADDRESS(5+MATCH($F53,$B$6:$B$105,0),COLUMN(P$4)))))*IF($F53="",IF(VLOOKUP($B53,SCHEMA_CE!$E$5:$F$54,2,FALSE)="C",-1,1),IF(OR(VLOOKUP($B53,SCHEMA_CE!$E$5:$F$54,2,FALSE)="C",VLOOKUP($F53,SCHEMA_CE!$E$5:$F$54,2,FALSE)="C"),-1,1))) ->  | Q53: =IF($B53="","",K53*IF($F53="",1,IF(ISERROR(MATCH($F53,$B$6:$B$105,0)),0,INDIRECT(ADDRESS(5+MATCH($F53,$B$6:$B$105,0),COLUMN(Q$4)))))*IF($F53="",IF(VLOOKUP($B53,SCHEMA_CE!$E$5:$F$54,2,FALSE)="C",-1,1),IF(OR(VLOOKUP($B53,SCHEMA_CE!$E$5:$F$54,2,FALSE)="C",VLOOKUP($F53,SCHEMA_CE!$E$5:$F$54,2,FALSE)="C"),-1,1))) -> 
M54: =IF($B54="","",G54*IF($F54="",1,IF(ISERROR(MATCH($F54,$B$6:$B$105,0)),0,INDIRECT(ADDRESS(5+MATCH($F54,$B$6:$B$105,0),COLUMN(M$4)))))*IF($F54="",IF(VLOOKUP($B54,SCHEMA_CE!$E$5:$F$54,2,FALSE)="C",-1,1),IF(OR(VLOOKUP($B54,SCHEMA_CE!$E$5:$F$54,2,FALSE)="C",VLOOKUP($F54,SCHEMA_CE!$E$5:$F$54,2,FALSE)="C"),-1,1))) ->  | N54: =IF($B54="","",H54*IF($F54="",1,IF(ISERROR(MATCH($F54,$B$6:$B$105,0)),0,INDIRECT(ADDRESS(5+MATCH($F54,$B$6:$B$105,0),COLUMN(N$4)))))*IF($F54="",IF(VLOOKUP($B54,SCHEMA_CE!$E$5:$F$54,2,FALSE)="C",-1,1),IF(OR(VLOOKUP($B54,SCHEMA_CE!$E$5:$F$54,2,FALSE)="C",VLOOKUP($F54,SCHEMA_CE!$E$5:$F$54,2,FALSE)="C"),-1,1))) ->  | O54: =IF($B54="","",I54*IF($F54="",1,IF(ISERROR(MATCH($F54,$B$6:$B$105,0)),0,INDIRECT(ADDRESS(5+MATCH($F54,$B$6:$B$105,0),COLUMN(O$4)))))*IF($F54="",IF(VLOOKUP($B54,SCHEMA_CE!$E$5:$F$54,2,FALSE)="C",-1,1),IF(OR(VLOOKUP($B54,SCHEMA_CE!$E$5:$F$54,2,FALSE)="C",VLOOKUP($F54,SCHEMA_CE!$E$5:$F$54,2,FALSE)="C"),-1,1))) ->  | P54: =IF($B54="","",J54*IF($F54="",1,IF(ISERROR(MATCH($F54,$B$6:$B$105,0)),0,INDIRECT(ADDRESS(5+MATCH($F54,$B$6:$B$105,0),COLUMN(P$4)))))*IF($F54="",IF(VLOOKUP($B54,SCHEMA_CE!$E$5:$F$54,2,FALSE)="C",-1,1),IF(OR(VLOOKUP($B54,SCHEMA_CE!$E$5:$F$54,2,FALSE)="C",VLOOKUP($F54,SCHEMA_CE!$E$5:$F$54,2,FALSE)="C"),-1,1))) ->  | Q54: =IF($B54="","",K54*IF($F54="",1,IF(ISERROR(MATCH($F54,$B$6:$B$105,0)),0,INDIRECT(ADDRESS(5+MATCH($F54,$B$6:$B$105,0),COLUMN(Q$4)))))*IF($F54="",IF(VLOOKUP($B54,SCHEMA_CE!$E$5:$F$54,2,FALSE)="C",-1,1),IF(OR(VLOOKUP($B54,SCHEMA_CE!$E$5:$F$54,2,FALSE)="C",VLOOKUP($F54,SCHEMA_CE!$E$5:$F$54,2,FALSE)="C"),-1,1))) -> 
M55: =IF($B55="","",G55*IF($F55="",1,IF(ISERROR(MATCH($F55,$B$6:$B$105,0)),0,INDIRECT(ADDRESS(5+MATCH($F55,$B$6:$B$105,0),COLUMN(M$4)))))*IF($F55="",IF(VLOOKUP($B55,SCHEMA_CE!$E$5:$F$54,2,FALSE)="C",-1,1),IF(OR(VLOOKUP($B55,SCHEMA_CE!$E$5:$F$54,2,FALSE)="C",VLOOKUP($F55,SCHEMA_CE!$E$5:$F$54,2,FALSE)="C"),-1,1))) ->  | N55: =IF($B55="","",H55*IF($F55="",1,IF(ISERROR(MATCH($F55,$B$6:$B$105,0)),0,INDIRECT(ADDRESS(5+MATCH($F55,$B$6:$B$105,0),COLUMN(N$4)))))*IF($F55="",IF(VLOOKUP($B55,SCHEMA_CE!$E$5:$F$54,2,FALSE)="C",-1,1),IF(OR(VLOOKUP($B55,SCHEMA_CE!$E$5:$F$54,2,FALSE)="C",VLOOKUP($F55,SCHEMA_CE!$E$5:$F$54,2,FALSE)="C"),-1,1))) ->  | O55: =IF($B55="","",I55*IF($F55="",1,IF(ISERROR(MATCH($F55,$B$6:$B$105,0)),0,INDIRECT(ADDRESS(5+MATCH($F55,$B$6:$B$105,0),COLUMN(O$4)))))*IF($F55="",IF(VLOOKUP($B55,SCHEMA_CE!$E$5:$F$54,2,FALSE)="C",-1,1),IF(OR(VLOOKUP($B55,SCHEMA_CE!$E$5:$F$54,2,FALSE)="C",VLOOKUP($F55,SCHEMA_CE!$E$5:$F$54,2,FALSE)="C"),-1,1))) ->  | P55: =IF($B55="","",J55*IF($F55="",1,IF(ISERROR(MATCH($F55,$B$6:$B$105,0)),0,INDIRECT(ADDRESS(5+MATCH($F55,$B$6:$B$105,0),COLUMN(P$4)))))*IF($F55="",IF(VLOOKUP($B55,SCHEMA_CE!$E$5:$F$54,2,FALSE)="C",-1,1),IF(OR(VLOOKUP($B55,SCHEMA_CE!$E$5:$F$54,2,FALSE)="C",VLOOKUP($F55,SCHEMA_CE!$E$5:$F$54,2,FALSE)="C"),-1,1))) ->  | Q55: =IF($B55="","",K55*IF($F55="",1,IF(ISERROR(MATCH($F55,$B$6:$B$105,0)),0,INDIRECT(ADDRESS(5+MATCH($F55,$B$6:$B$105,0),COLUMN(Q$4)))))*IF($F55="",IF(VLOOKUP($B55,SCHEMA_CE!$E$5:$F$54,2,FALSE)="C",-1,1),IF(OR(VLOOKUP($B55,SCHEMA_CE!$E$5:$F$54,2,FALSE)="C",VLOOKUP($F55,SCHEMA_CE!$E$5:$F$54,2,FALSE)="C"),-1,1))) -> 
A56: COSTI
B57: 020201_Magazzino iniziale | D57: - | E57: 1 | G57: 700 | H57: 800 | I57: 900 | M57: =IF($B57="","",G57*IF($F57="",1,IF(ISERROR(MATCH($F57,$B$6:$B$105,0)),0,INDIRECT(ADDRESS(5+MATCH($F57,$B$6:$B$105,0),COLUMN(M$4)))))*IF($F57="",IF(VLOOKUP($B57,SCHEMA_CE!$E$5:$F$54,2,FALSE)="C",-1,1),IF(OR(VLOOKUP($B57,SCHEMA_CE!$E$5:$F$54,2,FALSE)="C",VLOOKUP($F57,SCHEMA_CE!$E$5:$F$54,2,FALSE)="C"),-1,1))) -> -700 | N57: =IF($B57="","",H57*IF($F57="",1,IF(ISERROR(MATCH($F57,$B$6:$B$105,0)),0,INDIRECT(ADDRESS(5+MATCH($F57,$B$6:$B$105,0),COLUMN(N$4)))))*IF($F57="",IF(VLOOKUP($B57,SCHEMA_CE!$E$5:$F$54,2,FALSE)="C",-1,1),IF(OR(VLOOKUP($B57,SCHEMA_CE!$E$5:$F$54,2,FALSE)="C",VLOOKUP($F57,SCHEMA_CE!$E$5:$F$54,2,FALSE)="C"),-1,1))) -> -800 | O57: =IF($B57="","",I57*IF($F57="",1,IF(ISERROR(MATCH($F57,$B$6:$B$105,0)),0,INDIRECT(ADDRESS(5+MATCH($F57,$B$6:$B$105,0),COLUMN(O$4)))))*IF($F57="",IF(VLOOKUP($B57,SCHEMA_CE!$E$5:$F$54,2,FALSE)="C",-1,1),IF(OR(VLOOKUP($B57,SCHEMA_CE!$E$5:$F$54,2,FALSE)="C",VLOOKUP($F57,SCHEMA_CE!$E$5:$F$54,2,FALSE)="C"),-1,1))) -> -900 | P57: =IF($B57="","",J57*IF($F57="",1,IF(ISERROR(MATCH($F57,$B$6:$B$105,0)),0,INDIRECT(ADDRESS(5+MATCH($F57,$B$6:$B$105,0),COLUMN(P$4)))))*IF($F57="",IF(VLOOKUP($B57,SCHEMA_CE!$E$5:$F$54,2,FALSE)="C",-1,1),IF(OR(VLOOKUP($B57,SCHEMA_CE!$E$5:$F$54,2,FALSE)="C",VLOOKUP($F57,SCHEMA_CE!$E$5:$F$54,2,FALSE)="C"),-1,1))) -> 0 | Q57: =IF($B57="","",K57*IF($F57="",1,IF(ISERROR(MATCH($F57,$B$6:$B$105,0)),0,INDIRECT(ADDRESS(5+MATCH($F57,$B$6:$B$105,0),COLUMN(Q$4)))))*IF($F57="",IF(VLOOKUP($B57,SCHEMA_CE!$E$5:$F$54,2,FALSE)="C",-1,1),IF(OR(VLOOKUP($B57,SCHEMA_CE!$E$5:$F$54,2,FALSE)="C",VLOOKUP($F57,SCHEMA_CE!$E$5:$F$54,2,FALSE)="C"),-1,1))) -> 0 | S57: -700 | T57: -800 | U57: -900 | V57: 0 | W57: 0
B58: 020211_Acquisti materie prime | C58: 0.2 | D58: + | E58: 1 | F58: 010101_Vendite prodotti | G58: 0.4 | H58: 0.4 | I58: 0.4 | M58: =IF($B58="","",G58*IF($F58="",1,IF(ISERROR(MATCH($F58,$B$6:$B$105,0)),0,INDIRECT(ADDRESS(5+MATCH($F58,$B$6:$B$105,0),COLUMN(M$4)))))*IF($F58="",IF(VLOOKUP($B58,SCHEMA_CE!$E$5:$F$54,2,FALSE)="C",-1,1),IF(OR(VLOOKUP($B58,SCHEMA_CE!$E$5:$F$54,2,FALSE)="C",VLOOKUP($F58,SCHEMA_CE!$E$5:$F$54,2,FALSE)="C"),-1,1))) -> -5600 | N58: =IF($B58="","",H58*IF($F58="",1,IF(ISERROR(MATCH($F58,$B$6:$B$105,0)),0,INDIRECT(ADDRESS(5+MATCH($F58,$B$6:$B$105,0),COLUMN(N$4)))))*IF($F58="",IF(VLOOKUP($B58,SCHEMA_CE!$E$5:$F$54,2,FALSE)="C",-1,1),IF(OR(VLOOKUP($B58,SCHEMA_CE!$E$5:$F$54,2,FALSE)="C",VLOOKUP($F58,SCHEMA_CE!$E$5:$F$54,2,FALSE)="C"),-1,1))) -> -6200 | O58: =IF($B58="","",I58*IF($F58="",1,IF(ISERROR(MATCH($F58,$B$6:$B$105,0)),0,INDIRECT(ADDRESS(5+MATCH($F58,$B$6:$B$105,0),COLUMN(O$4)))))*IF($F58="",IF(VLOOKUP($B58,SCHEMA_CE!$E$5:$F$54,2,FALSE)="C",-1,1),IF(OR(VLOOKUP($B58,SCHEMA_CE!$E$5:$F$54,2,FALSE)="C",VLOOKUP($F58,SCHEMA_CE!$E$5:$F$54,2,FALSE)="C"),-1,1))) -> -6480 | P58: =IF($B58="","",J58*IF($F58="",1,IF(ISERROR(MATCH($F58,$B$6:$B$105,0)),0,INDIRECT(ADDRESS(5+MATCH($F58,$B$6:$B$105,0),COLUMN(P$4)))))*IF($F58="",IF(VLOOKUP($B58,SCHEMA_CE!$E$5:$F$54,2,FALSE)="C",-1,1),IF(OR(VLOOKUP($B58,SCHEMA_CE!$E$5:$F$54,2,FALSE)="C",VLOOKUP($F58,SCHEMA_CE!$E$5:$F$54,2,FALSE)="C"),-1,1))) -> 0 | Q58: =IF($B58="","",K58*IF($F58="",1,IF(ISERROR(MATCH($F58,$B$6:$B$105,0)),0,INDIRECT(ADDRESS(5+MATCH($F58,$B$6:$B$105,0),COLUMN(Q$4)))))*IF($F58="",IF(VLOOKUP($B58,SCHEMA_CE!$E$5:$F$54,2,FALSE)="C",-1,1),IF(OR(VLOOKUP($B58,SCHEMA_CE!$E$5:$F$54,2,FALSE)="C",VLOOKUP($F58,SCHEMA_CE!$E$5:$F$54,2,FALSE)="C"),-1,1))) -> 0 | S58: -5600 | T58: -6200 | U58: -6480 | V58: 0 | W58: 0
B59: 020301_Energia elettrica | D59: + | E59: 1 | F59: 010101_Vendite prodotti | G59: 0.1 | H59: 0.1 | I59: 0.1 | M59: =IF($B59="","",G59*IF($F59="",1,IF(ISERROR(MATCH($F59,$B$6:$B$105,0)),0,INDIRECT(ADDRESS(5+MATCH($F59,$B$6:$B$105,0),COLUMN(M$4)))))*IF($F59="",IF(VLOOKUP($B59,SCHEMA_CE!$E$5:$F$54,2,FALSE)="C",-1,1),IF(OR(VLOOKUP($B59,SCHEMA_CE!$E$5:$F$54,2,FALSE)="C",VLOOKUP($F59,SCHEMA_CE!$E$5:$F$54,2,FALSE)="C"),-1,1))) -> -1400 | N59: =IF($B59="","",H59*IF($F59="",1,IF(ISERROR(MATCH($F59,$B$6:$B$105,0)),0,INDIRECT(ADDRESS(5+MATCH($F59,$B$6:$B$105,0),COLUMN(N$4)))))*IF($F59="",IF(VLOOKUP($B59,SCHEMA_CE!$E$5:$F$54,2,FALSE)="C",-1,1),IF(OR(VLOOKUP($B59,SCHEMA_CE!$E$5:$F$54,2,FALSE)="C",VLOOKUP($F59,SCHEMA_CE!$E$5:$F$54,2,FALSE)="C"),-1,1))) -> -1550 | O59: =IF($B59="","",I59*IF($F59="",1,IF(ISERROR(MATCH($F59,$B$6:$B$105,0)),0,INDIRECT(ADDRESS(5+MATCH($F59,$B$6:$B$105,0),COLUMN(O$4)))))*IF($F59="",IF(VLOOKUP($B59,SCHEMA_CE!$E$5:$F$54,2,FALSE)="C",-1,1),IF(OR(VLOOKUP($B59,SCHEMA_CE!$E$5:$F$54,2,FALSE)="C",VLOOKUP($F59,SCHEMA_CE!$E$5:$F$54,2,FALSE)="C"),-1,1))) -> -1620 | P59: =IF($B59="","",J59*IF($F59="",1,IF(ISERROR(MATCH($F59,$B$6:$B$105,0)),0,INDIRECT(ADDRESS(5+MATCH($F59,$B$6:$B$105,0),COLUMN(P$4)))))*IF($F59="",IF(VLOOKUP($B59,SCHEMA_CE!$E$5:$F$54,2,FALSE)="C",-1,1),IF(OR(VLOOKUP($B59,SCHEMA_CE!$E$5:$F$54,2,FALSE)="C",VLOOKUP($F59,SCHEMA_CE!$E$5:$F$54,2,FALSE)="C"),-1,1))) -> 0 | Q59: =IF($B59="","",K59*IF($F59="",1,IF(ISERROR(MATCH($F59,$B$6:$B$105,0)),0,INDIRECT(ADDRESS(5+MATCH($F59,$B$6:$B$105,0),COLUMN(Q$4)))))*IF($F59="",IF(VLOOKUP($B59,SCHEMA_CE!$E$5:$F$54,2,FALSE)="C",-1,1),IF(OR(VLOOKUP($B59,SCHEMA_CE!$E$5:$F$54,2,FALSE)="C",VLOOKUP($F59,SCHEMA_CE!$E$5:$F$54,2,FALSE)="C"),-1,1))) -> 0 | S59: -1400 | T59: -1550 | U59: -1620 | V59: 0 | W59: 0
B60: 020311_Manutenzioni | D60: + | E60: 1 | G60: 15 | H60: 25 | I60: 40 | M60: =IF($B60="","",G60*IF($F60="",1,IF(ISERROR(MATCH($F60,$B$6:$B$105,0)),0,INDIRECT(ADDRESS(5+MATCH($F60,$B$6:$B$105,0),COLUMN(M$4)))))*IF($F60="",IF(VLOOKUP($B60,SCHEMA_CE!$E$5:$F$54,2,FALSE)="C",-1,1),IF(OR(VLOOKUP($B60,SCHEMA_CE!$E$5:$F$54,2,FALSE)="C",VLOOKUP($F60,SCHEMA_CE!$E$5:$F$54,2,FALSE)="C"),-1,1))) -> -15 | N60: =IF($B60="","",H60*IF($F60="",1,IF(ISERROR(MATCH($F60,$B$6:$B$105,0)),0,INDIRECT(ADDRESS(5+MATCH($F60,$B$6:$B$105,0),COLUMN(N$4)))))*IF($F60="",IF(VLOOKUP($B60,SCHEMA_CE!$E$5:$F$54,2,FALSE)="C",-1,1),IF(OR(VLOOKUP($B60,SCHEMA_CE!$E$5:$F$54,2,FALSE)="C",VLOOKUP($F60,SCHEMA_CE!$E$5:$F$54,2,FALSE)="C"),-1,1))) -> -25 | O60: =IF($B60="","",I60*IF($F60="",1,IF(ISERROR(MATCH($F60,$B$6:$B$105,0)),0,INDIRECT(ADDRESS(5+MATCH($F60,$B$6:$B$105,0),COLUMN(O$4)))))*IF($F60="",IF(VLOOKUP($B60,SCHEMA_CE!$E$5:$F$54,2,FALSE)="C",-1,1),IF(OR(VLOOKUP($B60,SCHEMA_CE!$E$5:$F$54,2,FALSE)="C",VLOOKUP($F60,SCHEMA_CE!$E$5:$F$54,2,FALSE)="C"),-1,1))) -> -40 | P60: =IF($B60="","",J60*IF($F60="",1,IF(ISERROR(MATCH($F60,$B$6:$B$105,0)),0,INDIRECT(ADDRESS(5+MATCH($F60,$B$6:$B$105,0),COLUMN(P$4)))))*IF($F60="",IF(VLOOKUP($B60,SCHEMA_CE!$E$5:$F$54,2,FALSE)="C",-1,1),IF(OR(VLOOKUP($B60,SCHEMA_CE!$E$5:$F$54,2,FALSE)="C",VLOOKUP($F60,SCHEMA_CE!$E$5:$F$54,2,FALSE)="C"),-1,1))) -> 0 | Q60: =IF($B60="","",K60*IF($F60="",1,IF(ISERROR(MATCH($F60,$B$6:$B$105,0)),0,INDIRECT(ADDRESS(5+MATCH($F60,$B$6:$B$105,0),COLUMN(Q$4)))))*IF($F60="",IF(VLOOKUP($B60,SCHEMA_CE!$E$5:$F$54,2,FALSE)="C",-1,1),IF(OR(VLOOKUP($B60,SCHEMA_CE!$E$5:$F$54,2,FALSE)="C",VLOOKUP($F60,SCHEMA_CE!$E$5:$F$54,2,FALSE)="C"),-1,1))) -> 0 | S60: -15 | T60: -25 | U60: -40 | V60: 0 | W60: 0
B61: 020321_Altri costi industriali | C61: 0.2 | D61: + | E61: 1 | F61: 010101_Vendite prodotti | G61: 0.1 | H61: 0.1 | I61: 0.1 | M61: =IF($B61="","",G61*IF($F61="",1,IF(ISERROR(MATCH($F61,$B$6:$B$105,0)),0,INDIRECT(ADDRESS(5+MATCH($F61,$B$6:$B$105,0),COLUMN(M$4)))))*IF($F61="",IF(VLOOKUP($B61,SCHEMA_CE!$E$5:$F$54,2,FALSE)="C",-1,1),IF(OR(VLOOKUP($B61,SCHEMA_CE!$E$5:$F$54,2,FALSE)="C",VLOOKUP($F61,SCHEMA_CE!$E$5:$F$54,2,FALSE)="C"),-1,1))) -> -1400 | N61: =IF($B61="","",H61*IF($F61="",1,IF(ISERROR(MATCH($F61,$B$6:$B$105,0)),0,INDIRECT(ADDRESS(5+MATCH($F61,$B$6:$B$105,0),COLUMN(N$4)))))*IF($F61="",IF(VLOOKUP($B61,SCHEMA_CE!$E$5:$F$54,2,FALSE)="C",-1,1),IF(OR(VLOOKUP($B61,SCHEMA_CE!$E$5:$F$54,2,FALSE)="C",VLOOKUP($F61,SCHEMA_CE!$E$5:$F$54,2,FALSE)="C"),-1,1))) -> -1550 | O61: =IF($B61="","",I61*IF($F61="",1,IF(ISERROR(MATCH($F61,$B$6:$B$105,0)),0,INDIRECT(ADDRESS(5+MATCH($F61,$B$6:$B$105,0),COLUMN(O$4)))))*IF($F61="",IF(VLOOKUP($B61,SCHEMA_CE!$E$5:$F$54,2,FALSE)="C",-1,1),IF(OR(VLOOKUP($B61,SCHEMA_CE!$E$5:$F$54,2,FALSE)="C",VLOOKUP($F61,SCHEMA_CE!$E$5:$F$54,2,FALSE)="C"),-1,1))) -> -1620 | P61: =IF($B61="","",J61*IF($F61="",1,IF(ISERROR(MATCH($F61,$B$6:$B$105,0)),0,INDIRECT(ADDRESS(5+MATCH($F61,$B$6:$B$105,0),COLUMN(P$4)))))*IF($F61="",IF(VLOOKUP($B61,SCHEMA_CE!$E$5:$F$54,2,FALSE)="C",-1,1),IF(OR(VLOOKUP($B61,SCHEMA_CE!$E$5:$F$54,2,FALSE)="C",VLOOKUP($F61,SCHEMA_CE!$E$5:$F$54,2,FALSE)="C"),-1,1))) -> 0 | Q61: =IF($B61="","",K61*IF($F61="",1,IF(ISERROR(MATCH($F61,$B$6:$B$105,0)),0,INDIRECT(ADDRESS(5+MATCH($F61,$B$6:$B$105,0),COLUMN(Q$4)))))*IF($F61="",IF(VLOOKUP($B61,SCHEMA_CE!$E$5:$F$54,2,FALSE)="C",-1,1),IF(OR(VLOOKUP($B61,SCHEMA_CE!$E$5:$F$54,2,FALSE)="C",VLOOKUP($F61,SCHEMA_CE!$E$5:$F$54,2,FALSE)="C"),-1,1))) -> 0 | S61: -1400 | T61: -1550 | U61: -1620 | V61: 0 | W61: 0
B62: 020331_Ammortamenti industriali | D62: + | E62: 1 | G62: 150 | H62: 300 | I62: 450 | M62: =IF($B62="","",G62*IF($F62="",1,IF(ISERROR(MATCH($F62,$B$6:$B$105,0)),0,INDIRECT(ADDRESS(5+MATCH($F62,$B$6:$B$105,0),COLUMN(M$4)))))*IF($F62="",IF(VLOOKUP($B62,SCHEMA_CE!$E$5:$F$54,2,FALSE)="C",-1,1),IF(OR(VLOOKUP($B62,SCHEMA_CE!$E$5:$F$54,2,FALSE)="C",VLOOKUP($F62,SCHEMA_CE!$E$5:$F$54,2,FALSE)="C"),-1,1))) -> -150 | N62: =IF($B62="","",H62*IF($F62="",1,IF(ISERROR(MATCH($F62,$B$6:$B$105,0)),0,INDIRECT(ADDRESS(5+MATCH($F62,$B$6:$B$105,0),COLUMN(N$4)))))*IF($F62="",IF(VLOOKUP($B62,SCHEMA_CE!$E$5:$F$54,2,FALSE)="C",-1,1),IF(OR(VLOOKUP($B62,SCHEMA_CE!$E$5:$F$54,2,FALSE)="C",VLOOKUP($F62,SCHEMA_CE!$E$5:$F$54,2,FALSE)="C"),-1,1))) -> -300 | O62: =IF($B62="","",I62*IF($F62="",1,IF(ISERROR(MATCH($F62,$B$6:$B$105,0)),0,INDIRECT(ADDRESS(5+MATCH($F62,$B$6:$B$105,0),COLUMN(O$4)))))*IF($F62="",IF(VLOOKUP($B62,SCHEMA_CE!$E$5:$F$54,2,FALSE)="C",-1,1),IF(OR(VLOOKUP($B62,SCHEMA_CE!$E$5:$F$54,2,FALSE)="C",VLOOKUP($F62,SCHEMA_CE!$E$5:$F$54,2,FALSE)="C"),-1,1))) -> -450 | P62: =IF($B62="","",J62*IF($F62="",1,IF(ISERROR(MATCH($F62,$B$6:$B$105,0)),0,INDIRECT(ADDRESS(5+MATCH($F62,$B$6:$B$105,0),COLUMN(P$4)))))*IF($F62="",IF(VLOOKUP($B62,SCHEMA_CE!$E$5:$F$54,2,FALSE)="C",-1,1),IF(OR(VLOOKUP($B62,SCHEMA_CE!$E$5:$F$54,2,FALSE)="C",VLOOKUP($F62,SCHEMA_CE!$E$5:$F$54,2,FALSE)="C"),-1,1))) -> 0 | Q62: =IF($B62="","",K62*IF($F62="",1,IF(ISERROR(MATCH($F62,$B$6:$B$105,0)),0,INDIRECT(ADDRESS(5+MATCH($F62,$B$6:$B$105,0),COLUMN(Q$4)))))*IF($F62="",IF(VLOOKUP($B62,SCHEMA_CE!$E$5:$F$54,2,FALSE)="C",-1,1),IF(OR(VLOOKUP($B62,SCHEMA_CE!$E$5:$F$54,2,FALSE)="C",VLOOKUP($F62,SCHEMA_CE!$E$5:$F$54,2,FALSE)="C"),-1,1))) -> 0 | S62: -150 | T62: -300 | U62: -450 | V62: 0 | W62: 0
B63: 030101_Provvigioni | C63: 0.2 | D63: + | E63: 1 | F63: 010101_Vendite prodotti | G63: 0.005 | H63: 0.005 | I63: 0.005 | M63: =IF($B63="","",G63*IF($F63="",1,IF(ISERROR(MATCH($F63,$B$6:$B$105,0)),0,INDIRECT(ADDRESS(5+MATCH($F63,$B$6:$B$105,0),COLUMN(M$4)))))*IF($F63="",IF(VLOOKUP($B63,SCHEMA_CE!$E$5:$F$54,2,FALSE)="C",-1,1),IF(OR(VLOOKUP($B63,SCHEMA_CE!$E$5:$F$54,2,FALSE)="C",VLOOKUP($F63,SCHEMA_CE!$E$5:$F$54,2,FALSE)="C"),-1,1))) -> -70 | N63: =IF($B63="","",H63*IF($F63="",1,IF(ISERROR(MATCH($F63,$B$6:$B$105,0)),0,INDIRECT(ADDRESS(5+MATCH($F63,$B$6:$B$105,0),COLUMN(N$4)))))*IF($F63="",IF(VLOOKUP($B63,SCHEMA_CE!$E$5:$F$54,2,FALSE)="C",-1,1),IF(OR(VLOOKUP($B63,SCHEMA_CE!$E$5:$F$54,2,FALSE)="C",VLOOKUP($F63,SCHEMA_CE!$E$5:$F$54,2,FALSE)="C"),-1,1))) -> -77.5 | O63: =IF($B63="","",I63*IF($F63="",1,IF(ISERROR(MATCH($F63,$B$6:$B$105,0)),0,INDIRECT(ADDRESS(5+MATCH($F63,$B$6:$B$105,0),COLUMN(O$4)))))*IF($F63="",IF(VLOOKUP($B63,SCHEMA_CE!$E$5:$F$54,2,FALSE)="C",-1,1),IF(OR(VLOOKUP($B63,SCHEMA_CE!$E$5:$F$54,2,FALSE)="C",VLOOKUP($F63,SCHEMA_CE!$E$5:$F$54,2,FALSE)="C"),-1,1))) -> -81 | P63: =IF($B63="","",J63*IF($F63="",1,IF(ISERROR(MATCH($F63,$B$6:$B$105,0)),0,INDIRECT(ADDRESS(5+MATCH($F63,$B$6:$B$105,0),COLUMN(P$4)))))*IF($F63="",IF(VLOOKUP($B63,SCHEMA_CE!$E$5:$F$54,2,FALSE)="C",-1,1),IF(OR(VLOOKUP($B63,SCHEMA_CE!$E$5:$F$54,2,FALSE)="C",VLOOKUP($F63,SCHEMA_CE!$E$5:$F$54,2,FALSE)="C"),-1,1))) -> 0 | Q63: =IF($B63="","",K63*IF($F63="",1,IF(ISERROR(MATCH($F63,$B$6:$B$105,0)),0,INDIRECT(ADDRESS(5+MATCH($F63,$B$6:$B$105,0),COLUMN(Q$4)))))*IF($F63="",IF(VLOOKUP($B63,SCHEMA_CE!$E$5:$F$54,2,FALSE)="C",-1,1),IF(OR(VLOOKUP($B63,SCHEMA_CE!$E$5:$F$54,2,FALSE)="C",VLOOKUP($F63,SCHEMA_CE!$E$5:$F$54,2,FALSE)="C"),-1,1))) -> 0 | S63: -70 | T63: -77.5 | U63: -81 | V63: 0 | W63: 0
B64: 030111_Promozioni/pubblicità | C64: 0.2 | D64: + | E64: 1 | F64: 010101_Vendite prodotti | G64: 0.05 | H64: 0.05 | I64: 0.05 | M64: =IF($B64="","",G64*IF($F64="",1,IF(ISERROR(MATCH($F64,$B$6:$B$105,0)),0,INDIRECT(ADDRESS(5+MATCH($F64,$B$6:$B$105,0),COLUMN(M$4)))))*IF($F64="",IF(VLOOKUP($B64,SCHEMA_CE!$E$5:$F$54,2,FALSE)="C",-1,1),IF(OR(VLOOKUP($B64,SCHEMA_CE!$E$5:$F$54,2,FALSE)="C",VLOOKUP($F64,SCHEMA_CE!$E$5:$F$54,2,FALSE)="C"),-1,1))) -> -700 | N64: =IF($B64="","",H64*IF($F64="",1,IF(ISERROR(MATCH($F64,$B$6:$B$105,0)),0,INDIRECT(ADDRESS(5+MATCH($F64,$B$6:$B$105,0),COLUMN(N$4)))))*IF($F64="",IF(VLOOKUP($B64,SCHEMA_CE!$E$5:$F$54,2,FALSE)="C",-1,1),IF(OR(VLOOKUP($B64,SCHEMA_CE!$E$5:$F$54,2,FALSE)="C",VLOOKUP($F64,SCHEMA_CE!$E$5:$F$54,2,FALSE)="C"),-1,1))) -> -775 | O64: =IF($B64="","",I64*IF($F64="",1,IF(ISERROR(MATCH($F64,$B$6:$B$105,0)),0,INDIRECT(ADDRESS(5+MATCH($F64,$B$6:$B$105,0),COLUMN(O$4)))))*IF($F64="",IF(VLOOKUP($B64,SCHEMA_CE!$E$5:$F$54,2,FALSE)="C",-1,1),IF(OR(VLOOKUP($B64,SCHEMA_CE!$E$5:$F$54,2,FALSE)="C",VLOOKUP($F64,SCHEMA_CE!$E$5:$F$54,2,FALSE)="C"),-1,1))) -> -810 | P64: =IF($B64="","",J64*IF($F64="",1,IF(ISERROR(MATCH($F64,$B$6:$B$105,0)),0,INDIRECT(ADDRESS(5+MATCH($F64,$B$6:$B$105,0),COLUMN(P$4)))))*IF($F64="",IF(VLOOKUP($B64,SCHEMA_CE!$E$5:$F$54,2,FALSE)="C",-1,1),IF(OR(VLOOKUP($B64,SCHEMA_CE!$E$5:$F$54,2,FALSE)="C",VLOOKUP($F64,SCHEMA_CE!$E$5:$F$54,2,FALSE)="C"),-1,1))) -> 0 | Q64: =IF($B64="","",K64*IF($F64="",1,IF(ISERROR(MATCH($F64,$B$6:$B$105,0)),0,INDIRECT(ADDRESS(5+MATCH($F64,$B$6:$B$105,0),COLUMN(Q$4)))))*IF($F64="",IF(VLOOKUP($B64,SCHEMA_CE!$E$5:$F$54,2,FALSE)="C",-1,1),IF(OR(VLOOKUP($B64,SCHEMA_CE!$E$5:$F$54,2,FALSE)="C",VLOOKUP($F64,SCHEMA_CE!$E$5:$F$54,2,FALSE)="C"),-1,1))) -> 0 | S64: -700 | T64: -775 | U64: -810 | V64: 0 | W64: 0
B65: 030121_Altri costi commerciali | C65: 0.2 | D65: + | E65: 1 | F65: 010101_Vendite prodotti | G65: 0.03 | H65: 0.03 | I65: 0.03 | M65: =IF($B65="","",G65*IF($F65="",1,IF(ISERROR(MATCH($F65,$B$6:$B$105,0)),0,INDIRECT(ADDRESS(5+MATCH($F65,$B$6:$B$105,0),COLUMN(M$4)))))*IF($F65="",IF(VLOOKUP($B65,SCHEMA_CE!$E$5:$F$54,2,FALSE)="C",-1,1),IF(OR(VLOOKUP($B65,SCHEMA_CE!$E$5:$F$54,2,FALSE)="C",VLOOKUP($F65,SCHEMA_CE!$E$5:$F$54,2,FALSE)="C"),-1,1))) -> -420 | N65: =IF($B65="","",H65*IF($F65="",1,IF(ISERROR(MATCH($F65,$B$6:$B$105,0)),0,INDIRECT(ADDRESS(5+MATCH($F65,$B$6:$B$105,0),COLUMN(N$4)))))*IF($F65="",IF(VLOOKUP($B65,SCHEMA_CE!$E$5:$F$54,2,FALSE)="C",-1,1),IF(OR(VLOOKUP($B65,SCHEMA_CE!$E$5:$F$54,2,FALSE)="C",VLOOKUP($F65,SCHEMA_CE!$E$5:$F$54,2,FALSE)="C"),-1,1))) -> -465 | O65: =IF($B65="","",I65*IF($F65="",1,IF(ISERROR(MATCH($F65,$B$6:$B$105,0)),0,INDIRECT(ADDRESS(5+MATCH($F65,$B$6:$B$105,0),COLUMN(O$4)))))*IF($F65="",IF(VLOOKUP($B65,SCHEMA_CE!$E$5:$F$54,2,FALSE)="C",-1,1),IF(OR(VLOOKUP($B65,SCHEMA_CE!$E$5:$F$54,2,FALSE)="C",VLOOKUP($F65,SCHEMA_CE!$E$5:$F$54,2,FALSE)="C"),-1,1))) -> -486 | P65: =IF($B65="","",J65*IF($F65="",1,IF(ISERROR(MATCH($F65,$B$6:$B$105,0)),0,INDIRECT(ADDRESS(5+MATCH($F65,$B$6:$B$105,0),COLUMN(P$4)))))*IF($F65="",IF(VLOOKUP($B65,SCHEMA_CE!$E$5:$F$54,2,FALSE)="C",-1,1),IF(OR(VLOOKUP($B65,SCHEMA_CE!$E$5:$F$54,2,FALSE)="C",VLOOKUP($F65,SCHEMA_CE!$E$5:$F$54,2,FALSE)="C"),-1,1))) -> 0 | Q65: =IF($B65="","",K65*IF($F65="",1,IF(ISERROR(MATCH($F65,$B$6:$B$105,0)),0,INDIRECT(ADDRESS(5+MATCH($F65,$B$6:$B$105,0),COLUMN(Q$4)))))*IF($F65="",IF(VLOOKUP($B65,SCHEMA_CE!$E$5:$F$54,2,FALSE)="C",-1,1),IF(OR(VLOOKUP($B65,SCHEMA_CE!$E$5:$F$54,2,FALSE)="C",VLOOKUP($F65,SCHEMA_CE!$E$5:$F$54,2,FALSE)="C"),-1,1))) -> 0 | S65: -420 | T65: -465 | U65: -486 | V65: 0 | W65: 0
B66: 030201_Ammortamenti | D66: + | E66: 1 | G66: 200 | H66: 400 | I66: 600 | M66: =IF($B66="","",G66*IF($F66="",1,IF(ISERROR(MATCH($F66,$B$6:$B$105,0)),0,INDIRECT(ADDRESS(5+MATCH($F66,$B$6:$B$105,0),COLUMN(M$4)))))*IF($F66="",IF(VLOOKUP($B66,SCHEMA_CE!$E$5:$F$54,2,FALSE)="C",-1,1),IF(OR(VLOOKUP($B66,SCHEMA_CE!$E$5:$F$54,2,FALSE)="C",VLOOKUP($F66,SCHEMA_CE!$E$5:$F$54,2,FALSE)="C"),-1,1))) -> -200 | N66: =IF($B66="","",H66*IF($F66="",1,IF(ISERROR(MATCH($F66,$B$6:$B$105,0)),0,INDIRECT(ADDRESS(5+MATCH($F66,$B$6:$B$105,0),COLUMN(N$4)))))*IF($F66="",IF(VLOOKUP($B66,SCHEMA_CE!$E$5:$F$54,2,FALSE)="C",-1,1),IF(OR(VLOOKUP($B66,SCHEMA_CE!$E$5:$F$54,2,FALSE)="C",VLOOKUP($F66,SCHEMA_CE!$E$5:$F$54,2,FALSE)="C"),-1,1))) -> -400 | O66: =IF($B66="","",I66*IF($F66="",1,IF(ISERROR(MATCH($F66,$B$6:$B$105,0)),0,INDIRECT(ADDRESS(5+MATCH($F66,$B$6:$B$105,0),COLUMN(O$4)))))*IF($F66="",IF(VLOOKUP($B66,SCHEMA_CE!$E$5:$F$54,2,FALSE)="C",-1,1),IF(OR(VLOOKUP($B66,SCHEMA_CE!$E$5:$F$54,2,FALSE)="C",VLOOKUP($F66,SCHEMA_CE!$E$5:$F$54,2,FALSE)="C"),-1,1))) -> -600 | P66: =IF($B66="","",J66*IF($F66="",1,IF(ISERROR(MATCH($F66,$B$6:$B$105,0)),0,INDIRECT(ADDRESS(5+MATCH($F66,$B$6:$B$105,0),COLUMN(P$4)))))*IF($F66="",IF(VLOOKUP($B66,SCHEMA_CE!$E$5:$F$54,2,FALSE)="C",-1,1),IF(OR(VLOOKUP($B66,SCHEMA_CE!$E$5:$F$54,2,FALSE)="C",VLOOKUP($F66,SCHEMA_CE!$E$5:$F$54,2,FALSE)="C"),-1,1))) -> 0 | Q66: =IF($B66="","",K66*IF($F66="",1,IF(ISERROR(MATCH($F66,$B$6:$B$105,0)),0,INDIRECT(ADDRESS(5+MATCH($F66,$B$6:$B$105,0),COLUMN(Q$4)))))*IF($F66="",IF(VLOOKUP($B66,SCHEMA_CE!$E$5:$F$54,2,FALSE)="C",-1,1),IF(OR(VLOOKUP($B66,SCHEMA_CE!$E$5:$F$54,2,FALSE)="C",VLOOKUP($F66,SCHEMA_CE!$E$5:$F$54,2,FALSE)="C"),-1,1))) -> 0 | S66: -200 | T66: -400 | U66: -600 | V66: 0 | W66: 0
B67: 030211_Personale ammmistrazione/struttura | D67: + | E67: 1 | G67: 550 | H67: 600 | I67: 800 | M67: =IF($B67="","",G67*IF($F67="",1,IF(ISERROR(MATCH($F67,$B$6:$B$105,0)),0,INDIRECT(ADDRESS(5+MATCH($F67,$B$6:$B$105,0),COLUMN(M$4)))))*IF($F67="",IF(VLOOKUP($B67,SCHEMA_CE!$E$5:$F$54,2,FALSE)="C",-1,1),IF(OR(VLOOKUP($B67,SCHEMA_CE!$E$5:$F$54,2,FALSE)="C",VLOOKUP($F67,SCHEMA_CE!$E$5:$F$54,2,FALSE)="C"),-1,1))) -> -550 | N67: =IF($B67="","",H67*IF($F67="",1,IF(ISERROR(MATCH($F67,$B$6:$B$105,0)),0,INDIRECT(ADDRESS(5+MATCH($F67,$B$6:$B$105,0),COLUMN(N$4)))))*IF($F67="",IF(VLOOKUP($B67,SCHEMA_CE!$E$5:$F$54,2,FALSE)="C",-1,1),IF(OR(VLOOKUP($B67,SCHEMA_CE!$E$5:$F$54,2,FALSE)="C",VLOOKUP($F67,SCHEMA_CE!$E$5:$F$54,2,FALSE)="C"),-1,1))) -> -600 | O67: =IF($B67="","",I67*IF($F67="",1,IF(ISERROR(MATCH($F67,$B$6:$B$105,0)),0,INDIRECT(ADDRESS(5+MATCH($F67,$B$6:$B$105,0),COLUMN(O$4)))))*IF($F67="",IF(VLOOKUP($B67,SCHEMA_CE!$E$5:$F$54,2,FALSE)="C",-1,1),IF(OR(VLOOKUP($B67,SCHEMA_CE!$E$5:$F$54,2,FALSE)="C",VLOOKUP($F67,SCHEMA_CE!$E$5:$F$54,2,FALSE)="C"),-1,1))) -> -800 | P67: =IF($B67="","",J67*IF($F67="",1,IF(ISERROR(MATCH($F67,$B$6:$B$105,0)),0,INDIRECT(ADDRESS(5+MATCH($F67,$B$6:$B$105,0),COLUMN(P$4)))))*IF($F67="",IF(VLOOKUP($B67,SCHEMA_CE!$E$5:$F$54,2,FALSE)="C",-1,1),IF(OR(VLOOKUP($B67,SCHEMA_CE!$E$5:$F$54,2,FALSE)="C",VLOOKUP($F67,SCHEMA_CE!$E$5:$F$54,2,FALSE)="C"),-1,1))) -> 0 | Q67: =IF($B67="","",K67*IF($F67="",1,IF(ISERROR(MATCH($F67,$B$6:$B$105,0)),0,INDIRECT(ADDRESS(5+MATCH($F67,$B$6:$B$105,0),COLUMN(Q$4)))))*IF($F67="",IF(VLOOKUP($B67,SCHEMA_CE!$E$5:$F$54,2,FALSE)="C",-1,1),IF(OR(VLOOKUP($B67,SCHEMA_CE!$E$5:$F$54,2,FALSE)="C",VLOOKUP($F67,SCHEMA_CE!$E$5:$F$54,2,FALSE)="C"),-1,1))) -> 0 | S67: -550 | T67: -600 | U67: -800 | V67: 0 | W67: 0
B68: 030221_Altri costi amministrativi | C68: 0.2 | D68: + | E68: 1 | G68: 1000 | H68: 1250 | I68: 1100 | M68: =IF($B68="","",G68*IF($F68="",1,IF(ISERROR(MATCH($F68,$B$6:$B$105,0)),0,INDIRECT(ADDRESS(5+MATCH($F68,$B$6:$B$105,0),COLUMN(M$4)))))*IF($F68="",IF(VLOOKUP($B68,SCHEMA_CE!$E$5:$F$54,2,FALSE)="C",-1,1),IF(OR(VLOOKUP($B68,SCHEMA_CE!$E$5:$F$54,2,FALSE)="C",VLOOKUP($F68,SCHEMA_CE!$E$5:$F$54,2,FALSE)="C"),-1,1))) -> -1000 | N68: =IF($B68="","",H68*IF($F68="",1,IF(ISERROR(MATCH($F68,$B$6:$B$105,0)),0,INDIRECT(ADDRESS(5+MATCH($F68,$B$6:$B$105,0),COLUMN(N$4)))))*IF($F68="",IF(VLOOKUP($B68,SCHEMA_CE!$E$5:$F$54,2,FALSE)="C",-1,1),IF(OR(VLOOKUP($B68,SCHEMA_CE!$E$5:$F$54,2,FALSE)="C",VLOOKUP($F68,SCHEMA_CE!$E$5:$F$54,2,FALSE)="C"),-1,1))) -> -1250 | O68: =IF($B68="","",I68*IF($F68="",1,IF(ISERROR(MATCH($F68,$B$6:$B$105,0)),0,INDIRECT(ADDRESS(5+MATCH($F68,$B$6:$B$105,0),COLUMN(O$4)))))*IF($F68="",IF(VLOOKUP($B68,SCHEMA_CE!$E$5:$F$54,2,FALSE)="C",-1,1),IF(OR(VLOOKUP($B68,SCHEMA_CE!$E$5:$F$54,2,FALSE)="C",VLOOKUP($F68,SCHEMA_CE!$E$5:$F$54,2,FALSE)="C"),-1,1))) -> -1100 | P68: =IF($B68="","",J68*IF($F68="",1,IF(ISERROR(MATCH($F68,$B$6:$B$105,0)),0,INDIRECT(ADDRESS(5+MATCH($F68,$B$6:$B$105,0),COLUMN(P$4)))))*IF($F68="",IF(VLOOKUP($B68,SCHEMA_CE!$E$5:$F$54,2,FALSE)="C",-1,1),IF(OR(VLOOKUP($B68,SCHEMA_CE!$E$5:$F$54,2,FALSE)="C",VLOOKUP($F68,SCHEMA_CE!$E$5:$F$54,2,FALSE)="C"),-1,1))) -> 0 | Q68: =IF($B68="","",K68*IF($F68="",1,IF(ISERROR(MATCH($F68,$B$6:$B$105,0)),0,INDIRECT(ADDRESS(5+MATCH($F68,$B$6:$B$105,0),COLUMN(Q$4)))))*IF($F68="",IF(VLOOKUP($B68,SCHEMA_CE!$E$5:$F$54,2,FALSE)="C",-1,1),IF(OR(VLOOKUP($B68,SCHEMA_CE!$E$5:$F$54,2,FALSE)="C",VLOOKUP($F68,SCHEMA_CE!$E$5:$F$54,2,FALSE)="C"),-1,1))) -> 0 | S68: -1000 | T68: -1250 | U68: -1100 | V68: 0 | W68: 0
B69: 040102_Oneri di natura extra operativa | D69: + | E69: 1 | F69: 040101_Proventi di natura extra operativa | G69: 0.01 | H69: 0.01 | I69: 0.01 | M69: =IF($B69="","",G69*IF($F69="",1,IF(ISERROR(MATCH($F69,$B$6:$B$105,0)),0,INDIRECT(ADDRESS(5+MATCH($F69,$B$6:$B$105,0),COLUMN(M$4)))))*IF($F69="",IF(VLOOKUP($B69,SCHEMA_CE!$E$5:$F$54,2,FALSE)="C",-1,1),IF(OR(VLOOKUP($B69,SCHEMA_CE!$E$5:$F$54,2,FALSE)="C",VLOOKUP($F69,SCHEMA_CE!$E$5:$F$54,2,FALSE)="C"),-1,1))) -> -7 | N69: =IF($B69="","",H69*IF($F69="",1,IF(ISERROR(MATCH($F69,$B$6:$B$105,0)),0,INDIRECT(ADDRESS(5+MATCH($F69,$B$6:$B$105,0),COLUMN(N$4)))))*IF($F69="",IF(VLOOKUP($B69,SCHEMA_CE!$E$5:$F$54,2,FALSE)="C",-1,1),IF(OR(VLOOKUP($B69,SCHEMA_CE!$E$5:$F$54,2,FALSE)="C",VLOOKUP($F69,SCHEMA_CE!$E$5:$F$54,2,FALSE)="C"),-1,1))) -> -7.75 | O69: =IF($B69="","",I69*IF($F69="",1,IF(ISERROR(MATCH($F69,$B$6:$B$105,0)),0,INDIRECT(ADDRESS(5+MATCH($F69,$B$6:$B$105,0),COLUMN(O$4)))))*IF($F69="",IF(VLOOKUP($B69,SCHEMA_CE!$E$5:$F$54,2,FALSE)="C",-1,1),IF(OR(VLOOKUP($B69,SCHEMA_CE!$E$5:$F$54,2,FALSE)="C",VLOOKUP($F69,SCHEMA_CE!$E$5:$F$54,2,FALSE)="C"),-1,1))) -> -8.1 | P69: =IF($B69="","",J69*IF($F69="",1,IF(ISERROR(MATCH($F69,$B$6:$B$105,0)),0,INDIRECT(ADDRESS(5+MATCH($F69,$B$6:$B$105,0),COLUMN(P$4)))))*IF($F69="",IF(VLOOKUP($B69,SCHEMA_CE!$E$5:$F$54,2,FALSE)="C",-1,1),IF(OR(VLOOKUP($B69,SCHEMA_CE!$E$5:$F$54,2,FALSE)="C",VLOOKUP($F69,SCHEMA_CE!$E$5:$F$54,2,FALSE)="C"),-1,1))) -> 0 | Q69: =IF($B69="","",K69*IF($F69="",1,IF(ISERROR(MATCH($F69,$B$6:$B$105,0)),0,INDIRECT(ADDRESS(5+MATCH($F69,$B$6:$B$105,0),COLUMN(Q$4)))))*IF($F69="",IF(VLOOKUP($B69,SCHEMA_CE!$E$5:$F$54,2,FALSE)="C",-1,1),IF(OR(VLOOKUP($B69,SCHEMA_CE!$E$5:$F$54,2,FALSE)="C",VLOOKUP($F69,SCHEMA_CE!$E$5:$F$54,2,FALSE)="C"),-1,1))) -> 0 | S69: -7 | T69: -7.75 | U69: -8.1 | V69: 0 | W69: 0
B70: 040211_Oneri finanziari | D70: + | E70: 1 | G70: 20 | H70: 15 | I70: 40 | M70: =IF($B70="","",G70*IF($F70="",1,IF(ISERROR(MATCH($F70,$B$6:$B$105,0)),0,INDIRECT(ADDRESS(5+MATCH($F70,$B$6:$B$105,0),COLUMN(M$4)))))*IF($F70="",IF(VLOOKUP($B70,SCHEMA_CE!$E$5:$F$54,2,FALSE)="C",-1,1),IF(OR(VLOOKUP($B70,SCHEMA_CE!$E$5:$F$54,2,FALSE)="C",VLOOKUP($F70,SCHEMA_CE!$E$5:$F$54,2,FALSE)="C"),-1,1))) -> -20 | N70: =IF($B70="","",H70*IF($F70="",1,IF(ISERROR(MATCH($F70,$B$6:$B$105,0)),0,INDIRECT(ADDRESS(5+MATCH($F70,$B$6:$B$105,0),COLUMN(N$4)))))*IF($F70="",IF(VLOOKUP($B70,SCHEMA_CE!$E$5:$F$54,2,FALSE)="C",-1,1),IF(OR(VLOOKUP($B70,SCHEMA_CE!$E$5:$F$54,2,FALSE)="C",VLOOKUP($F70,SCHEMA_CE!$E$5:$F$54,2,FALSE)="C"),-1,1))) -> -15 | O70: =IF($B70="","",I70*IF($F70="",1,IF(ISERROR(MATCH($F70,$B$6:$B$105,0)),0,INDIRECT(ADDRESS(5+MATCH($F70,$B$6:$B$105,0),COLUMN(O$4)))))*IF($F70="",IF(VLOOKUP($B70,SCHEMA_CE!$E$5:$F$54,2,FALSE)="C",-1,1),IF(OR(VLOOKUP($B70,SCHEMA_CE!$E$5:$F$54,2,FALSE)="C",VLOOKUP($F70,SCHEMA_CE!$E$5:$F$54,2,FALSE)="C"),-1,1))) -> -40 | P70: =IF($B70="","",J70*IF($F70="",1,IF(ISERROR(MATCH($F70,$B$6:$B$105,0)),0,INDIRECT(ADDRESS(5+MATCH($F70,$B$6:$B$105,0),COLUMN(P$4)))))*IF($F70="",IF(VLOOKUP($B70,SCHEMA_CE!$E$5:$F$54,2,FALSE)="C",-1,1),IF(OR(VLOOKUP($B70,SCHEMA_CE!$E$5:$F$54,2,FALSE)="C",VLOOKUP($F70,SCHEMA_CE!$E$5:$F$54,2,FALSE)="C"),-1,1))) -> 0 | Q70: =IF($B70="","",K70*IF($F70="",1,IF(ISERROR(MATCH($F70,$B$6:$B$105,0)),0,INDIRECT(ADDRESS(5+MATCH($F70,$B$6:$B$105,0),COLUMN(Q$4)))))*IF($F70="",IF(VLOOKUP($B70,SCHEMA_CE!$E$5:$F$54,2,FALSE)="C",-1,1),IF(OR(VLOOKUP($B70,SCHEMA_CE!$E$5:$F$54,2,FALSE)="C",VLOOKUP($F70,SCHEMA_CE!$E$5:$F$54,2,FALSE)="C"),-1,1))) -> 0 | S70: -20 | T70: -15 | U70: -40 | V70: 0 | W70: 0
M71: =IF($B71="","",G71*IF($F71="",1,IF(ISERROR(MATCH($F71,$B$6:$B$105,0)),0,INDIRECT(ADDRESS(5+MATCH($F71,$B$6:$B$105,0),COLUMN(M$4)))))*IF($F71="",IF(VLOOKUP($B71,SCHEMA_CE!$E$5:$F$54,2,FALSE)="C",-1,1),IF(OR(VLOOKUP($B71,SCHEMA_CE!$E$5:$F$54,2,FALSE)="C",VLOOKUP($F71,SCHEMA_CE!$E$5:$F$54,2,FALSE)="C"),-1,1))) ->  | N71: =IF($B71="","",H71*IF($F71="",1,IF(ISERROR(MATCH($F71,$B$6:$B$105,0)),0,INDIRECT(ADDRESS(5+MATCH($F71,$B$6:$B$105,0),COLUMN(N$4)))))*IF($F71="",IF(VLOOKUP($B71,SCHEMA_CE!$E$5:$F$54,2,FALSE)="C",-1,1),IF(OR(VLOOKUP($B71,SCHEMA_CE!$E$5:$F$54,2,FALSE)="C",VLOOKUP($F71,SCHEMA_CE!$E$5:$F$54,2,FALSE)="C"),-1,1))) ->  | O71: =IF($B71="","",I71*IF($F71="",1,IF(ISERROR(MATCH($F71,$B$6:$B$105,0)),0,INDIRECT(ADDRESS(5+MATCH($F71,$B$6:$B$105,0),COLUMN(O$4)))))*IF($F71="",IF(VLOOKUP($B71,SCHEMA_CE!$E$5:$F$54,2,FALSE)="C",-1,1),IF(OR(VLOOKUP($B71,SCHEMA_CE!$E$5:$F$54,2,FALSE)="C",VLOOKUP($F71,SCHEMA_CE!$E$5:$F$54,2,FALSE)="C"),-1,1))) ->  | P71: =IF($B71="","",J71*IF($F71="",1,IF(ISERROR(MATCH($F71,$B$6:$B$105,0)),0,INDIRECT(ADDRESS(5+MATCH($F71,$B$6:$B$105,0),COLUMN(P$4)))))*IF($F71="",IF(VLOOKUP($B71,SCHEMA_CE!$E$5:$F$54,2,FALSE)="C",-1,1),IF(OR(VLOOKUP($B71,SCHEMA_CE!$E$5:$F$54,2,FALSE)="C",VLOOKUP($F71,SCHEMA_CE!$E$5:$F$54,2,FALSE)="C"),-1,1))) ->  | Q71: =IF($B71="","",K71*IF($F71="",1,IF(ISERROR(MATCH($F71,$B$6:$B$105,0)),0,INDIRECT(ADDRESS(5+MATCH($F71,$B$6:$B$105,0),COLUMN(Q$4)))))*IF($F71="",IF(VLOOKUP($B71,SCHEMA_CE!$E$5:$F$54,2,FALSE)="C",-1,1),IF(OR(VLOOKUP($B71,SCHEMA_CE!$E$5:$F$54,2,FALSE)="C",VLOOKUP($F71,SCHEMA_CE!$E$5:$F$54,2,FALSE)="C"),-1,1))) ->  | S71: =IF($B71="","",M71*$E71) ->  | T71: =IF($B71="","",N71*$E71) ->  | U71: =IF($B71="","",O71*$E71) ->  | V71: =IF($B71="","",P71*$E71) ->  | W71: =IF($B71="","",Q71*$E71) -> 
M72: =IF($B72="","",G72*IF($F72="",1,IF(ISERROR(MATCH($F72,$B$6:$B$105,0)),0,INDIRECT(ADDRESS(5+MATCH($F72,$B$6:$B$105,0),COLUMN(M$4)))))*IF($F72="",IF(VLOOKUP($B72,SCHEMA_CE!$E$5:$F$54,2,FALSE)="C",-1,1),IF(OR(VLOOKUP($B72,SCHEMA_CE!$E$5:$F$54,2,FALSE)="C",VLOOKUP($F72,SCHEMA_CE!$E$5:$F$54,2,FALSE)="C"),-1,1))) ->  | N72: =IF($B72="","",H72*IF($F72="",1,IF(ISERROR(MATCH($F72,$B$6:$B$105,0)),0,INDIRECT(ADDRESS(5+MATCH($F72,$B$6:$B$105,0),COLUMN(N$4)))))*IF($F72="",IF(VLOOKUP($B72,SCHEMA_CE!$E$5:$F$54,2,FALSE)="C",-1,1),IF(OR(VLOOKUP($B72,SCHEMA_CE!$E$5:$F$54,2,FALSE)="C",VLOOKUP($F72,SCHEMA_CE!$E$5:$F$54,2,FALSE)="C"),-1,1))) ->  | O72: =IF($B72="","",I72*IF($F72="",1,IF(ISERROR(MATCH($F72,$B$6:$B$105,0)),0,INDIRECT(ADDRESS(5+MATCH($F72,$B$6:$B$105,0),COLUMN(O$4)))))*IF($F72="",IF(VLOOKUP($B72,SCHEMA_CE!$E$5:$F$54,2,FALSE)="C",-1,1),IF(OR(VLOOKUP($B72,SCHEMA_CE!$E$5:$F$54,2,FALSE)="C",VLOOKUP($F72,SCHEMA_CE!$E$5:$F$54,2,FALSE)="C"),-1,1))) ->  | P72: =IF($B72="","",J72*IF($F72="",1,IF(ISERROR(MATCH($F72,$B$6:$B$105,0)),0,INDIRECT(ADDRESS(5+MATCH($F72,$B$6:$B$105,0),COLUMN(P$4)))))*IF($F72="",IF(VLOOKUP($B72,SCHEMA_CE!$E$5:$F$54,2,FALSE)="C",-1,1),IF(OR(VLOOKUP($B72,SCHEMA_CE!$E$5:$F$54,2,FALSE)="C",VLOOKUP($F72,SCHEMA_CE!$E$5:$F$54,2,FALSE)="C"),-1,1))) ->  | Q72: =IF($B72="","",K72*IF($F72="",1,IF(ISERROR(MATCH($F72,$B$6:$B$105,0)),0,INDIRECT(ADDRESS(5+MATCH($F72,$B$6:$B$105,0),COLUMN(Q$4)))))*IF($F72="",IF(VLOOKUP($B72,SCHEMA_CE!$E$5:$F$54,2,FALSE)="C",-1,1),IF(OR(VLOOKUP($B72,SCHEMA_CE!$E$5:$F$54,2,FALSE)="C",VLOOKUP($F72,SCHEMA_CE!$E$5:$F$54,2,FALSE)="C"),-1,1))) -> 
M73: =IF($B73="","",G73*IF($F73="",1,IF(ISERROR(MATCH($F73,$B$6:$B$105,0)),0,INDIRECT(ADDRESS(5+MATCH($F73,$B$6:$B$105,0),COLUMN(M$4)))))*IF($F73="",IF(VLOOKUP($B73,SCHEMA_CE!$E$5:$F$54,2,FALSE)="C",-1,1),IF(OR(VLOOKUP($B73,SCHEMA_CE!$E$5:$F$54,2,FALSE)="C",VLOOKUP($F73,SCHEMA_CE!$E$5:$F$54,2,FALSE)="C"),-1,1))) ->  | N73: =IF($B73="","",H73*IF($F73="",1,IF(ISERROR(MATCH($F73,$B$6:$B$105,0)),0,INDIRECT(ADDRESS(5+MATCH($F73,$B$6:$B$105,0),COLUMN(N$4)))))*IF($F73="",IF(VLOOKUP($B73,SCHEMA_CE!$E$5:$F$54,2,FALSE)="C",-1,1),IF(OR(VLOOKUP($B73,SCHEMA_CE!$E$5:$F$54,2,FALSE)="C",VLOOKUP($F73,SCHEMA_CE!$E$5:$F$54,2,FALSE)="C"),-1,1))) ->  | O73: =IF($B73="","",I73*IF($F73="",1,IF(ISERROR(MATCH($F73,$B$6:$B$105,0)),0,INDIRECT(ADDRESS(5+MATCH($F73,$B$6:$B$105,0),COLUMN(O$4)))))*IF($F73="",IF(VLOOKUP($B73,SCHEMA_CE!$E$5:$F$54,2,FALSE)="C",-1,1),IF(OR(VLOOKUP($B73,SCHEMA_CE!$E$5:$F$54,2,FALSE)="C",VLOOKUP($F73,SCHEMA_CE!$E$5:$F$54,2,FALSE)="C"),-1,1))) ->  | P73: =IF($B73="","",J73*IF($F73="",1,IF(ISERROR(MATCH($F73,$B$6:$B$105,0)),0,INDIRECT(ADDRESS(5+MATCH($F73,$B$6:$B$105,0),COLUMN(P$4)))))*IF($F73="",IF(VLOOKUP($B73,SCHEMA_CE!$E$5:$F$54,2,FALSE)="C",-1,1),IF(OR(VLOOKUP($B73,SCHEMA_CE!$E$5:$F$54,2,FALSE)="C",VLOOKUP($F73,SCHEMA_CE!$E$5:$F$54,2,FALSE)="C"),-1,1))) ->  | Q73: =IF($B73="","",K73*IF($F73="",1,IF(ISERROR(MATCH($F73,$B$6:$B$105,0)),0,INDIRECT(ADDRESS(5+MATCH($F73,$B$6:$B$105,0),COLUMN(Q$4)))))*IF($F73="",IF(VLOOKUP($B73,SCHEMA_CE!$E$5:$F$54,2,FALSE)="C",-1,1),IF(OR(VLOOKUP($B73,SCHEMA_CE!$E$5:$F$54,2,FALSE)="C",VLOOKUP($F73,SCHEMA_CE!$E$5:$F$54,2,FALSE)="C"),-1,1))) -> 
M74: =IF($B74="","",G74*IF($F74="",1,IF(ISERROR(MATCH($F74,$B$6:$B$105,0)),0,INDIRECT(ADDRESS(5+MATCH($F74,$B$6:$B$105,0),COLUMN(M$4)))))*IF($F74="",IF(VLOOKUP($B74,SCHEMA_CE!$E$5:$F$54,2,FALSE)="C",-1,1),IF(OR(VLOOKUP($B74,SCHEMA_CE!$E$5:$F$54,2,FALSE)="C",VLOOKUP($F74,SCHEMA_CE!$E$5:$F$54,2,FALSE)="C"),-1,1))) ->  | N74: =IF($B74="","",H74*IF($F74="",1,IF(ISERROR(MATCH($F74,$B$6:$B$105,0)),0,INDIRECT(ADDRESS(5+MATCH($F74,$B$6:$B$105,0),COLUMN(N$4)))))*IF($F74="",IF(VLOOKUP($B74,SCHEMA_CE!$E$5:$F$54,2,FALSE)="C",-1,1),IF(OR(VLOOKUP($B74,SCHEMA_CE!$E$5:$F$54,2,FALSE)="C",VLOOKUP($F74,SCHEMA_CE!$E$5:$F$54,2,FALSE)="C"),-1,1))) ->  | O74: =IF($B74="","",I74*IF($F74="",1,IF(ISERROR(MATCH($F74,$B$6:$B$105,0)),0,INDIRECT(ADDRESS(5+MATCH($F74,$B$6:$B$105,0),COLUMN(O$4)))))*IF($F74="",IF(VLOOKUP($B74,SCHEMA_CE!$E$5:$F$54,2,FALSE)="C",-1,1),IF(OR(VLOOKUP($B74,SCHEMA_CE!$E$5:$F$54,2,FALSE)="C",VLOOKUP($F74,SCHEMA_CE!$E$5:$F$54,2,FALSE)="C"),-1,1))) ->  | P74: =IF($B74="","",J74*IF($F74="",1,IF(ISERROR(MATCH($F74,$B$6:$B$105,0)),0,INDIRECT(ADDRESS(5+MATCH($F74,$B$6:$B$105,0),COLUMN(P$4)))))*IF($F74="",IF(VLOOKUP($B74,SCHEMA_CE!$E$5:$F$54,2,FALSE)="C",-1,1),IF(OR(VLOOKUP($B74,SCHEMA_CE!$E$5:$F$54,2,FALSE)="C",VLOOKUP($F74,SCHEMA_CE!$E$5:$F$54,2,FALSE)="C"),-1,1))) ->  | Q74: =IF($B74="","",K74*IF($F74="",1,IF(ISERROR(MATCH($F74,$B$6:$B$105,0)),0,INDIRECT(ADDRESS(5+MATCH($F74,$B$6:$B$105,0),COLUMN(Q$4)))))*IF($F74="",IF(VLOOKUP($B74,SCHEMA_CE!$E$5:$F$54,2,FALSE)="C",-1,1),IF(OR(VLOOKUP($B74,SCHEMA_CE!$E$5:$F$54,2,FALSE)="C",VLOOKUP($F74,SCHEMA_CE!$E$5:$F$54,2,FALSE)="C"),-1,1))) -> 
M75: =IF($B75="","",G75*IF($F75="",1,IF(ISERROR(MATCH($F75,$B$6:$B$105,0)),0,INDIRECT(ADDRESS(5+MATCH($F75,$B$6:$B$105,0),COLUMN(M$4)))))*IF($F75="",IF(VLOOKUP($B75,SCHEMA_CE!$E$5:$F$54,2,FALSE)="C",-1,1),IF(OR(VLOOKUP($B75,SCHEMA_CE!$E$5:$F$54,2,FALSE)="C",VLOOKUP($F75,SCHEMA_CE!$E$5:$F$54,2,FALSE)="C"),-1,1))) ->  | N75: =IF($B75="","",H75*IF($F75="",1,IF(ISERROR(MATCH($F75,$B$6:$B$105,0)),0,INDIRECT(ADDRESS(5+MATCH($F75,$B$6:$B$105,0),COLUMN(N$4)))))*IF($F75="",IF(VLOOKUP($B75,SCHEMA_CE!$E$5:$F$54,2,FALSE)="C",-1,1),IF(OR(VLOOKUP($B75,SCHEMA_CE!$E$5:$F$54,2,FALSE)="C",VLOOKUP($F75,SCHEMA_CE!$E$5:$F$54,2,FALSE)="C"),-1,1))) ->  | O75: =IF($B75="","",I75*IF($F75="",1,IF(ISERROR(MATCH($F75,$B$6:$B$105,0)),0,INDIRECT(ADDRESS(5+MATCH($F75,$B$6:$B$105,0),COLUMN(O$4)))))*IF($F75="",IF(VLOOKUP($B75,SCHEMA_CE!$E$5:$F$54,2,FALSE)="C",-1,1),IF(OR(VLOOKUP($B75,SCHEMA_CE!$E$5:$F$54,2,FALSE)="C",VLOOKUP($F75,SCHEMA_CE!$E$5:$F$54,2,FALSE)="C"),-1,1))) ->  | P75: =IF($B75="","",J75*IF($F75="",1,IF(ISERROR(MATCH($F75,$B$6:$B$105,0)),0,INDIRECT(ADDRESS(5+MATCH($F75,$B$6:$B$105,0),COLUMN(P$4)))))*IF($F75="",IF(VLOOKUP($B75,SCHEMA_CE!$E$5:$F$54,2,FALSE)="C",-1,1),IF(OR(VLOOKUP($B75,SCHEMA_CE!$E$5:$F$54,2,FALSE)="C",VLOOKUP($F75,SCHEMA_CE!$E$5:$F$54,2,FALSE)="C"),-1,1))) ->  | Q75: =IF($B75="","",K75*IF($F75="",1,IF(ISERROR(MATCH($F75,$B$6:$B$105,0)),0,INDIRECT(ADDRESS(5+MATCH($F75,$B$6:$B$105,0),COLUMN(Q$4)))))*IF($F75="",IF(VLOOKUP($B75,SCHEMA_CE!$E$5:$F$54,2,FALSE)="C",-1,1),IF(OR(VLOOKUP($B75,SCHEMA_CE!$E$5:$F$54,2,FALSE)="C",VLOOKUP($F75,SCHEMA_CE!$E$5:$F$54,2,FALSE)="C"),-1,1))) -> 
M76: =IF($B76="","",G76*IF($F76="",1,IF(ISERROR(MATCH($F76,$B$6:$B$105,0)),0,INDIRECT(ADDRESS(5+MATCH($F76,$B$6:$B$105,0),COLUMN(M$4)))))*IF($F76="",IF(VLOOKUP($B76,SCHEMA_CE!$E$5:$F$54,2,FALSE)="C",-1,1),IF(OR(VLOOKUP($B76,SCHEMA_CE!$E$5:$F$54,2,FALSE)="C",VLOOKUP($F76,SCHEMA_CE!$E$5:$F$54,2,FALSE)="C"),-1,1))) ->  | N76: =IF($B76="","",H76*IF($F76="",1,IF(ISERROR(MATCH($F76,$B$6:$B$105,0)),0,INDIRECT(ADDRESS(5+MATCH($F76,$B$6:$B$105,0),COLUMN(N$4)))))*IF($F76="",IF(VLOOKUP($B76,SCHEMA_CE!$E$5:$F$54,2,FALSE)="C",-1,1),IF(OR(VLOOKUP($B76,SCHEMA_CE!$E$5:$F$54,2,FALSE)="C",VLOOKUP($F76,SCHEMA_CE!$E$5:$F$54,2,FALSE)="C"),-1,1))) ->  | O76: =IF($B76="","",I76*IF($F76="",1,IF(ISERROR(MATCH($F76,$B$6:$B$105,0)),0,INDIRECT(ADDRESS(5+MATCH($F76,$B$6:$B$105,0),COLUMN(O$4)))))*IF($F76="",IF(VLOOKUP($B76,SCHEMA_CE!$E$5:$F$54,2,FALSE)="C",-1,1),IF(OR(VLOOKUP($B76,SCHEMA_CE!$E$5:$F$54,2,FALSE)="C",VLOOKUP($F76,SCHEMA_CE!$E$5:$F$54,2,FALSE)="C"),-1,1))) ->  | P76: =IF($B76="","",J76*IF($F76="",1,IF(ISERROR(MATCH($F76,$B$6:$B$105,0)),0,INDIRECT(ADDRESS(5+MATCH($F76,$B$6:$B$105,0),COLUMN(P$4)))))*IF($F76="",IF(VLOOKUP($B76,SCHEMA_CE!$E$5:$F$54,2,FALSE)="C",-1,1),IF(OR(VLOOKUP($B76,SCHEMA_CE!$E$5:$F$54,2,FALSE)="C",VLOOKUP($F76,SCHEMA_CE!$E$5:$F$54,2,FALSE)="C"),-1,1))) ->  | Q76: =IF($B76="","",K76*IF($F76="",1,IF(ISERROR(MATCH($F76,$B$6:$B$105,0)),0,INDIRECT(ADDRESS(5+MATCH($F76,$B$6:$B$105,0),COLUMN(Q$4)))))*IF($F76="",IF(VLOOKUP($B76,SCHEMA_CE!$E$5:$F$54,2,FALSE)="C",-1,1),IF(OR(VLOOKUP($B76,SCHEMA_CE!$E$5:$F$54,2,FALSE)="C",VLOOKUP($F76,SCHEMA_CE!$E$5:$F$54,2,FALSE)="C"),-1,1))) -> 
M77: =IF($B77="","",G77*IF($F77="",1,IF(ISERROR(MATCH($F77,$B$6:$B$105,0)),0,INDIRECT(ADDRESS(5+MATCH($F77,$B$6:$B$105,0),COLUMN(M$4)))))*IF($F77="",IF(VLOOKUP($B77,SCHEMA_CE!$E$5:$F$54,2,FALSE)="C",-1,1),IF(OR(VLOOKUP($B77,SCHEMA_CE!$E$5:$F$54,2,FALSE)="C",VLOOKUP($F77,SCHEMA_CE!$E$5:$F$54,2,FALSE)="C"),-1,1))) ->  | N77: =IF($B77="","",H77*IF($F77="",1,IF(ISERROR(MATCH($F77,$B$6:$B$105,0)),0,INDIRECT(ADDRESS(5+MATCH($F77,$B$6:$B$105,0),COLUMN(N$4)))))*IF($F77="",IF(VLOOKUP($B77,SCHEMA_CE!$E$5:$F$54,2,FALSE)="C",-1,1),IF(OR(VLOOKUP($B77,SCHEMA_CE!$E$5:$F$54,2,FALSE)="C",VLOOKUP($F77,SCHEMA_CE!$E$5:$F$54,2,FALSE)="C"),-1,1))) ->  | O77: =IF($B77="","",I77*IF($F77="",1,IF(ISERROR(MATCH($F77,$B$6:$B$105,0)),0,INDIRECT(ADDRESS(5+MATCH($F77,$B$6:$B$105,0),COLUMN(O$4)))))*IF($F77="",IF(VLOOKUP($B77,SCHEMA_CE!$E$5:$F$54,2,FALSE)="C",-1,1),IF(OR(VLOOKUP($B77,SCHEMA_CE!$E$5:$F$54,2,FALSE)="C",VLOOKUP($F77,SCHEMA_CE!$E$5:$F$54,2,FALSE)="C"),-1,1))) ->  | P77: =IF($B77="","",J77*IF($F77="",1,IF(ISERROR(MATCH($F77,$B$6:$B$105,0)),0,INDIRECT(ADDRESS(5+MATCH($F77,$B$6:$B$105,0),COLUMN(P$4)))))*IF($F77="",IF(VLOOKUP($B77,SCHEMA_CE!$E$5:$F$54,2,FALSE)="C",-1,1),IF(OR(VLOOKUP($B77,SCHEMA_CE!$E$5:$F$54,2,FALSE)="C",VLOOKUP($F77,SCHEMA_CE!$E$5:$F$54,2,FALSE)="C"),-1,1))) ->  | Q77: =IF($B77="","",K77*IF($F77="",1,IF(ISERROR(MATCH($F77,$B$6:$B$105,0)),0,INDIRECT(ADDRESS(5+MATCH($F77,$B$6:$B$105,0),COLUMN(Q$4)))))*IF($F77="",IF(VLOOKUP($B77,SCHEMA_CE!$E$5:$F$54,2,FALSE)="C",-1,1),IF(OR(VLOOKUP($B77,SCHEMA_CE!$E$5:$F$54,2,FALSE)="C",VLOOKUP($F77,SCHEMA_CE!$E$5:$F$54,2,FALSE)="C"),-1,1))) -> 
M78: =IF($B78="","",G78*IF($F78="",1,IF(ISERROR(MATCH($F78,$B$6:$B$105,0)),0,INDIRECT(ADDRESS(5+MATCH($F78,$B$6:$B$105,0),COLUMN(M$4)))))*IF($F78="",IF(VLOOKUP($B78,SCHEMA_CE!$E$5:$F$54,2,FALSE)="C",-1,1),IF(OR(VLOOKUP($B78,SCHEMA_CE!$E$5:$F$54,2,FALSE)="C",VLOOKUP($F78,SCHEMA_CE!$E$5:$F$54,2,FALSE)="C"),-1,1))) ->  | N78: =IF($B78="","",H78*IF($F78="",1,IF(ISERROR(MATCH($F78,$B$6:$B$105,0)),0,INDIRECT(ADDRESS(5+MATCH($F78,$B$6:$B$105,0),COLUMN(N$4)))))*IF($F78="",IF(VLOOKUP($B78,SCHEMA_CE!$E$5:$F$54,2,FALSE)="C",-1,1),IF(OR(VLOOKUP($B78,SCHEMA_CE!$E$5:$F$54,2,FALSE)="C",VLOOKUP($F78,SCHEMA_CE!$E$5:$F$54,2,FALSE)="C"),-1,1))) ->  | O78: =IF($B78="","",I78*IF($F78="",1,IF(ISERROR(MATCH($F78,$B$6:$B$105,0)),0,INDIRECT(ADDRESS(5+MATCH($F78,$B$6:$B$105,0),COLUMN(O$4)))))*IF($F78="",IF(VLOOKUP($B78,SCHEMA_CE!$E$5:$F$54,2,FALSE)="C",-1,1),IF(OR(VLOOKUP($B78,SCHEMA_CE!$E$5:$F$54,2,FALSE)="C",VLOOKUP($F78,SCHEMA_CE!$E$5:$F$54,2,FALSE)="C"),-1,1))) ->  | P78: =IF($B78="","",J78*IF($F78="",1,IF(ISERROR(MATCH($F78,$B$6:$B$105,0)),0,INDIRECT(ADDRESS(5+MATCH($F78,$B$6:$B$105,0),COLUMN(P$4)))))*IF($F78="",IF(VLOOKUP($B78,SCHEMA_CE!$E$5:$F$54,2,FALSE)="C",-1,1),IF(OR(VLOOKUP($B78,SCHEMA_CE!$E$5:$F$54,2,FALSE)="C",VLOOKUP($F78,SCHEMA_CE!$E$5:$F$54,2,FALSE)="C"),-1,1))) ->  | Q78: =IF($B78="","",K78*IF($F78="",1,IF(ISERROR(MATCH($F78,$B$6:$B$105,0)),0,INDIRECT(ADDRESS(5+MATCH($F78,$B$6:$B$105,0),COLUMN(Q$4)))))*IF($F78="",IF(VLOOKUP($B78,SCHEMA_CE!$E$5:$F$54,2,FALSE)="C",-1,1),IF(OR(VLOOKUP($B78,SCHEMA_CE!$E$5:$F$54,2,FALSE)="C",VLOOKUP($F78,SCHEMA_CE!$E$5:$F$54,2,FALSE)="C"),-1,1))) -> 
M79: =IF($B79="","",G79*IF($F79="",1,IF(ISERROR(MATCH($F79,$B$6:$B$105,0)),0,INDIRECT(ADDRESS(5+MATCH($F79,$B$6:$B$105,0),COLUMN(M$4)))))*IF($F79="",IF(VLOOKUP($B79,SCHEMA_CE!$E$5:$F$54,2,FALSE)="C",-1,1),IF(OR(VLOOKUP($B79,SCHEMA_CE!$E$5:$F$54,2,FALSE)="C",VLOOKUP($F79,SCHEMA_CE!$E$5:$F$54,2,FALSE)="C"),-1,1))) ->  | N79: =IF($B79="","",H79*IF($F79="",1,IF(ISERROR(MATCH($F79,$B$6:$B$105,0)),0,INDIRECT(ADDRESS(5+MATCH($F79,$B$6:$B$105,0),COLUMN(N$4)))))*IF($F79="",IF(VLOOKUP($B79,SCHEMA_CE!$E$5:$F$54,2,FALSE)="C",-1,1),IF(OR(VLOOKUP($B79,SCHEMA_CE!$E$5:$F$54,2,FALSE)="C",VLOOKUP($F79,SCHEMA_CE!$E$5:$F$54,2,FALSE)="C"),-1,1))) ->  | O79: =IF($B79="","",I79*IF($F79="",1,IF(ISERROR(MATCH($F79,$B$6:$B$105,0)),0,INDIRECT(ADDRESS(5+MATCH($F79,$B$6:$B$105,0),COLUMN(O$4)))))*IF($F79="",IF(VLOOKUP($B79,SCHEMA_CE!$E$5:$F$54,2,FALSE)="C",-1,1),IF(OR(VLOOKUP($B79,SCHEMA_CE!$E$5:$F$54,2,FALSE)="C",VLOOKUP($F79,SCHEMA_CE!$E$5:$F$54,2,FALSE)="C"),-1,1))) ->  | P79: =IF($B79="","",J79*IF($F79="",1,IF(ISERROR(MATCH($F79,$B$6:$B$105,0)),0,INDIRECT(ADDRESS(5+MATCH($F79,$B$6:$B$105,0),COLUMN(P$4)))))*IF($F79="",IF(VLOOKUP($B79,SCHEMA_CE!$E$5:$F$54,2,FALSE)="C",-1,1),IF(OR(VLOOKUP($B79,SCHEMA_CE!$E$5:$F$54,2,FALSE)="C",VLOOKUP($F79,SCHEMA_CE!$E$5:$F$54,2,FALSE)="C"),-1,1))) ->  | Q79: =IF($B79="","",K79*IF($F79="",1,IF(ISERROR(MATCH($F79,$B$6:$B$105,0)),0,INDIRECT(ADDRESS(5+MATCH($F79,$B$6:$B$105,0),COLUMN(Q$4)))))*IF($F79="",IF(VLOOKUP($B79,SCHEMA_CE!$E$5:$F$54,2,FALSE)="C",-1,1),IF(OR(VLOOKUP($B79,SCHEMA_CE!$E$5:$F$54,2,FALSE)="C",VLOOKUP($F79,SCHEMA_CE!$E$5:$F$54,2,FALSE)="C"),-1,1))) -> 
M80: =IF($B80="","",G80*IF($F80="",1,IF(ISERROR(MATCH($F80,$B$6:$B$105,0)),0,INDIRECT(ADDRESS(5+MATCH($F80,$B$6:$B$105,0),COLUMN(M$4)))))*IF($F80="",IF(VLOOKUP($B80,SCHEMA_CE!$E$5:$F$54,2,FALSE)="C",-1,1),IF(OR(VLOOKUP($B80,SCHEMA_CE!$E$5:$F$54,2,FALSE)="C",VLOOKUP($F80,SCHEMA_CE!$E$5:$F$54,2,FALSE)="C"),-1,1))) ->  | N80: =IF($B80="","",H80*IF($F80="",1,IF(ISERROR(MATCH($F80,$B$6:$B$105,0)),0,INDIRECT(ADDRESS(5+MATCH($F80,$B$6:$B$105,0),COLUMN(N$4)))))*IF($F80="",IF(VLOOKUP($B80,SCHEMA_CE!$E$5:$F$54,2,FALSE)="C",-1,1),IF(OR(VLOOKUP($B80,SCHEMA_CE!$E$5:$F$54,2,FALSE)="C",VLOOKUP($F80,SCHEMA_CE!$E$5:$F$54,2,FALSE)="C"),-1,1))) ->  | O80: =IF($B80="","",I80*IF($F80="",1,IF(ISERROR(MATCH($F80,$B$6:$B$105,0)),0,INDIRECT(ADDRESS(5+MATCH($F80,$B$6:$B$105,0),COLUMN(O$4)))))*IF($F80="",IF(VLOOKUP($B80,SCHEMA_CE!$E$5:$F$54,2,FALSE)="C",-1,1),IF(OR(VLOOKUP($B80,SCHEMA_CE!$E$5:$F$54,2,FALSE)="C",VLOOKUP($F80,SCHEMA_CE!$E$5:$F$54,2,FALSE)="C"),-1,1))) ->  | P80: =IF($B80="","",J80*IF($F80="",1,IF(ISERROR(MATCH($F80,$B$6:$B$105,0)),0,INDIRECT(ADDRESS(5+MATCH($F80,$B$6:$B$105,0),COLUMN(P$4)))))*IF($F80="",IF(VLOOKUP($B80,SCHEMA_CE!$E$5:$F$54,2,FALSE)="C",-1,1),IF(OR(VLOOKUP($B80,SCHEMA_CE!$E$5:$F$54,2,FALSE)="C",VLOOKUP($F80,SCHEMA_CE!$E$5:$F$54,2,FALSE)="C"),-1,1))) ->  | Q80: =IF($B80="","",K80*IF($F80="",1,IF(ISERROR(MATCH($F80,$B$6:$B$105,0)),0,INDIRECT(ADDRESS(5+MATCH($F80,$B$6:$B$105,0),COLUMN(Q$4)))))*IF($F80="",IF(VLOOKUP($B80,SCHEMA_CE!$E$5:$F$54,2,FALSE)="C",-1,1),IF(OR(VLOOKUP($B80,SCHEMA_CE!$E$5:$F$54,2,FALSE)="C",VLOOKUP($F80,SCHEMA_CE!$E$5:$F$54,2,FALSE)="C"),-1,1))) -> 
M81: =IF($B81="","",G81*IF($F81="",1,IF(ISERROR(MATCH($F81,$B$6:$B$105,0)),0,INDIRECT(ADDRESS(5+MATCH($F81,$B$6:$B$105,0),COLUMN(M$4)))))*IF($F81="",IF(VLOOKUP($B81,SCHEMA_CE!$E$5:$F$54,2,FALSE)="C",-1,1),IF(OR(VLOOKUP($B81,SCHEMA_CE!$E$5:$F$54,2,FALSE)="C",VLOOKUP($F81,SCHEMA_CE!$E$5:$F$54,2,FALSE)="C"),-1,1))) ->  | N81: =IF($B81="","",H81*IF($F81="",1,IF(ISERROR(MATCH($F81,$B$6:$B$105,0)),0,INDIRECT(ADDRESS(5+MATCH($F81,$B$6:$B$105,0),COLUMN(N$4)))))*IF($F81="",IF(VLOOKUP($B81,SCHEMA_CE!$E$5:$F$54,2,FALSE)="C",-1,1),IF(OR(VLOOKUP($B81,SCHEMA_CE!$E$5:$F$54,2,FALSE)="C",VLOOKUP($F81,SCHEMA_CE!$E$5:$F$54,2,FALSE)="C"),-1,1))) ->  | O81: =IF($B81="","",I81*IF($F81="",1,IF(ISERROR(MATCH($F81,$B$6:$B$105,0)),0,INDIRECT(ADDRESS(5+MATCH($F81,$B$6:$B$105,0),COLUMN(O$4)))))*IF($F81="",IF(VLOOKUP($B81,SCHEMA_CE!$E$5:$F$54,2,FALSE)="C",-1,1),IF(OR(VLOOKUP($B81,SCHEMA_CE!$E$5:$F$54,2,FALSE)="C",VLOOKUP($F81,SCHEMA_CE!$E$5:$F$54,2,FALSE)="C"),-1,1))) ->  | P81: =IF($B81="","",J81*IF($F81="",1,IF(ISERROR(MATCH($F81,$B$6:$B$105,0)),0,INDIRECT(ADDRESS(5+MATCH($F81,$B$6:$B$105,0),COLUMN(P$4)))))*IF($F81="",IF(VLOOKUP($B81,SCHEMA_CE!$E$5:$F$54,2,FALSE)="C",-1,1),IF(OR(VLOOKUP($B81,SCHEMA_CE!$E$5:$F$54,2,FALSE)="C",VLOOKUP($F81,SCHEMA_CE!$E$5:$F$54,2,FALSE)="C"),-1,1))) ->  | Q81: =IF($B81="","",K81*IF($F81="",1,IF(ISERROR(MATCH($F81,$B$6:$B$105,0)),0,INDIRECT(ADDRESS(5+MATCH($F81,$B$6:$B$105,0),COLUMN(Q$4)))))*IF($F81="",IF(VLOOKUP($B81,SCHEMA_CE!$E$5:$F$54,2,FALSE)="C",-1,1),IF(OR(VLOOKUP($B81,SCHEMA_CE!$E$5:$F$54,2,FALSE)="C",VLOOKUP($F81,SCHEMA_CE!$E$5:$F$54,2,FALSE)="C"),-1,1))) -> 
M82: =IF($B82="","",G82*IF($F82="",1,IF(ISERROR(MATCH($F82,$B$6:$B$105,0)),0,INDIRECT(ADDRESS(5+MATCH($F82,$B$6:$B$105,0),COLUMN(M$4)))))*IF($F82="",IF(VLOOKUP($B82,SCHEMA_CE!$E$5:$F$54,2,FALSE)="C",-1,1),IF(OR(VLOOKUP($B82,SCHEMA_CE!$E$5:$F$54,2,FALSE)="C",VLOOKUP($F82,SCHEMA_CE!$E$5:$F$54,2,FALSE)="C"),-1,1))) ->  | N82: =IF($B82="","",H82*IF($F82="",1,IF(ISERROR(MATCH($F82,$B$6:$B$105,0)),0,INDIRECT(ADDRESS(5+MATCH($F82,$B$6:$B$105,0),COLUMN(N$4)))))*IF($F82="",IF(VLOOKUP($B82,SCHEMA_CE!$E$5:$F$54,2,FALSE)="C",-1,1),IF(OR(VLOOKUP($B82,SCHEMA_CE!$E$5:$F$54,2,FALSE)="C",VLOOKUP($F82,SCHEMA_CE!$E$5:$F$54,2,FALSE)="C"),-1,1))) ->  | O82: =IF($B82="","",I82*IF($F82="",1,IF(ISERROR(MATCH($F82,$B$6:$B$105,0)),0,INDIRECT(ADDRESS(5+MATCH($F82,$B$6:$B$105,0),COLUMN(O$4)))))*IF($F82="",IF(VLOOKUP($B82,SCHEMA_CE!$E$5:$F$54,2,FALSE)="C",-1,1),IF(OR(VLOOKUP($B82,SCHEMA_CE!$E$5:$F$54,2,FALSE)="C",VLOOKUP($F82,SCHEMA_CE!$E$5:$F$54,2,FALSE)="C"),-1,1))) ->  | P82: =IF($B82="","",J82*IF($F82="",1,IF(ISERROR(MATCH($F82,$B$6:$B$105,0)),0,INDIRECT(ADDRESS(5+MATCH($F82,$B$6:$B$105,0),COLUMN(P$4)))))*IF($F82="",IF(VLOOKUP($B82,SCHEMA_CE!$E$5:$F$54,2,FALSE)="C",-1,1),IF(OR(VLOOKUP($B82,SCHEMA_CE!$E$5:$F$54,2,FALSE)="C",VLOOKUP($F82,SCHEMA_CE!$E$5:$F$54,2,FALSE)="C"),-1,1))) ->  | Q82: =IF($B82="","",K82*IF($F82="",1,IF(ISERROR(MATCH($F82,$B$6:$B$105,0)),0,INDIRECT(ADDRESS(5+MATCH($F82,$B$6:$B$105,0),COLUMN(Q$4)))))*IF($F82="",IF(VLOOKUP($B82,SCHEMA_CE!$E$5:$F$54,2,FALSE)="C",-1,1),IF(OR(VLOOKUP($B82,SCHEMA_CE!$E$5:$F$54,2,FALSE)="C",VLOOKUP($F82,SCHEMA_CE!$E$5:$F$54,2,FALSE)="C"),-1,1))) -> 
M83: =IF($B83="","",G83*IF($F83="",1,IF(ISERROR(MATCH($F83,$B$6:$B$105,0)),0,INDIRECT(ADDRESS(5+MATCH($F83,$B$6:$B$105,0),COLUMN(M$4)))))*IF($F83="",IF(VLOOKUP($B83,SCHEMA_CE!$E$5:$F$54,2,FALSE)="C",-1,1),IF(OR(VLOOKUP($B83,SCHEMA_CE!$E$5:$F$54,2,FALSE)="C",VLOOKUP($F83,SCHEMA_CE!$E$5:$F$54,2,FALSE)="C"),-1,1))) ->  | N83: =IF($B83="","",H83*IF($F83="",1,IF(ISERROR(MATCH($F83,$B$6:$B$105,0)),0,INDIRECT(ADDRESS(5+MATCH($F83,$B$6:$B$105,0),COLUMN(N$4)))))*IF($F83="",IF(VLOOKUP($B83,SCHEMA_CE!$E$5:$F$54,2,FALSE)="C",-1,1),IF(OR(VLOOKUP($B83,SCHEMA_CE!$E$5:$F$54,2,FALSE)="C",VLOOKUP($F83,SCHEMA_CE!$E$5:$F$54,2,FALSE)="C"),-1,1))) ->  | O83: =IF($B83="","",I83*IF($F83="",1,IF(ISERROR(MATCH($F83,$B$6:$B$105,0)),0,INDIRECT(ADDRESS(5+MATCH($F83,$B$6:$B$105,0),COLUMN(O$4)))))*IF($F83="",IF(VLOOKUP($B83,SCHEMA_CE!$E$5:$F$54,2,FALSE)="C",-1,1),IF(OR(VLOOKUP($B83,SCHEMA_CE!$E$5:$F$54,2,FALSE)="C",VLOOKUP($F83,SCHEMA_CE!$E$5:$F$54,2,FALSE)="C"),-1,1))) ->  | P83: =IF($B83="","",J83*IF($F83="",1,IF(ISERROR(MATCH($F83,$B$6:$B$105,0)),0,INDIRECT(ADDRESS(5+MATCH($F83,$B$6:$B$105,0),COLUMN(P$4)))))*IF($F83="",IF(VLOOKUP($B83,SCHEMA_CE!$E$5:$F$54,2,FALSE)="C",-1,1),IF(OR(VLOOKUP($B83,SCHEMA_CE!$E$5:$F$54,2,FALSE)="C",VLOOKUP($F83,SCHEMA_CE!$E$5:$F$54,2,FALSE)="C"),-1,1))) ->  | Q83: =IF($B83="","",K83*IF($F83="",1,IF(ISERROR(MATCH($F83,$B$6:$B$105,0)),0,INDIRECT(ADDRESS(5+MATCH($F83,$B$6:$B$105,0),COLUMN(Q$4)))))*IF($F83="",IF(VLOOKUP($B83,SCHEMA_CE!$E$5:$F$54,2,FALSE)="C",-1,1),IF(OR(VLOOKUP($B83,SCHEMA_CE!$E$5:$F$54,2,FALSE)="C",VLOOKUP($F83,SCHEMA_CE!$E$5:$F$54,2,FALSE)="C"),-1,1))) -> 
M84: =IF($B84="","",G84*IF($F84="",1,IF(ISERROR(MATCH($F84,$B$6:$B$105,0)),0,INDIRECT(ADDRESS(5+MATCH($F84,$B$6:$B$105,0),COLUMN(M$4)))))*IF($F84="",IF(VLOOKUP($B84,SCHEMA_CE!$E$5:$F$54,2,FALSE)="C",-1,1),IF(OR(VLOOKUP($B84,SCHEMA_CE!$E$5:$F$54,2,FALSE)="C",VLOOKUP($F84,SCHEMA_CE!$E$5:$F$54,2,FALSE)="C"),-1,1))) ->  | N84: =IF($B84="","",H84*IF($F84="",1,IF(ISERROR(MATCH($F84,$B$6:$B$105,0)),0,INDIRECT(ADDRESS(5+MATCH($F84,$B$6:$B$105,0),COLUMN(N$4)))))*IF($F84="",IF(VLOOKUP($B84,SCHEMA_CE!$E$5:$F$54,2,FALSE)="C",-1,1),IF(OR(VLOOKUP($B84,SCHEMA_CE!$E$5:$F$54,2,FALSE)="C",VLOOKUP($F84,SCHEMA_CE!$E$5:$F$54,2,FALSE)="C"),-1,1))) ->  | O84: =IF($B84="","",I84*IF($F84="",1,IF(ISERROR(MATCH($F84,$B$6:$B$105,0)),0,INDIRECT(ADDRESS(5+MATCH($F84,$B$6:$B$105,0),COLUMN(O$4)))))*IF($F84="",IF(VLOOKUP($B84,SCHEMA_CE!$E$5:$F$54,2,FALSE)="C",-1,1),IF(OR(VLOOKUP($B84,SCHEMA_CE!$E$5:$F$54,2,FALSE)="C",VLOOKUP($F84,SCHEMA_CE!$E$5:$F$54,2,FALSE)="C"),-1,1))) ->  | P84: =IF($B84="","",J84*IF($F84="",1,IF(ISERROR(MATCH($F84,$B$6:$B$105,0)),0,INDIRECT(ADDRESS(5+MATCH($F84,$B$6:$B$105,0),COLUMN(P$4)))))*IF($F84="",IF(VLOOKUP($B84,SCHEMA_CE!$E$5:$F$54,2,FALSE)="C",-1,1),IF(OR(VLOOKUP($B84,SCHEMA_CE!$E$5:$F$54,2,FALSE)="C",VLOOKUP($F84,SCHEMA_CE!$E$5:$F$54,2,FALSE)="C"),-1,1))) ->  | Q84: =IF($B84="","",K84*IF($F84="",1,IF(ISERROR(MATCH($F84,$B$6:$B$105,0)),0,INDIRECT(ADDRESS(5+MATCH($F84,$B$6:$B$105,0),COLUMN(Q$4)))))*IF($F84="",IF(VLOOKUP($B84,SCHEMA_CE!$E$5:$F$54,2,FALSE)="C",-1,1),IF(OR(VLOOKUP($B84,SCHEMA_CE!$E$5:$F$54,2,FALSE)="C",VLOOKUP($F84,SCHEMA_CE!$E$5:$F$54,2,FALSE)="C"),-1,1))) -> 
M85: =IF($B85="","",G85*IF($F85="",1,IF(ISERROR(MATCH($F85,$B$6:$B$105,0)),0,INDIRECT(ADDRESS(5+MATCH($F85,$B$6:$B$105,0),COLUMN(M$4)))))*IF($F85="",IF(VLOOKUP($B85,SCHEMA_CE!$E$5:$F$54,2,FALSE)="C",-1,1),IF(OR(VLOOKUP($B85,SCHEMA_CE!$E$5:$F$54,2,FALSE)="C",VLOOKUP($F85,SCHEMA_CE!$E$5:$F$54,2,FALSE)="C"),-1,1))) ->  | N85: =IF($B85="","",H85*IF($F85="",1,IF(ISERROR(MATCH($F85,$B$6:$B$105,0)),0,INDIRECT(ADDRESS(5+MATCH($F85,$B$6:$B$105,0),COLUMN(N$4)))))*IF($F85="",IF(VLOOKUP($B85,SCHEMA_CE!$E$5:$F$54,2,FALSE)="C",-1,1),IF(OR(VLOOKUP($B85,SCHEMA_CE!$E$5:$F$54,2,FALSE)="C",VLOOKUP($F85,SCHEMA_CE!$E$5:$F$54,2,FALSE)="C"),-1,1))) ->  | O85: =IF($B85="","",I85*IF($F85="",1,IF(ISERROR(MATCH($F85,$B$6:$B$105,0)),0,INDIRECT(ADDRESS(5+MATCH($F85,$B$6:$B$105,0),COLUMN(O$4)))))*IF($F85="",IF(VLOOKUP($B85,SCHEMA_CE!$E$5:$F$54,2,FALSE)="C",-1,1),IF(OR(VLOOKUP($B85,SCHEMA_CE!$E$5:$F$54,2,FALSE)="C",VLOOKUP($F85,SCHEMA_CE!$E$5:$F$54,2,FALSE)="C"),-1,1))) ->  | P85: =IF($B85="","",J85*IF($F85="",1,IF(ISERROR(MATCH($F85,$B$6:$B$105,0)),0,INDIRECT(ADDRESS(5+MATCH($F85,$B$6:$B$105,0),COLUMN(P$4)))))*IF($F85="",IF(VLOOKUP($B85,SCHEMA_CE!$E$5:$F$54,2,FALSE)="C",-1,1),IF(OR(VLOOKUP($B85,SCHEMA_CE!$E$5:$F$54,2,FALSE)="C",VLOOKUP($F85,SCHEMA_CE!$E$5:$F$54,2,FALSE)="C"),-1,1))) ->  | Q85: =IF($B85="","",K85*IF($F85="",1,IF(ISERROR(MATCH($F85,$B$6:$B$105,0)),0,INDIRECT(ADDRESS(5+MATCH($F85,$B$6:$B$105,0),COLUMN(Q$4)))))*IF($F85="",IF(VLOOKUP($B85,SCHEMA_CE!$E$5:$F$54,2,FALSE)="C",-1,1),IF(OR(VLOOKUP($B85,SCHEMA_CE!$E$5:$F$54,2,FALSE)="C",VLOOKUP($F85,SCHEMA_CE!$E$5:$F$54,2,FALSE)="C"),-1,1))) -> 
M86: =IF($B86="","",G86*IF($F86="",1,IF(ISERROR(MATCH($F86,$B$6:$B$105,0)),0,INDIRECT(ADDRESS(5+MATCH($F86,$B$6:$B$105,0),COLUMN(M$4)))))*IF($F86="",IF(VLOOKUP($B86,SCHEMA_CE!$E$5:$F$54,2,FALSE)="C",-1,1),IF(OR(VLOOKUP($B86,SCHEMA_CE!$E$5:$F$54,2,FALSE)="C",VLOOKUP($F86,SCHEMA_CE!$E$5:$F$54,2,FALSE)="C"),-1,1))) ->  | N86: =IF($B86="","",H86*IF($F86="",1,IF(ISERROR(MATCH($F86,$B$6:$B$105,0)),0,INDIRECT(ADDRESS(5+MATCH($F86,$B$6:$B$105,0),COLUMN(N$4)))))*IF($F86="",IF(VLOOKUP($B86,SCHEMA_CE!$E$5:$F$54,2,FALSE)="C",-1,1),IF(OR(VLOOKUP($B86,SCHEMA_CE!$E$5:$F$54,2,FALSE)="C",VLOOKUP($F86,SCHEMA_CE!$E$5:$F$54,2,FALSE)="C"),-1,1))) ->  | O86: =IF($B86="","",I86*IF($F86="",1,IF(ISERROR(MATCH($F86,$B$6:$B$105,0)),0,INDIRECT(ADDRESS(5+MATCH($F86,$B$6:$B$105,0),COLUMN(O$4)))))*IF($F86="",IF(VLOOKUP($B86,SCHEMA_CE!$E$5:$F$54,2,FALSE)="C",-1,1),IF(OR(VLOOKUP($B86,SCHEMA_CE!$E$5:$F$54,2,FALSE)="C",VLOOKUP($F86,SCHEMA_CE!$E$5:$F$54,2,FALSE)="C"),-1,1))) ->  | P86: =IF($B86="","",J86*IF($F86="",1,IF(ISERROR(MATCH($F86,$B$6:$B$105,0)),0,INDIRECT(ADDRESS(5+MATCH($F86,$B$6:$B$105,0),COLUMN(P$4)))))*IF($F86="",IF(VLOOKUP($B86,SCHEMA_CE!$E$5:$F$54,2,FALSE)="C",-1,1),IF(OR(VLOOKUP($B86,SCHEMA_CE!$E$5:$F$54,2,FALSE)="C",VLOOKUP($F86,SCHEMA_CE!$E$5:$F$54,2,FALSE)="C"),-1,1))) ->  | Q86: =IF($B86="","",K86*IF($F86="",1,IF(ISERROR(MATCH($F86,$B$6:$B$105,0)),0,INDIRECT(ADDRESS(5+MATCH($F86,$B$6:$B$105,0),COLUMN(Q$4)))))*IF($F86="",IF(VLOOKUP($B86,SCHEMA_CE!$E$5:$F$54,2,FALSE)="C",-1,1),IF(OR(VLOOKUP($B86,SCHEMA_CE!$E$5:$F$54,2,FALSE)="C",VLOOKUP($F86,SCHEMA_CE!$E$5:$F$54,2,FALSE)="C"),-1,1))) -> 
M87: =IF($B87="","",G87*IF($F87="",1,IF(ISERROR(MATCH($F87,$B$6:$B$105,0)),0,INDIRECT(ADDRESS(5+MATCH($F87,$B$6:$B$105,0),COLUMN(M$4)))))*IF($F87="",IF(VLOOKUP($B87,SCHEMA_CE!$E$5:$F$54,2,FALSE)="C",-1,1),IF(OR(VLOOKUP($B87,SCHEMA_CE!$E$5:$F$54,2,FALSE)="C",VLOOKUP($F87,SCHEMA_CE!$E$5:$F$54,2,FALSE)="C"),-1,1))) ->  | N87: =IF($B87="","",H87*IF($F87="",1,IF(ISERROR(MATCH($F87,$B$6:$B$105,0)),0,INDIRECT(ADDRESS(5+MATCH($F87,$B$6:$B$105,0),COLUMN(N$4)))))*IF($F87="",IF(VLOOKUP($B87,SCHEMA_CE!$E$5:$F$54,2,FALSE)="C",-1,1),IF(OR(VLOOKUP($B87,SCHEMA_CE!$E$5:$F$54,2,FALSE)="C",VLOOKUP($F87,SCHEMA_CE!$E$5:$F$54,2,FALSE)="C"),-1,1))) ->  | O87: =IF($B87="","",I87*IF($F87="",1,IF(ISERROR(MATCH($F87,$B$6:$B$105,0)),0,INDIRECT(ADDRESS(5+MATCH($F87,$B$6:$B$105,0),COLUMN(O$4)))))*IF($F87="",IF(VLOOKUP($B87,SCHEMA_CE!$E$5:$F$54,2,FALSE)="C",-1,1),IF(OR(VLOOKUP($B87,SCHEMA_CE!$E$5:$F$54,2,FALSE)="C",VLOOKUP($F87,SCHEMA_CE!$E$5:$F$54,2,FALSE)="C"),-1,1))) ->  | P87: =IF($B87="","",J87*IF($F87="",1,IF(ISERROR(MATCH($F87,$B$6:$B$105,0)),0,INDIRECT(ADDRESS(5+MATCH($F87,$B$6:$B$105,0),COLUMN(P$4)))))*IF($F87="",IF(VLOOKUP($B87,SCHEMA_CE!$E$5:$F$54,2,FALSE)="C",-1,1),IF(OR(VLOOKUP($B87,SCHEMA_CE!$E$5:$F$54,2,FALSE)="C",VLOOKUP($F87,SCHEMA_CE!$E$5:$F$54,2,FALSE)="C"),-1,1))) ->  | Q87: =IF($B87="","",K87*IF($F87="",1,IF(ISERROR(MATCH($F87,$B$6:$B$105,0)),0,INDIRECT(ADDRESS(5+MATCH($F87,$B$6:$B$105,0),COLUMN(Q$4)))))*IF($F87="",IF(VLOOKUP($B87,SCHEMA_CE!$E$5:$F$54,2,FALSE)="C",-1,1),IF(OR(VLOOKUP($B87,SCHEMA_CE!$E$5:$F$54,2,FALSE)="C",VLOOKUP($F87,SCHEMA_CE!$E$5:$F$54,2,FALSE)="C"),-1,1))) -> 
M88: =IF($B88="","",G88*IF($F88="",1,IF(ISERROR(MATCH($F88,$B$6:$B$105,0)),0,INDIRECT(ADDRESS(5+MATCH($F88,$B$6:$B$105,0),COLUMN(M$4)))))*IF($F88="",IF(VLOOKUP($B88,SCHEMA_CE!$E$5:$F$54,2,FALSE)="C",-1,1),IF(OR(VLOOKUP($B88,SCHEMA_CE!$E$5:$F$54,2,FALSE)="C",VLOOKUP($F88,SCHEMA_CE!$E$5:$F$54,2,FALSE)="C"),-1,1))) ->  | N88: =IF($B88="","",H88*IF($F88="",1,IF(ISERROR(MATCH($F88,$B$6:$B$105,0)),0,INDIRECT(ADDRESS(5+MATCH($F88,$B$6:$B$105,0),COLUMN(N$4)))))*IF($F88="",IF(VLOOKUP($B88,SCHEMA_CE!$E$5:$F$54,2,FALSE)="C",-1,1),IF(OR(VLOOKUP($B88,SCHEMA_CE!$E$5:$F$54,2,FALSE)="C",VLOOKUP($F88,SCHEMA_CE!$E$5:$F$54,2,FALSE)="C"),-1,1))) ->  | O88: =IF($B88="","",I88*IF($F88="",1,IF(ISERROR(MATCH($F88,$B$6:$B$105,0)),0,INDIRECT(ADDRESS(5+MATCH($F88,$B$6:$B$105,0),COLUMN(O$4)))))*IF($F88="",IF(VLOOKUP($B88,SCHEMA_CE!$E$5:$F$54,2,FALSE)="C",-1,1),IF(OR(VLOOKUP($B88,SCHEMA_CE!$E$5:$F$54,2,FALSE)="C",VLOOKUP($F88,SCHEMA_CE!$E$5:$F$54,2,FALSE)="C"),-1,1))) ->  | P88: =IF($B88="","",J88*IF($F88="",1,IF(ISERROR(MATCH($F88,$B$6:$B$105,0)),0,INDIRECT(ADDRESS(5+MATCH($F88,$B$6:$B$105,0),COLUMN(P$4)))))*IF($F88="",IF(VLOOKUP($B88,SCHEMA_CE!$E$5:$F$54,2,FALSE)="C",-1,1),IF(OR(VLOOKUP($B88,SCHEMA_CE!$E$5:$F$54,2,FALSE)="C",VLOOKUP($F88,SCHEMA_CE!$E$5:$F$54,2,FALSE)="C"),-1,1))) ->  | Q88: =IF($B88="","",K88*IF($F88="",1,IF(ISERROR(MATCH($F88,$B$6:$B$105,0)),0,INDIRECT(ADDRESS(5+MATCH($F88,$B$6:$B$105,0),COLUMN(Q$4)))))*IF($F88="",IF(VLOOKUP($B88,SCHEMA_CE!$E$5:$F$54,2,FALSE)="C",-1,1),IF(OR(VLOOKUP($B88,SCHEMA_CE!$E$5:$F$54,2,FALSE)="C",VLOOKUP($F88,SCHEMA_CE!$E$5:$F$54,2,FALSE)="C"),-1,1))) -> 
M89: =IF($B89="","",G89*IF($F89="",1,IF(ISERROR(MATCH($F89,$B$6:$B$105,0)),0,INDIRECT(ADDRESS(5+MATCH($F89,$B$6:$B$105,0),COLUMN(M$4)))))*IF($F89="",IF(VLOOKUP($B89,SCHEMA_CE!$E$5:$F$54,2,FALSE)="C",-1,1),IF(OR(VLOOKUP($B89,SCHEMA_CE!$E$5:$F$54,2,FALSE)="C",VLOOKUP($F89,SCHEMA_CE!$E$5:$F$54,2,FALSE)="C"),-1,1))) ->  | N89: =IF($B89="","",H89*IF($F89="",1,IF(ISERROR(MATCH($F89,$B$6:$B$105,0)),0,INDIRECT(ADDRESS(5+MATCH($F89,$B$6:$B$105,0),COLUMN(N$4)))))*IF($F89="",IF(VLOOKUP($B89,SCHEMA_CE!$E$5:$F$54,2,FALSE)="C",-1,1),IF(OR(VLOOKUP($B89,SCHEMA_CE!$E$5:$F$54,2,FALSE)="C",VLOOKUP($F89,SCHEMA_CE!$E$5:$F$54,2,FALSE)="C"),-1,1))) ->  | O89: =IF($B89="","",I89*IF($F89="",1,IF(ISERROR(MATCH($F89,$B$6:$B$105,0)),0,INDIRECT(ADDRESS(5+MATCH($F89,$B$6:$B$105,0),COLUMN(O$4)))))*IF($F89="",IF(VLOOKUP($B89,SCHEMA_CE!$E$5:$F$54,2,FALSE)="C",-1,1),IF(OR(VLOOKUP($B89,SCHEMA_CE!$E$5:$F$54,2,FALSE)="C",VLOOKUP($F89,SCHEMA_CE!$E$5:$F$54,2,FALSE)="C"),-1,1))) ->  | P89: =IF($B89="","",J89*IF($F89="",1,IF(ISERROR(MATCH($F89,$B$6:$B$105,0)),0,INDIRECT(ADDRESS(5+MATCH($F89,$B$6:$B$105,0),COLUMN(P$4)))))*IF($F89="",IF(VLOOKUP($B89,SCHEMA_CE!$E$5:$F$54,2,FALSE)="C",-1,1),IF(OR(VLOOKUP($B89,SCHEMA_CE!$E$5:$F$54,2,FALSE)="C",VLOOKUP($F89,SCHEMA_CE!$E$5:$F$54,2,FALSE)="C"),-1,1))) ->  | Q89: =IF($B89="","",K89*IF($F89="",1,IF(ISERROR(MATCH($F89,$B$6:$B$105,0)),0,INDIRECT(ADDRESS(5+MATCH($F89,$B$6:$B$105,0),COLUMN(Q$4)))))*IF($F89="",IF(VLOOKUP($B89,SCHEMA_CE!$E$5:$F$54,2,FALSE)="C",-1,1),IF(OR(VLOOKUP($B89,SCHEMA_CE!$E$5:$F$54,2,FALSE)="C",VLOOKUP($F89,SCHEMA_CE!$E$5:$F$54,2,FALSE)="C"),-1,1))) -> 
M90: =IF($B90="","",G90*IF($F90="",1,IF(ISERROR(MATCH($F90,$B$6:$B$105,0)),0,INDIRECT(ADDRESS(5+MATCH($F90,$B$6:$B$105,0),COLUMN(M$4)))))*IF($F90="",IF(VLOOKUP($B90,SCHEMA_CE!$E$5:$F$54,2,FALSE)="C",-1,1),IF(OR(VLOOKUP($B90,SCHEMA_CE!$E$5:$F$54,2,FALSE)="C",VLOOKUP($F90,SCHEMA_CE!$E$5:$F$54,2,FALSE)="C"),-1,1))) ->  | N90: =IF($B90="","",H90*IF($F90="",1,IF(ISERROR(MATCH($F90,$B$6:$B$105,0)),0,INDIRECT(ADDRESS(5+MATCH($F90,$B$6:$B$105,0),COLUMN(N$4)))))*IF($F90="",IF(VLOOKUP($B90,SCHEMA_CE!$E$5:$F$54,2,FALSE)="C",-1,1),IF(OR(VLOOKUP($B90,SCHEMA_CE!$E$5:$F$54,2,FALSE)="C",VLOOKUP($F90,SCHEMA_CE!$E$5:$F$54,2,FALSE)="C"),-1,1))) ->  | O90: =IF($B90="","",I90*IF($F90="",1,IF(ISERROR(MATCH($F90,$B$6:$B$105,0)),0,INDIRECT(ADDRESS(5+MATCH($F90,$B$6:$B$105,0),COLUMN(O$4)))))*IF($F90="",IF(VLOOKUP($B90,SCHEMA_CE!$E$5:$F$54,2,FALSE)="C",-1,1),IF(OR(VLOOKUP($B90,SCHEMA_CE!$E$5:$F$54,2,FALSE)="C",VLOOKUP($F90,SCHEMA_CE!$E$5:$F$54,2,FALSE)="C"),-1,1))) ->  | P90: =IF($B90="","",J90*IF($F90="",1,IF(ISERROR(MATCH($F90,$B$6:$B$105,0)),0,INDIRECT(ADDRESS(5+MATCH($F90,$B$6:$B$105,0),COLUMN(P$4)))))*IF($F90="",IF(VLOOKUP($B90,SCHEMA_CE!$E$5:$F$54,2,FALSE)="C",-1,1),IF(OR(VLOOKUP($B90,SCHEMA_CE!$E$5:$F$54,2,FALSE)="C",VLOOKUP($F90,SCHEMA_CE!$E$5:$F$54,2,FALSE)="C"),-1,1))) ->  | Q90: =IF($B90="","",K90*IF($F90="",1,IF(ISERROR(MATCH($F90,$B$6:$B$105,0)),0,INDIRECT(ADDRESS(5+MATCH($F90,$B$6:$B$105,0),COLUMN(Q$4)))))*IF($F90="",IF(VLOOKUP($B90,SCHEMA_CE!$E$5:$F$54,2,FALSE)="C",-1,1),IF(OR(VLOOKUP($B90,SCHEMA_CE!$E$5:$F$54,2,FALSE)="C",VLOOKUP($F90,SCHEMA_CE!$E$5:$F$54,2,FALSE)="C"),-1,1))) -> 
M91: =IF($B91="","",G91*IF($F91="",1,IF(ISERROR(MATCH($F91,$B$6:$B$105,0)),0,INDIRECT(ADDRESS(5+MATCH($F91,$B$6:$B$105,0),COLUMN(M$4)))))*IF($F91="",IF(VLOOKUP($B91,SCHEMA_CE!$E$5:$F$54,2,FALSE)="C",-1,1),IF(OR(VLOOKUP($B91,SCHEMA_CE!$E$5:$F$54,2,FALSE)="C",VLOOKUP($F91,SCHEMA_CE!$E$5:$F$54,2,FALSE)="C"),-1,1))) ->  | N91: =IF($B91="","",H91*IF($F91="",1,IF(ISERROR(MATCH($F91,$B$6:$B$105,0)),0,INDIRECT(ADDRESS(5+MATCH($F91,$B$6:$B$105,0),COLUMN(N$4)))))*IF($F91="",IF(VLOOKUP($B91,SCHEMA_CE!$E$5:$F$54,2,FALSE)="C",-1,1),IF(OR(VLOOKUP($B91,SCHEMA_CE!$E$5:$F$54,2,FALSE)="C",VLOOKUP($F91,SCHEMA_CE!$E$5:$F$54,2,FALSE)="C"),-1,1))) ->  | O91: =IF($B91="","",I91*IF($F91="",1,IF(ISERROR(MATCH($F91,$B$6:$B$105,0)),0,INDIRECT(ADDRESS(5+MATCH($F91,$B$6:$B$105,0),COLUMN(O$4)))))*IF($F91="",IF(VLOOKUP($B91,SCHEMA_CE!$E$5:$F$54,2,FALSE)="C",-1,1),IF(OR(VLOOKUP($B91,SCHEMA_CE!$E$5:$F$54,2,FALSE)="C",VLOOKUP($F91,SCHEMA_CE!$E$5:$F$54,2,FALSE)="C"),-1,1))) ->  | P91: =IF($B91="","",J91*IF($F91="",1,IF(ISERROR(MATCH($F91,$B$6:$B$105,0)),0,INDIRECT(ADDRESS(5+MATCH($F91,$B$6:$B$105,0),COLUMN(P$4)))))*IF($F91="",IF(VLOOKUP($B91,SCHEMA_CE!$E$5:$F$54,2,FALSE)="C",-1,1),IF(OR(VLOOKUP($B91,SCHEMA_CE!$E$5:$F$54,2,FALSE)="C",VLOOKUP($F91,SCHEMA_CE!$E$5:$F$54,2,FALSE)="C"),-1,1))) ->  | Q91: =IF($B91="","",K91*IF($F91="",1,IF(ISERROR(MATCH($F91,$B$6:$B$105,0)),0,INDIRECT(ADDRESS(5+MATCH($F91,$B$6:$B$105,0),COLUMN(Q$4)))))*IF($F91="",IF(VLOOKUP($B91,SCHEMA_CE!$E$5:$F$54,2,FALSE)="C",-1,1),IF(OR(VLOOKUP($B91,SCHEMA_CE!$E$5:$F$54,2,FALSE)="C",VLOOKUP($F91,SCHEMA_CE!$E$5:$F$54,2,FALSE)="C"),-1,1))) -> 
M92: =IF($B92="","",G92*IF($F92="",1,IF(ISERROR(MATCH($F92,$B$6:$B$105,0)),0,INDIRECT(ADDRESS(5+MATCH($F92,$B$6:$B$105,0),COLUMN(M$4)))))*IF($F92="",IF(VLOOKUP($B92,SCHEMA_CE!$E$5:$F$54,2,FALSE)="C",-1,1),IF(OR(VLOOKUP($B92,SCHEMA_CE!$E$5:$F$54,2,FALSE)="C",VLOOKUP($F92,SCHEMA_CE!$E$5:$F$54,2,FALSE)="C"),-1,1))) ->  | N92: =IF($B92="","",H92*IF($F92="",1,IF(ISERROR(MATCH($F92,$B$6:$B$105,0)),0,INDIRECT(ADDRESS(5+MATCH($F92,$B$6:$B$105,0),COLUMN(N$4)))))*IF($F92="",IF(VLOOKUP($B92,SCHEMA_CE!$E$5:$F$54,2,FALSE)="C",-1,1),IF(OR(VLOOKUP($B92,SCHEMA_CE!$E$5:$F$54,2,FALSE)="C",VLOOKUP($F92,SCHEMA_CE!$E$5:$F$54,2,FALSE)="C"),-1,1))) ->  | O92: =IF($B92="","",I92*IF($F92="",1,IF(ISERROR(MATCH($F92,$B$6:$B$105,0)),0,INDIRECT(ADDRESS(5+MATCH($F92,$B$6:$B$105,0),COLUMN(O$4)))))*IF($F92="",IF(VLOOKUP($B92,SCHEMA_CE!$E$5:$F$54,2,FALSE)="C",-1,1),IF(OR(VLOOKUP($B92,SCHEMA_CE!$E$5:$F$54,2,FALSE)="C",VLOOKUP($F92,SCHEMA_CE!$E$5:$F$54,2,FALSE)="C"),-1,1))) ->  | P92: =IF($B92="","",J92*IF($F92="",1,IF(ISERROR(MATCH($F92,$B$6:$B$105,0)),0,INDIRECT(ADDRESS(5+MATCH($F92,$B$6:$B$105,0),COLUMN(P$4)))))*IF($F92="",IF(VLOOKUP($B92,SCHEMA_CE!$E$5:$F$54,2,FALSE)="C",-1,1),IF(OR(VLOOKUP($B92,SCHEMA_CE!$E$5:$F$54,2,FALSE)="C",VLOOKUP($F92,SCHEMA_CE!$E$5:$F$54,2,FALSE)="C"),-1,1))) ->  | Q92: =IF($B92="","",K92*IF($F92="",1,IF(ISERROR(MATCH($F92,$B$6:$B$105,0)),0,INDIRECT(ADDRESS(5+MATCH($F92,$B$6:$B$105,0),COLUMN(Q$4)))))*IF($F92="",IF(VLOOKUP($B92,SCHEMA_CE!$E$5:$F$54,2,FALSE)="C",-1,1),IF(OR(VLOOKUP($B92,SCHEMA_CE!$E$5:$F$54,2,FALSE)="C",VLOOKUP($F92,SCHEMA_CE!$E$5:$F$54,2,FALSE)="C"),-1,1))) -> 
M93: =IF($B93="","",G93*IF($F93="",1,IF(ISERROR(MATCH($F93,$B$6:$B$105,0)),0,INDIRECT(ADDRESS(5+MATCH($F93,$B$6:$B$105,0),COLUMN(M$4)))))*IF($F93="",IF(VLOOKUP($B93,SCHEMA_CE!$E$5:$F$54,2,FALSE)="C",-1,1),IF(OR(VLOOKUP($B93,SCHEMA_CE!$E$5:$F$54,2,FALSE)="C",VLOOKUP($F93,SCHEMA_CE!$E$5:$F$54,2,FALSE)="C"),-1,1))) ->  | N93: =IF($B93="","",H93*IF($F93="",1,IF(ISERROR(MATCH($F93,$B$6:$B$105,0)),0,INDIRECT(ADDRESS(5+MATCH($F93,$B$6:$B$105,0),COLUMN(N$4)))))*IF($F93="",IF(VLOOKUP($B93,SCHEMA_CE!$E$5:$F$54,2,FALSE)="C",-1,1),IF(OR(VLOOKUP($B93,SCHEMA_CE!$E$5:$F$54,2,FALSE)="C",VLOOKUP($F93,SCHEMA_CE!$E$5:$F$54,2,FALSE)="C"),-1,1))) ->  | O93: =IF($B93="","",I93*IF($F93="",1,IF(ISERROR(MATCH($F93,$B$6:$B$105,0)),0,INDIRECT(ADDRESS(5+MATCH($F93,$B$6:$B$105,0),COLUMN(O$4)))))*IF($F93="",IF(VLOOKUP($B93,SCHEMA_CE!$E$5:$F$54,2,FALSE)="C",-1,1),IF(OR(VLOOKUP($B93,SCHEMA_CE!$E$5:$F$54,2,FALSE)="C",VLOOKUP($F93,SCHEMA_CE!$E$5:$F$54,2,FALSE)="C"),-1,1))) ->  | P93: =IF($B93="","",J93*IF($F93="",1,IF(ISERROR(MATCH($F93,$B$6:$B$105,0)),0,INDIRECT(ADDRESS(5+MATCH($F93,$B$6:$B$105,0),COLUMN(P$4)))))*IF($F93="",IF(VLOOKUP($B93,SCHEMA_CE!$E$5:$F$54,2,FALSE)="C",-1,1),IF(OR(VLOOKUP($B93,SCHEMA_CE!$E$5:$F$54,2,FALSE)="C",VLOOKUP($F93,SCHEMA_CE!$E$5:$F$54,2,FALSE)="C"),-1,1))) ->  | Q93: =IF($B93="","",K93*IF($F93="",1,IF(ISERROR(MATCH($F93,$B$6:$B$105,0)),0,INDIRECT(ADDRESS(5+MATCH($F93,$B$6:$B$105,0),COLUMN(Q$4)))))*IF($F93="",IF(VLOOKUP($B93,SCHEMA_CE!$E$5:$F$54,2,FALSE)="C",-1,1),IF(OR(VLOOKUP($B93,SCHEMA_CE!$E$5:$F$54,2,FALSE)="C",VLOOKUP($F93,SCHEMA_CE!$E$5:$F$54,2,FALSE)="C"),-1,1))) -> 
M94: =IF($B94="","",G94*IF($F94="",1,IF(ISERROR(MATCH($F94,$B$6:$B$105,0)),0,INDIRECT(ADDRESS(5+MATCH($F94,$B$6:$B$105,0),COLUMN(M$4)))))*IF($F94="",IF(VLOOKUP($B94,SCHEMA_CE!$E$5:$F$54,2,FALSE)="C",-1,1),IF(OR(VLOOKUP($B94,SCHEMA_CE!$E$5:$F$54,2,FALSE)="C",VLOOKUP($F94,SCHEMA_CE!$E$5:$F$54,2,FALSE)="C"),-1,1))) ->  | N94: =IF($B94="","",H94*IF($F94="",1,IF(ISERROR(MATCH($F94,$B$6:$B$105,0)),0,INDIRECT(ADDRESS(5+MATCH($F94,$B$6:$B$105,0),COLUMN(N$4)))))*IF($F94="",IF(VLOOKUP($B94,SCHEMA_CE!$E$5:$F$54,2,FALSE)="C",-1,1),IF(OR(VLOOKUP($B94,SCHEMA_CE!$E$5:$F$54,2,FALSE)="C",VLOOKUP($F94,SCHEMA_CE!$E$5:$F$54,2,FALSE)="C"),-1,1))) ->  | O94: =IF($B94="","",I94*IF($F94="",1,IF(ISERROR(MATCH($F94,$B$6:$B$105,0)),0,INDIRECT(ADDRESS(5+MATCH($F94,$B$6:$B$105,0),COLUMN(O$4)))))*IF($F94="",IF(VLOOKUP($B94,SCHEMA_CE!$E$5:$F$54,2,FALSE)="C",-1,1),IF(OR(VLOOKUP($B94,SCHEMA_CE!$E$5:$F$54,2,FALSE)="C",VLOOKUP($F94,SCHEMA_CE!$E$5:$F$54,2,FALSE)="C"),-1,1))) ->  | P94: =IF($B94="","",J94*IF($F94="",1,IF(ISERROR(MATCH($F94,$B$6:$B$105,0)),0,INDIRECT(ADDRESS(5+MATCH($F94,$B$6:$B$105,0),COLUMN(P$4)))))*IF($F94="",IF(VLOOKUP($B94,SCHEMA_CE!$E$5:$F$54,2,FALSE)="C",-1,1),IF(OR(VLOOKUP($B94,SCHEMA_CE!$E$5:$F$54,2,FALSE)="C",VLOOKUP($F94,SCHEMA_CE!$E$5:$F$54,2,FALSE)="C"),-1,1))) ->  | Q94: =IF($B94="","",K94*IF($F94="",1,IF(ISERROR(MATCH($F94,$B$6:$B$105,0)),0,INDIRECT(ADDRESS(5+MATCH($F94,$B$6:$B$105,0),COLUMN(Q$4)))))*IF($F94="",IF(VLOOKUP($B94,SCHEMA_CE!$E$5:$F$54,2,FALSE)="C",-1,1),IF(OR(VLOOKUP($B94,SCHEMA_CE!$E$5:$F$54,2,FALSE)="C",VLOOKUP($F94,SCHEMA_CE!$E$5:$F$54,2,FALSE)="C"),-1,1))) -> 
M95: =IF($B95="","",G95*IF($F95="",1,IF(ISERROR(MATCH($F95,$B$6:$B$105,0)),0,INDIRECT(ADDRESS(5+MATCH($F95,$B$6:$B$105,0),COLUMN(M$4)))))*IF($F95="",IF(VLOOKUP($B95,SCHEMA_CE!$E$5:$F$54,2,FALSE)="C",-1,1),IF(OR(VLOOKUP($B95,SCHEMA_CE!$E$5:$F$54,2,FALSE)="C",VLOOKUP($F95,SCHEMA_CE!$E$5:$F$54,2,FALSE)="C"),-1,1))) ->  | N95: =IF($B95="","",H95*IF($F95="",1,IF(ISERROR(MATCH($F95,$B$6:$B$105,0)),0,INDIRECT(ADDRESS(5+MATCH($F95,$B$6:$B$105,0),COLUMN(N$4)))))*IF($F95="",IF(VLOOKUP($B95,SCHEMA_CE!$E$5:$F$54,2,FALSE)="C",-1,1),IF(OR(VLOOKUP($B95,SCHEMA_CE!$E$5:$F$54,2,FALSE)="C",VLOOKUP($F95,SCHEMA_CE!$E$5:$F$54,2,FALSE)="C"),-1,1))) ->  | O95: =IF($B95="","",I95*IF($F95="",1,IF(ISERROR(MATCH($F95,$B$6:$B$105,0)),0,INDIRECT(ADDRESS(5+MATCH($F95,$B$6:$B$105,0),COLUMN(O$4)))))*IF($F95="",IF(VLOOKUP($B95,SCHEMA_CE!$E$5:$F$54,2,FALSE)="C",-1,1),IF(OR(VLOOKUP($B95,SCHEMA_CE!$E$5:$F$54,2,FALSE)="C",VLOOKUP($F95,SCHEMA_CE!$E$5:$F$54,2,FALSE)="C"),-1,1))) ->  | P95: =IF($B95="","",J95*IF($F95="",1,IF(ISERROR(MATCH($F95,$B$6:$B$105,0)),0,INDIRECT(ADDRESS(5+MATCH($F95,$B$6:$B$105,0),COLUMN(P$4)))))*IF($F95="",IF(VLOOKUP($B95,SCHEMA_CE!$E$5:$F$54,2,FALSE)="C",-1,1),IF(OR(VLOOKUP($B95,SCHEMA_CE!$E$5:$F$54,2,FALSE)="C",VLOOKUP($F95,SCHEMA_CE!$E$5:$F$54,2,FALSE)="C"),-1,1))) ->  | Q95: =IF($B95="","",K95*IF($F95="",1,IF(ISERROR(MATCH($F95,$B$6:$B$105,0)),0,INDIRECT(ADDRESS(5+MATCH($F95,$B$6:$B$105,0),COLUMN(Q$4)))))*IF($F95="",IF(VLOOKUP($B95,SCHEMA_CE!$E$5:$F$54,2,FALSE)="C",-1,1),IF(OR(VLOOKUP($B95,SCHEMA_CE!$E$5:$F$54,2,FALSE)="C",VLOOKUP($F95,SCHEMA_CE!$E$5:$F$54,2,FALSE)="C"),-1,1))) -> 
M96: =IF($B96="","",G96*IF($F96="",1,IF(ISERROR(MATCH($F96,$B$6:$B$105,0)),0,INDIRECT(ADDRESS(5+MATCH($F96,$B$6:$B$105,0),COLUMN(M$4)))))*IF($F96="",IF(VLOOKUP($B96,SCHEMA_CE!$E$5:$F$54,2,FALSE)="C",-1,1),IF(OR(VLOOKUP($B96,SCHEMA_CE!$E$5:$F$54,2,FALSE)="C",VLOOKUP($F96,SCHEMA_CE!$E$5:$F$54,2,FALSE)="C"),-1,1))) ->  | N96: =IF($B96="","",H96*IF($F96="",1,IF(ISERROR(MATCH($F96,$B$6:$B$105,0)),0,INDIRECT(ADDRESS(5+MATCH($F96,$B$6:$B$105,0),COLUMN(N$4)))))*IF($F96="",IF(VLOOKUP($B96,SCHEMA_CE!$E$5:$F$54,2,FALSE)="C",-1,1),IF(OR(VLOOKUP($B96,SCHEMA_CE!$E$5:$F$54,2,FALSE)="C",VLOOKUP($F96,SCHEMA_CE!$E$5:$F$54,2,FALSE)="C"),-1,1))) ->  | O96: =IF($B96="","",I96*IF($F96="",1,IF(ISERROR(MATCH($F96,$B$6:$B$105,0)),0,INDIRECT(ADDRESS(5+MATCH($F96,$B$6:$B$105,0),COLUMN(O$4)))))*IF($F96="",IF(VLOOKUP($B96,SCHEMA_CE!$E$5:$F$54,2,FALSE)="C",-1,1),IF(OR(VLOOKUP($B96,SCHEMA_CE!$E$5:$F$54,2,FALSE)="C",VLOOKUP($F96,SCHEMA_CE!$E$5:$F$54,2,FALSE)="C"),-1,1))) ->  | P96: =IF($B96="","",J96*IF($F96="",1,IF(ISERROR(MATCH($F96,$B$6:$B$105,0)),0,INDIRECT(ADDRESS(5+MATCH($F96,$B$6:$B$105,0),COLUMN(P$4)))))*IF($F96="",IF(VLOOKUP($B96,SCHEMA_CE!$E$5:$F$54,2,FALSE)="C",-1,1),IF(OR(VLOOKUP($B96,SCHEMA_CE!$E$5:$F$54,2,FALSE)="C",VLOOKUP($F96,SCHEMA_CE!$E$5:$F$54,2,FALSE)="C"),-1,1))) ->  | Q96: =IF($B96="","",K96*IF($F96="",1,IF(ISERROR(MATCH($F96,$B$6:$B$105,0)),0,INDIRECT(ADDRESS(5+MATCH($F96,$B$6:$B$105,0),COLUMN(Q$4)))))*IF($F96="",IF(VLOOKUP($B96,SCHEMA_CE!$E$5:$F$54,2,FALSE)="C",-1,1),IF(OR(VLOOKUP($B96,SCHEMA_CE!$E$5:$F$54,2,FALSE)="C",VLOOKUP($F96,SCHEMA_CE!$E$5:$F$54,2,FALSE)="C"),-1,1))) -> 
M97: =IF($B97="","",G97*IF($F97="",1,IF(ISERROR(MATCH($F97,$B$6:$B$105,0)),0,INDIRECT(ADDRESS(5+MATCH($F97,$B$6:$B$105,0),COLUMN(M$4)))))*IF($F97="",IF(VLOOKUP($B97,SCHEMA_CE!$E$5:$F$54,2,FALSE)="C",-1,1),IF(OR(VLOOKUP($B97,SCHEMA_CE!$E$5:$F$54,2,FALSE)="C",VLOOKUP($F97,SCHEMA_CE!$E$5:$F$54,2,FALSE)="C"),-1,1))) ->  | N97: =IF($B97="","",H97*IF($F97="",1,IF(ISERROR(MATCH($F97,$B$6:$B$105,0)),0,INDIRECT(ADDRESS(5+MATCH($F97,$B$6:$B$105,0),COLUMN(N$4)))))*IF($F97="",IF(VLOOKUP($B97,SCHEMA_CE!$E$5:$F$54,2,FALSE)="C",-1,1),IF(OR(VLOOKUP($B97,SCHEMA_CE!$E$5:$F$54,2,FALSE)="C",VLOOKUP($F97,SCHEMA_CE!$E$5:$F$54,2,FALSE)="C"),-1,1))) ->  | O97: =IF($B97="","",I97*IF($F97="",1,IF(ISERROR(MATCH($F97,$B$6:$B$105,0)),0,INDIRECT(ADDRESS(5+MATCH($F97,$B$6:$B$105,0),COLUMN(O$4)))))*IF($F97="",IF(VLOOKUP($B97,SCHEMA_CE!$E$5:$F$54,2,FALSE)="C",-1,1),IF(OR(VLOOKUP($B97,SCHEMA_CE!$E$5:$F$54,2,FALSE)="C",VLOOKUP($F97,SCHEMA_CE!$E$5:$F$54,2,FALSE)="C"),-1,1))) ->  | P97: =IF($B97="","",J97*IF($F97="",1,IF(ISERROR(MATCH($F97,$B$6:$B$105,0)),0,INDIRECT(ADDRESS(5+MATCH($F97,$B$6:$B$105,0),COLUMN(P$4)))))*IF($F97="",IF(VLOOKUP($B97,SCHEMA_CE!$E$5:$F$54,2,FALSE)="C",-1,1),IF(OR(VLOOKUP($B97,SCHEMA_CE!$E$5:$F$54,2,FALSE)="C",VLOOKUP($F97,SCHEMA_CE!$E$5:$F$54,2,FALSE)="C"),-1,1))) ->  | Q97: =IF($B97="","",K97*IF($F97="",1,IF(ISERROR(MATCH($F97,$B$6:$B$105,0)),0,INDIRECT(ADDRESS(5+MATCH($F97,$B$6:$B$105,0),COLUMN(Q$4)))))*IF($F97="",IF(VLOOKUP($B97,SCHEMA_CE!$E$5:$F$54,2,FALSE)="C",-1,1),IF(OR(VLOOKUP($B97,SCHEMA_CE!$E$5:$F$54,2,FALSE)="C",VLOOKUP($F97,SCHEMA_CE!$E$5:$F$54,2,FALSE)="C"),-1,1))) -> 
M98: =IF($B98="","",G98*IF($F98="",1,IF(ISERROR(MATCH($F98,$B$6:$B$105,0)),0,INDIRECT(ADDRESS(5+MATCH($F98,$B$6:$B$105,0),COLUMN(M$4)))))*IF($F98="",IF(VLOOKUP($B98,SCHEMA_CE!$E$5:$F$54,2,FALSE)="C",-1,1),IF(OR(VLOOKUP($B98,SCHEMA_CE!$E$5:$F$54,2,FALSE)="C",VLOOKUP($F98,SCHEMA_CE!$E$5:$F$54,2,FALSE)="C"),-1,1))) ->  | N98: =IF($B98="","",H98*IF($F98="",1,IF(ISERROR(MATCH($F98,$B$6:$B$105,0)),0,INDIRECT(ADDRESS(5+MATCH($F98,$B$6:$B$105,0),COLUMN(N$4)))))*IF($F98="",IF(VLOOKUP($B98,SCHEMA_CE!$E$5:$F$54,2,FALSE)="C",-1,1),IF(OR(VLOOKUP($B98,SCHEMA_CE!$E$5:$F$54,2,FALSE)="C",VLOOKUP($F98,SCHEMA_CE!$E$5:$F$54,2,FALSE)="C"),-1,1))) ->  | O98: =IF($B98="","",I98*IF($F98="",1,IF(ISERROR(MATCH($F98,$B$6:$B$105,0)),0,INDIRECT(ADDRESS(5+MATCH($F98,$B$6:$B$105,0),COLUMN(O$4)))))*IF($F98="",IF(VLOOKUP($B98,SCHEMA_CE!$E$5:$F$54,2,FALSE)="C",-1,1),IF(OR(VLOOKUP($B98,SCHEMA_CE!$E$5:$F$54,2,FALSE)="C",VLOOKUP($F98,SCHEMA_CE!$E$5:$F$54,2,FALSE)="C"),-1,1))) ->  | P98: =IF($B98="","",J98*IF($F98="",1,IF(ISERROR(MATCH($F98,$B$6:$B$105,0)),0,INDIRECT(ADDRESS(5+MATCH($F98,$B$6:$B$105,0),COLUMN(P$4)))))*IF($F98="",IF(VLOOKUP($B98,SCHEMA_CE!$E$5:$F$54,2,FALSE)="C",-1,1),IF(OR(VLOOKUP($B98,SCHEMA_CE!$E$5:$F$54,2,FALSE)="C",VLOOKUP($F98,SCHEMA_CE!$E$5:$F$54,2,FALSE)="C"),-1,1))) ->  | Q98: =IF($B98="","",K98*IF($F98="",1,IF(ISERROR(MATCH($F98,$B$6:$B$105,0)),0,INDIRECT(ADDRESS(5+MATCH($F98,$B$6:$B$105,0),COLUMN(Q$4)))))*IF($F98="",IF(VLOOKUP($B98,SCHEMA_CE!$E$5:$F$54,2,FALSE)="C",-1,1),IF(OR(VLOOKUP($B98,SCHEMA_CE!$E$5:$F$54,2,FALSE)="C",VLOOKUP($F98,SCHEMA_CE!$E$5:$F$54,2,FALSE)="C"),-1,1))) -> 
M99: =IF($B99="","",G99*IF($F99="",1,IF(ISERROR(MATCH($F99,$B$6:$B$105,0)),0,INDIRECT(ADDRESS(5+MATCH($F99,$B$6:$B$105,0),COLUMN(M$4)))))*IF($F99="",IF(VLOOKUP($B99,SCHEMA_CE!$E$5:$F$54,2,FALSE)="C",-1,1),IF(OR(VLOOKUP($B99,SCHEMA_CE!$E$5:$F$54,2,FALSE)="C",VLOOKUP($F99,SCHEMA_CE!$E$5:$F$54,2,FALSE)="C"),-1,1))) ->  | N99: =IF($B99="","",H99*IF($F99="",1,IF(ISERROR(MATCH($F99,$B$6:$B$105,0)),0,INDIRECT(ADDRESS(5+MATCH($F99,$B$6:$B$105,0),COLUMN(N$4)))))*IF($F99="",IF(VLOOKUP($B99,SCHEMA_CE!$E$5:$F$54,2,FALSE)="C",-1,1),IF(OR(VLOOKUP($B99,SCHEMA_CE!$E$5:$F$54,2,FALSE)="C",VLOOKUP($F99,SCHEMA_CE!$E$5:$F$54,2,FALSE)="C"),-1,1))) ->  | O99: =IF($B99="","",I99*IF($F99="",1,IF(ISERROR(MATCH($F99,$B$6:$B$105,0)),0,INDIRECT(ADDRESS(5+MATCH($F99,$B$6:$B$105,0),COLUMN(O$4)))))*IF($F99="",IF(VLOOKUP($B99,SCHEMA_CE!$E$5:$F$54,2,FALSE)="C",-1,1),IF(OR(VLOOKUP($B99,SCHEMA_CE!$E$5:$F$54,2,FALSE)="C",VLOOKUP($F99,SCHEMA_CE!$E$5:$F$54,2,FALSE)="C"),-1,1))) ->  | P99: =IF($B99="","",J99*IF($F99="",1,IF(ISERROR(MATCH($F99,$B$6:$B$105,0)),0,INDIRECT(ADDRESS(5+MATCH($F99,$B$6:$B$105,0),COLUMN(P$4)))))*IF($F99="",IF(VLOOKUP($B99,SCHEMA_CE!$E$5:$F$54,2,FALSE)="C",-1,1),IF(OR(VLOOKUP($B99,SCHEMA_CE!$E$5:$F$54,2,FALSE)="C",VLOOKUP($F99,SCHEMA_CE!$E$5:$F$54,2,FALSE)="C"),-1,1))) ->  | Q99: =IF($B99="","",K99*IF($F99="",1,IF(ISERROR(MATCH($F99,$B$6:$B$105,0)),0,INDIRECT(ADDRESS(5+MATCH($F99,$B$6:$B$105,0),COLUMN(Q$4)))))*IF($F99="",IF(VLOOKUP($B99,SCHEMA_CE!$E$5:$F$54,2,FALSE)="C",-1,1),IF(OR(VLOOKUP($B99,SCHEMA_CE!$E$5:$F$54,2,FALSE)="C",VLOOKUP($F99,SCHEMA_CE!$E$5:$F$54,2,FALSE)="C"),-1,1))) -> 
M100: =IF($B100="","",G100*IF($F100="",1,IF(ISERROR(MATCH($F100,$B$6:$B$105,0)),0,INDIRECT(ADDRESS(5+MATCH($F100,$B$6:$B$105,0),COLUMN(M$4)))))*IF($F100="",IF(VLOOKUP($B100,SCHEMA_CE!$E$5:$F$54,2,FALSE)="C",-1,1),IF(OR(VLOOKUP($B100,SCHEMA_CE!$E$5:$F$54,2,FALSE)="C",VLOOKUP($F100,SCHEMA_CE!$E$5:$F$54,2,FALSE)="C"),-1,1))) ->  | N100: =IF($B100="","",H100*IF($F100="",1,IF(ISERROR(MATCH($F100,$B$6:$B$105,0)),0,INDIRECT(ADDRESS(5+MATCH($F100,$B$6:$B$105,0),COLUMN(N$4)))))*IF($F100="",IF(VLOOKUP($B100,SCHEMA_CE!$E$5:$F$54,2,FALSE)="C",-1,1),IF(OR(VLOOKUP($B100,SCHEMA_CE!$E$5:$F$54,2,FALSE)="C",VLOOKUP($F100,SCHEMA_CE!$E$5:$F$54,2,FALSE)="C"),-1,1))) ->  | O100: =IF($B100="","",I100*IF($F100="",1,IF(ISERROR(MATCH($F100,$B$6:$B$105,0)),0,INDIRECT(ADDRESS(5+MATCH($F100,$B$6:$B$105,0),COLUMN(O$4)))))*IF($F100="",IF(VLOOKUP($B100,SCHEMA_CE!$E$5:$F$54,2,FALSE)="C",-1,1),IF(OR(VLOOKUP($B100,SCHEMA_CE!$E$5:$F$54,2,FALSE)="C",VLOOKUP($F100,SCHEMA_CE!$E$5:$F$54,2,FALSE)="C"),-1,1))) ->  | P100: =IF($B100="","",J100*IF($F100="",1,IF(ISERROR(MATCH($F100,$B$6:$B$105,0)),0,INDIRECT(ADDRESS(5+MATCH($F100,$B$6:$B$105,0),COLUMN(P$4)))))*IF($F100="",IF(VLOOKUP($B100,SCHEMA_CE!$E$5:$F$54,2,FALSE)="C",-1,1),IF(OR(VLOOKUP($B100,SCHEMA_CE!$E$5:$F$54,2,FALSE)="C",VLOOKUP($F100,SCHEMA_CE!$E$5:$F$54,2,FALSE)="C"),-1,1))) ->  | Q100: =IF($B100="","",K100*IF($F100="",1,IF(ISERROR(MATCH($F100,$B$6:$B$105,0)),0,INDIRECT(ADDRESS(5+MATCH($F100,$B$6:$B$105,0),COLUMN(Q$4)))))*IF($F100="",IF(VLOOKUP($B100,SCHEMA_CE!$E$5:$F$54,2,FALSE)="C",-1,1),IF(OR(VLOOKUP($B100,SCHEMA_CE!$E$5:$F$54,2,FALSE)="C",VLOOKUP($F100,SCHEMA_CE!$E$5:$F$54,2,FALSE)="C"),-1,1))) -> 
M101: =IF($B101="","",G101*IF($F101="",1,IF(ISERROR(MATCH($F101,$B$6:$B$105,0)),0,INDIRECT(ADDRESS(5+MATCH($F101,$B$6:$B$105,0),COLUMN(M$4)))))*IF($F101="",IF(VLOOKUP($B101,SCHEMA_CE!$E$5:$F$54,2,FALSE)="C",-1,1),IF(OR(VLOOKUP($B101,SCHEMA_CE!$E$5:$F$54,2,FALSE)="C",VLOOKUP($F101,SCHEMA_CE!$E$5:$F$54,2,FALSE)="C"),-1,1))) ->  | N101: =IF($B101="","",H101*IF($F101="",1,IF(ISERROR(MATCH($F101,$B$6:$B$105,0)),0,INDIRECT(ADDRESS(5+MATCH($F101,$B$6:$B$105,0),COLUMN(N$4)))))*IF($F101="",IF(VLOOKUP($B101,SCHEMA_CE!$E$5:$F$54,2,FALSE)="C",-1,1),IF(OR(VLOOKUP($B101,SCHEMA_CE!$E$5:$F$54,2,FALSE)="C",VLOOKUP($F101,SCHEMA_CE!$E$5:$F$54,2,FALSE)="C"),-1,1))) ->  | O101: =IF($B101="","",I101*IF($F101="",1,IF(ISERROR(MATCH($F101,$B$6:$B$105,0)),0,INDIRECT(ADDRESS(5+MATCH($F101,$B$6:$B$105,0),COLUMN(O$4)))))*IF($F101="",IF(VLOOKUP($B101,SCHEMA_CE!$E$5:$F$54,2,FALSE)="C",-1,1),IF(OR(VLOOKUP($B101,SCHEMA_CE!$E$5:$F$54,2,FALSE)="C",VLOOKUP($F101,SCHEMA_CE!$E$5:$F$54,2,FALSE)="C"),-1,1))) ->  | P101: =IF($B101="","",J101*IF($F101="",1,IF(ISERROR(MATCH($F101,$B$6:$B$105,0)),0,INDIRECT(ADDRESS(5+MATCH($F101,$B$6:$B$105,0),COLUMN(P$4)))))*IF($F101="",IF(VLOOKUP($B101,SCHEMA_CE!$E$5:$F$54,2,FALSE)="C",-1,1),IF(OR(VLOOKUP($B101,SCHEMA_CE!$E$5:$F$54,2,FALSE)="C",VLOOKUP($F101,SCHEMA_CE!$E$5:$F$54,2,FALSE)="C"),-1,1))) ->  | Q101: =IF($B101="","",K101*IF($F101="",1,IF(ISERROR(MATCH($F101,$B$6:$B$105,0)),0,INDIRECT(ADDRESS(5+MATCH($F101,$B$6:$B$105,0),COLUMN(Q$4)))))*IF($F101="",IF(VLOOKUP($B101,SCHEMA_CE!$E$5:$F$54,2,FALSE)="C",-1,1),IF(OR(VLOOKUP($B101,SCHEMA_CE!$E$5:$F$54,2,FALSE)="C",VLOOKUP($F101,SCHEMA_CE!$E$5:$F$54,2,FALSE)="C"),-1,1))) -> 
M102: =IF($B102="","",G102*IF($F102="",1,IF(ISERROR(MATCH($F102,$B$6:$B$105,0)),0,INDIRECT(ADDRESS(5+MATCH($F102,$B$6:$B$105,0),COLUMN(M$4)))))*IF($F102="",IF(VLOOKUP($B102,SCHEMA_CE!$E$5:$F$54,2,FALSE)="C",-1,1),IF(OR(VLOOKUP($B102,SCHEMA_CE!$E$5:$F$54,2,FALSE)="C",VLOOKUP($F102,SCHEMA_CE!$E$5:$F$54,2,FALSE)="C"),-1,1))) ->  | N102: =IF($B102="","",H102*IF($F102="",1,IF(ISERROR(MATCH($F102,$B$6:$B$105,0)),0,INDIRECT(ADDRESS(5+MATCH($F102,$B$6:$B$105,0),COLUMN(N$4)))))*IF($F102="",IF(VLOOKUP($B102,SCHEMA_CE!$E$5:$F$54,2,FALSE)="C",-1,1),IF(OR(VLOOKUP($B102,SCHEMA_CE!$E$5:$F$54,2,FALSE)="C",VLOOKUP($F102,SCHEMA_CE!$E$5:$F$54,2,FALSE)="C"),-1,1))) ->  | O102: =IF($B102="","",I102*IF($F102="",1,IF(ISERROR(MATCH($F102,$B$6:$B$105,0)),0,INDIRECT(ADDRESS(5+MATCH($F102,$B$6:$B$105,0),COLUMN(O$4)))))*IF($F102="",IF(VLOOKUP($B102,SCHEMA_CE!$E$5:$F$54,2,FALSE)="C",-1,1),IF(OR(VLOOKUP($B102,SCHEMA_CE!$E$5:$F$54,2,FALSE)="C",VLOOKUP($F102,SCHEMA_CE!$E$5:$F$54,2,FALSE)="C"),-1,1))) ->  | P102: =IF($B102="","",J102*IF($F102="",1,IF(ISERROR(MATCH($F102,$B$6:$B$105,0)),0,INDIRECT(ADDRESS(5+MATCH($F102,$B$6:$B$105,0),COLUMN(P$4)))))*IF($F102="",IF(VLOOKUP($B102,SCHEMA_CE!$E$5:$F$54,2,FALSE)="C",-1,1),IF(OR(VLOOKUP($B102,SCHEMA_CE!$E$5:$F$54,2,FALSE)="C",VLOOKUP($F102,SCHEMA_CE!$E$5:$F$54,2,FALSE)="C"),-1,1))) ->  | Q102: =IF($B102="","",K102*IF($F102="",1,IF(ISERROR(MATCH($F102,$B$6:$B$105,0)),0,INDIRECT(ADDRESS(5+MATCH($F102,$B$6:$B$105,0),COLUMN(Q$4)))))*IF($F102="",IF(VLOOKUP($B102,SCHEMA_CE!$E$5:$F$54,2,FALSE)="C",-1,1),IF(OR(VLOOKUP($B102,SCHEMA_CE!$E$5:$F$54,2,FALSE)="C",VLOOKUP($F102,SCHEMA_CE!$E$5:$F$54,2,FALSE)="C"),-1,1))) -> 
M103: =IF($B103="","",G103*IF($F103="",1,IF(ISERROR(MATCH($F103,$B$6:$B$105,0)),0,INDIRECT(ADDRESS(5+MATCH($F103,$B$6:$B$105,0),COLUMN(M$4)))))*IF($F103="",IF(VLOOKUP($B103,SCHEMA_CE!$E$5:$F$54,2,FALSE)="C",-1,1),IF(OR(VLOOKUP($B103,SCHEMA_CE!$E$5:$F$54,2,FALSE)="C",VLOOKUP($F103,SCHEMA_CE!$E$5:$F$54,2,FALSE)="C"),-1,1))) ->  | N103: =IF($B103="","",H103*IF($F103="",1,IF(ISERROR(MATCH($F103,$B$6:$B$105,0)),0,INDIRECT(ADDRESS(5+MATCH($F103,$B$6:$B$105,0),COLUMN(N$4)))))*IF($F103="",IF(VLOOKUP($B103,SCHEMA_CE!$E$5:$F$54,2,FALSE)="C",-1,1),IF(OR(VLOOKUP($B103,SCHEMA_CE!$E$5:$F$54,2,FALSE)="C",VLOOKUP($F103,SCHEMA_CE!$E$5:$F$54,2,FALSE)="C"),-1,1))) ->  | O103: =IF($B103="","",I103*IF($F103="",1,IF(ISERROR(MATCH($F103,$B$6:$B$105,0)),0,INDIRECT(ADDRESS(5+MATCH($F103,$B$6:$B$105,0),COLUMN(O$4)))))*IF($F103="",IF(VLOOKUP($B103,SCHEMA_CE!$E$5:$F$54,2,FALSE)="C",-1,1),IF(OR(VLOOKUP($B103,SCHEMA_CE!$E$5:$F$54,2,FALSE)="C",VLOOKUP($F103,SCHEMA_CE!$E$5:$F$54,2,FALSE)="C"),-1,1))) ->  | P103: =IF($B103="","",J103*IF($F103="",1,IF(ISERROR(MATCH($F103,$B$6:$B$105,0)),0,INDIRECT(ADDRESS(5+MATCH($F103,$B$6:$B$105,0),COLUMN(P$4)))))*IF($F103="",IF(VLOOKUP($B103,SCHEMA_CE!$E$5:$F$54,2,FALSE)="C",-1,1),IF(OR(VLOOKUP($B103,SCHEMA_CE!$E$5:$F$54,2,FALSE)="C",VLOOKUP($F103,SCHEMA_CE!$E$5:$F$54,2,FALSE)="C"),-1,1))) ->  | Q103: =IF($B103="","",K103*IF($F103="",1,IF(ISERROR(MATCH($F103,$B$6:$B$105,0)),0,INDIRECT(ADDRESS(5+MATCH($F103,$B$6:$B$105,0),COLUMN(Q$4)))))*IF($F103="",IF(VLOOKUP($B103,SCHEMA_CE!$E$5:$F$54,2,FALSE)="C",-1,1),IF(OR(VLOOKUP($B103,SCHEMA_CE!$E$5:$F$54,2,FALSE)="C",VLOOKUP($F103,SCHEMA_CE!$E$5:$F$54,2,FALSE)="C"),-1,1))) -> 
M104: =IF($B104="","",G104*IF($F104="",1,IF(ISERROR(MATCH($F104,$B$6:$B$105,0)),0,INDIRECT(ADDRESS(5+MATCH($F104,$B$6:$B$105,0),COLUMN(M$4)))))*IF($F104="",IF(VLOOKUP($B104,SCHEMA_CE!$E$5:$F$54,2,FALSE)="C",-1,1),IF(OR(VLOOKUP($B104,SCHEMA_CE!$E$5:$F$54,2,FALSE)="C",VLOOKUP($F104,SCHEMA_CE!$E$5:$F$54,2,FALSE)="C"),-1,1))) ->  | N104: =IF($B104="","",H104*IF($F104="",1,IF(ISERROR(MATCH($F104,$B$6:$B$105,0)),0,INDIRECT(ADDRESS(5+MATCH($F104,$B$6:$B$105,0),COLUMN(N$4)))))*IF($F104="",IF(VLOOKUP($B104,SCHEMA_CE!$E$5:$F$54,2,FALSE)="C",-1,1),IF(OR(VLOOKUP($B104,SCHEMA_CE!$E$5:$F$54,2,FALSE)="C",VLOOKUP($F104,SCHEMA_CE!$E$5:$F$54,2,FALSE)="C"),-1,1))) ->  | O104: =IF($B104="","",I104*IF($F104="",1,IF(ISERROR(MATCH($F104,$B$6:$B$105,0)),0,INDIRECT(ADDRESS(5+MATCH($F104,$B$6:$B$105,0),COLUMN(O$4)))))*IF($F104="",IF(VLOOKUP($B104,SCHEMA_CE!$E$5:$F$54,2,FALSE)="C",-1,1),IF(OR(VLOOKUP($B104,SCHEMA_CE!$E$5:$F$54,2,FALSE)="C",VLOOKUP($F104,SCHEMA_CE!$E$5:$F$54,2,FALSE)="C"),-1,1))) ->  | P104: =IF($B104="","",J104*IF($F104="",1,IF(ISERROR(MATCH($F104,$B$6:$B$105,0)),0,INDIRECT(ADDRESS(5+MATCH($F104,$B$6:$B$105,0),COLUMN(P$4)))))*IF($F104="",IF(VLOOKUP($B104,SCHEMA_CE!$E$5:$F$54,2,FALSE)="C",-1,1),IF(OR(VLOOKUP($B104,SCHEMA_CE!$E$5:$F$54,2,FALSE)="C",VLOOKUP($F104,SCHEMA_CE!$E$5:$F$54,2,FALSE)="C"),-1,1))) ->  | Q104: =IF($B104="","",K104*IF($F104="",1,IF(ISERROR(MATCH($F104,$B$6:$B$105,0)),0,INDIRECT(ADDRESS(5+MATCH($F104,$B$6:$B$105,0),COLUMN(Q$4)))))*IF($F104="",IF(VLOOKUP($B104,SCHEMA_CE!$E$5:$F$54,2,FALSE)="C",-1,1),IF(OR(VLOOKUP($B104,SCHEMA_CE!$E$5:$F$54,2,FALSE)="C",VLOOKUP($F104,SCHEMA_CE!$E$5:$F$54,2,FALSE)="C"),-1,1))) -> 
M105: =IF($B105="","",G105*IF($F105="",1,IF(ISERROR(MATCH($F105,$B$6:$B$105,0)),0,INDIRECT(ADDRESS(5+MATCH($F105,$B$6:$B$105,0),COLUMN(M$4)))))*IF($F105="",IF(VLOOKUP($B105,SCHEMA_CE!$E$5:$F$54,2,FALSE)="C",-1,1),IF(OR(VLOOKUP($B105,SCHEMA_CE!$E$5:$F$54,2,FALSE)="C",VLOOKUP($F105,SCHEMA_CE!$E$5:$F$54,2,FALSE)="C"),-1,1))) ->  | N105: =IF($B105="","",H105*IF($F105="",1,IF(ISERROR(MATCH($F105,$B$6:$B$105,0)),0,INDIRECT(ADDRESS(5+MATCH($F105,$B$6:$B$105,0),COLUMN(N$4)))))*IF($F105="",IF(VLOOKUP($B105,SCHEMA_CE!$E$5:$F$54,2,FALSE)="C",-1,1),IF(OR(VLOOKUP($B105,SCHEMA_CE!$E$5:$F$54,2,FALSE)="C",VLOOKUP($F105,SCHEMA_CE!$E$5:$F$54,2,FALSE)="C"),-1,1))) ->  | O105: =IF($B105="","",I105*IF($F105="",1,IF(ISERROR(MATCH($F105,$B$6:$B$105,0)),0,INDIRECT(ADDRESS(5+MATCH($F105,$B$6:$B$105,0),COLUMN(O$4)))))*IF($F105="",IF(VLOOKUP($B105,SCHEMA_CE!$E$5:$F$54,2,FALSE)="C",-1,1),IF(OR(VLOOKUP($B105,SCHEMA_CE!$E$5:$F$54,2,FALSE)="C",VLOOKUP($F105,SCHEMA_CE!$E$5:$F$54,2,FALSE)="C"),-1,1))) ->  | P105: =IF($B105="","",J105*IF($F105="",1,IF(ISERROR(MATCH($F105,$B$6:$B$105,0)),0,INDIRECT(ADDRESS(5+MATCH($F105,$B$6:$B$105,0),COLUMN(P$4)))))*IF($F105="",IF(VLOOKUP($B105,SCHEMA_CE!$E$5:$F$54,2,FALSE)="C",-1,1),IF(OR(VLOOKUP($B105,SCHEMA_CE!$E$5:$F$54,2,FALSE)="C",VLOOKUP($F105,SCHEMA_CE!$E$5:$F$54,2,FALSE)="C"),-1,1))) ->  | Q105: =IF($B105="","",K105*IF($F105="",1,IF(ISERROR(MATCH($F105,$B$6:$B$105,0)),0,INDIRECT(ADDRESS(5+MATCH($F105,$B$6:$B$105,0),COLUMN(Q$4)))))*IF($F105="",IF(VLOOKUP($B105,SCHEMA_CE!$E$5:$F$54,2,FALSE)="C",-1,1),IF(OR(VLOOKUP($B105,SCHEMA_CE!$E$5:$F$54,2,FALSE)="C",VLOOKUP($F105,SCHEMA_CE!$E$5:$F$54,2,FALSE)="C"),-1,1))) -> 
A106: ALTRI DATI ECONOMICI
B107: Aliquota media fiscale | G107: 0.4 | H107: 0.4 | I107: 0.4
B108: Tasso medio d'interesse attivo | G108: 0.02 | H108: 0.02 | I108: 0.02
B109: Tasso medio d'interesse passivo | G109: 0.05 | H109: 0.05 | I109: 0.05

Sheet Attivita_Passivita
A1: =MENU!$C$5&" - ATTIVITA' / PASSIVITA'" -> XYZ SpA - ATTIVITA' / PASSIVITA'
M3: VALORI | S3: FLUSSI
C4: Aliq. IVA | D4: +/- | E4: % Monetaria | F4: Rif. Calcolo | G4: =MENU!C9+MENU!C7 -> 2005 | H4: =IF(G4="","",IF(G4+1-$G$4>MENU!$C$11-1,"",Attivita_Passivita!G4+1)) -> 2006 | I4: =IF(H4="","",IF(H4+1-$G$4>MENU!$C$11-1,"",Attivita_Passivita!H4+1)) -> 2007 | J4: =IF(I4="","",IF(I4+1-$G$4>MENU!$C$11-1,"",Attivita_Passivita!I4+1)) ->  | K4: =IF(J4="","",IF(J4+1-$G$4>MENU!$C$11-1,"",Attivita_Passivita!J4+1)) ->  | M4: =G4 -> 2005 | N4: =H4 -> 2006 | O4: =I4 -> 2007 | P4: =J4 ->  | Q4: =K4 ->  | S4: =M4 -> 2005 | T4: =N4 -> 2006 | U4: =O4 -> 2007 | V4: =P4 ->  | W4: =Q4 -> 
A5: ATTIVITA'
B6: 010101_Concessioni, licenze, marchi | D6: + | E6: 1 | G6: 1300 | H6: 1400 | I6: 1500 | M6: =IF($B6="","",G6*IF($F6="",1,IF(ISERROR(MATCH($F6,$B$6:$B$105)),0,INDIRECT(ADDRESS(5+MATCH($F6,$B$6:$B$105),COLUMN(M$4)))))*IF(VLOOKUP($B6,SCHEMA_SP!$E$5:$F$54,2,FALSE)="P",-1,1)) -> 1300 | N6: =IF($B6="","",H6*IF($F6="",1,IF(ISERROR(MATCH($F6,$B$6:$B$105)),0,INDIRECT(ADDRESS(5+MATCH($F6,$B$6:$B$105),COLUMN(N$4)))))*IF(VLOOKUP($B6,SCHEMA_SP!$E$5:$F$54,2,FALSE)="P",-1,1)) -> 1400 | O6: =IF($B6="","",I6*IF($F6="",1,IF(ISERROR(MATCH($F6,$B$6:$B$105)),0,INDIRECT(ADDRESS(5+MATCH($F6,$B$6:$B$105),COLUMN(O$4)))))*IF(VLOOKUP($B6,SCHEMA_SP!$E$5:$F$54,2,FALSE)="P",-1,1)) -> 1500 | P6: =IF($B6="","",J6*IF($F6="",1,IF(ISERROR(MATCH($F6,$B$6:$B$105)),0,INDIRECT(ADDRESS(5+MATCH($F6,$B$6:$B$105),COLUMN(P$4)))))*IF(VLOOKUP($B6,SCHEMA_SP!$E$5:$F$54,2,FALSE)="P",-1,1)) -> 0 | Q6: =IF($B6="","",K6*IF($F6="",1,IF(ISERROR(MATCH($F6,$B$6:$B$105)),0,INDIRECT(ADDRESS(5+MATCH($F6,$B$6:$B$105),COLUMN(Q$4)))))*IF(VLOOKUP($B6,SCHEMA_SP!$E$5:$F$54,2,FALSE)="P",-1,1)) -> 0 | S6: =IF($B6="","",M6*$E6) -> 1300 | T6: =IF($B6="","",N6*$E6) -> 1400 | U6: =IF($B6="","",O6*$E6) -> 1500 | V6: =IF($B6="","",P6*$E6) -> 0 | W6: =IF($B6="","",Q6*$E6) -> 0
B7: 010111_Software | D7: + | E7: 1 | G7: 1000 | H7: 1200 | I7: 1300 | M7: =IF($B7="","",G7*IF($F7="",1,IF(ISERROR(MATCH($F7,$B$6:$B$105)),0,INDIRECT(ADDRESS(5+MATCH($F7,$B$6:$B$105),COLUMN(M$4)))))*IF(VLOOKUP($B7,SCHEMA_SP!$E$5:$F$54,2,FALSE)="P",-1,1)) -> 1000 | N7: =IF($B7="","",H7*IF($F7="",1,IF(ISERROR(MATCH($F7,$B$6:$B$105)),0,INDIRECT(ADDRESS(5+MATCH($F7,$B$6:$B$105),COLUMN(N$4)))))*IF(VLOOKUP($B7,SCHEMA_SP!$E$5:$F$54,2,FALSE)="P",-1,1)) -> 1200 | O7: =IF($B7="","",I7*IF($F7="",1,IF(ISERROR(MATCH($F7,$B$6:$B$105)),0,INDIRECT(ADDRESS(5+MATCH($F7,$B$6:$B$105),COLUMN(O$4)))))*IF(VLOOKUP($B7,SCHEMA_SP!$E$5:$F$54,2,FALSE)="P",-1,1)) -> 1300 | P7: =IF($B7="","",J7*IF($F7="",1,IF(ISERROR(MATCH($F7,$B$6:$B$105)),0,INDIRECT(ADDRESS(5+MATCH($F7,$B$6:$B$105),COLUMN(P$4)))))*IF(VLOOKUP($B7,SCHEMA_SP!$E$5:$F$54,2,FALSE)="P",-1,1)) -> 0 | Q7: =IF($B7="","",K7*IF($F7="",1,IF(ISERROR(MATCH($F7,$B$6:$B$105)),0,INDIRECT(ADDRESS(5+MATCH($F7,$B$6:$B$105),COLUMN(Q$4)))))*IF(VLOOKUP($B7,SCHEMA_SP!$E$5:$F$54,2,FALSE)="P",-1,1)) -> 0 | S7: =IF($B7="","",M7*$E7) -> 1000 | T7: 1200 | U7: 1300 | V7: 0 | W7: 0
B8: 010201_Terreni e fabbricati | D8: + | E8: 1 | G8: 800 | H8: 800 | I8: 800 | M8: =IF($B8="","",G8*IF($F8="",1,IF(ISERROR(MATCH($F8,$B$6:$B$105)),0,INDIRECT(ADDRESS(5+MATCH($F8,$B$6:$B$105),COLUMN(M$4)))))*IF(VLOOKUP($B8,SCHEMA_SP!$E$5:$F$54,2,FALSE)="P",-1,1)) -> 800 | N8: =IF($B8="","",H8*IF($F8="",1,IF(ISERROR(MATCH($F8,$B$6:$B$105)),0,INDIRECT(ADDRESS(5+MATCH($F8,$B$6:$B$105),COLUMN(N$4)))))*IF(VLOOKUP($B8,SCHEMA_SP!$E$5:$F$54,2,FALSE)="P",-1,1)) -> 800 | O8: =IF($B8="","",I8*IF($F8="",1,IF(ISERROR(MATCH($F8,$B$6:$B$105)),0,INDIRECT(ADDRESS(5+MATCH($F8,$B$6:$B$105),COLUMN(O$4)))))*IF(VLOOKUP($B8,SCHEMA_SP!$E$5:$F$54,2,FALSE)="P",-1,1)) -> 800 | P8: =IF($B8="","",J8*IF($F8="",1,IF(ISERROR(MATCH($F8,$B$6:$B$105)),0,INDIRECT(ADDRESS(5+MATCH($F8,$B$6:$B$105),COLUMN(P$4)))))*IF(VLOOKUP($B8,SCHEMA_SP!$E$5:$F$54,2,FALSE)="P",-1,1)) -> 0 | Q8: =IF($B8="","",K8*IF($F8="",1,IF(ISERROR(MATCH($F8,$B$6:$B$105)),0,INDIRECT(ADDRESS(5+MATCH($F8,$B$6:$B$105),COLUMN(Q$4)))))*IF(VLOOKUP($B8,SCHEMA_SP!$E$5:$F$54,2,FALSE)="P",-1,1)) -> 0 | S8: 800 | T8: 800 | U8: 800 | V8: 0 | W8: 0
B9: 010211_Attrezzature e impianti | D9: + | E9: 1 | G9: 8000 | H9: 8500 | I9: 9000 | M9: =IF($B9="","",G9*IF($F9="",1,IF(ISERROR(MATCH($F9,$B$6:$B$105)),0,INDIRECT(ADDRESS(5+MATCH($F9,$B$6:$B$105),COLUMN(M$4)))))*IF(VLOOKUP($B9,SCHEMA_SP!$E$5:$F$54,2,FALSE)="P",-1,1)) -> 8000 | N9: =IF($B9="","",H9*IF($F9="",1,IF(ISERROR(MATCH($F9,$B$6:$B$105)),0,INDIRECT(ADDRESS(5+MATCH($F9,$B$6:$B$105),COLUMN(N$4)))))*IF(VLOOKUP($B9,SCHEMA_SP!$E$5:$F$54,2,FALSE)="P",-1,1)) -> 8500 | O9: =IF($B9="","",I9*IF($F9="",1,IF(ISERROR(MATCH($F9,$B$6:$B$105)),0,INDIRECT(ADDRESS(5+MATCH($F9,$B$6:$B$105),COLUMN(O$4)))))*IF(VLOOKUP($B9,SCHEMA_SP!$E$5:$F$54,2,FALSE)="P",-1,1)) -> 9000 | P9: =IF($B9="","",J9*IF($F9="",1,IF(ISERROR(MATCH($F9,$B$6:$B$105)),0,INDIRECT(ADDRESS(5+MATCH($F9,$B$6:$B$105),COLUMN(P$4)))))*IF(VLOOKUP($B9,SCHEMA_SP!$E$5:$F$54,2,FALSE)="P",-1,1)) -> 0 | Q9: =IF($B9="","",K9*IF($F9="",1,IF(ISERROR(MATCH($F9,$B$6:$B$105)),0,INDIRECT(ADDRESS(5+MATCH($F9,$B$6:$B$105),COLUMN(Q$4)))))*IF(VLOOKUP($B9,SCHEMA_SP!$E$5:$F$54,2,FALSE)="P",-1,1)) -> 0 | S9: 8000 | T9: 8500 | U9: 9000 | V9: 0 | W9: 0
B10: 010221_Altri beni | E10: 1 | G10: 100 | H10: 100 | I10: 100 | M10: =IF($B10="","",G10*IF($F10="",1,IF(ISERROR(MATCH($F10,$B$6:$B$105)),0,INDIRECT(ADDRESS(5+MATCH($F10,$B$6:$B$105),COLUMN(M$4)))))*IF(VLOOKUP($B10,SCHEMA_SP!$E$5:$F$54,2,FALSE)="P",-1,1)) -> 100 | N10: =IF($B10="","",H10*IF($F10="",1,IF(ISERROR(MATCH($F10,$B$6:$B$105)),0,INDIRECT(ADDRESS(5+MATCH($F10,$B$6:$B$105),COLUMN(N$4)))))*IF(VLOOKUP($B10,SCHEMA_SP!$E$5:$F$54,2,FALSE)="P",-1,1)) -> 100 | O10: =IF($B10="","",I10*IF($F10="",1,IF(ISERROR(MATCH($F10,$B$6:$B$105)),0,INDIRECT(ADDRESS(5+MATCH($F10,$B$6:$B$105),COLUMN(O$4)))))*IF(VLOOKUP($B10,SCHEMA_SP!$E$5:$F$54,2,FALSE)="P",-1,1)) -> 100 | P10: =IF($B10="","",J10*IF($F10="",1,IF(ISERROR(MATCH($F10,$B$6:$B$105)),0,INDIRECT(ADDRESS(5+MATCH($F10,$B$6:$B$105),COLUMN(P$4)))))*IF(VLOOKUP($B10,SCHEMA_SP!$E$5:$F$54,2,FALSE)="P",-1,1)) -> 0 | Q10: =IF($B10="","",K10*IF($F10="",1,IF(ISERROR(MATCH($F10,$B$6:$B$105)),0,INDIRECT(ADDRESS(5+MATCH($F10,$B$6:$B$105),COLUMN(Q$4)))))*IF(VLOOKUP($B10,SCHEMA_SP!$E$5:$F$54,2,FALSE)="P",-1,1)) -> 0 | S10: 100 | T10: 100 | U10: 100 | V10: 0 | W10: 0
B11: 010301_Partecipazioni | E11: 1 | G11: 20 | H11: 20 | I11: 20 | M11: =IF($B11="","",G11*IF($F11="",1,IF(ISERROR(MATCH($F11,$B$6:$B$105)),0,INDIRECT(ADDRESS(5+MATCH($F11,$B$6:$B$105),COLUMN(M$4)))))*IF(VLOOKUP($B11,SCHEMA_SP!$E$5:$F$54,2,FALSE)="P",-1,1)) -> 20 | N11: =IF($B11="","",H11*IF($F11="",1,IF(ISERROR(MATCH($F11,$B$6:$B$105)),0,INDIRECT(ADDRESS(5+MATCH($F11,$B$6:$B$105),COLUMN(N$4)))))*IF(VLOOKUP($B11,SCHEMA_SP!$E$5:$F$54,2,FALSE)="P",-1,1)) -> 20 | O11: =IF($B11="","",I11*IF($F11="",1,IF(ISERROR(MATCH($F11,$B$6:$B$105)),0,INDIRECT(ADDRESS(5+MATCH($F11,$B$6:$B$105),COLUMN(O$4)))))*IF(VLOOKUP($B11,SCHEMA_SP!$E$5:$F$54,2,FALSE)="P",-1,1)) -> 20 | P11: =IF($B11="","",J11*IF($F11="",1,IF(ISERROR(MATCH($F11,$B$6:$B$105)),0,INDIRECT(ADDRESS(5+MATCH($F11,$B$6:$B$105),COLUMN(P$4)))))*IF(VLOOKUP($B11,SCHEMA_SP!$E$5:$F$54,2,FALSE)="P",-1,1)) -> 0 | Q11: =IF($B11="","",K11*IF($F11="",1,IF(ISERROR(MATCH($F11,$B$6:$B$105)),0,INDIRECT(ADDRESS(5+MATCH($F11,$B$6:$B$105),COLUMN(Q$4)))))*IF(VLOOKUP($B11,SCHEMA_SP!$E$5:$F$54,2,FALSE)="P",-1,1)) -> 0 | S11: 20 | T11: 20 | U11: 20 | V11: 0 | W11: 0
B12: 010311_Crediti | E12: 1 | G12: 10 | H12: 10 | I12: 10 | M12: =IF($B12="","",G12*IF($F12="",1,IF(ISERROR(MATCH($F12,$B$6:$B$105)),0,INDIRECT(ADDRESS(5+MATCH($F12,$B$6:$B$105),COLUMN(M$4)))))*IF(VLOOKUP($B12,SCHEMA_SP!$E$5:$F$54,2,FALSE)="P",-1,1)) -> 10 | N12: =IF($B12="","",H12*IF($F12="",1,IF(ISERROR(MATCH($F12,$B$6:$B$105)),0,INDIRECT(ADDRESS(5+MATCH($F12,$B$6:$B$105),COLUMN(N$4)))))*IF(VLOOKUP($B12,SCHEMA_SP!$E$5:$F$54,2,FALSE)="P",-1,1)) -> 10 | O12: =IF($B12="","",I12*IF($F12="",1,IF(ISERROR(MATCH($F12,$B$6:$B$105)),0,INDIRECT(ADDRESS(5+MATCH($F12,$B$6:$B$105),COLUMN(O$4)))))*IF(VLOOKUP($B12,SCHEMA_SP!$E$5:$F$54,2,FALSE)="P",-1,1)) -> 10 | P12: =IF($B12="","",J12*IF($F12="",1,IF(ISERROR(MATCH($F12,$B$6:$B$105)),0,INDIRECT(ADDRESS(5+MATCH($F12,$B$6:$B$105),COLUMN(P$4)))))*IF(VLOOKUP($B12,SCHEMA_SP!$E$5:$F$54,2,FALSE)="P",-1,1)) -> 0 | Q12: =IF($B12="","",K12*IF($F12="",1,IF(ISERROR(MATCH($F12,$B$6:$B$105)),0,INDIRECT(ADDRESS(5+MATCH($F12,$B$6:$B$105),COLUMN(Q$4)))))*IF(VLOOKUP($B12,SCHEMA_SP!$E$5:$F$54,2,FALSE)="P",-1,1)) -> 0 | S12: 10 | T12: 10 | U12: 10 | V12: 0 | W12: 0
B13: 010321_Altri | E13: 1 | G13: 20 | H13: 20 | I13: 20 | M13: =IF($B13="","",G13*IF($F13="",1,IF(ISERROR(MATCH($F13,$B$6:$B$105)),0,INDIRECT(ADDRESS(5+MATCH($F13,$B$6:$B$105),COLUMN(M$4)))))*IF(VLOOKUP($B13,SCHEMA_SP!$E$5:$F$54,2,FALSE)="P",-1,1)) -> 20 | N13: =IF($B13="","",H13*IF($F13="",1,IF(ISERROR(MATCH($F13,$B$6:$B$105)),0,INDIRECT(ADDRESS(5+MATCH($F13,$B$6:$B$105),COLUMN(N$4)))))*IF(VLOOKUP($B13,SCHEMA_SP!$E$5:$F$54,2,FALSE)="P",-1,1)) -> 20 | O13: =IF($B13="","",I13*IF($F13="",1,IF(ISERROR(MATCH($F13,$B$6:$B$105)),0,INDIRECT(ADDRESS(5+MATCH($F13,$B$6:$B$105),COLUMN(O$4)))))*IF(VLOOKUP($B13,SCHEMA_SP!$E$5:$F$54,2,FALSE)="P",-1,1)) -> 20 | P13: =IF($B13="","",J13*IF($F13="",1,IF(ISERROR(MATCH($F13,$B$6:$B$105)),0,INDIRECT(ADDRESS(5+MATCH($F13,$B$6:$B$105),COLUMN(P$4)))))*IF(VLOOKUP($B13,SCHEMA_SP!$E$5:$F$54,2,FALSE)="P",-1,1)) -> 0 | Q13: =IF($B13="","",K13*IF($F13="",1,IF(ISERROR(MATCH($F13,$B$6:$B$105)),0,INDIRECT(ADDRESS(5+MATCH($F13,$B$6:$B$105),COLUMN(Q$4)))))*IF(VLOOKUP($B13,SCHEMA_SP!$E$5:$F$54,2,FALSE)="P",-1,1)) -> 0 | S13: 20 | T13: 20 | U13: 20 | V13: 0 | W13: 0
B14: 020401_Magazzino | E14: 1 | G14: 700 | H14: 800 | I14: 900 | M14: =IF($B14="","",G14*IF($F14="",1,IF(ISERROR(MATCH($F14,$B$6:$B$105)),0,INDIRECT(ADDRESS(5+MATCH($F14,$B$6:$B$105),COLUMN(M$4)))))*IF(VLOOKUP($B14,SCHEMA_SP!$E$5:$F$54,2,FALSE)="P",-1,1)) -> 700 | N14: =IF($B14="","",H14*IF($F14="",1,IF(ISERROR(MATCH($F14,$B$6:$B$105)),0,INDIRECT(ADDRESS(5+MATCH($F14,$B$6:$B$105),COLUMN(N$4)))))*IF(VLOOKUP($B14,SCHEMA_SP!$E$5:$F$54,2,FALSE)="P",-1,1)) -> 800 | O14: =IF($B14="","",I14*IF($F14="",1,IF(ISERROR(MATCH($F14,$B$6:$B$105)),0,INDIRECT(ADDRESS(5+MATCH($F14,$B$6:$B$105),COLUMN(O$4)))))*IF(VLOOKUP($B14,SCHEMA_SP!$E$5:$F$54,2,FALSE)="P",-1,1)) -> 900 | P14: =IF($B14="","",J14*IF($F14="",1,IF(ISERROR(MATCH($F14,$B$6:$B$105)),0,INDIRECT(ADDRESS(5+MATCH($F14,$B$6:$B$105),COLUMN(P$4)))))*IF(VLOOKUP($B14,SCHEMA_SP!$E$5:$F$54,2,FALSE)="P",-1,1)) -> 0 | Q14: =IF($B14="","",K14*IF($F14="",1,IF(ISERROR(MATCH($F14,$B$6:$B$105)),0,INDIRECT(ADDRESS(5+MATCH($F14,$B$6:$B$105),COLUMN(Q$4)))))*IF(VLOOKUP($B14,SCHEMA_SP!$E$5:$F$54,2,FALSE)="P",-1,1)) -> 0 | S14: 700 | T14: 800 | U14: 900 | V14: 0 | W14: 0
B15: 020402_Crediti verso clienti | E15: 1 | G15: 7000 | H15: 8000 | I15: 9000 | M15: =IF($B15="","",G15*IF($F15="",1,IF(ISERROR(MATCH($F15,$B$6:$B$105)),0,INDIRECT(ADDRESS(5+MATCH($F15,$B$6:$B$105),COLUMN(M$4)))))*IF(VLOOKUP($B15,SCHEMA_SP!$E$5:$F$54,2,FALSE)="P",-1,1)) -> 7000 | N15: =IF($B15="","",H15*IF($F15="",1,IF(ISERROR(MATCH($F15,$B$6:$B$105)),0,INDIRECT(ADDRESS(5+MATCH($F15,$B$6:$B$105),COLUMN(N$4)))))*IF(VLOOKUP($B15,SCHEMA_SP!$E$5:$F$54,2,FALSE)="P",-1,1)) -> 8000 | O15: =IF($B15="","",I15*IF($F15="",1,IF(ISERROR(MATCH($F15,$B$6:$B$105)),0,INDIRECT(ADDRESS(5+MATCH($F15,$B$6:$B$105),COLUMN(O$4)))))*IF(VLOOKUP($B15,SCHEMA_SP!$E$5:$F$54,2,FALSE)="P",-1,1)) -> 9000 | P15: =IF($B15="","",J15*IF($F15="",1,IF(ISERROR(MATCH($F15,$B$6:$B$105)),0,INDIRECT(ADDRESS(5+MATCH($F15,$B$6:$B$105),COLUMN(P$4)))))*IF(VLOOKUP($B15,SCHEMA_SP!$E$5:$F$54,2,FALSE)="P",-1,1)) -> 0 | Q15: =IF($B15="","",K15*IF($F15="",1,IF(ISERROR(MATCH($F15,$B$6:$B$105)),0,INDIRECT(ADDRESS(5+MATCH($F15,$B$6:$B$105),COLUMN(Q$4)))))*IF(VLOOKUP($B15,SCHEMA_SP!$E$5:$F$54,2,FALSE)="P",-1,1)) -> 0 | S15: 7000 | T15: 8000 | U15: 9000 | V15: 0 | W15: 0
B16: 020403_Altri crediti | E16: 1 | G16: 1000 | H16: 1000 | I16: 1000 | M16: =IF($B16="","",G16*IF($F16="",1,IF(ISERROR(MATCH($F16,$B$6:$B$105)),0,INDIRECT(ADDRESS(5+MATCH($F16,$B$6:$B$105),COLUMN(M$4)))))*IF(VLOOKUP($B16,SCHEMA_SP!$E$5:$F$54,2,FALSE)="P",-1,1)) -> 1000 | N16: =IF($B16="","",H16*IF($F16="",1,IF(ISERROR(MATCH($F16,$B$6:$B$105)),0,INDIRECT(ADDRESS(5+MATCH($F16,$B$6:$B$105),COLUMN(N$4)))))*IF(VLOOKUP($B16,SCHEMA_SP!$E$5:$F$54,2,FALSE)="P",-1,1)) -> 1000 | O16: =IF($B16="","",I16*IF($F16="",1,IF(ISERROR(MATCH($F16,$B$6:$B$105)),0,INDIRECT(ADDRESS(5+MATCH($F16,$B$6:$B$105),COLUMN(O$4)))))*IF(VLOOKUP($B16,SCHEMA_SP!$E$5:$F$54,2,FALSE)="P",-1,1)) -> 1000 | P16: =IF($B16="","",J16*IF($F16="",1,IF(ISERROR(MATCH($F16,$B$6:$B$105)),0,INDIRECT(ADDRESS(5+MATCH($F16,$B$6:$B$105),COLUMN(P$4)))))*IF(VLOOKUP($B16,SCHEMA_SP!$E$5:$F$54,2,FALSE)="P",-1,1)) -> 0 | Q16: =IF($B16="","",K16*IF($F16="",1,IF(ISERROR(MATCH($F16,$B$6:$B$105)),0,INDIRECT(ADDRESS(5+MATCH($F16,$B$6:$B$105),COLUMN(Q$4)))))*IF(VLOOKUP($B16,SCHEMA_SP!$E$5:$F$54,2,FALSE)="P",-1,1)) -> 0 | S16: 1000 | T16: 1000 | U16: 1000 | V16: 0 | W16: 0
B17: 020404_Ratei/risconti attivi | E17: 0 | G17: 500 | H17: 500 | I17: 500 | M17: =IF($B17="","",G17*IF($F17="",1,IF(ISERROR(MATCH($F17,$B$6:$B$105)),0,INDIRECT(ADDRESS(5+MATCH($F17,$B$6:$B$105),COLUMN(M$4)))))*IF(VLOOKUP($B17,SCHEMA_SP!$E$5:$F$54,2,FALSE)="P",-1,1)) -> 500 | N17: =IF($B17="","",H17*IF($F17="",1,IF(ISERROR(MATCH($F17,$B$6:$B$105)),0,INDIRECT(ADDRESS(5+MATCH($F17,$B$6:$B$105),COLUMN(N$4)))))*IF(VLOOKUP($B17,SCHEMA_SP!$E$5:$F$54,2,FALSE)="P",-1,1)) -> 500 | O17: =IF($B17="","",I17*IF($F17="",1,IF(ISERROR(MATCH($F17,$B$6:$B$105)),0,INDIRECT(ADDRESS(5+MATCH($F17,$B$6:$B$105),COLUMN(O$4)))))*IF(VLOOKUP($B17,SCHEMA_SP!$E$5:$F$54,2,FALSE)="P",-1,1)) -> 500 | P17: =IF($B17="","",J17*IF($F17="",1,IF(ISERROR(MATCH($F17,$B$6:$B$105)),0,INDIRECT(ADDRESS(5+MATCH($F17,$B$6:$B$105),COLUMN(P$4)))))*IF(VLOOKUP($B17,SCHEMA_SP!$E$5:$F$54,2,FALSE)="P",-1,1)) -> 0 | Q17: =IF($B17="","",K17*IF($F17="",1,IF(ISERROR(MATCH($F17,$B$6:$B$105)),0,INDIRECT(ADDRESS(5+MATCH($F17,$B$6:$B$105),COLUMN(Q$4)))))*IF(VLOOKUP($B17,SCHEMA_SP!$E$5:$F$54,2,FALSE)="P",-1,1)) -> 0 | S17: 0 | T17: 0 | U17: 0 | V17: 0 | W17: 0
B18: 030101_Cassa | E18: 1 | G18: 10 | H18: 10 | I18: 10 | M18: =IF($B18="","",G18*IF($F18="",1,IF(ISERROR(MATCH($F18,$B$6:$B$105)),0,INDIRECT(ADDRESS(5+MATCH($F18,$B$6:$B$105),COLUMN(M$4)))))*IF(VLOOKUP($B18,SCHEMA_SP!$E$5:$F$54,2,FALSE)="P",-1,1)) -> 10 | N18: =IF($B18="","",H18*IF($F18="",1,IF(ISERROR(MATCH($F18,$B$6:$B$105)),0,INDIRECT(ADDRESS(5+MATCH($F18,$B$6:$B$105),COLUMN(N$4)))))*IF(VLOOKUP($B18,SCHEMA_SP!$E$5:$F$54,2,FALSE)="P",-1,1)) -> 10 | O18: =IF($B18="","",I18*IF($F18="",1,IF(ISERROR(MATCH($F18,$B$6:$B$105)),0,INDIRECT(ADDRESS(5+MATCH($F18,$B$6:$B$105),COLUMN(O$4)))))*IF(VLOOKUP($B18,SCHEMA_SP!$E$5:$F$54,2,FALSE)="P",-1,1)) -> 10 | P18: =IF($B18="","",J18*IF($F18="",1,IF(ISERROR(MATCH($F18,$B$6:$B$105)),0,INDIRECT(ADDRESS(5+MATCH($F18,$B$6:$B$105),COLUMN(P$4)))))*IF(VLOOKUP($B18,SCHEMA_SP!$E$5:$F$54,2,FALSE)="P",-1,1)) -> 0 | Q18: =IF($B18="","",K18*IF($F18="",1,IF(ISERROR(MATCH($F18,$B$6:$B$105)),0,INDIRECT(ADDRESS(5+MATCH($F18,$B$6:$B$105),COLUMN(Q$4)))))*IF(VLOOKUP($B18,SCHEMA_SP!$E$5:$F$54,2,FALSE)="P",-1,1)) -> 0 | S18: 10 | T18: 10 | U18: 10 | V18: 0 | W18: 0
B19: 030111_Banca | E19: 1 | G19: 50 | H19: 50 | I19: 50 | M19: =IF($B19="","",G19*IF($F19="",1,IF(ISERROR(MATCH($F19,$B$6:$B$105)),0,INDIRECT(ADDRESS(5+MATCH($F19,$B$6:$B$105),COLUMN(M$4)))))*IF(VLOOKUP($B19,SCHEMA_SP!$E$5:$F$54,2,FALSE)="P",-1,1)) -> 50 | N19: =IF($B19="","",H19*IF($F19="",1,IF(ISERROR(MATCH($F19,$B$6:$B$105)),0,INDIRECT(ADDRESS(5+MATCH($F19,$B$6:$B$105),COLUMN(N$4)))))*IF(VLOOKUP($B19,SCHEMA_SP!$E$5:$F$54,2,FALSE)="P",-1,1)) -> 50 | O19: =IF($B19="","",I19*IF($F19="",1,IF(ISERROR(MATCH($F19,$B$6:$B$105)),0,INDIRECT(ADDRESS(5+MATCH($F19,$B$6:$B$105),COLUMN(O$4)))))*IF(VLOOKUP($B19,SCHEMA_SP!$E$5:$F$54,2,FALSE)="P",-1,1)) -> 50 | P19: =IF($B19="","",J19*IF($F19="",1,IF(ISERROR(MATCH($F19,$B$6:$B$105)),0,INDIRECT(ADDRESS(5+MATCH($F19,$B$6:$B$105),COLUMN(P$4)))))*IF(VLOOKUP($B19,SCHEMA_SP!$E$5:$F$54,2,FALSE)="P",-1,1)) -> 0 | Q19: =IF($B19="","",K19*IF($F19="",1,IF(ISERROR(MATCH($F19,$B$6:$B$105)),0,INDIRECT(ADDRESS(5+MATCH($F19,$B$6:$B$105),COLUMN(Q$4)))))*IF(VLOOKUP($B19,SCHEMA_SP!$E$5:$F$54,2,FALSE)="P",-1,1)) -> 0 | S19: 50 | T19: 50 | U19: 50 | V19: 0 | W19: 0
B20: 030121_Titoli | E20: 1 | G20: 5 | H20: 5 | I20: 5 | M20: =IF($B20="","",G20*IF($F20="",1,IF(ISERROR(MATCH($F20,$B$6:$B$105)),0,INDIRECT(ADDRESS(5+MATCH($F20,$B$6:$B$105),COLUMN(M$4)))))*IF(VLOOKUP($B20,SCHEMA_SP!$E$5:$F$54,2,FALSE)="P",-1,1)) -> 5 | N20: =IF($B20="","",H20*IF($F20="",1,IF(ISERROR(MATCH($F20,$B$6:$B$105)),0,INDIRECT(ADDRESS(5+MATCH($F20,$B$6:$B$105),COLUMN(N$4)))))*IF(VLOOKUP($B20,SCHEMA_SP!$E$5:$F$54,2,FALSE)="P",-1,1)) -> 5 | O20: =IF($B20="","",I20*IF($F20="",1,IF(ISERROR(MATCH($F20,$B$6:$B$105)),0,INDIRECT(ADDRESS(5+MATCH($F20,$B$6:$B$105),COLUMN(O$4)))))*IF(VLOOKUP($B20,SCHEMA_SP!$E$5:$F$54,2,FALSE)="P",-1,1)) -> 5 | P20: =IF($B20="","",J20*IF($F20="",1,IF(ISERROR(MATCH($F20,$B$6:$B$105)),0,INDIRECT(ADDRESS(5+MATCH($F20,$B$6:$B$105),COLUMN(P$4)))))*IF(VLOOKUP($B20,SCHEMA_SP!$E$5:$F$54,2,FALSE)="P",-1,1)) -> 0 | Q20: =IF($B20="","",K20*IF($F20="",1,IF(ISERROR(MATCH($F20,$B$6:$B$105)),0,INDIRECT(ADDRESS(5+MATCH($F20,$B$6:$B$105),COLUMN(Q$4)))))*IF(VLOOKUP($B20,SCHEMA_SP!$E$5:$F$54,2,FALSE)="P",-1,1)) -> 0 | S20: 5 | T20: 5 | U20: 5 | V20: 0 | W20: 0
M21: =IF($B21="","",G21*IF($F21="",1,IF(ISERROR(MATCH($F21,$B$6:$B$105)),0,INDIRECT(ADDRESS(5+MATCH($F21,$B$6:$B$105),COLUMN(M$4)))))*IF(VLOOKUP($B21,SCHEMA_SP!$E$5:$F$54,2,FALSE)="P",-1,1)) ->  | N21: =IF($B21="","",H21*IF($F21="",1,IF(ISERROR(MATCH($F21,$B$6:$B$105)),0,INDIRECT(ADDRESS(5+MATCH($F21,$B$6:$B$105),COLUMN(N$4)))))*IF(VLOOKUP($B21,SCHEMA_SP!$E$5:$F$54,2,FALSE)="P",-1,1)) ->  | O21: =IF($B21="","",I21*IF($F21="",1,IF(ISERROR(MATCH($F21,$B$6:$B$105)),0,INDIRECT(ADDRESS(5+MATCH($F21,$B$6:$B$105),COLUMN(O$4)))))*IF(VLOOKUP($B21,SCHEMA_SP!$E$5:$F$54,2,FALSE)="P",-1,1)) ->  | P21: =IF($B21="","",J21*IF($F21="",1,IF(ISERROR(MATCH($F21,$B$6:$B$105)),0,INDIRECT(ADDRESS(5+MATCH($F21,$B$6:$B$105),COLUMN(P$4)))))*IF(VLOOKUP($B21,SCHEMA_SP!$E$5:$F$54,2,FALSE)="P",-1,1)) ->  | Q21: =IF($B21="","",K21*IF($F21="",1,IF(ISERROR(MATCH($F21,$B$6:$B$105)),0,INDIRECT(ADDRESS(5+MATCH($F21,$B$6:$B$105),COLUMN(Q$4)))))*IF(VLOOKUP($B21,SCHEMA_SP!$E$5:$F$54,2,FALSE)="P",-1,1)) -> 
M22: =IF($B22="","",G22*IF($F22="",1,IF(ISERROR(MATCH($F22,$B$6:$B$105)),0,INDIRECT(ADDRESS(5+MATCH($F22,$B$6:$B$105),COLUMN(M$4)))))*IF(VLOOKUP($B22,SCHEMA_SP!$E$5:$F$54,2,FALSE)="P",-1,1)) ->  | N22: =IF($B22="","",H22*IF($F22="",1,IF(ISERROR(MATCH($F22,$B$6:$B$105)),0,INDIRECT(ADDRESS(5+MATCH($F22,$B$6:$B$105),COLUMN(N$4)))))*IF(VLOOKUP($B22,SCHEMA_SP!$E$5:$F$54,2,FALSE)="P",-1,1)) ->  | O22: =IF($B22="","",I22*IF($F22="",1,IF(ISERROR(MATCH($F22,$B$6:$B$105)),0,INDIRECT(ADDRESS(5+MATCH($F22,$B$6:$B$105),COLUMN(O$4)))))*IF(VLOOKUP($B22,SCHEMA_SP!$E$5:$F$54,2,FALSE)="P",-1,1)) ->  | P22: =IF($B22="","",J22*IF($F22="",1,IF(ISERROR(MATCH($F22,$B$6:$B$105)),0,INDIRECT(ADDRESS(5+MATCH($F22,$B$6:$B$105),COLUMN(P$4)))))*IF(VLOOKUP($B22,SCHEMA_SP!$E$5:$F$54,2,FALSE)="P",-1,1)) ->  | Q22: =IF($B22="","",K22*IF($F22="",1,IF(ISERROR(MATCH($F22,$B$6:$B$105)),0,INDIRECT(ADDRESS(5+MATCH($F22,$B$6:$B$105),COLUMN(Q$4)))))*IF(VLOOKUP($B22,SCHEMA_SP!$E$5:$F$54,2,FALSE)="P",-1,1)) -> 
M23: =IF($B23="","",G23*IF($F23="",1,IF(ISERROR(MATCH($F23,$B$6:$B$105)),0,INDIRECT(ADDRESS(5+MATCH($F23,$B$6:$B$105),COLUMN(M$4)))))*IF(VLOOKUP($B23,SCHEMA_SP!$E$5:$F$54,2,FALSE)="P",-1,1)) ->  | N23: =IF($B23="","",H23*IF($F23="",1,IF(ISERROR(MATCH($F23,$B$6:$B$105)),0,INDIRECT(ADDRESS(5+MATCH($F23,$B$6:$B$105),COLUMN(N$4)))))*IF(VLOOKUP($B23,SCHEMA_SP!$E$5:$F$54,2,FALSE)="P",-1,1)) ->  | O23: =IF($B23="","",I23*IF($F23="",1,IF(ISERROR(MATCH($F23,$B$6:$B$105)),0,INDIRECT(ADDRESS(5+MATCH($F23,$B$6:$B$105),COLUMN(O$4)))))*IF(VLOOKUP($B23,SCHEMA_SP!$E$5:$F$54,2,FALSE)="P",-1,1)) ->  | P23: =IF($B23="","",J23*IF($F23="",1,IF(ISERROR(MATCH($F23,$B$6:$B$105)),0,INDIRECT(ADDRESS(5+MATCH($F23,$B$6:$B$105),COLUMN(P$4)))))*IF(VLOOKUP($B23,SCHEMA_SP!$E$5:$F$54,2,FALSE)="P",-1,1)) ->  | Q23: =IF($B23="","",K23*IF($F23="",1,IF(ISERROR(MATCH($F23,$B$6:$B$105)),0,INDIRECT(ADDRESS(5+MATCH($F23,$B$6:$B$105),COLUMN(Q$4)))))*IF(VLOOKUP($B23,SCHEMA_SP!$E$5:$F$54,2,FALSE)="P",-1,1)) -> 
M24: =IF($B24="","",G24*IF($F24="",1,IF(ISERROR(MATCH($F24,$B$6:$B$105)),0,INDIRECT(ADDRESS(5+MATCH($F24,$B$6:$B$105),COLUMN(M$4)))))*IF(VLOOKUP($B24,SCHEMA_SP!$E$5:$F$54,2,FALSE)="P",-1,1)) ->  | N24: =IF($B24="","",H24*IF($F24="",1,IF(ISERROR(MATCH($F24,$B$6:$B$105)),0,INDIRECT(ADDRESS(5+MATCH($F24,$B$6:$B$105),COLUMN(N$4)))))*IF(VLOOKUP($B24,SCHEMA_SP!$E$5:$F$54,2,FALSE)="P",-1,1)) ->  | O24: =IF($B24="","",I24*IF($F24="",1,IF(ISERROR(MATCH($F24,$B$6:$B$105)),0,INDIRECT(ADDRESS(5+MATCH($F24,$B$6:$B$105),COLUMN(O$4)))))*IF(VLOOKUP($B24,SCHEMA_SP!$E$5:$F$54,2,FALSE)="P",-1,1)) ->  | P24: =IF($B24="","",J24*IF($F24="",1,IF(ISERROR(MATCH($F24,$B$6:$B$105)),0,INDIRECT(ADDRESS(5+MATCH($F24,$B$6:$B$105),COLUMN(P$4)))))*IF(VLOOKUP($B24,SCHEMA_SP!$E$5:$F$54,2,FALSE)="P",-1,1)) ->  | Q24: =IF($B24="","",K24*IF($F24="",1,IF(ISERROR(MATCH($F24,$B$6:$B$105)),0,INDIRECT(ADDRESS(5+MATCH($F24,$B$6:$B$105),COLUMN(Q$4)))))*IF(VLOOKUP($B24,SCHEMA_SP!$E$5:$F$54,2,FALSE)="P",-1,1)) -> 
M25: =IF($B25="","",G25*IF($F25="",1,IF(ISERROR(MATCH($F25,$B$6:$B$105)),0,INDIRECT(ADDRESS(5+MATCH($F25,$B$6:$B$105),COLUMN(M$4)))))*IF(VLOOKUP($B25,SCHEMA_SP!$E$5:$F$54,2,FALSE)="P",-1,1)) ->  | N25: =IF($B25="","",H25*IF($F25="",1,IF(ISERROR(MATCH($F25,$B$6:$B$105)),0,INDIRECT(ADDRESS(5+MATCH($F25,$B$6:$B$105),COLUMN(N$4)))))*IF(VLOOKUP($B25,SCHEMA_SP!$E$5:$F$54,2,FALSE)="P",-1,1)) ->  | O25: =IF($B25="","",I25*IF($F25="",1,IF(ISERROR(MATCH($F25,$B$6:$B$105)),0,INDIRECT(ADDRESS(5+MATCH($F25,$B$6:$B$105),COLUMN(O$4)))))*IF(VLOOKUP($B25,SCHEMA_SP!$E$5:$F$54,2,FALSE)="P",-1,1)) ->  | P25: =IF($B25="","",J25*IF($F25="",1,IF(ISERROR(MATCH($F25,$B$6:$B$105)),0,INDIRECT(ADDRESS(5+MATCH($F25,$B$6:$B$105),COLUMN(P$4)))))*IF(VLOOKUP($B25,SCHEMA_SP!$E$5:$F$54,2,FALSE)="P",-1,1)) ->  | Q25: =IF($B25="","",K25*IF($F25="",1,IF(ISERROR(MATCH($F25,$B$6:$B$105)),0,INDIRECT(ADDRESS(5+MATCH($F25,$B$6:$B$105),COLUMN(Q$4)))))*IF(VLOOKUP($B25,SCHEMA_SP!$E$5:$F$54,2,FALSE)="P",-1,1)) -> 
M26: =IF($B26="","",G26*IF($F26="",1,IF(ISERROR(MATCH($F26,$B$6:$B$105)),0,INDIRECT(ADDRESS(5+MATCH($F26,$B$6:$B$105),COLUMN(M$4)))))*IF(VLOOKUP($B26,SCHEMA_SP!$E$5:$F$54,2,FALSE)="P",-1,1)) ->  | N26: =IF($B26="","",H26*IF($F26="",1,IF(ISERROR(MATCH($F26,$B$6:$B$105)),0,INDIRECT(ADDRESS(5+MATCH($F26,$B$6:$B$105),COLUMN(N$4)))))*IF(VLOOKUP($B26,SCHEMA_SP!$E$5:$F$54,2,FALSE)="P",-1,1)) ->  | O26: =IF($B26="","",I26*IF($F26="",1,IF(ISERROR(MATCH($F26,$B$6:$B$105)),0,INDIRECT(ADDRESS(5+MATCH($F26,$B$6:$B$105),COLUMN(O$4)))))*IF(VLOOKUP($B26,SCHEMA_SP!$E$5:$F$54,2,FALSE)="P",-1,1)) ->  | P26: =IF($B26="","",J26*IF($F26="",1,IF(ISERROR(MATCH($F26,$B$6:$B$105)),0,INDIRECT(ADDRESS(5+MATCH($F26,$B$6:$B$105),COLUMN(P$4)))))*IF(VLOOKUP($B26,SCHEMA_SP!$E$5:$F$54,2,FALSE)="P",-1,1)) ->  | Q26: =IF($B26="","",K26*IF($F26="",1,IF(ISERROR(MATCH($F26,$B$6:$B$105)),0,INDIRECT(ADDRESS(5+MATCH($F26,$B$6:$B$105),COLUMN(Q$4)))))*IF(VLOOKUP($B26,SCHEMA_SP!$E$5:$F$54,2,FALSE)="P",-1,1)) -> 
M27: =IF($B27="","",G27*IF($F27="",1,IF(ISERROR(MATCH($F27,$B$6:$B$105)),0,INDIRECT(ADDRESS(5+MATCH($F27,$B$6:$B$105),COLUMN(M$4)))))*IF(VLOOKUP($B27,SCHEMA_SP!$E$5:$F$54,2,FALSE)="P",-1,1)) ->  | N27: =IF($B27="","",H27*IF($F27="",1,IF(ISERROR(MATCH($F27,$B$6:$B$105)),0,INDIRECT(ADDRESS(5+MATCH($F27,$B$6:$B$105),COLUMN(N$4)))))*IF(VLOOKUP($B27,SCHEMA_SP!$E$5:$F$54,2,FALSE)="P",-1,1)) ->  | O27: =IF($B27="","",I27*IF($F27="",1,IF(ISERROR(MATCH($F27,$B$6:$B$105)),0,INDIRECT(ADDRESS(5+MATCH($F27,$B$6:$B$105),COLUMN(O$4)))))*IF(VLOOKUP($B27,SCHEMA_SP!$E$5:$F$54,2,FALSE)="P",-1,1)) ->  | P27: =IF($B27="","",J27*IF($F27="",1,IF(ISERROR(MATCH($F27,$B$6:$B$105)),0,INDIRECT(ADDRESS(5+MATCH($F27,$B$6:$B$105),COLUMN(P$4)))))*IF(VLOOKUP($B27,SCHEMA_SP!$E$5:$F$54,2,FALSE)="P",-1,1)) ->  | Q27: =IF($B27="","",K27*IF($F27="",1,IF(ISERROR(MATCH($F27,$B$6:$B$105)),0,INDIRECT(ADDRESS(5+MATCH($F27,$B$6:$B$105),COLUMN(Q$4)))))*IF(VLOOKUP($B27,SCHEMA_SP!$E$5:$F$54,2,FALSE)="P",-1,1)) -> 
M28: =IF($B28="","",G28*IF($F28="",1,IF(ISERROR(MATCH($F28,$B$6:$B$105)),0,INDIRECT(ADDRESS(5+MATCH($F28,$B$6:$B$105),COLUMN(M$4)))))*IF(VLOOKUP($B28,SCHEMA_SP!$E$5:$F$54,2,FALSE)="P",-1,1)) ->  | N28: =IF($B28="","",H28*IF($F28="",1,IF(ISERROR(MATCH($F28,$B$6:$B$105)),0,INDIRECT(ADDRESS(5+MATCH($F28,$B$6:$B$105),COLUMN(N$4)))))*IF(VLOOKUP($B28,SCHEMA_SP!$E$5:$F$54,2,FALSE)="P",-1,1)) ->  | O28: =IF($B28="","",I28*IF($F28="",1,IF(ISERROR(MATCH($F28,$B$6:$B$105)),0,INDIRECT(ADDRESS(5+MATCH($F28,$B$6:$B$105),COLUMN(O$4)))))*IF(VLOOKUP($B28,SCHEMA_SP!$E$5:$F$54,2,FALSE)="P",-1,1)) ->  | P28: =IF($B28="","",J28*IF($F28="",1,IF(ISERROR(MATCH($F28,$B$6:$B$105)),0,INDIRECT(ADDRESS(5+MATCH($F28,$B$6:$B$105),COLUMN(P$4)))))*IF(VLOOKUP($B28,SCHEMA_SP!$E$5:$F$54,2,FALSE)="P",-1,1)) ->  | Q28: =IF($B28="","",K28*IF($F28="",1,IF(ISERROR(MATCH($F28,$B$6:$B$105)),0,INDIRECT(ADDRESS(5+MATCH($F28,$B$6:$B$105),COLUMN(Q$4)))))*IF(VLOOKUP($B28,SCHEMA_SP!$E$5:$F$54,2,FALSE)="P",-1,1)) -> 
M29: =IF($B29="","",G29*IF($F29="",1,IF(ISERROR(MATCH($F29,$B$6:$B$105)),0,INDIRECT(ADDRESS(5+MATCH($F29,$B$6:$B$105),COLUMN(M$4)))))*IF(VLOOKUP($B29,SCHEMA_SP!$E$5:$F$54,2,FALSE)="P",-1,1)) ->  | N29: =IF($B29="","",H29*IF($F29="",1,IF(ISERROR(MATCH($F29,$B$6:$B$105)),0,INDIRECT(ADDRESS(5+MATCH($F29,$B$6:$B$105),COLUMN(N$4)))))*IF(VLOOKUP($B29,SCHEMA_SP!$E$5:$F$54,2,FALSE)="P",-1,1)) ->  | O29: =IF($B29="","",I29*IF($F29="",1,IF(ISERROR(MATCH($F29,$B$6:$B$105)),0,INDIRECT(ADDRESS(5+MATCH($F29,$B$6:$B$105),COLUMN(O$4)))))*IF(VLOOKUP($B29,SCHEMA_SP!$E$5:$F$54,2,FALSE)="P",-1,1)) ->  | P29: =IF($B29="","",J29*IF($F29="",1,IF(ISERROR(MATCH($F29,$B$6:$B$105)),0,INDIRECT(ADDRESS(5+MATCH($F29,$B$6:$B$105),COLUMN(P$4)))))*IF(VLOOKUP($B29,SCHEMA_SP!$E$5:$F$54,2,FALSE)="P",-1,1)) ->  | Q29: =IF($B29="","",K29*IF($F29="",1,IF(ISERROR(MATCH($F29,$B$6:$B$105)),0,INDIRECT(ADDRESS(5+MATCH($F29,$B$6:$B$105),COLUMN(Q$4)))))*IF(VLOOKUP($B29,SCHEMA_SP!$E$5:$F$54,2,FALSE)="P",-1,1)) -> 
M30: =IF($B30="","",G30*IF($F30="",1,IF(ISERROR(MATCH($F30,$B$6:$B$105)),0,INDIRECT(ADDRESS(5+MATCH($F30,$B$6:$B$105),COLUMN(M$4)))))*IF(VLOOKUP($B30,SCHEMA_SP!$E$5:$F$54,2,FALSE)="P",-1,1)) ->  | N30: =IF($B30="","",H30*IF($F30="",1,IF(ISERROR(MATCH($F30,$B$6:$B$105)),0,INDIRECT(ADDRESS(5+MATCH($F30,$B$6:$B$105),COLUMN(N$4)))))*IF(VLOOKUP($B30,SCHEMA_SP!$E$5:$F$54,2,FALSE)="P",-1,1)) ->  | O30: =IF($B30="","",I30*IF($F30="",1,IF(ISERROR(MATCH($F30,$B$6:$B$105)),0,INDIRECT(ADDRESS(5+MATCH($F30,$B$6:$B$105),COLUMN(O$4)))))*IF(VLOOKUP($B30,SCHEMA_SP!$E$5:$F$54,2,FALSE)="P",-1,1)) ->  | P30: =IF($B30="","",J30*IF($F30="",1,IF(ISERROR(MATCH($F30,$B$6:$B$105)),0,INDIRECT(ADDRESS(5+MATCH($F30,$B$6:$B$105),COLUMN(P$4)))))*IF(VLOOKUP($B30,SCHEMA_SP!$E$5:$F$54,2,FALSE)="P",-1,1)) ->  | Q30: =IF($B30="","",K30*IF($F30="",1,IF(ISERROR(MATCH($F30,$B$6:$B$105)),0,INDIRECT(ADDRESS(5+MATCH($F30,$B$6:$B$105),COLUMN(Q$4)))))*IF(VLOOKUP($B30,SCHEMA_SP!$E$5:$F$54,2,FALSE)="P",-1,1)) -> 
M31: =IF($B31="","",G31*IF($F31="",1,IF(ISERROR(MATCH($F31,$B$6:$B$105)),0,INDIRECT(ADDRESS(5+MATCH($F31,$B$6:$B$105),COLUMN(M$4)))))*IF(VLOOKUP($B31,SCHEMA_SP!$E$5:$F$54,2,FALSE)="P",-1,1)) ->  | N31: =IF($B31="","",H31*IF($F31="",1,IF(ISERROR(MATCH($F31,$B$6:$B$105)),0,INDIRECT(ADDRESS(5+MATCH($F31,$B$6:$B$105),COLUMN(N$4)))))*IF(VLOOKUP($B31,SCHEMA_SP!$E$5:$F$54,2,FALSE)="P",-1,1)) ->  | O31: =IF($B31="","",I31*IF($F31="",1,IF(ISERROR(MATCH($F31,$B$6:$B$105)),0,INDIRECT(ADDRESS(5+MATCH($F31,$B$6:$B$105),COLUMN(O$4)))))*IF(VLOOKUP($B31,SCHEMA_SP!$E$5:$F$54,2,FALSE)="P",-1,1)) ->  | P31: =IF($B31="","",J31*IF($F31="",1,IF(ISERROR(MATCH($F31,$B$6:$B$105)),0,INDIRECT(ADDRESS(5+MATCH($F31,$B$6:$B$105),COLUMN(P$4)))))*IF(VLOOKUP($B31,SCHEMA_SP!$E$5:$F$54,2,FALSE)="P",-1,1)) ->  | Q31: =IF($B31="","",K31*IF($F31="",1,IF(ISERROR(MATCH($F31,$B$6:$B$105)),0,INDIRECT(ADDRESS(5+MATCH($F31,$B$6:$B$105),COLUMN(Q$4)))))*IF(VLOOKUP($B31,SCHEMA_SP!$E$5:$F$54,2,FALSE)="P",-1,1)) -> 
M32: =IF($B32="","",G32*IF($F32="",1,IF(ISERROR(MATCH($F32,$B$6:$B$105)),0,INDIRECT(ADDRESS(5+MATCH($F32,$B$6:$B$105),COLUMN(M$4)))))*IF(VLOOKUP($B32,SCHEMA_SP!$E$5:$F$54,2,FALSE)="P",-1,1)) ->  | N32: =IF($B32="","",H32*IF($F32="",1,IF(ISERROR(MATCH($F32,$B$6:$B$105)),0,INDIRECT(ADDRESS(5+MATCH($F32,$B$6:$B$105),COLUMN(N$4)))))*IF(VLOOKUP($B32,SCHEMA_SP!$E$5:$F$54,2,FALSE)="P",-1,1)) ->  | O32: =IF($B32="","",I32*IF($F32="",1,IF(ISERROR(MATCH($F32,$B$6:$B$105)),0,INDIRECT(ADDRESS(5+MATCH($F32,$B$6:$B$105),COLUMN(O$4)))))*IF(VLOOKUP($B32,SCHEMA_SP!$E$5:$F$54,2,FALSE)="P",-1,1)) ->  | P32: =IF($B32="","",J32*IF($F32="",1,IF(ISERROR(MATCH($F32,$B$6:$B$105)),0,INDIRECT(ADDRESS(5+MATCH($F32,$B$6:$B$105),COLUMN(P$4)))))*IF(VLOOKUP($B32,SCHEMA_SP!$E$5:$F$54,2,FALSE)="P",-1,1)) ->  | Q32: =IF($B32="","",K32*IF($F32="",1,IF(ISERROR(MATCH($F32,$B$6:$B$105)),0,INDIRECT(ADDRESS(5+MATCH($F32,$B$6:$B$105),COLUMN(Q$4)))))*IF(VLOOKUP($B32,SCHEMA_SP!$E$5:$F$54,2,FALSE)="P",-1,1)) -> 
M33: =IF($B33="","",G33*IF($F33="",1,IF(ISERROR(MATCH($F33,$B$6:$B$105)),0,INDIRECT(ADDRESS(5+MATCH($F33,$B$6:$B$105),COLUMN(M$4)))))*IF(VLOOKUP($B33,SCHEMA_SP!$E$5:$F$54,2,FALSE)="P",-1,1)) ->  | N33: =IF($B33="","",H33*IF($F33="",1,IF(ISERROR(MATCH($F33,$B$6:$B$105)),0,INDIRECT(ADDRESS(5+MATCH($F33,$B$6:$B$105),COLUMN(N$4)))))*IF(VLOOKUP($B33,SCHEMA_SP!$E$5:$F$54,2,FALSE)="P",-1,1)) ->  | O33: =IF($B33="","",I33*IF($F33="",1,IF(ISERROR(MATCH($F33,$B$6:$B$105)),0,INDIRECT(ADDRESS(5+MATCH($F33,$B$6:$B$105),COLUMN(O$4)))))*IF(VLOOKUP($B33,SCHEMA_SP!$E$5:$F$54,2,FALSE)="P",-1,1)) ->  | P33: =IF($B33="","",J33*IF($F33="",1,IF(ISERROR(MATCH($F33,$B$6:$B$105)),0,INDIRECT(ADDRESS(5+MATCH($F33,$B$6:$B$105),COLUMN(P$4)))))*IF(VLOOKUP($B33,SCHEMA_SP!$E$5:$F$54,2,FALSE)="P",-1,1)) ->  | Q33: =IF($B33="","",K33*IF($F33="",1,IF(ISERROR(MATCH($F33,$B$6:$B$105)),0,INDIRECT(ADDRESS(5+MATCH($F33,$B$6:$B$105),COLUMN(Q$4)))))*IF(VLOOKUP($B33,SCHEMA_SP!$E$5:$F$54,2,FALSE)="P",-1,1)) -> 
M34: =IF($B34="","",G34*IF($F34="",1,IF(ISERROR(MATCH($F34,$B$6:$B$105)),0,INDIRECT(ADDRESS(5+MATCH($F34,$B$6:$B$105),COLUMN(M$4)))))*IF(VLOOKUP($B34,SCHEMA_SP!$E$5:$F$54,2,FALSE)="P",-1,1)) ->  | N34: =IF($B34="","",H34*IF($F34="",1,IF(ISERROR(MATCH($F34,$B$6:$B$105)),0,INDIRECT(ADDRESS(5+MATCH($F34,$B$6:$B$105),COLUMN(N$4)))))*IF(VLOOKUP($B34,SCHEMA_SP!$E$5:$F$54,2,FALSE)="P",-1,1)) ->  | O34: =IF($B34="","",I34*IF($F34="",1,IF(ISERROR(MATCH($F34,$B$6:$B$105)),0,INDIRECT(ADDRESS(5+MATCH($F34,$B$6:$B$105),COLUMN(O$4)))))*IF(VLOOKUP($B34,SCHEMA_SP!$E$5:$F$54,2,FALSE)="P",-1,1)) ->  | P34: =IF($B34="","",J34*IF($F34="",1,IF(ISERROR(MATCH($F34,$B$6:$B$105)),0,INDIRECT(ADDRESS(5+MATCH($F34,$B$6:$B$105),COLUMN(P$4)))))*IF(VLOOKUP($B34,SCHEMA_SP!$E$5:$F$54,2,FALSE)="P",-1,1)) ->  | Q34: =IF($B34="","",K34*IF($F34="",1,IF(ISERROR(MATCH($F34,$B$6:$B$105)),0,INDIRECT(ADDRESS(5+MATCH($F34,$B$6:$B$105),COLUMN(Q$4)))))*IF(VLOOKUP($B34,SCHEMA_SP!$E$5:$F$54,2,FALSE)="P",-1,1)) -> 
M35: =IF($B35="","",G35*IF($F35="",1,IF(ISERROR(MATCH($F35,$B$6:$B$105)),0,INDIRECT(ADDRESS(5+MATCH($F35,$B$6:$B$105),COLUMN(M$4)))))*IF(VLOOKUP($B35,SCHEMA_SP!$E$5:$F$54,2,FALSE)="P",-1,1)) ->  | N35: =IF($B35="","",H35*IF($F35="",1,IF(ISERROR(MATCH($F35,$B$6:$B$105)),0,INDIRECT(ADDRESS(5+MATCH($F35,$B$6:$B$105),COLUMN(N$4)))))*IF(VLOOKUP($B35,SCHEMA_SP!$E$5:$F$54,2,FALSE)="P",-1,1)) ->  | O35: =IF($B35="","",I35*IF($F35="",1,IF(ISERROR(MATCH($F35,$B$6:$B$105)),0,INDIRECT(ADDRESS(5+MATCH($F35,$B$6:$B$105),COLUMN(O$4)))))*IF(VLOOKUP($B35,SCHEMA_SP!$E$5:$F$54,2,FALSE)="P",-1,1)) ->  | P35: =IF($B35="","",J35*IF($F35="",1,IF(ISERROR(MATCH($F35,$B$6:$B$105)),0,INDIRECT(ADDRESS(5+MATCH($F35,$B$6:$B$105),COLUMN(P$4)))))*IF(VLOOKUP($B35,SCHEMA_SP!$E$5:$F$54,2,FALSE)="P",-1,1)) ->  | Q35: =IF($B35="","",K35*IF($F35="",1,IF(ISERROR(MATCH($F35,$B$6:$B$105)),0,INDIRECT(ADDRESS(5+MATCH($F35,$B$6:$B$105),COLUMN(Q$4)))))*IF(VLOOKUP($B35,SCHEMA_SP!$E$5:$F$54,2,FALSE)="P",-1,1)) -> 
M36: =IF($B36="","",G36*IF($F36="",1,IF(ISERROR(MATCH($F36,$B$6:$B$105)),0,INDIRECT(ADDRESS(5+MATCH($F36,$B$6:$B$105),COLUMN(M$4)))))*IF(VLOOKUP($B36,SCHEMA_SP!$E$5:$F$54,2,FALSE)="P",-1,1)) ->  | N36: =IF($B36="","",H36*IF($F36="",1,IF(ISERROR(MATCH($F36,$B$6:$B$105)),0,INDIRECT(ADDRESS(5+MATCH($F36,$B$6:$B$105),COLUMN(N$4)))))*IF(VLOOKUP($B36,SCHEMA_SP!$E$5:$F$54,2,FALSE)="P",-1,1)) ->  | O36: =IF($B36="","",I36*IF($F36="",1,IF(ISERROR(MATCH($F36,$B$6:$B$105)),0,INDIRECT(ADDRESS(5+MATCH($F36,$B$6:$B$105),COLUMN(O$4)))))*IF(VLOOKUP($B36,SCHEMA_SP!$E$5:$F$54,2,FALSE)="P",-1,1)) ->  | P36: =IF($B36="","",J36*IF($F36="",1,IF(ISERROR(MATCH($F36,$B$6:$B$105)),0,INDIRECT(ADDRESS(5+MATCH($F36,$B$6:$B$105),COLUMN(P$4)))))*IF(VLOOKUP($B36,SCHEMA_SP!$E$5:$F$54,2,FALSE)="P",-1,1)) ->  | Q36: =IF($B36="","",K36*IF($F36="",1,IF(ISERROR(MATCH($F36,$B$6:$B$105)),0,INDIRECT(ADDRESS(5+MATCH($F36,$B$6:$B$105),COLUMN(Q$4)))))*IF(VLOOKUP($B36,SCHEMA_SP!$E$5:$F$54,2,FALSE)="P",-1,1)) -> 
M37: =IF($B37="","",G37*IF($F37="",1,IF(ISERROR(MATCH($F37,$B$6:$B$105)),0,INDIRECT(ADDRESS(5+MATCH($F37,$B$6:$B$105),COLUMN(M$4)))))*IF(VLOOKUP($B37,SCHEMA_SP!$E$5:$F$54,2,FALSE)="P",-1,1)) ->  | N37: =IF($B37="","",H37*IF($F37="",1,IF(ISERROR(MATCH($F37,$B$6:$B$105)),0,INDIRECT(ADDRESS(5+MATCH($F37,$B$6:$B$105),COLUMN(N$4)))))*IF(VLOOKUP($B37,SCHEMA_SP!$E$5:$F$54,2,FALSE)="P",-1,1)) ->  | O37: =IF($B37="","",I37*IF($F37="",1,IF(ISERROR(MATCH($F37,$B$6:$B$105)),0,INDIRECT(ADDRESS(5+MATCH($F37,$B$6:$B$105),COLUMN(O$4)))))*IF(VLOOKUP($B37,SCHEMA_SP!$E$5:$F$54,2,FALSE)="P",-1,1)) ->  | P37: =IF($B37="","",J37*IF($F37="",1,IF(ISERROR(MATCH($F37,$B$6:$B$105)),0,INDIRECT(ADDRESS(5+MATCH($F37,$B$6:$B$105),COLUMN(P$4)))))*IF(VLOOKUP($B37,SCHEMA_SP!$E$5:$F$54,2,FALSE)="P",-1,1)) ->  | Q37: =IF($B37="","",K37*IF($F37="",1,IF(ISERROR(MATCH($F37,$B$6:$B$105)),0,INDIRECT(ADDRESS(5+MATCH($F37,$B$6:$B$105),COLUMN(Q$4)))))*IF(VLOOKUP($B37,SCHEMA_SP!$E$5:$F$54,2,FALSE)="P",-1,1)) -> 
M38: =IF($B38="","",G38*IF($F38="",1,IF(ISERROR(MATCH($F38,$B$6:$B$105)),0,INDIRECT(ADDRESS(5+MATCH($F38,$B$6:$B$105),COLUMN(M$4)))))*IF(VLOOKUP($B38,SCHEMA_SP!$E$5:$F$54,2,FALSE)="P",-1,1)) ->  | N38: =IF($B38="","",H38*IF($F38="",1,IF(ISERROR(MATCH($F38,$B$6:$B$105)),0,INDIRECT(ADDRESS(5+MATCH($F38,$B$6:$B$105),COLUMN(N$4)))))*IF(VLOOKUP($B38,SCHEMA_SP!$E$5:$F$54,2,FALSE)="P",-1,1)) ->  | O38: =IF($B38="","",I38*IF($F38="",1,IF(ISERROR(MATCH($F38,$B$6:$B$105)),0,INDIRECT(ADDRESS(5+MATCH($F38,$B$6:$B$105),COLUMN(O$4)))))*IF(VLOOKUP($B38,SCHEMA_SP!$E$5:$F$54,2,FALSE)="P",-1,1)) ->  | P38: =IF($B38="","",J38*IF($F38="",1,IF(ISERROR(MATCH($F38,$B$6:$B$105)),0,INDIRECT(ADDRESS(5+MATCH($F38,$B$6:$B$105),COLUMN(P$4)))))*IF(VLOOKUP($B38,SCHEMA_SP!$E$5:$F$54,2,FALSE)="P",-1,1)) ->  | Q38: =IF($B38="","",K38*IF($F38="",1,IF(ISERROR(MATCH($F38,$B$6:$B$105)),0,INDIRECT(ADDRESS(5+MATCH($F38,$B$6:$B$105),COLUMN(Q$4)))))*IF(VLOOKUP($B38,SCHEMA_SP!$E$5:$F$54,2,FALSE)="P",-1,1)) -> 
M39: =IF($B39="","",G39*IF($F39="",1,IF(ISERROR(MATCH($F39,$B$6:$B$105)),0,INDIRECT(ADDRESS(5+MATCH($F39,$B$6:$B$105),COLUMN(M$4)))))*IF(VLOOKUP($B39,SCHEMA_SP!$E$5:$F$54,2,FALSE)="P",-1,1)) ->  | N39: =IF($B39="","",H39*IF($F39="",1,IF(ISERROR(MATCH($F39,$B$6:$B$105)),0,INDIRECT(ADDRESS(5+MATCH($F39,$B$6:$B$105),COLUMN(N$4)))))*IF(VLOOKUP($B39,SCHEMA_SP!$E$5:$F$54,2,FALSE)="P",-1,1)) ->  | O39: =IF($B39="","",I39*IF($F39="",1,IF(ISERROR(MATCH($F39,$B$6:$B$105)),0,INDIRECT(ADDRESS(5+MATCH($F39,$B$6:$B$105),COLUMN(O$4)))))*IF(VLOOKUP($B39,SCHEMA_SP!$E$5:$F$54,2,FALSE)="P",-1,1)) ->  | P39: =IF($B39="","",J39*IF($F39="",1,IF(ISERROR(MATCH($F39,$B$6:$B$105)),0,INDIRECT(ADDRESS(5+MATCH($F39,$B$6:$B$105),COLUMN(P$4)))))*IF(VLOOKUP($B39,SCHEMA_SP!$E$5:$F$54,2,FALSE)="P",-1,1)) ->  | Q39: =IF($B39="","",K39*IF($F39="",1,IF(ISERROR(MATCH($F39,$B$6:$B$105)),0,INDIRECT(ADDRESS(5+MATCH($F39,$B$6:$B$105),COLUMN(Q$4)))))*IF(VLOOKUP($B39,SCHEMA_SP!$E$5:$F$54,2,FALSE)="P",-1,1)) -> 
M40: =IF($B40="","",G40*IF($F40="",1,IF(ISERROR(MATCH($F40,$B$6:$B$105)),0,INDIRECT(ADDRESS(5+MATCH($F40,$B$6:$B$105),COLUMN(M$4)))))*IF(VLOOKUP($B40,SCHEMA_SP!$E$5:$F$54,2,FALSE)="P",-1,1)) ->  | N40: =IF($B40="","",H40*IF($F40="",1,IF(ISERROR(MATCH($F40,$B$6:$B$105)),0,INDIRECT(ADDRESS(5+MATCH($F40,$B$6:$B$105),COLUMN(N$4)))))*IF(VLOOKUP($B40,SCHEMA_SP!$E$5:$F$54,2,FALSE)="P",-1,1)) ->  | O40: =IF($B40="","",I40*IF($F40="",1,IF(ISERROR(MATCH($F40,$B$6:$B$105)),0,INDIRECT(ADDRESS(5+MATCH($F40,$B$6:$B$105),COLUMN(O$4)))))*IF(VLOOKUP($B40,SCHEMA_SP!$E$5:$F$54,2,FALSE)="P",-1,1)) ->  | P40: =IF($B40="","",J40*IF($F40="",1,IF(ISERROR(MATCH($F40,$B$6:$B$105)),0,INDIRECT(ADDRESS(5+MATCH($F40,$B$6:$B$105),COLUMN(P$4)))))*IF(VLOOKUP($B40,SCHEMA_SP!$E$5:$F$54,2,FALSE)="P",-1,1)) ->  | Q40: =IF($B40="","",K40*IF($F40="",1,IF(ISERROR(MATCH($F40,$B$6:$B$105)),0,INDIRECT(ADDRESS(5+MATCH($F40,$B$6:$B$105),COLUMN(Q$4)))))*IF(VLOOKUP($B40,SCHEMA_SP!$E$5:$F$54,2,FALSE)="P",-1,1)) -> 
M41: =IF($B41="","",G41*IF($F41="",1,IF(ISERROR(MATCH($F41,$B$6:$B$105)),0,INDIRECT(ADDRESS(5+MATCH($F41,$B$6:$B$105),COLUMN(M$4)))))*IF(VLOOKUP($B41,SCHEMA_SP!$E$5:$F$54,2,FALSE)="P",-1,1)) ->  | N41: =IF($B41="","",H41*IF($F41="",1,IF(ISERROR(MATCH($F41,$B$6:$B$105)),0,INDIRECT(ADDRESS(5+MATCH($F41,$B$6:$B$105),COLUMN(N$4)))))*IF(VLOOKUP($B41,SCHEMA_SP!$E$5:$F$54,2,FALSE)="P",-1,1)) ->  | O41: =IF($B41="","",I41*IF($F41="",1,IF(ISERROR(MATCH($F41,$B$6:$B$105)),0,INDIRECT(ADDRESS(5+MATCH($F41,$B$6:$B$105),COLUMN(O$4)))))*IF(VLOOKUP($B41,SCHEMA_SP!$E$5:$F$54,2,FALSE)="P",-1,1)) ->  | P41: =IF($B41="","",J41*IF($F41="",1,IF(ISERROR(MATCH($F41,$B$6:$B$105)),0,INDIRECT(ADDRESS(5+MATCH($F41,$B$6:$B$105),COLUMN(P$4)))))*IF(VLOOKUP($B41,SCHEMA_SP!$E$5:$F$54,2,FALSE)="P",-1,1)) ->  | Q41: =IF($B41="","",K41*IF($F41="",1,IF(ISERROR(MATCH($F41,$B$6:$B$105)),0,INDIRECT(ADDRESS(5+MATCH($F41,$B$6:$B$105),COLUMN(Q$4)))))*IF(VLOOKUP($B41,SCHEMA_SP!$E$5:$F$54,2,FALSE)="P",-1,1)) -> 
M42: =IF($B42="","",G42*IF($F42="",1,IF(ISERROR(MATCH($F42,$B$6:$B$105)),0,INDIRECT(ADDRESS(5+MATCH($F42,$B$6:$B$105),COLUMN(M$4)))))*IF(VLOOKUP($B42,SCHEMA_SP!$E$5:$F$54,2,FALSE)="P",-1,1)) ->  | N42: =IF($B42="","",H42*IF($F42="",1,IF(ISERROR(MATCH($F42,$B$6:$B$105)),0,INDIRECT(ADDRESS(5+MATCH($F42,$B$6:$B$105),COLUMN(N$4)))))*IF(VLOOKUP($B42,SCHEMA_SP!$E$5:$F$54,2,FALSE)="P",-1,1)) ->  | O42: =IF($B42="","",I42*IF($F42="",1,IF(ISERROR(MATCH($F42,$B$6:$B$105)),0,INDIRECT(ADDRESS(5+MATCH($F42,$B$6:$B$105),COLUMN(O$4)))))*IF(VLOOKUP($B42,SCHEMA_SP!$E$5:$F$54,2,FALSE)="P",-1,1)) ->  | P42: =IF($B42="","",J42*IF($F42="",1,IF(ISERROR(MATCH($F42,$B$6:$B$105)),0,INDIRECT(ADDRESS(5+MATCH($F42,$B$6:$B$105),COLUMN(P$4)))))*IF(VLOOKUP($B42,SCHEMA_SP!$E$5:$F$54,2,FALSE)="P",-1,1)) ->  | Q42: =IF($B42="","",K42*IF($F42="",1,IF(ISERROR(MATCH($F42,$B$6:$B$105)),0,INDIRECT(ADDRESS(5+MATCH($F42,$B$6:$B$105),COLUMN(Q$4)))))*IF(VLOOKUP($B42,SCHEMA_SP!$E$5:$F$54,2,FALSE)="P",-1,1)) -> 
M43: =IF($B43="","",G43*IF($F43="",1,IF(ISERROR(MATCH($F43,$B$6:$B$105)),0,INDIRECT(ADDRESS(5+MATCH($F43,$B$6:$B$105),COLUMN(M$4)))))*IF(VLOOKUP($B43,SCHEMA_SP!$E$5:$F$54,2,FALSE)="P",-1,1)) ->  | N43: =IF($B43="","",H43*IF($F43="",1,IF(ISERROR(MATCH($F43,$B$6:$B$105)),0,INDIRECT(ADDRESS(5+MATCH($F43,$B$6:$B$105),COLUMN(N$4)))))*IF(VLOOKUP($B43,SCHEMA_SP!$E$5:$F$54,2,FALSE)="P",-1,1)) ->  | O43: =IF($B43="","",I43*IF($F43="",1,IF(ISERROR(MATCH($F43,$B$6:$B$105)),0,INDIRECT(ADDRESS(5+MATCH($F43,$B$6:$B$105),COLUMN(O$4)))))*IF(VLOOKUP($B43,SCHEMA_SP!$E$5:$F$54,2,FALSE)="P",-1,1)) ->  | P43: =IF($B43="","",J43*IF($F43="",1,IF(ISERROR(MATCH($F43,$B$6:$B$105)),0,INDIRECT(ADDRESS(5+MATCH($F43,$B$6:$B$105),COLUMN(P$4)))))*IF(VLOOKUP($B43,SCHEMA_SP!$E$5:$F$54,2,FALSE)="P",-1,1)) ->  | Q43: =IF($B43="","",K43*IF($F43="",1,IF(ISERROR(MATCH($F43,$B$6:$B$105)),0,INDIRECT(ADDRESS(5+MATCH($F43,$B$6:$B$105),COLUMN(Q$4)))))*IF(VLOOKUP($B43,SCHEMA_SP!$E$5:$F$54,2,FALSE)="P",-1,1)) -> 
M44: =IF($B44="","",G44*IF($F44="",1,IF(ISERROR(MATCH($F44,$B$6:$B$105)),0,INDIRECT(ADDRESS(5+MATCH($F44,$B$6:$B$105),COLUMN(M$4)))))*IF(VLOOKUP($B44,SCHEMA_SP!$E$5:$F$54,2,FALSE)="P",-1,1)) ->  | N44: =IF($B44="","",H44*IF($F44="",1,IF(ISERROR(MATCH($F44,$B$6:$B$105)),0,INDIRECT(ADDRESS(5+MATCH($F44,$B$6:$B$105),COLUMN(N$4)))))*IF(VLOOKUP($B44,SCHEMA_SP!$E$5:$F$54,2,FALSE)="P",-1,1)) ->  | O44: =IF($B44="","",I44*IF($F44="",1,IF(ISERROR(MATCH($F44,$B$6:$B$105)),0,INDIRECT(ADDRESS(5+MATCH($F44,$B$6:$B$105),COLUMN(O$4)))))*IF(VLOOKUP($B44,SCHEMA_SP!$E$5:$F$54,2,FALSE)="P",-1,1)) ->  | P44: =IF($B44="","",J44*IF($F44="",1,IF(ISERROR(MATCH($F44,$B$6:$B$105)),0,INDIRECT(ADDRESS(5+MATCH($F44,$B$6:$B$105),COLUMN(P$4)))))*IF(VLOOKUP($B44,SCHEMA_SP!$E$5:$F$54,2,FALSE)="P",-1,1)) ->  | Q44: =IF($B44="","",K44*IF($F44="",1,IF(ISERROR(MATCH($F44,$B$6:$B$105)),0,INDIRECT(ADDRESS(5+MATCH($F44,$B$6:$B$105),COLUMN(Q$4)))))*IF(VLOOKUP($B44,SCHEMA_SP!$E$5:$F$54,2,FALSE)="P",-1,1)) -> 
M45: =IF($B45="","",G45*IF($F45="",1,IF(ISERROR(MATCH($F45,$B$6:$B$105)),0,INDIRECT(ADDRESS(5+MATCH($F45,$B$6:$B$105),COLUMN(M$4)))))*IF(VLOOKUP($B45,SCHEMA_SP!$E$5:$F$54,2,FALSE)="P",-1,1)) ->  | N45: =IF($B45="","",H45*IF($F45="",1,IF(ISERROR(MATCH($F45,$B$6:$B$105)),0,INDIRECT(ADDRESS(5+MATCH($F45,$B$6:$B$105),COLUMN(N$4)))))*IF(VLOOKUP($B45,SCHEMA_SP!$E$5:$F$54,2,FALSE)="P",-1,1)) ->  | O45: =IF($B45="","",I45*IF($F45="",1,IF(ISERROR(MATCH($F45,$B$6:$B$105)),0,INDIRECT(ADDRESS(5+MATCH($F45,$B$6:$B$105),COLUMN(O$4)))))*IF(VLOOKUP($B45,SCHEMA_SP!$E$5:$F$54,2,FALSE)="P",-1,1)) ->  | P45: =IF($B45="","",J45*IF($F45="",1,IF(ISERROR(MATCH($F45,$B$6:$B$105)),0,INDIRECT(ADDRESS(5+MATCH($F45,$B$6:$B$105),COLUMN(P$4)))))*IF(VLOOKUP($B45,SCHEMA_SP!$E$5:$F$54,2,FALSE)="P",-1,1)) ->  | Q45: =IF($B45="","",K45*IF($F45="",1,IF(ISERROR(MATCH($F45,$B$6:$B$105)),0,INDIRECT(ADDRESS(5+MATCH($F45,$B$6:$B$105),COLUMN(Q$4)))))*IF(VLOOKUP($B45,SCHEMA_SP!$E$5:$F$54,2,FALSE)="P",-1,1)) -> 
M46: =IF($B46="","",G46*IF($F46="",1,IF(ISERROR(MATCH($F46,$B$6:$B$105)),0,INDIRECT(ADDRESS(5+MATCH($F46,$B$6:$B$105),COLUMN(M$4)))))*IF(VLOOKUP($B46,SCHEMA_SP!$E$5:$F$54,2,FALSE)="P",-1,1)) ->  | N46: =IF($B46="","",H46*IF($F46="",1,IF(ISERROR(MATCH($F46,$B$6:$B$105)),0,INDIRECT(ADDRESS(5+MATCH($F46,$B$6:$B$105),COLUMN(N$4)))))*IF(VLOOKUP($B46,SCHEMA_SP!$E$5:$F$54,2,FALSE)="P",-1,1)) ->  | O46: =IF($B46="","",I46*IF($F46="",1,IF(ISERROR(MATCH($F46,$B$6:$B$105)),0,INDIRECT(ADDRESS(5+MATCH($F46,$B$6:$B$105),COLUMN(O$4)))))*IF(VLOOKUP($B46,SCHEMA_SP!$E$5:$F$54,2,FALSE)="P",-1,1)) ->  | P46: =IF($B46="","",J46*IF($F46="",1,IF(ISERROR(MATCH($F46,$B$6:$B$105)),0,INDIRECT(ADDRESS(5+MATCH($F46,$B$6:$B$105),COLUMN(P$4)))))*IF(VLOOKUP($B46,SCHEMA_SP!$E$5:$F$54,2,FALSE)="P",-1,1)) ->  | Q46: =IF($B46="","",K46*IF($F46="",1,IF(ISERROR(MATCH($F46,$B$6:$B$105)),0,INDIRECT(ADDRESS(5+MATCH($F46,$B$6:$B$105),COLUMN(Q$4)))))*IF(VLOOKUP($B46,SCHEMA_SP!$E$5:$F$54,2,FALSE)="P",-1,1)) -> 
M47: =IF($B47="","",G47*IF($F47="",1,IF(ISERROR(MATCH($F47,$B$6:$B$105)),0,INDIRECT(ADDRESS(5+MATCH($F47,$B$6:$B$105),COLUMN(M$4)))))*IF(VLOOKUP($B47,SCHEMA_SP!$E$5:$F$54,2,FALSE)="P",-1,1)) ->  | N47: =IF($B47="","",H47*IF($F47="",1,IF(ISERROR(MATCH($F47,$B$6:$B$105)),0,INDIRECT(ADDRESS(5+MATCH($F47,$B$6:$B$105),COLUMN(N$4)))))*IF(VLOOKUP($B47,SCHEMA_SP!$E$5:$F$54,2,FALSE)="P",-1,1)) ->  | O47: =IF($B47="","",I47*IF($F47="",1,IF(ISERROR(MATCH($F47,$B$6:$B$105)),0,INDIRECT(ADDRESS(5+MATCH($F47,$B$6:$B$105),COLUMN(O$4)))))*IF(VLOOKUP($B47,SCHEMA_SP!$E$5:$F$54,2,FALSE)="P",-1,1)) ->  | P47: =IF($B47="","",J47*IF($F47="",1,IF(ISERROR(MATCH($F47,$B$6:$B$105)),0,INDIRECT(ADDRESS(5+MATCH($F47,$B$6:$B$105),COLUMN(P$4)))))*IF(VLOOKUP($B47,SCHEMA_SP!$E$5:$F$54,2,FALSE)="P",-1,1)) ->  | Q47: =IF($B47="","",K47*IF($F47="",1,IF(ISERROR(MATCH($F47,$B$6:$B$105)),0,INDIRECT(ADDRESS(5+MATCH($F47,$B$6:$B$105),COLUMN(Q$4)))))*IF(VLOOKUP($B47,SCHEMA_SP!$E$5:$F$54,2,FALSE)="P",-1,1)) -> 
M48: =IF($B48="","",G48*IF($F48="",1,IF(ISERROR(MATCH($F48,$B$6:$B$105)),0,INDIRECT(ADDRESS(5+MATCH($F48,$B$6:$B$105),COLUMN(M$4)))))*IF(VLOOKUP($B48,SCHEMA_SP!$E$5:$F$54,2,FALSE)="P",-1,1)) ->  | N48: =IF($B48="","",H48*IF($F48="",1,IF(ISERROR(MATCH($F48,$B$6:$B$105)),0,INDIRECT(ADDRESS(5+MATCH($F48,$B$6:$B$105),COLUMN(N$4)))))*IF(VLOOKUP($B48,SCHEMA_SP!$E$5:$F$54,2,FALSE)="P",-1,1)) ->  | O48: =IF($B48="","",I48*IF($F48="",1,IF(ISERROR(MATCH($F48,$B$6:$B$105)),0,INDIRECT(ADDRESS(5+MATCH($F48,$B$6:$B$105),COLUMN(O$4)))))*IF(VLOOKUP($B48,SCHEMA_SP!$E$5:$F$54,2,FALSE)="P",-1,1)) ->  | P48: =IF($B48="","",J48*IF($F48="",1,IF(ISERROR(MATCH($F48,$B$6:$B$105)),0,INDIRECT(ADDRESS(5+MATCH($F48,$B$6:$B$105),COLUMN(P$4)))))*IF(VLOOKUP($B48,SCHEMA_SP!$E$5:$F$54,2,FALSE)="P",-1,1)) ->  | Q48: =IF($B48="","",K48*IF($F48="",1,IF(ISERROR(MATCH($F48,$B$6:$B$105)),0,INDIRECT(ADDRESS(5+MATCH($F48,$B$6:$B$105),COLUMN(Q$4)))))*IF(VLOOKUP($B48,SCHEMA_SP!$E$5:$F$54,2,FALSE)="P",-1,1)) -> 
M49: =IF($B49="","",G49*IF($F49="",1,IF(ISERROR(MATCH($F49,$B$6:$B$105)),0,INDIRECT(ADDRESS(5+MATCH($F49,$B$6:$B$105),COLUMN(M$4)))))*IF(VLOOKUP($B49,SCHEMA_SP!$E$5:$F$54,2,FALSE)="P",-1,1)) ->  | N49: =IF($B49="","",H49*IF($F49="",1,IF(ISERROR(MATCH($F49,$B$6:$B$105)),0,INDIRECT(ADDRESS(5+MATCH($F49,$B$6:$B$105),COLUMN(N$4)))))*IF(VLOOKUP($B49,SCHEMA_SP!$E$5:$F$54,2,FALSE)="P",-1,1)) ->  | O49: =IF($B49="","",I49*IF($F49="",1,IF(ISERROR(MATCH($F49,$B$6:$B$105)),0,INDIRECT(ADDRESS(5+MATCH($F49,$B$6:$B$105),COLUMN(O$4)))))*IF(VLOOKUP($B49,SCHEMA_SP!$E$5:$F$54,2,FALSE)="P",-1,1)) ->  | P49: =IF($B49="","",J49*IF($F49="",1,IF(ISERROR(MATCH($F49,$B$6:$B$105)),0,INDIRECT(ADDRESS(5+MATCH($F49,$B$6:$B$105),COLUMN(P$4)))))*IF(VLOOKUP($B49,SCHEMA_SP!$E$5:$F$54,2,FALSE)="P",-1,1)) ->  | Q49: =IF($B49="","",K49*IF($F49="",1,IF(ISERROR(MATCH($F49,$B$6:$B$105)),0,INDIRECT(ADDRESS(5+MATCH($F49,$B$6:$B$105),COLUMN(Q$4)))))*IF(VLOOKUP($B49,SCHEMA_SP!$E$5:$F$54,2,FALSE)="P",-1,1)) -> 
M50: =IF($B50="","",G50*IF($F50="",1,IF(ISERROR(MATCH($F50,$B$6:$B$105)),0,INDIRECT(ADDRESS(5+MATCH($F50,$B$6:$B$105),COLUMN(M$4)))))*IF(VLOOKUP($B50,SCHEMA_SP!$E$5:$F$54,2,FALSE)="P",-1,1)) ->  | N50: =IF($B50="","",H50*IF($F50="",1,IF(ISERROR(MATCH($F50,$B$6:$B$105)),0,INDIRECT(ADDRESS(5+MATCH($F50,$B$6:$B$105),COLUMN(N$4)))))*IF(VLOOKUP($B50,SCHEMA_SP!$E$5:$F$54,2,FALSE)="P",-1,1)) ->  | O50: =IF($B50="","",I50*IF($F50="",1,IF(ISERROR(MATCH($F50,$B$6:$B$105)),0,INDIRECT(ADDRESS(5+MATCH($F50,$B$6:$B$105),COLUMN(O$4)))))*IF(VLOOKUP($B50,SCHEMA_SP!$E$5:$F$54,2,FALSE)="P",-1,1)) ->  | P50: =IF($B50="","",J50*IF($F50="",1,IF(ISERROR(MATCH($F50,$B$6:$B$105)),0,INDIRECT(ADDRESS(5+MATCH($F50,$B$6:$B$105),COLUMN(P$4)))))*IF(VLOOKUP($B50,SCHEMA_SP!$E$5:$F$54,2,FALSE)="P",-1,1)) ->  | Q50: =IF($B50="","",K50*IF($F50="",1,IF(ISERROR(MATCH($F50,$B$6:$B$105)),0,INDIRECT(ADDRESS(5+MATCH($F50,$B$6:$B$105),COLUMN(Q$4)))))*IF(VLOOKUP($B50,SCHEMA_SP!$E$5:$F$54,2,FALSE)="P",-1,1)) -> 
M51: =IF($B51="","",G51*IF($F51="",1,IF(ISERROR(MATCH($F51,$B$6:$B$105)),0,INDIRECT(ADDRESS(5+MATCH($F51,$B$6:$B$105),COLUMN(M$4)))))*IF(VLOOKUP($B51,SCHEMA_SP!$E$5:$F$54,2,FALSE)="P",-1,1)) ->  | N51: =IF($B51="","",H51*IF($F51="",1,IF(ISERROR(MATCH($F51,$B$6:$B$105)),0,INDIRECT(ADDRESS(5+MATCH($F51,$B$6:$B$105),COLUMN(N$4)))))*IF(VLOOKUP($B51,SCHEMA_SP!$E$5:$F$54,2,FALSE)="P",-1,1)) ->  | O51: =IF($B51="","",I51*IF($F51="",1,IF(ISERROR(MATCH($F51,$B$6:$B$105)),0,INDIRECT(ADDRESS(5+MATCH($F51,$B$6:$B$105),COLUMN(O$4)))))*IF(VLOOKUP($B51,SCHEMA_SP!$E$5:$F$54,2,FALSE)="P",-1,1)) ->  | P51: =IF($B51="","",J51*IF($F51="",1,IF(ISERROR(MATCH($F51,$B$6:$B$105)),0,INDIRECT(ADDRESS(5+MATCH($F51,$B$6:$B$105),COLUMN(P$4)))))*IF(VLOOKUP($B51,SCHEMA_SP!$E$5:$F$54,2,FALSE)="P",-1,1)) ->  | Q51: =IF($B51="","",K51*IF($F51="",1,IF(ISERROR(MATCH($F51,$B$6:$B$105)),0,INDIRECT(ADDRESS(5+MATCH($F51,$B$6:$B$105),COLUMN(Q$4)))))*IF(VLOOKUP($B51,SCHEMA_SP!$E$5:$F$54,2,FALSE)="P",-1,1)) -> 
M52: =IF($B52="","",G52*IF($F52="",1,IF(ISERROR(MATCH($F52,$B$6:$B$105)),0,INDIRECT(ADDRESS(5+MATCH($F52,$B$6:$B$105),COLUMN(M$4)))))*IF(VLOOKUP($B52,SCHEMA_SP!$E$5:$F$54,2,FALSE)="P",-1,1)) ->  | N52: =IF($B52="","",H52*IF($F52="",1,IF(ISERROR(MATCH($F52,$B$6:$B$105)),0,INDIRECT(ADDRESS(5+MATCH($F52,$B$6:$B$105),COLUMN(N$4)))))*IF(VLOOKUP($B52,SCHEMA_SP!$E$5:$F$54,2,FALSE)="P",-1,1)) ->  | O52: =IF($B52="","",I52*IF($F52="",1,IF(ISERROR(MATCH($F52,$B$6:$B$105)),0,INDIRECT(ADDRESS(5+MATCH($F52,$B$6:$B$105),COLUMN(O$4)))))*IF(VLOOKUP($B52,SCHEMA_SP!$E$5:$F$54,2,FALSE)="P",-1,1)) ->  | P52: =IF($B52="","",J52*IF($F52="",1,IF(ISERROR(MATCH($F52,$B$6:$B$105)),0,INDIRECT(ADDRESS(5+MATCH($F52,$B$6:$B$105),COLUMN(P$4)))))*IF(VLOOKUP($B52,SCHEMA_SP!$E$5:$F$54,2,FALSE)="P",-1,1)) ->  | Q52: =IF($B52="","",K52*IF($F52="",1,IF(ISERROR(MATCH($F52,$B$6:$B$105)),0,INDIRECT(ADDRESS(5+MATCH($F52,$B$6:$B$105),COLUMN(Q$4)))))*IF(VLOOKUP($B52,SCHEMA_SP!$E$5:$F$54,2,FALSE)="P",-1,1)) -> 
M53: =IF($B53="","",G53*IF($F53="",1,IF(ISERROR(MATCH($F53,$B$6:$B$105)),0,INDIRECT(ADDRESS(5+MATCH($F53,$B$6:$B$105),COLUMN(M$4)))))*IF(VLOOKUP($B53,SCHEMA_SP!$E$5:$F$54,2,FALSE)="P",-1,1)) ->  | N53: =IF($B53="","",H53*IF($F53="",1,IF(ISERROR(MATCH($F53,$B$6:$B$105)),0,INDIRECT(ADDRESS(5+MATCH($F53,$B$6:$B$105),COLUMN(N$4)))))*IF(VLOOKUP($B53,SCHEMA_SP!$E$5:$F$54,2,FALSE)="P",-1,1)) ->  | O53: =IF($B53="","",I53*IF($F53="",1,IF(ISERROR(MATCH($F53,$B$6:$B$105)),0,INDIRECT(ADDRESS(5+MATCH($F53,$B$6:$B$105),COLUMN(O$4)))))*IF(VLOOKUP($B53,SCHEMA_SP!$E$5:$F$54,2,FALSE)="P",-1,1)) ->  | P53: =IF($B53="","",J53*IF($F53="",1,IF(ISERROR(MATCH($F53,$B$6:$B$105)),0,INDIRECT(ADDRESS(5+MATCH($F53,$B$6:$B$105),COLUMN(P$4)))))*IF(VLOOKUP($B53,SCHEMA_SP!$E$5:$F$54,2,FALSE)="P",-1,1)) ->  | Q53: =IF($B53="","",K53*IF($F53="",1,IF(ISERROR(MATCH($F53,$B$6:$B$105)),0,INDIRECT(ADDRESS(5+MATCH($F53,$B$6:$B$105),COLUMN(Q$4)))))*IF(VLOOKUP($B53,SCHEMA_SP!$E$5:$F$54,2,FALSE)="P",-1,1)) -> 
M54: =IF($B54="","",G54*IF($F54="",1,IF(ISERROR(MATCH($F54,$B$6:$B$105)),0,INDIRECT(ADDRESS(5+MATCH($F54,$B$6:$B$105),COLUMN(M$4)))))*IF(VLOOKUP($B54,SCHEMA_SP!$E$5:$F$54,2,FALSE)="P",-1,1)) ->  | N54: =IF($B54="","",H54*IF($F54="",1,IF(ISERROR(MATCH($F54,$B$6:$B$105)),0,INDIRECT(ADDRESS(5+MATCH($F54,$B$6:$B$105),COLUMN(N$4)))))*IF(VLOOKUP($B54,SCHEMA_SP!$E$5:$F$54,2,FALSE)="P",-1,1)) ->  | O54: =IF($B54="","",I54*IF($F54="",1,IF(ISERROR(MATCH($F54,$B$6:$B$105)),0,INDIRECT(ADDRESS(5+MATCH($F54,$B$6:$B$105),COLUMN(O$4)))))*IF(VLOOKUP($B54,SCHEMA_SP!$E$5:$F$54,2,FALSE)="P",-1,1)) ->  | P54: =IF($B54="","",J54*IF($F54="",1,IF(ISERROR(MATCH($F54,$B$6:$B$105)),0,INDIRECT(ADDRESS(5+MATCH($F54,$B$6:$B$105),COLUMN(P$4)))))*IF(VLOOKUP($B54,SCHEMA_SP!$E$5:$F$54,2,FALSE)="P",-1,1)) ->  | Q54: =IF($B54="","",K54*IF($F54="",1,IF(ISERROR(MATCH($F54,$B$6:$B$105)),0,INDIRECT(ADDRESS(5+MATCH($F54,$B$6:$B$105),COLUMN(Q$4)))))*IF(VLOOKUP($B54,SCHEMA_SP!$E$5:$F$54,2,FALSE)="P",-1,1)) -> 
M55: =IF($B55="","",G55*IF($F55="",1,IF(ISERROR(MATCH($F55,$B$6:$B$105)),0,INDIRECT(ADDRESS(5+MATCH($F55,$B$6:$B$105),COLUMN(M$4)))))*IF(VLOOKUP($B55,SCHEMA_SP!$E$5:$F$54,2,FALSE)="P",-1,1)) ->  | N55: =IF($B55="","",H55*IF($F55="",1,IF(ISERROR(MATCH($F55,$B$6:$B$105)),0,INDIRECT(ADDRESS(5+MATCH($F55,$B$6:$B$105),COLUMN(N$4)))))*IF(VLOOKUP($B55,SCHEMA_SP!$E$5:$F$54,2,FALSE)="P",-1,1)) ->  | O55: =IF($B55="","",I55*IF($F55="",1,IF(ISERROR(MATCH($F55,$B$6:$B$105)),0,INDIRECT(ADDRESS(5+MATCH($F55,$B$6:$B$105),COLUMN(O$4)))))*IF(VLOOKUP($B55,SCHEMA_SP!$E$5:$F$54,2,FALSE)="P",-1,1)) ->  | P55: =IF($B55="","",J55*IF($F55="",1,IF(ISERROR(MATCH($F55,$B$6:$B$105)),0,INDIRECT(ADDRESS(5+MATCH($F55,$B$6:$B$105),COLUMN(P$4)))))*IF(VLOOKUP($B55,SCHEMA_SP!$E$5:$F$54,2,FALSE)="P",-1,1)) ->  | Q55: =IF($B55="","",K55*IF($F55="",1,IF(ISERROR(MATCH($F55,$B$6:$B$105)),0,INDIRECT(ADDRESS(5+MATCH($F55,$B$6:$B$105),COLUMN(Q$4)))))*IF(VLOOKUP($B55,SCHEMA_SP!$E$5:$F$54,2,FALSE)="P",-1,1)) -> 
A56: PASSIVITA'
B57: 020505_Debiti verso fornitori | D57: + | E57: 1 | G57: 3000 | H57: 3500 | I57: 4000 | M57: =IF($B57="","",G57*IF($F57="",1,IF(ISERROR(MATCH($F57,$B$6:$B$105)),0,INDIRECT(ADDRESS(5+MATCH($F57,$B$6:$B$105),COLUMN(M$4)))))*IF(VLOOKUP($B57,SCHEMA_SP!$E$5:$F$54,2,FALSE)="P",-1,1)) -> -3000 | N57: =IF($B57="","",H57*IF($F57="",1,IF(ISERROR(MATCH($F57,$B$6:$B$105)),0,INDIRECT(ADDRESS(5+MATCH($F57,$B$6:$B$105),COLUMN(N$4)))))*IF(VLOOKUP($B57,SCHEMA_SP!$E$5:$F$54,2,FALSE)="P",-1,1)) -> -3500 | O57: =IF($B57="","",I57*IF($F57="",1,IF(ISERROR(MATCH($F57,$B$6:$B$105)),0,INDIRECT(ADDRESS(5+MATCH($F57,$B$6:$B$105),COLUMN(O$4)))))*IF(VLOOKUP($B57,SCHEMA_SP!$E$5:$F$54,2,FALSE)="P",-1,1)) -> -4000 | P57: =IF($B57="","",J57*IF($F57="",1,IF(ISERROR(MATCH($F57,$B$6:$B$105)),0,INDIRECT(ADDRESS(5+MATCH($F57,$B$6:$B$105),COLUMN(P$4)))))*IF(VLOOKUP($B57,SCHEMA_SP!$E$5:$F$54,2,FALSE)="P",-1,1)) -> 0 | Q57: =IF($B57="","",K57*IF($F57="",1,IF(ISERROR(MATCH($F57,$B$6:$B$105)),0,INDIRECT(ADDRESS(5+MATCH($F57,$B$6:$B$105),COLUMN(Q$4)))))*IF(VLOOKUP($B57,SCHEMA_SP!$E$5:$F$54,2,FALSE)="P",-1,1)) -> 0 | S57: -3000 | T57: -3500 | U57: -4000 | V57: 0 | W57: 0
B58: 020506_Debiti verso altri | D58: + | E58: 1 | G58: 1000 | H58: 1000 | I58: 1000 | M58: =IF($B58="","",G58*IF($F58="",1,IF(ISERROR(MATCH($F58,$B$6:$B$105)),0,INDIRECT(ADDRESS(5+MATCH($F58,$B$6:$B$105),COLUMN(M$4)))))*IF(VLOOKUP($B58,SCHEMA_SP!$E$5:$F$54,2,FALSE)="P",-1,1)) -> -1000 | N58: =IF($B58="","",H58*IF($F58="",1,IF(ISERROR(MATCH($F58,$B$6:$B$105)),0,INDIRECT(ADDRESS(5+MATCH($F58,$B$6:$B$105),COLUMN(N$4)))))*IF(VLOOKUP($B58,SCHEMA_SP!$E$5:$F$54,2,FALSE)="P",-1,1)) -> -1000 | O58: =IF($B58="","",I58*IF($F58="",1,IF(ISERROR(MATCH($F58,$B$6:$B$105)),0,INDIRECT(ADDRESS(5+MATCH($F58,$B$6:$B$105),COLUMN(O$4)))))*IF(VLOOKUP($B58,SCHEMA_SP!$E$5:$F$54,2,FALSE)="P",-1,1)) -> -1000 | P58: =IF($B58="","",J58*IF($F58="",1,IF(ISERROR(MATCH($F58,$B$6:$B$105)),0,INDIRECT(ADDRESS(5+MATCH($F58,$B$6:$B$105),COLUMN(P$4)))))*IF(VLOOKUP($B58,SCHEMA_SP!$E$5:$F$54,2,FALSE)="P",-1,1)) -> 0 | Q58: =IF($B58="","",K58*IF($F58="",1,IF(ISERROR(MATCH($F58,$B$6:$B$105)),0,INDIRECT(ADDRESS(5+MATCH($F58,$B$6:$B$105),COLUMN(Q$4)))))*IF(VLOOKUP($B58,SCHEMA_SP!$E$5:$F$54,2,FALSE)="P",-1,1)) -> 0 | S58: =IF($B58="","",M58*$E58) -> -1000 | T58: -1000 | U58: -1000 | V58: 0 | W58: 0
B59: 020507_Debiti tributari | D59: + | E59: 1 | G59: 500 | H59: 500 | I59: 500 | M59: =IF($B59="","",G59*IF($F59="",1,IF(ISERROR(MATCH($F59,$B$6:$B$105)),0,INDIRECT(ADDRESS(5+MATCH($F59,$B$6:$B$105),COLUMN(M$4)))))*IF(VLOOKUP($B59,SCHEMA_SP!$E$5:$F$54,2,FALSE)="P",-1,1)) -> -500 | N59: =IF($B59="","",H59*IF($F59="",1,IF(ISERROR(MATCH($F59,$B$6:$B$105)),0,INDIRECT(ADDRESS(5+MATCH($F59,$B$6:$B$105),COLUMN(N$4)))))*IF(VLOOKUP($B59,SCHEMA_SP!$E$5:$F$54,2,FALSE)="P",-1,1)) -> -500 | O59: =IF($B59="","",I59*IF($F59="",1,IF(ISERROR(MATCH($F59,$B$6:$B$105)),0,INDIRECT(ADDRESS(5+MATCH($F59,$B$6:$B$105),COLUMN(O$4)))))*IF(VLOOKUP($B59,SCHEMA_SP!$E$5:$F$54,2,FALSE)="P",-1,1)) -> -500 | P59: =IF($B59="","",J59*IF($F59="",1,IF(ISERROR(MATCH($F59,$B$6:$B$105)),0,INDIRECT(ADDRESS(5+MATCH($F59,$B$6:$B$105),COLUMN(P$4)))))*IF(VLOOKUP($B59,SCHEMA_SP!$E$5:$F$54,2,FALSE)="P",-1,1)) -> 0 | Q59: =IF($B59="","",K59*IF($F59="",1,IF(ISERROR(MATCH($F59,$B$6:$B$105)),0,INDIRECT(ADDRESS(5+MATCH($F59,$B$6:$B$105),COLUMN(Q$4)))))*IF(VLOOKUP($B59,SCHEMA_SP!$E$5:$F$54,2,FALSE)="P",-1,1)) -> 0 | S59: -500 | T59: -500 | U59: -500 | V59: 0 | W59: 0
B60: 020508_Ratei/risconti passivi | D60: + | E60: 0 | G60: 200 | H60: 10000 | I60: 10000 | M60: =IF($B60="","",G60*IF($F60="",1,IF(ISERROR(MATCH($F60,$B$6:$B$105)),0,INDIRECT(ADDRESS(5+MATCH($F60,$B$6:$B$105),COLUMN(M$4)))))*IF(VLOOKUP($B60,SCHEMA_SP!$E$5:$F$54,2,FALSE)="P",-1,1)) -> -200 | N60: =IF($B60="","",H60*IF($F60="",1,IF(ISERROR(MATCH($F60,$B$6:$B$105)),0,INDIRECT(ADDRESS(5+MATCH($F60,$B$6:$B$105),COLUMN(N$4)))))*IF(VLOOKUP($B60,SCHEMA_SP!$E$5:$F$54,2,FALSE)="P",-1,1)) -> -10000 | O60: =IF($B60="","",I60*IF($F60="",1,IF(ISERROR(MATCH($F60,$B$6:$B$105)),0,INDIRECT(ADDRESS(5+MATCH($F60,$B$6:$B$105),COLUMN(O$4)))))*IF(VLOOKUP($B60,SCHEMA_SP!$E$5:$F$54,2,FALSE)="P",-1,1)) -> -10000 | P60: =IF($B60="","",J60*IF($F60="",1,IF(ISERROR(MATCH($F60,$B$6:$B$105)),0,INDIRECT(ADDRESS(5+MATCH($F60,$B$6:$B$105),COLUMN(P$4)))))*IF(VLOOKUP($B60,SCHEMA_SP!$E$5:$F$54,2,FALSE)="P",-1,1)) -> 0 | Q60: =IF($B60="","",K60*IF($F60="",1,IF(ISERROR(MATCH($F60,$B$6:$B$105)),0,INDIRECT(ADDRESS(5+MATCH($F60,$B$6:$B$105),COLUMN(Q$4)))))*IF(VLOOKUP($B60,SCHEMA_SP!$E$5:$F$54,2,FALSE)="P",-1,1)) -> 0 | S60: 0 | T60: 0 | U60: 0 | V60: 0 | W60: 0
B61: 110101_Capitale sociale | D61: + | E61: 1 | G61: 2500 | H61: 4000 | I61: 4000 | M61: =IF($B61="","",G61*IF($F61="",1,IF(ISERROR(MATCH($F61,$B$6:$B$105)),0,INDIRECT(ADDRESS(5+MATCH($F61,$B$6:$B$105),COLUMN(M$4)))))*IF(VLOOKUP($B61,SCHEMA_SP!$E$5:$F$54,2,FALSE)="P",-1,1)) -> -2500 | N61: =IF($B61="","",H61*IF($F61="",1,IF(ISERROR(MATCH($F61,$B$6:$B$105)),0,INDIRECT(ADDRESS(5+MATCH($F61,$B$6:$B$105),COLUMN(N$4)))))*IF(VLOOKUP($B61,SCHEMA_SP!$E$5:$F$54,2,FALSE)="P",-1,1)) -> -4000 | O61: =IF($B61="","",I61*IF($F61="",1,IF(ISERROR(MATCH($F61,$B$6:$B$105)),0,INDIRECT(ADDRESS(5+MATCH($F61,$B$6:$B$105),COLUMN(O$4)))))*IF(VLOOKUP($B61,SCHEMA_SP!$E$5:$F$54,2,FALSE)="P",-1,1)) -> -4000 | P61: =IF($B61="","",J61*IF($F61="",1,IF(ISERROR(MATCH($F61,$B$6:$B$105)),0,INDIRECT(ADDRESS(5+MATCH($F61,$B$6:$B$105),COLUMN(P$4)))))*IF(VLOOKUP($B61,SCHEMA_SP!$E$5:$F$54,2,FALSE)="P",-1,1)) -> 0 | Q61: =IF($B61="","",K61*IF($F61="",1,IF(ISERROR(MATCH($F61,$B$6:$B$105)),0,INDIRECT(ADDRESS(5+MATCH($F61,$B$6:$B$105),COLUMN(Q$4)))))*IF(VLOOKUP($B61,SCHEMA_SP!$E$5:$F$54,2,FALSE)="P",-1,1)) -> 0 | S61: -2500 | T61: -4000 | U61: -4000 | V61: 0 | W61: 0
B62: 110102_Riserve | D62: + | E62: 1 | G62: 11300 | H62: 13100 | I62: 14500 | M62: =IF($B62="","",G62*IF($F62="",1,IF(ISERROR(MATCH($F62,$B$6:$B$105)),0,INDIRECT(ADDRESS(5+MATCH($F62,$B$6:$B$105),COLUMN(M$4)))))*IF(VLOOKUP($B62,SCHEMA_SP!$E$5:$F$54,2,FALSE)="P",-1,1)) -> -11300 | N62: =IF($B62="","",H62*IF($F62="",1,IF(ISERROR(MATCH($F62,$B$6:$B$105)),0,INDIRECT(ADDRESS(5+MATCH($F62,$B$6:$B$105),COLUMN(N$4)))))*IF(VLOOKUP($B62,SCHEMA_SP!$E$5:$F$54,2,FALSE)="P",-1,1)) -> -13100 | O62: =IF($B62="","",I62*IF($F62="",1,IF(ISERROR(MATCH($F62,$B$6:$B$105)),0,INDIRECT(ADDRESS(5+MATCH($F62,$B$6:$B$105),COLUMN(O$4)))))*IF(VLOOKUP($B62,SCHEMA_SP!$E$5:$F$54,2,FALSE)="P",-1,1)) -> -14500 | P62: =IF($B62="","",J62*IF($F62="",1,IF(ISERROR(MATCH($F62,$B$6:$B$105)),0,INDIRECT(ADDRESS(5+MATCH($F62,$B$6:$B$105),COLUMN(P$4)))))*IF(VLOOKUP($B62,SCHEMA_SP!$E$5:$F$54,2,FALSE)="P",-1,1)) -> 0 | Q62: =IF($B62="","",K62*IF($F62="",1,IF(ISERROR(MATCH($F62,$B$6:$B$105)),0,INDIRECT(ADDRESS(5+MATCH($F62,$B$6:$B$105),COLUMN(Q$4)))))*IF(VLOOKUP($B62,SCHEMA_SP!$E$5:$F$54,2,FALSE)="P",-1,1)) -> 0 | S62: -11300 | T62: -13100 | U62: -14500 | V62: 0 | W62: 0
B63: 110211_Debiti a breve verso altri finanziatori | D63: + | E63: 1 | G63: 500 | H63: 500 | I63: 500 | M63: =IF($B63="","",G63*IF($F63="",1,IF(ISERROR(MATCH($F63,$B$6:$B$105)),0,INDIRECT(ADDRESS(5+MATCH($F63,$B$6:$B$105),COLUMN(M$4)))))*IF(VLOOKUP($B63,SCHEMA_SP!$E$5:$F$54,2,FALSE)="P",-1,1)) -> -500 | N63: =IF($B63="","",H63*IF($F63="",1,IF(ISERROR(MATCH($F63,$B$6:$B$105)),0,INDIRECT(ADDRESS(5+MATCH($F63,$B$6:$B$105),COLUMN(N$4)))))*IF(VLOOKUP($B63,SCHEMA_SP!$E$5:$F$54,2,FALSE)="P",-1,1)) -> -500 | O63: =IF($B63="","",I63*IF($F63="",1,IF(ISERROR(MATCH($F63,$B$6:$B$105)),0,INDIRECT(ADDRESS(5+MATCH($F63,$B$6:$B$105),COLUMN(O$4)))))*IF(VLOOKUP($B63,SCHEMA_SP!$E$5:$F$54,2,FALSE)="P",-1,1)) -> -500 | P63: =IF($B63="","",J63*IF($F63="",1,IF(ISERROR(MATCH($F63,$B$6:$B$105)),0,INDIRECT(ADDRESS(5+MATCH($F63,$B$6:$B$105),COLUMN(P$4)))))*IF(VLOOKUP($B63,SCHEMA_SP!$E$5:$F$54,2,FALSE)="P",-1,1)) -> 0 | Q63: =IF($B63="","",K63*IF($F63="",1,IF(ISERROR(MATCH($F63,$B$6:$B$105)),0,INDIRECT(ADDRESS(5+MATCH($F63,$B$6:$B$105),COLUMN(Q$4)))))*IF(VLOOKUP($B63,SCHEMA_SP!$E$5:$F$54,2,FALSE)="P",-1,1)) -> 0 | S63: -500 | T63: -500 | U63: -500 | V63: 0 | W63: 0
B64: 110301_Debiti a medio termine verso banche | D64: + | E64: 1 | G64: 2000 | H64: 1500 | I64: 1000 | M64: =IF($B64="","",G64*IF($F64="",1,IF(ISERROR(MATCH($F64,$B$6:$B$105)),0,INDIRECT(ADDRESS(5+MATCH($F64,$B$6:$B$105),COLUMN(M$4)))))*IF(VLOOKUP($B64,SCHEMA_SP!$E$5:$F$54,2,FALSE)="P",-1,1)) -> -2000 | N64: =IF($B64="","",H64*IF($F64="",1,IF(ISERROR(MATCH($F64,$B$6:$B$105)),0,INDIRECT(ADDRESS(5+MATCH($F64,$B$6:$B$105),COLUMN(N$4)))))*IF(VLOOKUP($B64,SCHEMA_SP!$E$5:$F$54,2,FALSE)="P",-1,1)) -> -1500 | O64: =IF($B64="","",I64*IF($F64="",1,IF(ISERROR(MATCH($F64,$B$6:$B$105)),0,INDIRECT(ADDRESS(5+MATCH($F64,$B$6:$B$105),COLUMN(O$4)))))*IF(VLOOKUP($B64,SCHEMA_SP!$E$5:$F$54,2,FALSE)="P",-1,1)) -> -1000 | P64: =IF($B64="","",J64*IF($F64="",1,IF(ISERROR(MATCH($F64,$B$6:$B$105)),0,INDIRECT(ADDRESS(5+MATCH($F64,$B$6:$B$105),COLUMN(P$4)))))*IF(VLOOKUP($B64,SCHEMA_SP!$E$5:$F$54,2,FALSE)="P",-1,1)) -> 0 | Q64: =IF($B64="","",K64*IF($F64="",1,IF(ISERROR(MATCH($F64,$B$6:$B$105)),0,INDIRECT(ADDRESS(5+MATCH($F64,$B$6:$B$105),COLUMN(Q$4)))))*IF(VLOOKUP($B64,SCHEMA_SP!$E$5:$F$54,2,FALSE)="P",-1,1)) -> 0 | S64: -2000 | T64: -1500 | U64: -1000 | V64: 0 | W64: 0
B65: 110311_Debiti a medio termine verso altri finanziatori | D65: + | E65: 1 | G65: 300 | H65: 400 | I65: 500 | M65: =IF($B65="","",G65*IF($F65="",1,IF(ISERROR(MATCH($F65,$B$6:$B$105)),0,INDIRECT(ADDRESS(5+MATCH($F65,$B$6:$B$105),COLUMN(M$4)))))*IF(VLOOKUP($B65,SCHEMA_SP!$E$5:$F$54,2,FALSE)="P",-1,1)) -> -300 | N65: =IF($B65="","",H65*IF($F65="",1,IF(ISERROR(MATCH($F65,$B$6:$B$105)),0,INDIRECT(ADDRESS(5+MATCH($F65,$B$6:$B$105),COLUMN(N$4)))))*IF(VLOOKUP($B65,SCHEMA_SP!$E$5:$F$54,2,FALSE)="P",-1,1)) -> -400 | O65: =IF($B65="","",I65*IF($F65="",1,IF(ISERROR(MATCH($F65,$B$6:$B$105)),0,INDIRECT(ADDRESS(5+MATCH($F65,$B$6:$B$105),COLUMN(O$4)))))*IF(VLOOKUP($B65,SCHEMA_SP!$E$5:$F$54,2,FALSE)="P",-1,1)) -> -500 | P65: =IF($B65="","",J65*IF($F65="",1,IF(ISERROR(MATCH($F65,$B$6:$B$105)),0,INDIRECT(ADDRESS(5+MATCH($F65,$B$6:$B$105),COLUMN(P$4)))))*IF(VLOOKUP($B65,SCHEMA_SP!$E$5:$F$54,2,FALSE)="P",-1,1)) -> 0 | Q65: =IF($B65="","",K65*IF($F65="",1,IF(ISERROR(MATCH($F65,$B$6:$B$105)),0,INDIRECT(ADDRESS(5+MATCH($F65,$B$6:$B$105),COLUMN(Q$4)))))*IF(VLOOKUP($B65,SCHEMA_SP!$E$5:$F$54,2,FALSE)="P",-1,1)) -> 0 | S65: -300 | T65: -400 | U65: -500 | V65: 0 | W65: 0
B66: 110401_TFR | D66: + | E66: 0.9 | G66: 450 | H66: 500 | I66: 550 | M66: =IF($B66="","",G66*IF($F66="",1,IF(ISERROR(MATCH($F66,$B$6:$B$105)),0,INDIRECT(ADDRESS(5+MATCH($F66,$B$6:$B$105),COLUMN(M$4)))))*IF(VLOOKUP($B66,SCHEMA_SP!$E$5:$F$54,2,FALSE)="P",-1,1)) -> -450 | N66: =IF($B66="","",H66*IF($F66="",1,IF(ISERROR(MATCH($F66,$B$6:$B$105)),0,INDIRECT(ADDRESS(5+MATCH($F66,$B$6:$B$105),COLUMN(N$4)))))*IF(VLOOKUP($B66,SCHEMA_SP!$E$5:$F$54,2,FALSE)="P",-1,1)) -> -500 | O66: =IF($B66="","",I66*IF($F66="",1,IF(ISERROR(MATCH($F66,$B$6:$B$105)),0,INDIRECT(ADDRESS(5+MATCH($F66,$B$6:$B$105),COLUMN(O$4)))))*IF(VLOOKUP($B66,SCHEMA_SP!$E$5:$F$54,2,FALSE)="P",-1,1)) -> -550 | P66: =IF($B66="","",J66*IF($F66="",1,IF(ISERROR(MATCH($F66,$B$6:$B$105)),0,INDIRECT(ADDRESS(5+MATCH($F66,$B$6:$B$105),COLUMN(P$4)))))*IF(VLOOKUP($B66,SCHEMA_SP!$E$5:$F$54,2,FALSE)="P",-1,1)) -> 0 | Q66: =IF($B66="","",K66*IF($F66="",1,IF(ISERROR(MATCH($F66,$B$6:$B$105)),0,INDIRECT(ADDRESS(5+MATCH($F66,$B$6:$B$105),COLUMN(Q$4)))))*IF(VLOOKUP($B66,SCHEMA_SP!$E$5:$F$54,2,FALSE)="P",-1,1)) -> 0 | S66: -405 | T66: -450 | U66: -495 | V66: 0 | W66: 0
M67: =IF($B67="","",G67*IF($F67="",1,IF(ISERROR(MATCH($F67,$B$6:$B$105)),0,INDIRECT(ADDRESS(5+MATCH($F67,$B$6:$B$105),COLUMN(M$4)))))*IF(VLOOKUP($B67,SCHEMA_SP!$E$5:$F$54,2,FALSE)="P",-1,1)) ->  | N67: =IF($B67="","",H67*IF($F67="",1,IF(ISERROR(MATCH($F67,$B$6:$B$105)),0,INDIRECT(ADDRESS(5+MATCH($F67,$B$6:$B$105),COLUMN(N$4)))))*IF(VLOOKUP($B67,SCHEMA_SP!$E$5:$F$54,2,FALSE)="P",-1,1)) ->  | O67: =IF($B67="","",I67*IF($F67="",1,IF(ISERROR(MATCH($F67,$B$6:$B$105)),0,INDIRECT(ADDRESS(5+MATCH($F67,$B$6:$B$105),COLUMN(O$4)))))*IF(VLOOKUP($B67,SCHEMA_SP!$E$5:$F$54,2,FALSE)="P",-1,1)) ->  | P67: =IF($B67="","",J67*IF($F67="",1,IF(ISERROR(MATCH($F67,$B$6:$B$105)),0,INDIRECT(ADDRESS(5+MATCH($F67,$B$6:$B$105),COLUMN(P$4)))))*IF(VLOOKUP($B67,SCHEMA_SP!$E$5:$F$54,2,FALSE)="P",-1,1)) ->  | Q67: =IF($B67="","",K67*IF($F67="",1,IF(ISERROR(MATCH($F67,$B$6:$B$105)),0,INDIRECT(ADDRESS(5+MATCH($F67,$B$6:$B$105),COLUMN(Q$4)))))*IF(VLOOKUP($B67,SCHEMA_SP!$E$5:$F$54,2,FALSE)="P",-1,1)) -> 
M68: =IF($B68="","",G68*IF($F68="",1,IF(ISERROR(MATCH($F68,$B$6:$B$105)),0,INDIRECT(ADDRESS(5+MATCH($F68,$B$6:$B$105),COLUMN(M$4)))))*IF(VLOOKUP($B68,SCHEMA_SP!$E$5:$F$54,2,FALSE)="P",-1,1)) ->  | N68: =IF($B68="","",H68*IF($F68="",1,IF(ISERROR(MATCH($F68,$B$6:$B$105)),0,INDIRECT(ADDRESS(5+MATCH($F68,$B$6:$B$105),COLUMN(N$4)))))*IF(VLOOKUP($B68,SCHEMA_SP!$E$5:$F$54,2,FALSE)="P",-1,1)) ->  | O68: =IF($B68="","",I68*IF($F68="",1,IF(ISERROR(MATCH($F68,$B$6:$B$105)),0,INDIRECT(ADDRESS(5+MATCH($F68,$B$6:$B$105),COLUMN(O$4)))))*IF(VLOOKUP($B68,SCHEMA_SP!$E$5:$F$54,2,FALSE)="P",-1,1)) ->  | P68: =IF($B68="","",J68*IF($F68="",1,IF(ISERROR(MATCH($F68,$B$6:$B$105)),0,INDIRECT(ADDRESS(5+MATCH($F68,$B$6:$B$105),COLUMN(P$4)))))*IF(VLOOKUP($B68,SCHEMA_SP!$E$5:$F$54,2,FALSE)="P",-1,1)) ->  | Q68: =IF($B68="","",K68*IF($F68="",1,IF(ISERROR(MATCH($F68,$B$6:$B$105)),0,INDIRECT(ADDRESS(5+MATCH($F68,$B$6:$B$105),COLUMN(Q$4)))))*IF(VLOOKUP($B68,SCHEMA_SP!$E$5:$F$54,2,FALSE)="P",-1,1)) -> 
M69: =IF($B69="","",G69*IF($F69="",1,IF(ISERROR(MATCH($F69,$B$6:$B$105)),0,INDIRECT(ADDRESS(5+MATCH($F69,$B$6:$B$105),COLUMN(M$4)))))*IF(VLOOKUP($B69,SCHEMA_SP!$E$5:$F$54,2,FALSE)="P",-1,1)) ->  | N69: =IF($B69="","",H69*IF($F69="",1,IF(ISERROR(MATCH($F69,$B$6:$B$105)),0,INDIRECT(ADDRESS(5+MATCH($F69,$B$6:$B$105),COLUMN(N$4)))))*IF(VLOOKUP($B69,SCHEMA_SP!$E$5:$F$54,2,FALSE)="P",-1,1)) ->  | O69: =IF($B69="","",I69*IF($F69="",1,IF(ISERROR(MATCH($F69,$B$6:$B$105)),0,INDIRECT(ADDRESS(5+MATCH($F69,$B$6:$B$105),COLUMN(O$4)))))*IF(VLOOKUP($B69,SCHEMA_SP!$E$5:$F$54,2,FALSE)="P",-1,1)) ->  | P69: =IF($B69="","",J69*IF($F69="",1,IF(ISERROR(MATCH($F69,$B$6:$B$105)),0,INDIRECT(ADDRESS(5+MATCH($F69,$B$6:$B$105),COLUMN(P$4)))))*IF(VLOOKUP($B69,SCHEMA_SP!$E$5:$F$54,2,FALSE)="P",-1,1)) ->  | Q69: =IF($B69="","",K69*IF($F69="",1,IF(ISERROR(MATCH($F69,$B$6:$B$105)),0,INDIRECT(ADDRESS(5+MATCH($F69,$B$6:$B$105),COLUMN(Q$4)))))*IF(VLOOKUP($B69,SCHEMA_SP!$E$5:$F$54,2,FALSE)="P",-1,1)) -> 
M70: =IF($B70="","",G70*IF($F70="",1,IF(ISERROR(MATCH($F70,$B$6:$B$105)),0,INDIRECT(ADDRESS(5+MATCH($F70,$B$6:$B$105),COLUMN(M$4)))))*IF(VLOOKUP($B70,SCHEMA_SP!$E$5:$F$54,2,FALSE)="P",-1,1)) ->  | N70: =IF($B70="","",H70*IF($F70="",1,IF(ISERROR(MATCH($F70,$B$6:$B$105)),0,INDIRECT(ADDRESS(5+MATCH($F70,$B$6:$B$105),COLUMN(N$4)))))*IF(VLOOKUP($B70,SCHEMA_SP!$E$5:$F$54,2,FALSE)="P",-1,1)) ->  | O70: =IF($B70="","",I70*IF($F70="",1,IF(ISERROR(MATCH($F70,$B$6:$B$105)),0,INDIRECT(ADDRESS(5+MATCH($F70,$B$6:$B$105),COLUMN(O$4)))))*IF(VLOOKUP($B70,SCHEMA_SP!$E$5:$F$54,2,FALSE)="P",-1,1)) ->  | P70: =IF($B70="","",J70*IF($F70="",1,IF(ISERROR(MATCH($F70,$B$6:$B$105)),0,INDIRECT(ADDRESS(5+MATCH($F70,$B$6:$B$105),COLUMN(P$4)))))*IF(VLOOKUP($B70,SCHEMA_SP!$E$5:$F$54,2,FALSE)="P",-1,1)) ->  | Q70: =IF($B70="","",K70*IF($F70="",1,IF(ISERROR(MATCH($F70,$B$6:$B$105)),0,INDIRECT(ADDRESS(5+MATCH($F70,$B$6:$B$105),COLUMN(Q$4)))))*IF(VLOOKUP($B70,SCHEMA_SP!$E$5:$F$54,2,FALSE)="P",-1,1)) -> 
M71: =IF($B71="","",G71*IF($F71="",1,IF(ISERROR(MATCH($F71,$B$6:$B$105)),0,INDIRECT(ADDRESS(5+MATCH($F71,$B$6:$B$105),COLUMN(M$4)))))*IF(VLOOKUP($B71,SCHEMA_SP!$E$5:$F$54,2,FALSE)="P",-1,1)) ->  | N71: =IF($B71="","",H71*IF($F71="",1,IF(ISERROR(MATCH($F71,$B$6:$B$105)),0,INDIRECT(ADDRESS(5+MATCH($F71,$B$6:$B$105),COLUMN(N$4)))))*IF(VLOOKUP($B71,SCHEMA_SP!$E$5:$F$54,2,FALSE)="P",-1,1)) ->  | O71: =IF($B71="","",I71*IF($F71="",1,IF(ISERROR(MATCH($F71,$B$6:$B$105)),0,INDIRECT(ADDRESS(5+MATCH($F71,$B$6:$B$105),COLUMN(O$4)))))*IF(VLOOKUP($B71,SCHEMA_SP!$E$5:$F$54,2,FALSE)="P",-1,1)) ->  | P71: =IF($B71="","",J71*IF($F71="",1,IF(ISERROR(MATCH($F71,$B$6:$B$105)),0,INDIRECT(ADDRESS(5+MATCH($F71,$B$6:$B$105),COLUMN(P$4)))))*IF(VLOOKUP($B71,SCHEMA_SP!$E$5:$F$54,2,FALSE)="P",-1,1)) ->  | Q71: =IF($B71="","",K71*IF($F71="",1,IF(ISERROR(MATCH($F71,$B$6:$B$105)),0,INDIRECT(ADDRESS(5+MATCH($F71,$B$6:$B$105),COLUMN(Q$4)))))*IF(VLOOKUP($B71,SCHEMA_SP!$E$5:$F$54,2,FALSE)="P",-1,1)) -> 
M72: =IF($B72="","",G72*IF($F72="",1,IF(ISERROR(MATCH($F72,$B$6:$B$105)),0,INDIRECT(ADDRESS(5+MATCH($F72,$B$6:$B$105),COLUMN(M$4)))))*IF(VLOOKUP($B72,SCHEMA_SP!$E$5:$F$54,2,FALSE)="P",-1,1)) ->  | N72: =IF($B72="","",H72*IF($F72="",1,IF(ISERROR(MATCH($F72,$B$6:$B$105)),0,INDIRECT(ADDRESS(5+MATCH($F72,$B$6:$B$105),COLUMN(N$4)))))*IF(VLOOKUP($B72,SCHEMA_SP!$E$5:$F$54,2,FALSE)="P",-1,1)) ->  | O72: =IF($B72="","",I72*IF($F72="",1,IF(ISERROR(MATCH($F72,$B$6:$B$105)),0,INDIRECT(ADDRESS(5+MATCH($F72,$B$6:$B$105),COLUMN(O$4)))))*IF(VLOOKUP($B72,SCHEMA_SP!$E$5:$F$54,2,FALSE)="P",-1,1)) ->  | P72: =IF($B72="","",J72*IF($F72="",1,IF(ISERROR(MATCH($F72,$B$6:$B$105)),0,INDIRECT(ADDRESS(5+MATCH($F72,$B$6:$B$105),COLUMN(P$4)))))*IF(VLOOKUP($B72,SCHEMA_SP!$E$5:$F$54,2,FALSE)="P",-1,1)) ->  | Q72: =IF($B72="","",K72*IF($F72="",1,IF(ISERROR(MATCH($F72,$B$6:$B$105)),0,INDIRECT(ADDRESS(5+MATCH($F72,$B$6:$B$105),COLUMN(Q$4)))))*IF(VLOOKUP($B72,SCHEMA_SP!$E$5:$F$54,2,FALSE)="P",-1,1)) -> 
M73: =IF($B73="","",G73*IF($F73="",1,IF(ISERROR(MATCH($F73,$B$6:$B$105)),0,INDIRECT(ADDRESS(5+MATCH($F73,$B$6:$B$105),COLUMN(M$4)))))*IF(VLOOKUP($B73,SCHEMA_SP!$E$5:$F$54,2,FALSE)="P",-1,1)) ->  | N73: =IF($B73="","",H73*IF($F73="",1,IF(ISERROR(MATCH($F73,$B$6:$B$105)),0,INDIRECT(ADDRESS(5+MATCH($F73,$B$6:$B$105),COLUMN(N$4)))))*IF(VLOOKUP($B73,SCHEMA_SP!$E$5:$F$54,2,FALSE)="P",-1,1)) ->  | O73: =IF($B73="","",I73*IF($F73="",1,IF(ISERROR(MATCH($F73,$B$6:$B$105)),0,INDIRECT(ADDRESS(5+MATCH($F73,$B$6:$B$105),COLUMN(O$4)))))*IF(VLOOKUP($B73,SCHEMA_SP!$E$5:$F$54,2,FALSE)="P",-1,1)) ->  | P73: =IF($B73="","",J73*IF($F73="",1,IF(ISERROR(MATCH($F73,$B$6:$B$105)),0,INDIRECT(ADDRESS(5+MATCH($F73,$B$6:$B$105),COLUMN(P$4)))))*IF(VLOOKUP($B73,SCHEMA_SP!$E$5:$F$54,2,FALSE)="P",-1,1)) ->  | Q73: =IF($B73="","",K73*IF($F73="",1,IF(ISERROR(MATCH($F73,$B$6:$B$105)),0,INDIRECT(ADDRESS(5+MATCH($F73,$B$6:$B$105),COLUMN(Q$4)))))*IF(VLOOKUP($B73,SCHEMA_SP!$E$5:$F$54,2,FALSE)="P",-1,1)) -> 
M74: =IF($B74="","",G74*IF($F74="",1,IF(ISERROR(MATCH($F74,$B$6:$B$105)),0,INDIRECT(ADDRESS(5+MATCH($F74,$B$6:$B$105),COLUMN(M$4)))))*IF(VLOOKUP($B74,SCHEMA_SP!$E$5:$F$54,2,FALSE)="P",-1,1)) ->  | N74: =IF($B74="","",H74*IF($F74="",1,IF(ISERROR(MATCH($F74,$B$6:$B$105)),0,INDIRECT(ADDRESS(5+MATCH($F74,$B$6:$B$105),COLUMN(N$4)))))*IF(VLOOKUP($B74,SCHEMA_SP!$E$5:$F$54,2,FALSE)="P",-1,1)) ->  | O74: =IF($B74="","",I74*IF($F74="",1,IF(ISERROR(MATCH($F74,$B$6:$B$105)),0,INDIRECT(ADDRESS(5+MATCH($F74,$B$6:$B$105),COLUMN(O$4)))))*IF(VLOOKUP($B74,SCHEMA_SP!$E$5:$F$54,2,FALSE)="P",-1,1)) ->  | P74: =IF($B74="","",J74*IF($F74="",1,IF(ISERROR(MATCH($F74,$B$6:$B$105)),0,INDIRECT(ADDRESS(5+MATCH($F74,$B$6:$B$105),COLUMN(P$4)))))*IF(VLOOKUP($B74,SCHEMA_SP!$E$5:$F$54,2,FALSE)="P",-1,1)) ->  | Q74: =IF($B74="","",K74*IF($F74="",1,IF(ISERROR(MATCH($F74,$B$6:$B$105)),0,INDIRECT(ADDRESS(5+MATCH($F74,$B$6:$B$105),COLUMN(Q$4)))))*IF(VLOOKUP($B74,SCHEMA_SP!$E$5:$F$54,2,FALSE)="P",-1,1)) -> 
M75: =IF($B75="","",G75*IF($F75="",1,IF(ISERROR(MATCH($F75,$B$6:$B$105)),0,INDIRECT(ADDRESS(5+MATCH($F75,$B$6:$B$105),COLUMN(M$4)))))*IF(VLOOKUP($B75,SCHEMA_SP!$E$5:$F$54,2,FALSE)="P",-1,1)) ->  | N75: =IF($B75="","",H75*IF($F75="",1,IF(ISERROR(MATCH($F75,$B$6:$B$105)),0,INDIRECT(ADDRESS(5+MATCH($F75,$B$6:$B$105),COLUMN(N$4)))))*IF(VLOOKUP($B75,SCHEMA_SP!$E$5:$F$54,2,FALSE)="P",-1,1)) ->  | O75: =IF($B75="","",I75*IF($F75="",1,IF(ISERROR(MATCH($F75,$B$6:$B$105)),0,INDIRECT(ADDRESS(5+MATCH($F75,$B$6:$B$105),COLUMN(O$4)))))*IF(VLOOKUP($B75,SCHEMA_SP!$E$5:$F$54,2,FALSE)="P",-1,1)) ->  | P75: =IF($B75="","",J75*IF($F75="",1,IF(ISERROR(MATCH($F75,$B$6:$B$105)),0,INDIRECT(ADDRESS(5+MATCH($F75,$B$6:$B$105),COLUMN(P$4)))))*IF(VLOOKUP($B75,SCHEMA_SP!$E$5:$F$54,2,FALSE)="P",-1,1)) ->  | Q75: =IF($B75="","",K75*IF($F75="",1,IF(ISERROR(MATCH($F75,$B$6:$B$105)),0,INDIRECT(ADDRESS(5+MATCH($F75,$B$6:$B$105),COLUMN(Q$4)))))*IF(VLOOKUP($B75,SCHEMA_SP!$E$5:$F$54,2,FALSE)="P",-1,1)) -> 
M76: =IF($B76="","",G76*IF($F76="",1,IF(ISERROR(MATCH($F76,$B$6:$B$105)),0,INDIRECT(ADDRESS(5+MATCH($F76,$B$6:$B$105),COLUMN(M$4)))))*IF(VLOOKUP($B76,SCHEMA_SP!$E$5:$F$54,2,FALSE)="P",-1,1)) ->  | N76: =IF($B76="","",H76*IF($F76="",1,IF(ISERROR(MATCH($F76,$B$6:$B$105)),0,INDIRECT(ADDRESS(5+MATCH($F76,$B$6:$B$105),COLUMN(N$4)))))*IF(VLOOKUP($B76,SCHEMA_SP!$E$5:$F$54,2,FALSE)="P",-1,1)) ->  | O76: =IF($B76="","",I76*IF($F76="",1,IF(ISERROR(MATCH($F76,$B$6:$B$105)),0,INDIRECT(ADDRESS(5+MATCH($F76,$B$6:$B$105),COLUMN(O$4)))))*IF(VLOOKUP($B76,SCHEMA_SP!$E$5:$F$54,2,FALSE)="P",-1,1)) ->  | P76: =IF($B76="","",J76*IF($F76="",1,IF(ISERROR(MATCH($F76,$B$6:$B$105)),0,INDIRECT(ADDRESS(5+MATCH($F76,$B$6:$B$105),COLUMN(P$4)))))*IF(VLOOKUP($B76,SCHEMA_SP!$E$5:$F$54,2,FALSE)="P",-1,1)) ->  | Q76: =IF($B76="","",K76*IF($F76="",1,IF(ISERROR(MATCH($F76,$B$6:$B$105)),0,INDIRECT(ADDRESS(5+MATCH($F76,$B$6:$B$105),COLUMN(Q$4)))))*IF(VLOOKUP($B76,SCHEMA_SP!$E$5:$F$54,2,FALSE)="P",-1,1)) -> 
M77: =IF($B77="","",G77*IF($F77="",1,IF(ISERROR(MATCH($F77,$B$6:$B$105)),0,INDIRECT(ADDRESS(5+MATCH($F77,$B$6:$B$105),COLUMN(M$4)))))*IF(VLOOKUP($B77,SCHEMA_SP!$E$5:$F$54,2,FALSE)="P",-1,1)) ->  | N77: =IF($B77="","",H77*IF($F77="",1,IF(ISERROR(MATCH($F77,$B$6:$B$105)),0,INDIRECT(ADDRESS(5+MATCH($F77,$B$6:$B$105),COLUMN(N$4)))))*IF(VLOOKUP($B77,SCHEMA_SP!$E$5:$F$54,2,FALSE)="P",-1,1)) ->  | O77: =IF($B77="","",I77*IF($F77="",1,IF(ISERROR(MATCH($F77,$B$6:$B$105)),0,INDIRECT(ADDRESS(5+MATCH($F77,$B$6:$B$105),COLUMN(O$4)))))*IF(VLOOKUP($B77,SCHEMA_SP!$E$5:$F$54,2,FALSE)="P",-1,1)) ->  | P77: =IF($B77="","",J77*IF($F77="",1,IF(ISERROR(MATCH($F77,$B$6:$B$105)),0,INDIRECT(ADDRESS(5+MATCH($F77,$B$6:$B$105),COLUMN(P$4)))))*IF(VLOOKUP($B77,SCHEMA_SP!$E$5:$F$54,2,FALSE)="P",-1,1)) ->  | Q77: =IF($B77="","",K77*IF($F77="",1,IF(ISERROR(MATCH($F77,$B$6:$B$105)),0,INDIRECT(ADDRESS(5+MATCH($F77,$B$6:$B$105),COLUMN(Q$4)))))*IF(VLOOKUP($B77,SCHEMA_SP!$E$5:$F$54,2,FALSE)="P",-1,1)) -> 
M78: =IF($B78="","",G78*IF($F78="",1,IF(ISERROR(MATCH($F78,$B$6:$B$105)),0,INDIRECT(ADDRESS(5+MATCH($F78,$B$6:$B$105),COLUMN(M$4)))))*IF(VLOOKUP($B78,SCHEMA_SP!$E$5:$F$54,2,FALSE)="P",-1,1)) ->  | N78: =IF($B78="","",H78*IF($F78="",1,IF(ISERROR(MATCH($F78,$B$6:$B$105)),0,INDIRECT(ADDRESS(5+MATCH($F78,$B$6:$B$105),COLUMN(N$4)))))*IF(VLOOKUP($B78,SCHEMA_SP!$E$5:$F$54,2,FALSE)="P",-1,1)) ->  | O78: =IF($B78="","",I78*IF($F78="",1,IF(ISERROR(MATCH($F78,$B$6:$B$105)),0,INDIRECT(ADDRESS(5+MATCH($F78,$B$6:$B$105),COLUMN(O$4)))))*IF(VLOOKUP($B78,SCHEMA_SP!$E$5:$F$54,2,FALSE)="P",-1,1)) ->  | P78: =IF($B78="","",J78*IF($F78="",1,IF(ISERROR(MATCH($F78,$B$6:$B$105)),0,INDIRECT(ADDRESS(5+MATCH($F78,$B$6:$B$105),COLUMN(P$4)))))*IF(VLOOKUP($B78,SCHEMA_SP!$E$5:$F$54,2,FALSE)="P",-1,1)) ->  | Q78: =IF($B78="","",K78*IF($F78="",1,IF(ISERROR(MATCH($F78,$B$6:$B$105)),0,INDIRECT(ADDRESS(5+MATCH($F78,$B$6:$B$105),COLUMN(Q$4)))))*IF(VLOOKUP($B78,SCHEMA_SP!$E$5:$F$54,2,FALSE)="P",-1,1)) -> 
M79: =IF($B79="","",G79*IF($F79="",1,IF(ISERROR(MATCH($F79,$B$6:$B$105)),0,INDIRECT(ADDRESS(5+MATCH($F79,$B$6:$B$105),COLUMN(M$4)))))*IF(VLOOKUP($B79,SCHEMA_SP!$E$5:$F$54,2,FALSE)="P",-1,1)) ->  | N79: =IF($B79="","",H79*IF($F79="",1,IF(ISERROR(MATCH($F79,$B$6:$B$105)),0,INDIRECT(ADDRESS(5+MATCH($F79,$B$6:$B$105),COLUMN(N$4)))))*IF(VLOOKUP($B79,SCHEMA_SP!$E$5:$F$54,2,FALSE)="P",-1,1)) ->  | O79: =IF($B79="","",I79*IF($F79="",1,IF(ISERROR(MATCH($F79,$B$6:$B$105)),0,INDIRECT(ADDRESS(5+MATCH($F79,$B$6:$B$105),COLUMN(O$4)))))*IF(VLOOKUP($B79,SCHEMA_SP!$E$5:$F$54,2,FALSE)="P",-1,1)) ->  | P79: =IF($B79="","",J79*IF($F79="",1,IF(ISERROR(MATCH($F79,$B$6:$B$105)),0,INDIRECT(ADDRESS(5+MATCH($F79,$B$6:$B$105),COLUMN(P$4)))))*IF(VLOOKUP($B79,SCHEMA_SP!$E$5:$F$54,2,FALSE)="P",-1,1)) ->  | Q79: =IF($B79="","",K79*IF($F79="",1,IF(ISERROR(MATCH($F79,$B$6:$B$105)),0,INDIRECT(ADDRESS(5+MATCH($F79,$B$6:$B$105),COLUMN(Q$4)))))*IF(VLOOKUP($B79,SCHEMA_SP!$E$5:$F$54,2,FALSE)="P",-1,1)) -> 
M80: =IF($B80="","",G80*IF($F80="",1,IF(ISERROR(MATCH($F80,$B$6:$B$105)),0,INDIRECT(ADDRESS(5+MATCH($F80,$B$6:$B$105),COLUMN(M$4)))))*IF(VLOOKUP($B80,SCHEMA_SP!$E$5:$F$54,2,FALSE)="P",-1,1)) ->  | N80: =IF($B80="","",H80*IF($F80="",1,IF(ISERROR(MATCH($F80,$B$6:$B$105)),0,INDIRECT(ADDRESS(5+MATCH($F80,$B$6:$B$105),COLUMN(N$4)))))*IF(VLOOKUP($B80,SCHEMA_SP!$E$5:$F$54,2,FALSE)="P",-1,1)) ->  | O80: =IF($B80="","",I80*IF($F80="",1,IF(ISERROR(MATCH($F80,$B$6:$B$105)),0,INDIRECT(ADDRESS(5+MATCH($F80,$B$6:$B$105),COLUMN(O$4)))))*IF(VLOOKUP($B80,SCHEMA_SP!$E$5:$F$54,2,FALSE)="P",-1,1)) ->  | P80: =IF($B80="","",J80*IF($F80="",1,IF(ISERROR(MATCH($F80,$B$6:$B$105)),0,INDIRECT(ADDRESS(5+MATCH($F80,$B$6:$B$105),COLUMN(P$4)))))*IF(VLOOKUP($B80,SCHEMA_SP!$E$5:$F$54,2,FALSE)="P",-1,1)) ->  | Q80: =IF($B80="","",K80*IF($F80="",1,IF(ISERROR(MATCH($F80,$B$6:$B$105)),0,INDIRECT(ADDRESS(5+MATCH($F80,$B$6:$B$105),COLUMN(Q$4)))))*IF(VLOOKUP($B80,SCHEMA_SP!$E$5:$F$54,2,FALSE)="P",-1,1)) -> 
M81: =IF($B81="","",G81*IF($F81="",1,IF(ISERROR(MATCH($F81,$B$6:$B$105)),0,INDIRECT(ADDRESS(5+MATCH($F81,$B$6:$B$105),COLUMN(M$4)))))*IF(VLOOKUP($B81,SCHEMA_SP!$E$5:$F$54,2,FALSE)="P",-1,1)) ->  | N81: =IF($B81="","",H81*IF($F81="",1,IF(ISERROR(MATCH($F81,$B$6:$B$105)),0,INDIRECT(ADDRESS(5+MATCH($F81,$B$6:$B$105),COLUMN(N$4)))))*IF(VLOOKUP($B81,SCHEMA_SP!$E$5:$F$54,2,FALSE)="P",-1,1)) ->  | O81: =IF($B81="","",I81*IF($F81="",1,IF(ISERROR(MATCH($F81,$B$6:$B$105)),0,INDIRECT(ADDRESS(5+MATCH($F81,$B$6:$B$105),COLUMN(O$4)))))*IF(VLOOKUP($B81,SCHEMA_SP!$E$5:$F$54,2,FALSE)="P",-1,1)) ->  | P81: =IF($B81="","",J81*IF($F81="",1,IF(ISERROR(MATCH($F81,$B$6:$B$105)),0,INDIRECT(ADDRESS(5+MATCH($F81,$B$6:$B$105),COLUMN(P$4)))))*IF(VLOOKUP($B81,SCHEMA_SP!$E$5:$F$54,2,FALSE)="P",-1,1)) ->  | Q81: =IF($B81="","",K81*IF($F81="",1,IF(ISERROR(MATCH($F81,$B$6:$B$105)),0,INDIRECT(ADDRESS(5+MATCH($F81,$B$6:$B$105),COLUMN(Q$4)))))*IF(VLOOKUP($B81,SCHEMA_SP!$E$5:$F$54,2,FALSE)="P",-1,1)) -> 
M82: =IF($B82="","",G82*IF($F82="",1,IF(ISERROR(MATCH($F82,$B$6:$B$105)),0,INDIRECT(ADDRESS(5+MATCH($F82,$B$6:$B$105),COLUMN(M$4)))))*IF(VLOOKUP($B82,SCHEMA_SP!$E$5:$F$54,2,FALSE)="P",-1,1)) ->  | N82: =IF($B82="","",H82*IF($F82="",1,IF(ISERROR(MATCH($F82,$B$6:$B$105)),0,INDIRECT(ADDRESS(5+MATCH($F82,$B$6:$B$105),COLUMN(N$4)))))*IF(VLOOKUP($B82,SCHEMA_SP!$E$5:$F$54,2,FALSE)="P",-1,1)) ->  | O82: =IF($B82="","",I82*IF($F82="",1,IF(ISERROR(MATCH($F82,$B$6:$B$105)),0,INDIRECT(ADDRESS(5+MATCH($F82,$B$6:$B$105),COLUMN(O$4)))))*IF(VLOOKUP($B82,SCHEMA_SP!$E$5:$F$54,2,FALSE)="P",-1,1)) ->  | P82: =IF($B82="","",J82*IF($F82="",1,IF(ISERROR(MATCH($F82,$B$6:$B$105)),0,INDIRECT(ADDRESS(5+MATCH($F82,$B$6:$B$105),COLUMN(P$4)))))*IF(VLOOKUP($B82,SCHEMA_SP!$E$5:$F$54,2,FALSE)="P",-1,1)) ->  | Q82: =IF($B82="","",K82*IF($F82="",1,IF(ISERROR(MATCH($F82,$B$6:$B$105)),0,INDIRECT(ADDRESS(5+MATCH($F82,$B$6:$B$105),COLUMN(Q$4)))))*IF(VLOOKUP($B82,SCHEMA_SP!$E$5:$F$54,2,FALSE)="P",-1,1)) -> 
M83: =IF($B83="","",G83*IF($F83="",1,IF(ISERROR(MATCH($F83,$B$6:$B$105)),0,INDIRECT(ADDRESS(5+MATCH($F83,$B$6:$B$105),COLUMN(M$4)))))*IF(VLOOKUP($B83,SCHEMA_SP!$E$5:$F$54,2,FALSE)="P",-1,1)) ->  | N83: =IF($B83="","",H83*IF($F83="",1,IF(ISERROR(MATCH($F83,$B$6:$B$105)),0,INDIRECT(ADDRESS(5+MATCH($F83,$B$6:$B$105),COLUMN(N$4)))))*IF(VLOOKUP($B83,SCHEMA_SP!$E$5:$F$54,2,FALSE)="P",-1,1)) ->  | O83: =IF($B83="","",I83*IF($F83="",1,IF(ISERROR(MATCH($F83,$B$6:$B$105)),0,INDIRECT(ADDRESS(5+MATCH($F83,$B$6:$B$105),COLUMN(O$4)))))*IF(VLOOKUP($B83,SCHEMA_SP!$E$5:$F$54,2,FALSE)="P",-1,1)) ->  | P83: =IF($B83="","",J83*IF($F83="",1,IF(ISERROR(MATCH($F83,$B$6:$B$105)),0,INDIRECT(ADDRESS(5+MATCH($F83,$B$6:$B$105),COLUMN(P$4)))))*IF(VLOOKUP($B83,SCHEMA_SP!$E$5:$F$54,2,FALSE)="P",-1,1)) ->  | Q83: =IF($B83="","",K83*IF($F83="",1,IF(ISERROR(MATCH($F83,$B$6:$B$105)),0,INDIRECT(ADDRESS(5+MATCH($F83,$B$6:$B$105),COLUMN(Q$4)))))*IF(VLOOKUP($B83,SCHEMA_SP!$E$5:$F$54,2,FALSE)="P",-1,1)) -> 
M84: =IF($B84="","",G84*IF($F84="",1,IF(ISERROR(MATCH($F84,$B$6:$B$105)),0,INDIRECT(ADDRESS(5+MATCH($F84,$B$6:$B$105),COLUMN(M$4)))))*IF(VLOOKUP($B84,SCHEMA_SP!$E$5:$F$54,2,FALSE)="P",-1,1)) ->  | N84: =IF($B84="","",H84*IF($F84="",1,IF(ISERROR(MATCH($F84,$B$6:$B$105)),0,INDIRECT(ADDRESS(5+MATCH($F84,$B$6:$B$105),COLUMN(N$4)))))*IF(VLOOKUP($B84,SCHEMA_SP!$E$5:$F$54,2,FALSE)="P",-1,1)) ->  | O84: =IF($B84="","",I84*IF($F84="",1,IF(ISERROR(MATCH($F84,$B$6:$B$105)),0,INDIRECT(ADDRESS(5+MATCH($F84,$B$6:$B$105),COLUMN(O$4)))))*IF(VLOOKUP($B84,SCHEMA_SP!$E$5:$F$54,2,FALSE)="P",-1,1)) ->  | P84: =IF($B84="","",J84*IF($F84="",1,IF(ISERROR(MATCH($F84,$B$6:$B$105)),0,INDIRECT(ADDRESS(5+MATCH($F84,$B$6:$B$105),COLUMN(P$4)))))*IF(VLOOKUP($B84,SCHEMA_SP!$E$5:$F$54,2,FALSE)="P",-1,1)) ->  | Q84: =IF($B84="","",K84*IF($F84="",1,IF(ISERROR(MATCH($F84,$B$6:$B$105)),0,INDIRECT(ADDRESS(5+MATCH($F84,$B$6:$B$105),COLUMN(Q$4)))))*IF(VLOOKUP($B84,SCHEMA_SP!$E$5:$F$54,2,FALSE)="P",-1,1)) -> 
M85: =IF($B85="","",G85*IF($F85="",1,IF(ISERROR(MATCH($F85,$B$6:$B$105)),0,INDIRECT(ADDRESS(5+MATCH($F85,$B$6:$B$105),COLUMN(M$4)))))*IF(VLOOKUP($B85,SCHEMA_SP!$E$5:$F$54,2,FALSE)="P",-1,1)) ->  | N85: =IF($B85="","",H85*IF($F85="",1,IF(ISERROR(MATCH($F85,$B$6:$B$105)),0,INDIRECT(ADDRESS(5+MATCH($F85,$B$6:$B$105),COLUMN(N$4)))))*IF(VLOOKUP($B85,SCHEMA_SP!$E$5:$F$54,2,FALSE)="P",-1,1)) ->  | O85: =IF($B85="","",I85*IF($F85="",1,IF(ISERROR(MATCH($F85,$B$6:$B$105)),0,INDIRECT(ADDRESS(5+MATCH($F85,$B$6:$B$105),COLUMN(O$4)))))*IF(VLOOKUP($B85,SCHEMA_SP!$E$5:$F$54,2,FALSE)="P",-1,1)) ->  | P85: =IF($B85="","",J85*IF($F85="",1,IF(ISERROR(MATCH($F85,$B$6:$B$105)),0,INDIRECT(ADDRESS(5+MATCH($F85,$B$6:$B$105),COLUMN(P$4)))))*IF(VLOOKUP($B85,SCHEMA_SP!$E$5:$F$54,2,FALSE)="P",-1,1)) ->  | Q85: =IF($B85="","",K85*IF($F85="",1,IF(ISERROR(MATCH($F85,$B$6:$B$105)),0,INDIRECT(ADDRESS(5+MATCH($F85,$B$6:$B$105),COLUMN(Q$4)))))*IF(VLOOKUP($B85,SCHEMA_SP!$E$5:$F$54,2,FALSE)="P",-1,1)) -> 
M86: =IF($B86="","",G86*IF($F86="",1,IF(ISERROR(MATCH($F86,$B$6:$B$105)),0,INDIRECT(ADDRESS(5+MATCH($F86,$B$6:$B$105),COLUMN(M$4)))))*IF(VLOOKUP($B86,SCHEMA_SP!$E$5:$F$54,2,FALSE)="P",-1,1)) ->  | N86: =IF($B86="","",H86*IF($F86="",1,IF(ISERROR(MATCH($F86,$B$6:$B$105)),0,INDIRECT(ADDRESS(5+MATCH($F86,$B$6:$B$105),COLUMN(N$4)))))*IF(VLOOKUP($B86,SCHEMA_SP!$E$5:$F$54,2,FALSE)="P",-1,1)) ->  | O86: =IF($B86="","",I86*IF($F86="",1,IF(ISERROR(MATCH($F86,$B$6:$B$105)),0,INDIRECT(ADDRESS(5+MATCH($F86,$B$6:$B$105),COLUMN(O$4)))))*IF(VLOOKUP($B86,SCHEMA_SP!$E$5:$F$54,2,FALSE)="P",-1,1)) ->  | P86: =IF($B86="","",J86*IF($F86="",1,IF(ISERROR(MATCH($F86,$B$6:$B$105)),0,INDIRECT(ADDRESS(5+MATCH($F86,$B$6:$B$105),COLUMN(P$4)))))*IF(VLOOKUP($B86,SCHEMA_SP!$E$5:$F$54,2,FALSE)="P",-1,1)) ->  | Q86: =IF($B86="","",K86*IF($F86="",1,IF(ISERROR(MATCH($F86,$B$6:$B$105)),0,INDIRECT(ADDRESS(5+MATCH($F86,$B$6:$B$105),COLUMN(Q$4)))))*IF(VLOOKUP($B86,SCHEMA_SP!$E$5:$F$54,2,FALSE)="P",-1,1)) -> 
M87: =IF($B87="","",G87*IF($F87="",1,IF(ISERROR(MATCH($F87,$B$6:$B$105)),0,INDIRECT(ADDRESS(5+MATCH($F87,$B$6:$B$105),COLUMN(M$4)))))*IF(VLOOKUP($B87,SCHEMA_SP!$E$5:$F$54,2,FALSE)="P",-1,1)) ->  | N87: =IF($B87="","",H87*IF($F87="",1,IF(ISERROR(MATCH($F87,$B$6:$B$105)),0,INDIRECT(ADDRESS(5+MATCH($F87,$B$6:$B$105),COLUMN(N$4)))))*IF(VLOOKUP($B87,SCHEMA_SP!$E$5:$F$54,2,FALSE)="P",-1,1)) ->  | O87: =IF($B87="","",I87*IF($F87="",1,IF(ISERROR(MATCH($F87,$B$6:$B$105)),0,INDIRECT(ADDRESS(5+MATCH($F87,$B$6:$B$105),COLUMN(O$4)))))*IF(VLOOKUP($B87,SCHEMA_SP!$E$5:$F$54,2,FALSE)="P",-1,1)) ->  | P87: =IF($B87="","",J87*IF($F87="",1,IF(ISERROR(MATCH($F87,$B$6:$B$105)),0,INDIRECT(ADDRESS(5+MATCH($F87,$B$6:$B$105),COLUMN(P$4)))))*IF(VLOOKUP($B87,SCHEMA_SP!$E$5:$F$54,2,FALSE)="P",-1,1)) ->  | Q87: =IF($B87="","",K87*IF($F87="",1,IF(ISERROR(MATCH($F87,$B$6:$B$105)),0,INDIRECT(ADDRESS(5+MATCH($F87,$B$6:$B$105),COLUMN(Q$4)))))*IF(VLOOKUP($B87,SCHEMA_SP!$E$5:$F$54,2,FALSE)="P",-1,1)) -> 
M88: =IF($B88="","",G88*IF($F88="",1,IF(ISERROR(MATCH($F88,$B$6:$B$105)),0,INDIRECT(ADDRESS(5+MATCH($F88,$B$6:$B$105),COLUMN(M$4)))))*IF(VLOOKUP($B88,SCHEMA_SP!$E$5:$F$54,2,FALSE)="P",-1,1)) ->  | N88: =IF($B88="","",H88*IF($F88="",1,IF(ISERROR(MATCH($F88,$B$6:$B$105)),0,INDIRECT(ADDRESS(5+MATCH($F88,$B$6:$B$105),COLUMN(N$4)))))*IF(VLOOKUP($B88,SCHEMA_SP!$E$5:$F$54,2,FALSE)="P",-1,1)) ->  | O88: =IF($B88="","",I88*IF($F88="",1,IF(ISERROR(MATCH($F88,$B$6:$B$105)),0,INDIRECT(ADDRESS(5+MATCH($F88,$B$6:$B$105),COLUMN(O$4)))))*IF(VLOOKUP($B88,SCHEMA_SP!$E$5:$F$54,2,FALSE)="P",-1,1)) ->  | P88: =IF($B88="","",J88*IF($F88="",1,IF(ISERROR(MATCH($F88,$B$6:$B$105)),0,INDIRECT(ADDRESS(5+MATCH($F88,$B$6:$B$105),COLUMN(P$4)))))*IF(VLOOKUP($B88,SCHEMA_SP!$E$5:$F$54,2,FALSE)="P",-1,1)) ->  | Q88: =IF($B88="","",K88*IF($F88="",1,IF(ISERROR(MATCH($F88,$B$6:$B$105)),0,INDIRECT(ADDRESS(5+MATCH($F88,$B$6:$B$105),COLUMN(Q$4)))))*IF(VLOOKUP($B88,SCHEMA_SP!$E$5:$F$54,2,FALSE)="P",-1,1)) -> 
M89: =IF($B89="","",G89*IF($F89="",1,IF(ISERROR(MATCH($F89,$B$6:$B$105)),0,INDIRECT(ADDRESS(5+MATCH($F89,$B$6:$B$105),COLUMN(M$4)))))*IF(VLOOKUP($B89,SCHEMA_SP!$E$5:$F$54,2,FALSE)="P",-1,1)) ->  | N89: =IF($B89="","",H89*IF($F89="",1,IF(ISERROR(MATCH($F89,$B$6:$B$105)),0,INDIRECT(ADDRESS(5+MATCH($F89,$B$6:$B$105),COLUMN(N$4)))))*IF(VLOOKUP($B89,SCHEMA_SP!$E$5:$F$54,2,FALSE)="P",-1,1)) ->  | O89: =IF($B89="","",I89*IF($F89="",1,IF(ISERROR(MATCH($F89,$B$6:$B$105)),0,INDIRECT(ADDRESS(5+MATCH($F89,$B$6:$B$105),COLUMN(O$4)))))*IF(VLOOKUP($B89,SCHEMA_SP!$E$5:$F$54,2,FALSE)="P",-1,1)) ->  | P89: =IF($B89="","",J89*IF($F89="",1,IF(ISERROR(MATCH($F89,$B$6:$B$105)),0,INDIRECT(ADDRESS(5+MATCH($F89,$B$6:$B$105),COLUMN(P$4)))))*IF(VLOOKUP($B89,SCHEMA_SP!$E$5:$F$54,2,FALSE)="P",-1,1)) ->  | Q89: =IF($B89="","",K89*IF($F89="",1,IF(ISERROR(MATCH($F89,$B$6:$B$105)),0,INDIRECT(ADDRESS(5+MATCH($F89,$B$6:$B$105),COLUMN(Q$4)))))*IF(VLOOKUP($B89,SCHEMA_SP!$E$5:$F$54,2,FALSE)="P",-1,1)) -> 
M90: =IF($B90="","",G90*IF($F90="",1,IF(ISERROR(MATCH($F90,$B$6:$B$105)),0,INDIRECT(ADDRESS(5+MATCH($F90,$B$6:$B$105),COLUMN(M$4)))))*IF(VLOOKUP($B90,SCHEMA_SP!$E$5:$F$54,2,FALSE)="P",-1,1)) ->  | N90: =IF($B90="","",H90*IF($F90="",1,IF(ISERROR(MATCH($F90,$B$6:$B$105)),0,INDIRECT(ADDRESS(5+MATCH($F90,$B$6:$B$105),COLUMN(N$4)))))*IF(VLOOKUP($B90,SCHEMA_SP!$E$5:$F$54,2,FALSE)="P",-1,1)) ->  | O90: =IF($B90="","",I90*IF($F90="",1,IF(ISERROR(MATCH($F90,$B$6:$B$105)),0,INDIRECT(ADDRESS(5+MATCH($F90,$B$6:$B$105),COLUMN(O$4)))))*IF(VLOOKUP($B90,SCHEMA_SP!$E$5:$F$54,2,FALSE)="P",-1,1)) ->  | P90: =IF($B90="","",J90*IF($F90="",1,IF(ISERROR(MATCH($F90,$B$6:$B$105)),0,INDIRECT(ADDRESS(5+MATCH($F90,$B$6:$B$105),COLUMN(P$4)))))*IF(VLOOKUP($B90,SCHEMA_SP!$E$5:$F$54,2,FALSE)="P",-1,1)) ->  | Q90: =IF($B90="","",K90*IF($F90="",1,IF(ISERROR(MATCH($F90,$B$6:$B$105)),0,INDIRECT(ADDRESS(5+MATCH($F90,$B$6:$B$105),COLUMN(Q$4)))))*IF(VLOOKUP($B90,SCHEMA_SP!$E$5:$F$54,2,FALSE)="P",-1,1)) -> 
M91: =IF($B91="","",G91*IF($F91="",1,IF(ISERROR(MATCH($F91,$B$6:$B$105)),0,INDIRECT(ADDRESS(5+MATCH($F91,$B$6:$B$105),COLUMN(M$4)))))*IF(VLOOKUP($B91,SCHEMA_SP!$E$5:$F$54,2,FALSE)="P",-1,1)) ->  | N91: =IF($B91="","",H91*IF($F91="",1,IF(ISERROR(MATCH($F91,$B$6:$B$105)),0,INDIRECT(ADDRESS(5+MATCH($F91,$B$6:$B$105),COLUMN(N$4)))))*IF(VLOOKUP($B91,SCHEMA_SP!$E$5:$F$54,2,FALSE)="P",-1,1)) ->  | O91: =IF($B91="","",I91*IF($F91="",1,IF(ISERROR(MATCH($F91,$B$6:$B$105)),0,INDIRECT(ADDRESS(5+MATCH($F91,$B$6:$B$105),COLUMN(O$4)))))*IF(VLOOKUP($B91,SCHEMA_SP!$E$5:$F$54,2,FALSE)="P",-1,1)) ->  | P91: =IF($B91="","",J91*IF($F91="",1,IF(ISERROR(MATCH($F91,$B$6:$B$105)),0,INDIRECT(ADDRESS(5+MATCH($F91,$B$6:$B$105),COLUMN(P$4)))))*IF(VLOOKUP($B91,SCHEMA_SP!$E$5:$F$54,2,FALSE)="P",-1,1)) ->  | Q91: =IF($B91="","",K91*IF($F91="",1,IF(ISERROR(MATCH($F91,$B$6:$B$105)),0,INDIRECT(ADDRESS(5+MATCH($F91,$B$6:$B$105),COLUMN(Q$4)))))*IF(VLOOKUP($B91,SCHEMA_SP!$E$5:$F$54,2,FALSE)="P",-1,1)) -> 
M92: =IF($B92="","",G92*IF($F92="",1,IF(ISERROR(MATCH($F92,$B$6:$B$105)),0,INDIRECT(ADDRESS(5+MATCH($F92,$B$6:$B$105),COLUMN(M$4)))))*IF(VLOOKUP($B92,SCHEMA_SP!$E$5:$F$54,2,FALSE)="P",-1,1)) ->  | N92: =IF($B92="","",H92*IF($F92="",1,IF(ISERROR(MATCH($F92,$B$6:$B$105)),0,INDIRECT(ADDRESS(5+MATCH($F92,$B$6:$B$105),COLUMN(N$4)))))*IF(VLOOKUP($B92,SCHEMA_SP!$E$5:$F$54,2,FALSE)="P",-1,1)) ->  | O92: =IF($B92="","",I92*IF($F92="",1,IF(ISERROR(MATCH($F92,$B$6:$B$105)),0,INDIRECT(ADDRESS(5+MATCH($F92,$B$6:$B$105),COLUMN(O$4)))))*IF(VLOOKUP($B92,SCHEMA_SP!$E$5:$F$54,2,FALSE)="P",-1,1)) ->  | P92: =IF($B92="","",J92*IF($F92="",1,IF(ISERROR(MATCH($F92,$B$6:$B$105)),0,INDIRECT(ADDRESS(5+MATCH($F92,$B$6:$B$105),COLUMN(P$4)))))*IF(VLOOKUP($B92,SCHEMA_SP!$E$5:$F$54,2,FALSE)="P",-1,1)) ->  | Q92: =IF($B92="","",K92*IF($F92="",1,IF(ISERROR(MATCH($F92,$B$6:$B$105)),0,INDIRECT(ADDRESS(5+MATCH($F92,$B$6:$B$105),COLUMN(Q$4)))))*IF(VLOOKUP($B92,SCHEMA_SP!$E$5:$F$54,2,FALSE)="P",-1,1)) -> 
M93: =IF($B93="","",G93*IF($F93="",1,IF(ISERROR(MATCH($F93,$B$6:$B$105)),0,INDIRECT(ADDRESS(5+MATCH($F93,$B$6:$B$105),COLUMN(M$4)))))*IF(VLOOKUP($B93,SCHEMA_SP!$E$5:$F$54,2,FALSE)="P",-1,1)) ->  | N93: =IF($B93="","",H93*IF($F93="",1,IF(ISERROR(MATCH($F93,$B$6:$B$105)),0,INDIRECT(ADDRESS(5+MATCH($F93,$B$6:$B$105),COLUMN(N$4)))))*IF(VLOOKUP($B93,SCHEMA_SP!$E$5:$F$54,2,FALSE)="P",-1,1)) ->  | O93: =IF($B93="","",I93*IF($F93="",1,IF(ISERROR(MATCH($F93,$B$6:$B$105)),0,INDIRECT(ADDRESS(5+MATCH($F93,$B$6:$B$105),COLUMN(O$4)))))*IF(VLOOKUP($B93,SCHEMA_SP!$E$5:$F$54,2,FALSE)="P",-1,1)) ->  | P93: =IF($B93="","",J93*IF($F93="",1,IF(ISERROR(MATCH($F93,$B$6:$B$105)),0,INDIRECT(ADDRESS(5+MATCH($F93,$B$6:$B$105),COLUMN(P$4)))))*IF(VLOOKUP($B93,SCHEMA_SP!$E$5:$F$54,2,FALSE)="P",-1,1)) ->  | Q93: =IF($B93="","",K93*IF($F93="",1,IF(ISERROR(MATCH($F93,$B$6:$B$105)),0,INDIRECT(ADDRESS(5+MATCH($F93,$B$6:$B$105),COLUMN(Q$4)))))*IF(VLOOKUP($B93,SCHEMA_SP!$E$5:$F$54,2,FALSE)="P",-1,1)) -> 
M94: =IF($B94="","",G94*IF($F94="",1,IF(ISERROR(MATCH($F94,$B$6:$B$105)),0,INDIRECT(ADDRESS(5+MATCH($F94,$B$6:$B$105),COLUMN(M$4)))))*IF(VLOOKUP($B94,SCHEMA_SP!$E$5:$F$54,2,FALSE)="P",-1,1)) ->  | N94: =IF($B94="","",H94*IF($F94="",1,IF(ISERROR(MATCH($F94,$B$6:$B$105)),0,INDIRECT(ADDRESS(5+MATCH($F94,$B$6:$B$105),COLUMN(N$4)))))*IF(VLOOKUP($B94,SCHEMA_SP!$E$5:$F$54,2,FALSE)="P",-1,1)) ->  | O94: =IF($B94="","",I94*IF($F94="",1,IF(ISERROR(MATCH($F94,$B$6:$B$105)),0,INDIRECT(ADDRESS(5+MATCH($F94,$B$6:$B$105),COLUMN(O$4)))))*IF(VLOOKUP($B94,SCHEMA_SP!$E$5:$F$54,2,FALSE)="P",-1,1)) ->  | P94: =IF($B94="","",J94*IF($F94="",1,IF(ISERROR(MATCH($F94,$B$6:$B$105)),0,INDIRECT(ADDRESS(5+MATCH($F94,$B$6:$B$105),COLUMN(P$4)))))*IF(VLOOKUP($B94,SCHEMA_SP!$E$5:$F$54,2,FALSE)="P",-1,1)) ->  | Q94: =IF($B94="","",K94*IF($F94="",1,IF(ISERROR(MATCH($F94,$B$6:$B$105)),0,INDIRECT(ADDRESS(5+MATCH($F94,$B$6:$B$105),COLUMN(Q$4)))))*IF(VLOOKUP($B94,SCHEMA_SP!$E$5:$F$54,2,FALSE)="P",-1,1)) -> 
M95: =IF($B95="","",G95*IF($F95="",1,IF(ISERROR(MATCH($F95,$B$6:$B$105)),0,INDIRECT(ADDRESS(5+MATCH($F95,$B$6:$B$105),COLUMN(M$4)))))*IF(VLOOKUP($B95,SCHEMA_SP!$E$5:$F$54,2,FALSE)="P",-1,1)) ->  | N95: =IF($B95="","",H95*IF($F95="",1,IF(ISERROR(MATCH($F95,$B$6:$B$105)),0,INDIRECT(ADDRESS(5+MATCH($F95,$B$6:$B$105),COLUMN(N$4)))))*IF(VLOOKUP($B95,SCHEMA_SP!$E$5:$F$54,2,FALSE)="P",-1,1)) ->  | O95: =IF($B95="","",I95*IF($F95="",1,IF(ISERROR(MATCH($F95,$B$6:$B$105)),0,INDIRECT(ADDRESS(5+MATCH($F95,$B$6:$B$105),COLUMN(O$4)))))*IF(VLOOKUP($B95,SCHEMA_SP!$E$5:$F$54,2,FALSE)="P",-1,1)) ->  | P95: =IF($B95="","",J95*IF($F95="",1,IF(ISERROR(MATCH($F95,$B$6:$B$105)),0,INDIRECT(ADDRESS(5+MATCH($F95,$B$6:$B$105),COLUMN(P$4)))))*IF(VLOOKUP($B95,SCHEMA_SP!$E$5:$F$54,2,FALSE)="P",-1,1)) ->  | Q95: =IF($B95="","",K95*IF($F95="",1,IF(ISERROR(MATCH($F95,$B$6:$B$105)),0,INDIRECT(ADDRESS(5+MATCH($F95,$B$6:$B$105),COLUMN(Q$4)))))*IF(VLOOKUP($B95,SCHEMA_SP!$E$5:$F$54,2,FALSE)="P",-1,1)) -> 
